Workbook

Sheet ARPT_ELEV (hidden)
A1: 03N | B1: 4
A2: 07FA | B2: 8
A3: 0WI8 | B3: 885
A4: 18AZ | B4: 2568
A5: 1AZ0 | B5: 1261
A6: 20GA | B6: 1110
A7: 2XS8 | B7: 929
A8: 3N0 | B8: 15
A9: 5A8 | B9: 66
A10: 7FA1 | B10: 4
A11: 7FL4 | B11: 75
A12: AGAF | B12: 5
A13: AGAR | B13: 5
A14: AGAT | B14: 0
A15: AGBT | B15: 5
A16: AGGA | B16: 5
A17: AGGC | B17: 5
A18: AGGE | B18: 5
A19: AGGF | B19: 0
A20: AGGH | B20: 28
A21: AGGI | B21: 0
A22: AGGK | B22: 0
A23: AGGL | B23: 18
A24: AGGM | B24: 10
A25: AGGN | B25: 13
A26: AGGO | B26: 0
A27: AGGR | B27: 0
A28: AGGS | B28: 0
A29: AGGT | B29: 6
A30: AGGU | B30: 0
A31: AGGV | B31: 0
A32: AGGY | B32: 6
A33: AGKG | B33: 0
A34: AGRC | B34: 0
A35: AGRM | B35: 0
A36: ALX_ | B36: 1
A37: ANAS | B37: 0
A38: ANNA | B38: 0
A39: ANYN | B39: 22
A40: ARIA | B40: 0
A41: AUGS | B41: 1200
A42: AYBK | B42: 11
A43: AYCH | B43: 4974
A44: AYDU | B44: 20
A45: AYGA | B45: 5282
A46: AYGN | B46: 88
A47: AYGR | B47: 311
A48: AYHK | B48: 66
A49: AYKI | B49: 88
A50: AYKK | B50: 50
A51: AYKM | B51: 10
A52: AYKV | B52: 7
A53: AYMD | B53: 20
A54: AYMH | B54: 5388
A55: AYMN | B55: 5680
A56: AYMO | B56: 12
A57: AYMR | B57: 2740
A58: AYMS | B58: 26
A59: AYNZ | B59: 239
A60: AYPY | B60: 146
A61: AYTA | B61: 5500
A62: AYTB | B62: 1570
A63: AYTK | B63: 32
A64: AYVN | B64: 10
A65: AYWD | B65: 5889
A66: AYWK | B66: 19
A67: BAMB | B67: 800
A68: BBUF | B68: 0
A69: BGAM | B69: 24
A70: BGAP | B70: 89
A71: BGBW | B71: 112
A72: BGCH | B72: 2
A73: BGCO | B73: 45
A74: BGEM | B74: 2
A75: BGFH | B75: 0
A76: BGGH | B76: 283
A77: BGGN | B77: 0
A78: BGJH | B78: 0
A79: BGJN | B79: 2
A80: BGMQ | B80: 91
A81: BGNN | B81: 0
A82: BGNS | B82: 0
A83: BGQQ | B83: 51
A84: BGSC | B84: 238
A85: BGSF | B85: 165
A86: BGSS | B86: 33
A87: BGTL | B87: 251
A88: BGUK | B88: 414
A89: BGUM | B89: 5
A90: BGUQ | B90: 289
A91: BIAR | B91: 6
A92: BIBA | B92: 45
A93: BIBD | B93: 26
A94: BIEG | B94: 76
A95: BIES | B95: 1200
A96: BIGJ | B96: 98
A97: BIGR | B97: 66
A98: BIHN | B98: 24
A99: BIHU | B99: 48
A100: BIIS | B100: 8
A101: BIKF | B101: 171
A102: BIKR | B102: 8
A103: BIPA | B103: 11
A104: BIRK | B104: 48
A105: BIRL | B105: 1030
A106: BISF | B106: 45
A107: BISI | B107: 10
A108: BITN | B108: 65
A109: BIVM | B109: 326
A110: BIVO | B110: 0
A111: BKKX | B111: 5
A112: BKX | B112: 1648
A113: BLF | B113: 2857
A114: BOCH | B114: 1000
A115: BOST | B115: 0
A116: BPAP | B116: 136
A117: BRKM | B117: 0
A118: BRKV | B118: 0
A119: BRU1 | B119: 0
A120: BUCA | B120: 0
A121: BUCH | B121: 1200
A122: BUZZ | B122: 0
A123: CAC8 | B123: 0
A124: CAD4 | B124: 1427
A125: CAE5 | B125: 2100
A126: CAJ4 | B126: 3635
A127: CAP5 | B127: 0
A128: CAQ3 | B128: 0
A129: CAV3 | B129: 3055
A130: CAX6 | B130: 0
A131: CBW4 | B131: 50
A132: CCA6 | B132: 70
A133: CCD4 | B133: 223
A134: CCE4 | B134: 57
A135: CCK4 | B135: 74
A136: CCLN | B136: 0
A137: CCP4 | B137: 347
A138: CCW3 | B138: 119
A139: CCZ2 | B139: 180
A140: CEB3 | B140: 850
A141: CEM3 | B141: 882
A142: CFJ2 | B142: 1206
A143: CHB3 | B143: 125
A144: CJT2 | B144: 725
A145: CJV7 | B145: 832
A146: CJX7 | B146: 72
A147: CKB6 | B147: 712
A148: CKD9 | B148: 1355
A149: CKL3 | B149: 819
A150: CKQ3 | B150: 1082
A151: CLY1 | B151: 0
A152: CLAA | B152: 0
A153: CN-0 | B153: 1677
A154: CNC3 | B154: 935
A155: CNE3 | B155: 800
A156: CNH2 | B156: 33
A157: CNM5 | B157: 866
A158: CNT3 | B158: 594
A159: CNY3 | B159: 730
A160: COA1 | B160: 0
A161: CPV7 | B161: 1095
A162: CPV8 | B162: 988
A163: CSU2 | B163: 43
A164: CTB6 | B164: 107
A165: CTK6 | B165: 32
A166: CTT5 | B166: 90
A167: CTU5 | B167: 102
A168: CYAC | B168: 1344
A169: CYAG | B169: 1125
A170: CYAM | B170: 630
A171: CYAQ | B171: 672
A172: CYAS | B172: 403
A173: CYAT | B173: 31
A174: CYAV | B174: 760
A175: CYAW | B175: 167
A176: CYAX | B176: 850
A177: CYAY | B177: 108
A178: CYAZ | B178: 80
A179: CYBB | B179: 56
A180: CYBC | B180: 71
A181: CYBD | B181: 117
A182: CYBE | B182: 1044
A183: CYBF | B183: 1839
A184: CYBG | B184: 522
A185: CYBK | B185: 59
A186: CYBL | B186: 346
A187: CYBQ | B187: 923
A188: CYBR | B188: 1343
A189: CYBT | B189: 1131
A190: CYBV | B190: 728
A191: CYBW | B191: 3939
A192: CYBX | B192: 121
A193: CYCA | B193: 40
A194: CYCB | B194: 90
A195: CYCC | B195: 175
A196: CYCD | B196: 93
A197: CYCG | B197: 1624
A198: CYCH | B198: 108
A199: CYCL | B199: 132
A200: CYCO | B200: 74
... 6321 more rows

Sheet OBSTACLES_2 (hidden)
K1: % | L1: Dist (FT) | M1: Ht (FT)
J2: =runways_selected!D3 -> LEBL24L | K2: =MAX(K5:K36) -> 2.8 | L2: =VLOOKUP(K2,K5:M38,2,FALSE)/3.28&" m" -> 229 m | M2: =VLOOKUP(K2,K5:M38,3,FALSE)&" ft" -> 29 ft | O2: ="OBST: "&L2&" - "&M2&" (From brake rel.)" -> OBST: 229 m - 29 ft (From brake rel.)
A4: ARTP | B4: RWY | C4: ARTPRWY | D4: Dist (FT) | E4: Ht (FT) | F4: % | J4: Posición | K4: % | L4: Dist (FT) | M4: Ht (FT)
A5: EBBR | B5: 25L | C5: EBBR25L | D5: 596.96 | E5: 50 | F5: 2.8 | J5: 1 | K5: =IFERROR(INDEX(obstacles,SMALL(IF(OFFSET(obstacles,0,0,ROWS(obstacles),1)=J2,ROW(OFFSET(obstacles,0,0,ROWS(obstacles),1))-ROW(OFFSET(obstacles,0,0,1,1))+1,ROW(OFFSET(obstacles,ROWS(obstacles)-1,0,1,1))+1),J5:J38),4),"-") -> 2.8 | L5: =IFERROR(INDEX(obstacles,SMALL(IF(OFFSET(obstacles,0,0,ROWS(obstacles),1)=J2,ROW(OFFSET(obstacles,0,0,ROWS(obstacles),1))-ROW(OFFSET(obstacles,0,0,1,1))+1,ROW(OFFSET(obstacles,ROWS(obstacles)-1,0,1,1))+1),J5:J38),2),"-") -> 751.12 | M5: =IFERROR(INDEX(obstacles,SMALL(IF(OFFSET(obstacles,0,0,ROWS(obstacles),1)=J2,ROW(OFFSET(obstacles,0,0,ROWS(obstacles),1))-ROW(OFFSET(obstacles,0,0,1,1))+1,ROW(OFFSET(obstacles,ROWS(obstacles)-1,0,1,1))+1),J5:J38),3),"-") -> 29
A6: EBBR | B6: 25L-T-SUP28 | C6: EBBR25L-T-SUP28 | D6: 596.96 | E6: 50 | F6: 2.8 | J6: 2 | K6: 2.34556717 | L6: 413.28 | M6: 13
A7: EBBR | B7: 25L | C7: EBBR25L | D7: 744.56 | E7: 55 | F7: 2.8 | J7: 3 | K7: 1.171848077 | L7: 1977.84 | M7: 39
A8: EBBR | B8: 25L-T-SUP28 | C8: EBBR25L-T-SUP28 | D8: 744.56 | E8: 55 | F8: 2.8 | J8: 4 | K8: 1.093652477 | L8: 2112.32 | M8: 40
A9: EBBR | B9: 07L | C9: EBBR07L | D9: 1472.72 | E9: 60 | F9: 2.8 | J9: 5 | K9: - | L9: - | M9: -
A10: EBCI | B10: 24 | C10: EBCI24 | D10: 967.6 | E10: 46 | F10: 2.8 | J10: 6 | K10: - | L10: - | M10: -
A11: EBCI | B11: 24 | C11: EBCI24 | D11: 3440.72 | E11: 145 | F11: 2.8 | J11: 7 | K11: - | L11: - | M11: -
A12: EBLG | B12: 04L | C12: EBLG04L | D12: 360.8 | E12: 69 | F12: 2.8 | J12: 8 | K12: - | L12: - | M12: -
A13: EBLG | B13: 04R | C13: EBLG04R | D13: 869.2 | E13: 52 | F13: 2.8 | J13: 9 | K13: - | L13: - | M13: -
A14: EBLG | B14: 22L | C14: EBLG22L | D14: 410 | E14: 20 | F14: 2.8 | J14: 10 | K14: - | L14: - | M14: -
A15: EBLG | B15: 04R | C15: EBLG04R | D15: 1262.8 | E15: 59 | F15: 2.8 | J15: 11 | K15: - | L15: - | M15: -
A16: EBLG | B16: 22L | C16: EBLG22L | D16: 672.4 | E16: 28 | F16: 2.8 | J16: 12 | K16: - | L16: - | M16: -
A17: EDDC | B17: 4 | C17: EDDC4 | D17: 1148 | E17: 47 | F17: 2.8 | J17: 13 | K17: - | L17: - | M17: -
A18: EDDH | B18: 23 | C18: EDDH23 | D18: 1220.16 | E18: 57 | F18: 2.8 | J18: 14 | K18: - | L18: - | M18: -
A19: EDDH | B19: 23-T-A2070 | C19: EDDH23-T-A2070 | D19: 1220.16 | E19: 57 | F19: 2.8 | J19: 15 | K19: - | L19: - | M19: -
A20: EDDK | B20: 32L | C20: EDDK32L | D20: 206.64 | E20: 9 | F20: 2.8 | J20: 16 | K20: - | L20: - | M20: -
A21: EDDN | B21: 10 | C21: EDDN10 | D21: 2460 | E21: 111 | F21: 2.8 | J21: 17 | K21: - | L21: - | M21: -
A22: EDDN | B22: 10 | C22: EDDN10 | D22: 3001.2 | E22: 133 | F22: 2.8 | J22: 18 | K22: - | L22: - | M22: -
A23: EDDT | B23: 08R | C23: EDDT08R | D23: 1043.04 | E23: 53 | F23: 2.8 | J23: 19 | K23: - | L23: - | M23: -
A24: EDDT | B24: 08R | C24: EDDT08R | D24: 1528.48 | E24: 72 | F24: 2.8 | J24: 20 | K24: - | L24: - | M24: -
A25: EDDV | B25: 09R | C25: EDDV09R | D25: 75.44 | E25: 4 | F25: 2.8 | J25: 21 | K25: - | L25: - | M25: -
A26: EDHL | B26: 25 | C26: EDHL25 | D26: 623.2 | E26: 29 | F26: 2.8 | J26: 22 | K26: - | L26: - | M26: -
A27: EDHL | B27: 7 | C27: EDHL7 | D27: 1640 | E27: 64 | F27: 2.8 | J27: 23 | K27: - | L27: - | M27: -
A28: EDHL | B28: 25 | C28: EDHL25 | D28: 951.2 | E28: 37 | F28: 2.8 | J28: 24 | K28: - | L28: - | M28: -
A29: EETN | B29: 26 | C29: EETN26 | D29: 1131.6 | E29: 49 | F29: 2.8 | J29: 25 | K29: - | L29: - | M29: -
A30: EETN | B30: 26-T-SUP04 | C30: EETN26-T-SUP04 | D30: 1131.6 | E30: 49 | F30: 2.8 | J30: 26 | K30: - | L30: - | M30: -
A31: EFHK | B31: 15 | C31: EFHK15 | D31: 3.28 | E31: 3 | F31: 2.8 | J31: 27 | K31: - | L31: - | M31: -
A32: EFHK | B32: 04L | C32: EFHK04L | D32: 3.28 | E32: 2 | F32: 2.8 | J32: 28 | K32: - | L32: - | M32: -
A33: EFHK | B33: 22R | C33: EFHK22R | D33: 3.28 | E33: 2 | F33: 2.8 | J33: 29 | K33: - | L33: - | M33: -
A34: EFHK | B34: 33 | C34: EFHK33 | D34: 3.28 | E34: 2 | F34: 2.8 | J34: 30 | K34: - | L34: - | M34: -
A35: EFKI | B35: 7 | C35: EFKI7 | D35: 3.28 | E35: 1 | F35: 2.8 | J35: 31 | K35: - | L35: - | M35: -
A36: EFKI | B36: 25 | C36: EFKI25 | D36: 3.28 | E36: 1 | F36: 2.8 | J36: 32 | K36: - | L36: - | M36: -
A37: EFKK | B37: 1 | C37: EFKK1 | D37: 3.28 | E37: 2 | F37: 2.8 | J37: 33 | L37: - | M37: -
A38: EFKK | B38: 19 | C38: EFKK19 | D38: 3.28 | E38: 2 | F38: 2.8 | J38: 34 | L38: - | M38: -
A39: EFKS | B39: 12 | C39: EFKS12 | D39: 961.04 | E39: 44 | F39: 2.8
A40: EFOU | B40: 12 | C40: EFOU12 | D40: 3.28 | E40: 2 | F40: 2.8
A41: EFOU | B41: 30 | C41: EFOU30 | D41: 3.28 | E41: 2 | F41: 2.8
A42: EFOU | B42: 12 | C42: EFOU12 | D42: 1069.28 | E42: 63 | F42: 2.8
A43: EFOU | B43: 12 | C43: EFOU12 | D43: 2102.48 | E43: 81 | F43: 2.8
A44: EFRO | B44: 21 | C44: EFRO21 | D44: 3.28 | E44: 13 | F44: 2.8
A45: EFRO | B45: 3 | C45: EFRO3 | D45: 3.28 | E45: 1 | F45: 2.8
A46: EFRO | B46: 03-T-K3174 | C46: EFRO03-T-K3174 | D46: 3.28 | E46: 1 | F46: 2.8
A47: EFRO | B47: 21 | C47: EFRO21 | D47: 131.2 | E47: 27 | F47: 2.8
A48: EFRO | B48: 3 | C48: EFRO3 | D48: 196.8 | E48: 19 | F48: 2.8
A49: EFRO | B49: 03-T-K3174 | C49: EFRO03-T-K3174 | D49: 196.8 | E49: 19 | F49: 2.8
A50: EFVA | B50: 34 | C50: EFVA34 | D50: 3.28 | E50: 3 | F50: 2.8
A51: EFVA | B51: 16 | C51: EFVA16 | D51: 3.28 | E51: 1 | F51: 2.8
A52: EGCC | B52: 05R | C52: EGCC05R | D52: 370.64 | E52: 23 | F52: 2.8
A53: EGCC | B53: 05R-T-A3948 | C53: EGCC05R-T-A3948 | D53: 370.64 | E53: 23 | F53: 2.8
A54: EGCN | B54: 20 | C54: EGCN20 | D54: 711.76 | E54: 34 | F54: 2.8
A55: EGCN | B55: 20 | C55: EGCN20 | D55: 698.64 | E55: 31 | F55: 2.8
A56: EGCN | B56: 20 | C56: EGCN20 | D56: 688.8 | E56: 28 | F56: 2.8
A57: EGCN | B57: 20 | C57: EGCN20 | D57: 682.24 | E57: 27 | F57: 2.8
A58: EGCN | B58: 20 | C58: EGCN20 | D58: 531.36 | E58: 21 | F58: 2.8
A59: EGKK | B59: 26R | C59: EGKK26R | D59: 528.08 | E59: 39 | F59: 2.8
A60: EGKK | B60: 26R | C60: EGKK26R | D60: 564.16 | E60: 40 | F60: 2.8
A61: EGNJ | B61: 20 | C61: EGNJ20 | D61: 341.12 | E61: 18 | F61: 2.8
A62: EGNJ | B62: 20 | C62: EGNJ20 | D62: 403.44 | E62: 20 | F62: 2.8
A63: EGNJ | B63: 20 | C63: EGNJ20 | D63: 1108.64 | E63: 48 | F63: 2.8
A64: EGNJ | B64: 20 | C64: EGNJ20 | D64: 606.8 | E64: 25 | F64: 2.8
A65: EGNJ | B65: 20 | C65: EGNJ20 | D65: 711.76 | E65: 28 | F65: 2.8
A66: EGNJ | B66: 20 | C66: EGNJ20 | D66: 820 | E66: 32 | F66: 2.8
A67: EGPF | B67: 5 | C67: EGPF5 | D67: 1272.64 | E67: 51 | F67: 2.8
A68: EGPF | B68: 05-ALT | C68: EGPF05-ALT | D68: 1272.64 | E68: 51 | F68: 2.8
A69: EGPF | B69: 5 | C69: EGPF5 | D69: 1013.52 | E69: 40 | F69: 2.8
A70: EGPF | B70: 05-ALT | C70: EGPF05-ALT | D70: 1013.52 | E70: 40 | F70: 2.8
A71: EGPK | B71: 3 | C71: EGPK3 | D71: 308.32 | E71: 15 | F71: 2.8
A72: EGPK | B72: 21 | C72: EGPK21 | D72: 803.6 | E72: 33 | F72: 2.8
A73: EHAM | B73: 27 | C73: EHAM27 | D73: 3.28 | E73: 2 | F73: 2.8
A74: EHAM | B74: 9 | C74: EHAM9 | D74: 3.28 | E74: 1 | F74: 2.8
A75: EHAM | B75: 09-T-A1069 | C75: EHAM09-T-A1069 | D75: 3.28 | E75: 1 | F75: 2.8
A76: EHAM | B76: 27 | C76: EHAM27 | D76: 98.4 | E76: 11 | F76: 2.8
A77: EHRD | B77: 6 | C77: EHRD6 | D77: 1708.88 | E77: 71 | F77: 2.8
A78: EHRD | B78: 06-T-A1205 | C78: EHRD06-T-A1205 | D78: 1708.88 | E78: 71 | F78: 2.8
A79: EHRD | B79: 24 | C79: EHRD24 | D79: 1505.52 | E79: 59 | F79: 2.8
A80: EHRD | B80: 24 | C80: EHRD24 | D80: 1315.28 | E80: 50 | F80: 2.8
A81: EICK | B81: 07-T-SUP13 | C81: EICK07-T-SUP13 | D81: 537.92 | E81: 28 | F81: 2.8
A82: EICK | B82: 07-T-SUP13 | C82: EICK07-T-SUP13 | D82: 1587.52 | E82: 61 | F82: 2.8
A83: ENBR | B83: 35 | C83: ENBR35 | D83: 2168.08 | E83: 103 | F83: 2.8
A84: ENCN | B84: 3 | C84: ENCN3 | D84: 6376.32 | E84: 259 | F84: 2.8
A85: ENSB | B85: 10 | C85: ENSB10 | D85: 18561.52 | E85: 1852 | F85: 2.8
A86: ENSB | B86: 10 | C86: ENSB10 | D86: 18082.64 | E86: 1684 | F86: 2.8
A87: ENSB | B87: 10 | C87: ENSB10 | D87: 17607.04 | E87: 1517 | F87: 2.8
A88: ENSB | B88: 10 | C88: ENSB10 | D88: 17246.24 | E88: 1350 | F88: 2.8
A89: ENSB | B89: 10 | C89: ENSB10 | D89: 16888.72 | E89: 1183 | F89: 2.8
A90: ENSB | B90: 10 | C90: ENSB10 | D90: 16531.2 | E90: 1016 | F90: 2.8
A91: ENSB | B91: 10 | C91: ENSB10 | D91: 15930.96 | E91: 848 | F91: 2.8
A92: ENZV | B92: 11 | C92: ENZV11 | D92: 3066.8 | E92: 129 | F92: 2.8
A93: ENZV | B93: 11 | C93: ENZV11 | D93: 4264 | E93: 174 | F93: 2.8
A94: ESKN | B94: 34 | C94: ESKN34 | D94: 314.88 | E94: 20 | F94: 2.8
A95: ESKN | B95: 34 | C95: ESKN34 | D95: 209.92 | E95: 13 | F95: 2.8
A96: ESKN | B96: 34 | C96: ESKN34 | D96: 1029.92 | E96: 48 | F96: 2.8
A97: ESKN | B97: 34 | C97: ESKN34 | D97: 1505.52 | E97: 69 | F97: 2.8
A98: ESKN | B98: 16 | C98: ESKN16 | D98: 2102.48 | E98: 91 | F98: 2.8
A99: ESKN | B99: 16 | C99: ESKN16 | D99: 2551.84 | E99: 101 | F99: 2.8
A100: ESNS | B100: 10 | C100: ESNS10 | D100: 32.8 | E100: 10 | F100: 2.8
A101: ESOW | B101: 1 | C101: ESOW1 | D101: 91.84 | E101: 8 | F101: 2.8
A102: ESOW | B102: 19 | C102: ESOW19 | D102: 984 | E102: 44 | F102: 2.8
A103: ESTA | B103: 14 | C103: ESTA14 | D103: 26.24 | E103: 10 | F103: 2.8
A104: ETNL | B104: 9 | C104: ETNL9 | D104: 3.28 | E104: 5 | F104: 2.8
A105: ETNL | B105: 09-RAG | C105: ETNL09-RAG | D105: 3.28 | E105: 5 | F105: 2.8
A106: ETNL | B106: 27 | C106: ETNL27 | D106: 3.28 | E106: 5 | F106: 2.8
A107: ETNL | B107: 27-RAG | C107: ETNL27-RAG | D107: 3.28 | E107: 5 | F107: 2.8
A108: EVGA | B108: 18 | C108: EVGA18 | D108: 1344.8 | E108: 103 | F108: 2.8
A109: EYPA | B109: 1 | C109: EYPA1 | D109: 1954.88 | E109: 92 | F109: 2.8
A110: EYPA | B110: 01-T-SUP15 | C110: EYPA01-T-SUP15 | D110: 1954.88 | E110: 92 | F110: 2.8
A111: GCFV | B111: 1 | C111: GCFV1 | D111: 186.96 | E111: 8 | F111: 2.8
A112: GCFV | B112: 1 | C112: GCFV1 | D112: 478.88 | E112: 20 | F112: 2.8
A113: GCLP | B113: 03R | C113: GCLP03R | D113: 9.84 | E113: 5 | F113: 2.8
A114: GCLP | B114: 21L | C114: GCLP21L | D114: 13.12 | E114: 5 | F114: 2.8
A115: GCLP | B115: 21L-RAG1 | C115: GCLP21L-RAG1 | D115: 13.12 | E115: 5 | F115: 2.8
A116: GCLP | B116: 03R | C116: GCLP03R | D116: 42.64 | E116: 6 | F116: 2.8
A117: GCLP | B117: 03R | C117: GCLP03R | D117: 85.28 | E117: 10 | F117: 2.8
A118: GCLP | B118: 03R | C118: GCLP03R | D118: 95.12 | E118: 11 | F118: 2.8
A119: GCLP | B119: 21L | C119: GCLP21L | D119: 55.76 | E119: 6 | F119: 2.8
A120: GCLP | B120: 21L-RAG1 | C120: GCLP21L-RAG1 | D120: 55.76 | E120: 6 | F120: 2.8
A121: GCLP | B121: 03R | C121: GCLP03R | D121: 196.8 | E121: 14 | F121: 2.8
A122: GCLP | B122: 21R | C122: GCLP21R | D122: 721.6 | E122: 35 | F122: 2.8
A123: GCLP | B123: 21R | C123: GCLP21R | D123: 1771.2 | E123: 78 | F123: 2.8
A124: GCRR | B124: 3 | C124: GCRR3 | D124: 492 | E124: 30 | F124: 2.8
A125: GCRR | B125: 3 | C125: GCRR3 | D125: 721.6 | E125: 38 | F125: 2.8
A126: GCRR | B126: 3 | C126: GCRR3 | D126: 6412.4 | E126: 278 | F126: 2.8
A127: GCRR | B127: 3 | C127: GCRR3 | D127: 6087.68 | E127: 262 | F127: 2.8
A128: GCRR | B128: 3 | C128: GCRR3 | D128: 5808.88 | E128: 250 | F128: 2.8
A129: GCRR | B129: 3 | C129: GCRR3 | D129: 5280.8 | E129: 213 | F129: 2.8
A130: GCRR | B130: 3 | C130: GCRR3 | D130: 4487.04 | E130: 175 | F130: 2.8
A131: GCTS | B131: 7 | C131: GCTS7 | D131: 951.2 | E131: 38 | F131: 2.8
A132: GCXO | B132: 30 | C132: GCXO30 | D132: 3.28 | E132: 4 | F132: 2.8
A133: GCXO | B133: 30-T-SUP45 | C133: GCXO30-T-SUP45 | D133: 3.28 | E133: 4 | F133: 2.8
A134: GCXO | B134: 12 | C134: GCXO12 | D134: 39.36 | E134: 2 | F134: 2.8
A135: GMMH | B135: 21 | C135: GMMH21 | D135: 3936 | E135: 165 | F135: 2.8
A136: GMMH | B136: 21-T-SUP02 | C136: GMMH21-T-SUP02 | D136: 3936 | E136: 165 | F136: 2.8
A137: LDDU | B137: 11 | C137: LDDU11 | D137: 672.4 | E137: 29 | F137: 2.8
A138: LDDU | B138: 29 | C138: LDDU29 | D138: 934.8 | E138: 39 | F138: 2.8
A139: LDZA | B139: 4 | C139: LDZA4 | D139: 1476 | E139: 69 | F139: 2.8
A140: LEAL | B140: 10 | C140: LEAL10 | D140: 203.36 | E140: 26 | F140: 2.8
A141: LEAS | B141: 29 | C141: LEAS29 | D141: 154.16 | E141: 15 | F141: 2.8
A142: LEBB | B142: 12 | C142: LEBB12 | D142: 2922.48 | E142: 121 | F142: 2.8
A143: LEBB | B143: 12 | C143: LEBB12 | D143: 2971.68 | E143: 121 | F143: 2.8
A144: LEBL | B144: 20 | C144: LEBL20 | D144: 65.6 | E144: 3 | F144: 2.8
A145: LEBL | B145: 24L | C145: LEBL24L | D145: 751.12 | E145: 29 | F145: 2.8
A146: LECO | B146: 21 | C146: LECO21 | D146: 3.28 | E146: 10 | F146: 2.8
A147: LECO | B147: 21 | C147: LECO21 | D147: 200.08 | E147: 22 | F147: 2.8
A148: LECO | B148: 21 | C148: LECO21 | D148: 3306.24 | E148: 149 | F148: 2.8
A149: LECO | B149: 21 | C149: LECO21 | D149: 5949.92 | E149: 236 | F149: 2.8
A150: LECO | B150: 21 | C150: LECO21 | D150: 5959.76 | E150: 235 | F150: 2.8
A151: LECO | B151: 21 | C151: LECO21 | D151: 6008.96 | E151: 229 | F151: 2.8
A152: LEGE | B152: 19 | C152: LEGE19 | D152: 6.56 | E152: 11 | F152: 2.8
A153: LEGE | B153: 19 | C153: LEGE19 | D153: 278.8 | E153: 21 | F153: 2.8
A154: LEGE | B154: 19 | C154: LEGE19 | D154: 265.68 | E154: 19 | F154: 2.8
A155: LEGE | B155: 19 | C155: LEGE19 | D155: 734.72 | E155: 39 | F155: 2.8
A156: LEGR | B156: 9 | C156: LEGR9 | D156: 6.56 | E156: 3 | F156: 2.8
A157: LEGR | B157: 9 | C157: LEGR9 | D157: 275.52 | E157: 22 | F157: 2.8
A158: LEGR | B158: 9 | C158: LEGR9 | D158: 396.88 | E158: 27 | F158: 2.8
A159: LEGR | B159: 27 | C159: LEGR27 | D159: 180.4 | E159: 12 | F159: 2.8
A160: LEGR | B160: 27 | C160: LEGR27 | D160: 196.8 | E160: 13 | F160: 2.8
A161: LEJR | B161: 20 | C161: LEJR20 | D161: 32.8 | E161: 3 | F161: 2.8
A162: LEJR | B162: 20-T-E4773 | C162: LEJR20-T-E4773 | D162: 32.8 | E162: 3 | F162: 2.8
A163: LEJR | B163: 2 | C163: LEJR2 | D163: 36.08 | E163: 3 | F163: 2.8
A164: LEJR | B164: 02-T-E4773 | C164: LEJR02-T-E4773 | D164: 36.08 | E164: 3 | F164: 2.8
A165: LELC | B165: 23L | C165: LELC23L | D165: 1180.8 | E165: 49 | F165: 2.8
A166: LEMH | B166: 1 | C166: LEMH1 | D166: 16.4 | E166: 3 | F166: 2.8
A167: LEPP | B167: 33 | C167: LEPP33 | D167: 29.52 | E167: 13 | F167: 2.8
A168: LEPP | B168: 33-T-B6934 | C168: LEPP33-T-B6934 | D168: 29.52 | E168: 13 | F168: 2.8
A169: LEPP | B169: 15 | C169: LEPP15 | D169: 2181.2 | E169: 115 | F169: 2.8
A170: LERJ | B170: 29 | C170: LERJ29 | D170: 623.2 | E170: 27 | F170: 2.8
A171: LERJ | B171: 11 | C171: LERJ11 | D171: 1187.36 | E171: 48 | F171: 2.8
A172: LESA | B172: 21 | C172: LESA21 | D172: 101.68 | E172: 14 | F172: 2.8
A173: LESA | B173: 21 | C173: LESA21 | D173: 1207.04 | E173: 50 | F173: 2.8
A174: LESO | B174: 22 | C174: LESO22 | D174: 1016.8 | E174: 53 | F174: 2.8
A175: LESO | B175: 22 | C175: LESO22 | D175: 1062.72 | E175: 54 | F175: 2.8
A176: LESO | B176: 22 | C176: LESO22 | D176: 1177.52 | E176: 59 | F176: 2.8
A177: LESO | B177: 22 | C177: LESO22 | D177: 18774.72 | E177: 916 | F177: 2.8
A178: LEVX | B178: 19 | C178: LEVX19 | D178: 65.6 | E178: 6 | F178: 2.8
A179: LEVX | B179: 1 | C179: LEVX1 | D179: 52.48 | E179: 4 | F179: 2.8
A180: LEVX | B180: 19 | C180: LEVX19 | D180: 882.32 | E180: 40 | F180: 2.8
A181: LEZG | B181: 30L | C181: LEZG30L | D181: 118.08 | E181: 7 | F181: 2.8
A182: LEZL | B182: 9 | C182: LEZL9 | D182: 482.16 | E182: 21 | F182: 2.8
A183: LFBD | B183: 11 | C183: LFBD11 | D183: 16.4 | E183: 3 | F183: 2.8
A184: LFBT | B184: 20 | C184: LFBT20 | D184: 7872 | E184: 382 | F184: 2.8
A185: LFBT | B185: 20 | C185: LFBT20 | D185: 1279.2 | E185: 60 | F185: 2.8
A186: LFGJ | B186: 05-T-P3811 | C186: LFGJ05-T-P3811 | D186: 2040.16 | E186: 84 | F186: 2.8
A187: LFLL | B187: 17L | C187: LFLL17L | D187: 3.28 | E187: 8 | F187: 2.8
A188: LFML | B188: 13L | C188: LFML13L | D188: 20303.2 | E188: 815 | F188: 2.8
A189: LFML | B189: 13R | C189: LFML13R | D189: 20759.12 | E189: 829 | F189: 2.8
A190: LFML | B190: 13R | C190: LFML13R | D190: 19260.16 | E190: 734 | F190: 2.8
A191: LFPG | B191: 27L | C191: LFPG27L | D191: 16.4 | E191: 3 | F191: 2.8
A192: LFPO | B192: 7 | C192: LFPO7 | D192: 91.84 | E192: 5 | F192: 2.8
A193: LFRG | B193: 30-T-P0902 | C193: LFRG30-T-P0902 | D193: 262.4 | E193: 48 | F193: 2.8
A194: LFRG | B194: 12-T-P0902 | C194: LFRG12-T-P0902 | D194: 852.8 | E194: 54 | F194: 2.8
A195: LFRG | B195: 30 | C195: LFRG30 | D195: 1082.4 | E195: 63 | F195: 2.8
A196: LFRG | B196: 30-T-P0902 | C196: LFRG30-T-P0902 | D196: 1082.4 | E196: 63 | F196: 2.8
A197: LFRG | B197: 30-T-P0903 | C197: LFRG30-T-P0903 | D197: 1082.4 | E197: 63 | F197: 2.8
A198: LFRG | B198: 30 | C198: LFRG30 | D198: 1918.8 | E198: 86 | F198: 2.8
A199: LFRG | B199: 30-T-P0902 | C199: LFRG30-T-P0902 | D199: 1918.8 | E199: 86 | F199: 2.8
A200: LFRG | B200: 30-T-P0903 | C200: LFRG30-T-P0903 | D200: 1918.8 | E200: 86 | F200: 2.8
A201: LFRG | B201: 12 | C201: LFRG12 | D201: 1344.8 | E201: 60 | F201: 2.8
... 2410 more rows

Sheet SWY-CWY (hidden)
A1: ARPT | B1: RWY | C1: ARPTRWY | D1: CWY | E1: SWY | F1: SLOPE | J1: CWY | K1: SWY | L1: SLOPE
A2: BIKF | B2: 1 | C2: =A2&B2 -> BIKF1 | D2: 150 | E2: 0 | F2: 0.26 | H2: T/O | I2: =runways_selected!D3 -> LEBL24L | J2: =IFERROR(VLOOKUP(I2,$C$2:$E$10000,2,FALSE),0) -> 60 | K2: =IFERROR(VLOOKUP(I2,$C$2:$E$10000,3,FALSE),0) -> 0 | L2: =IFERROR(VLOOKUP(I2,$C$2:$F$10000,4,FALSE),0) -> 0
A3: BIKF | B3: 10 | C3: =A3&B3 -> BIKF10 | D3: 260 | E3: 0 | F3: 0.59
A4: BIKF | B4: 19 | C4: BIKF19 | D4: 150 | E4: 0 | F4: -0.26
A5: BIKF | B5: 28 | C5: BIKF28 | D5: 300 | E5: 0 | F5: -0.59 | J5: CWY | K5: SWY | L5: SLOPE
A6: CYYR | B6: 8 | C6: CYYR8 | D6: 305 | E6: 0 | F6: -0.1 | H6: LDG | I6: =runways_selected_LDG!D3 -> LEBL24R | J6: =IFERROR(VLOOKUP(I6,$C$2:$E$10000,2,FALSE),0) -> 60 | K6: =IFERROR(VLOOKUP(I6,$C$2:$E$10000,3,FALSE),0) -> 0 | L6: =IFERROR(VLOOKUP(I6,$C$2:$F$10000,4,FALSE),0) -> -0.01
A7: CYYR | B7: 15 | C7: CYYR15 | D7: 305 | E7: 0 | F7: -0.04
A8: CYYR | B8: 26 | C8: CYYR26 | D8: 305 | E8: 0 | F8: 0.1
A9: CYYR | B9: 33 | C9: CYYR33 | D9: 160 | E9: 0 | F9: 0.04
A10: DNPO | B10: 3 | C10: DNPO3 | D10: 0 | E10: 120 | F10: 0.05
A11: DNPO | B11: 21 | C11: DNPO21 | D11: 0 | E11: 120 | F11: -0.05
A12: DTKA | B12: 9 | C12: DTKA9 | D12: 0 | E12: 0 | F12: 0.36
A13: DTKA | B13: 27 | C13: DTKA27 | D13: 0 | E13: 0 | F13: -0.36
A14: DTMB | B14: 7 | C14: DTMB7 | D14: 0 | E14: 50 | F14: 0
A15: DTMB | B15: 25 | C15: DTMB25 | D15: 0 | E15: 50 | F15: 0
A16: DTTA | B16: 1 | C16: DTTA1 | D16: 0 | E16: 60 | F16: 0.08
A17: DTTA | B17: 11 | C17: DTTA11 | D17: 0 | E17: 0 | F17: -0.09
A18: DTTA | B18: 19 | C18: DTTA19 | D18: 0 | E18: 60 | F18: -0.08
A19: DTTA | B19: 29 | C19: DTTA29 | D19: 0 | E19: 60 | F19: 0.09
A20: EBBR | B20: 1 | C20: EBBR1 | D20: 0 | E20: 0 | F20: -0.79
A21: EBBR | B21: 07L | C21: EBBR07L | D21: 0 | E21: 0 | F21: -0.25
A22: EBBR | B22: 07R | C22: EBBR07R | D22: 0 | E22: 0 | F22: -0.17
A23: EBBR | B23: 19 | C23: EBBR19 | D23: 0 | E23: 0 | F23: 0.79
A24: EBBR | B24: 25L | C24: EBBR25L | D24: 0 | E24: 0 | F24: 0.15
A25: EBBR | B25: 25L-T-SUP28 | C25: EBBR25L-T-SUP28 | D25: 0 | E25: 0 | F25: 0.15
A26: EBBR | B26: 25R | C26: EBBR25R | D26: 0 | E26: 0 | F26: 0.25
A27: EBBR | B27: 25R-T-SUP03 | C27: EBBR25R-T-SUP03 | D27: 0 | E27: 0 | F27: 0.25
A28: EBCI | B28: 6 | C28: EBCI6 | D28: 0 | E28: 0 | F28: -0.3
A29: EBCI | B29: 24 | C29: EBCI24 | D29: 205 | E29: 0 | F29: 0.3
A30: EBLG | B30: 04L | C30: EBLG04L | D30: 0 | E30: 0 | F30: -0.68
A31: EBLG | B31: 04R | C31: EBLG04R | D31: 0 | E31: 0 | F31: -0.52
A32: EBLG | B32: 22L | C32: EBLG22L | D32: 0 | E32: 0 | F32: 0.52
A33: EBLG | B33: 22R | C33: EBLG22R | D33: 0 | E33: 0 | F33: 0.68
A34: EDDB | B34: 07L | C34: EDDB07L | D34: 60 | E34: 0 | F34: 0.09
A35: EDDB | B35: 07R | C35: EDDB07R | D35: 60 | E35: 0 | F35: -0.02
A36: EDDB | B36: 07R-T-A2410 | C36: EDDB07R-T-A2410 | D36: 60 | E36: 0 | F36: -0.02
A37: EDDB | B37: 25L | C37: EDDB25L | D37: 60 | E37: 0 | F37: 0.02
A38: EDDB | B38: 25L-T-A2420 | C38: EDDB25L-T-A2420 | D38: 60 | E38: 0 | F38: 0.02
A39: EDDB | B39: 25R | C39: EDDB25R | D39: 60 | E39: 0 | F39: -0.09
A40: EDDB | B40: 25R-T-A1086 | C40: EDDB25R-T-A1086 | D40: 60 | E40: 0 | F40: -0.09
A41: EDDB | B41: 25R-T-A1445 | C41: EDDB25R-T-A1445 | D41: 60 | E41: 0 | F41: -0.09
A42: EDDC | B42: 4 | C42: EDDC4 | D42: 60 | E42: 0 | F42: -0.64
A43: EDDC | B43: 22 | C43: EDDC22 | D43: 60 | E43: 0 | F43: 0.64
A44: EDDF | B44: 07C | C44: EDDF07C | D44: 0 | E44: 0 | F44: 0.27
A45: EDDF | B45: 07C-T-A1500 | C45: EDDF07C-T-A1500 | D45: 0 | E45: 0 | F45: 0.27
A46: EDDF | B46: 07L | C46: EDDF07L | D46: 0 | E46: 0 | F46: 0.52
A47: EDDF | B47: 07R | C47: EDDF07R | D47: 0 | E47: 0 | F47: 0.26
A48: EDDF | B48: 18 | C48: EDDF18 | D48: 0 | E48: 0 | F48: -0.08
A49: EDDF | B49: 25C | C49: EDDF25C | D49: 0 | E49: 0 | F49: -0.27
A50: EDDF | B50: 25C-T-A2294 | C50: EDDF25C-T-A2294 | D50: 0 | E50: 0 | F50: -0.27
A51: EDDF | B51: 25L | C51: EDDF25L | D51: 0 | E51: 0 | F51: -0.26
A52: EDDF | B52: 25L-T-A2409 | C52: EDDF25L-T-A2409 | D52: 0 | E52: 0 | F52: -0.26
A53: EDDF | B53: 25R | C53: EDDF25R | D53: 0 | E53: 0 | F53: -0.52
A54: EDDG | B54: 7 | C54: EDDG7 | D54: 60 | E54: 0 | F54: 0.04
A55: EDDG | B55: 25 | C55: EDDG25 | D55: 60 | E55: 0 | F55: -0.04
A56: EDDH | B56: 5 | C56: EDDH5 | D56: 60 | E56: 0 | F56: 0.08
A57: EDDH | B57: 05-T-SUP11 | C57: EDDH05-T-SUP11 | D57: 60 | E57: 0 | F57: 0.08
A58: EDDH | B58: 15 | C58: EDDH15 | D58: 60 | E58: 0 | F58: -0.17
A59: EDDH | B59: 23 | C59: EDDH23 | D59: 60 | E59: 0 | F59: -0.08
A60: EDDH | B60: 23-T-A2070 | C60: EDDH23-T-A2070 | D60: 60 | E60: 0 | F60: -0.08
A61: EDDH | B61: 33 | C61: EDDH33 | D61: 60 | E61: 0 | F61: 0.17
A62: EDDK | B62: 6 | C62: EDDK6 | D62: 60 | E62: 0 | F62: 0.51
A63: EDDK | B63: 14L | C63: EDDK14L | D63: 60 | E63: 0 | F63: 0.58
A64: EDDK | B64: 14R | C64: EDDK14R | D64: 60 | E64: 0 | F64: 0.62
A65: EDDK | B65: 14R-T-A1773 | C65: EDDK14R-T-A1773 | D65: 60 | E65: 0 | F65: 0.62
A66: EDDK | B66: 24 | C66: EDDK24 | D66: 60 | E66: 0 | F66: -0.51
A67: EDDK | B67: 32L | C67: =A67&B67 -> EDDK32L | D67: 60 | E67: 0 | F67: -0.62
A68: EDDK | B68: 32R | C68: EDDK32R | D68: 60 | E68: 0 | F68: -0.58
A69: EDDK | B69: 32R-T-A2396 | C69: EDDK32R-T-A2396 | D69: 0 | E69: 0 | F69: -0.58
A70: EDDL | B70: 05L | C70: EDDL05L | D70: 60 | E70: 300 | F70: 0.15
A71: EDDL | B71: 05R | C71: EDDL05R | D71: 60 | E71: 300 | F71: 0.26
A72: EDDL | B72: 23L | C72: EDDL23L | D72: 60 | E72: 300 | F72: -0.29
A73: EDDL | B73: 23R | C73: EDDL23R | D73: 60 | E73: 300 | F73: -0.09
A74: EDDM | B74: 08L | C74: EDDM08L | D74: 60 | E74: 0 | F74: -0.14
A75: EDDM | B75: 08R | C75: EDDM08R | D75: 60 | E75: 0 | F75: -0.1
A76: EDDM | B76: 26L | C76: EDDM26L | D76: 60 | E76: 0 | F76: 0.1
A77: EDDM | B77: 26R | C77: EDDM26R | D77: 60 | E77: 0 | F77: 0.14
A78: EDDN | B78: 10 | C78: EDDN10 | D78: 60 | E78: 0 | F78: 0.27
A79: EDDN | B79: 28 | C79: EDDN28 | D79: 60 | E79: 0 | F79: -0.27
A80: EDDP | B80: 08L | C80: EDDP08L | D80: 248 | E80: 0 | F80: 0.25
A81: EDDP | B81: 08R | C81: EDDP08R | D81: 256 | E81: 0 | F81: 0.36
A82: EDDP | B82: 26L | C82: EDDP26L | D82: 300 | E82: 0 | F82: -0.36
A83: EDDP | B83: 26R | C83: EDDP26R | D83: 300 | E83: 0 | F83: -0.25
A84: EDDS | B84: 7 | C84: EDDS7 | D84: 0 | E84: 0 | F84: -0.87
A85: EDDS | B85: 25 | C85: EDDS25 | D85: 0 | E85: 224 | F85: 0.86
A86: EDDT | B86: 08L | C86: EDDT08L | D86: 0 | E86: 69 | F86: 0.07
A87: EDDT | B87: 08R | C87: EDDT08R | D87: 0 | E87: 63 | F87: 0.16
A88: EDDT | B88: 26L | C88: EDDT26L | D88: 0 | E88: 48 | F88: -0.16
A89: EDDT | B89: 26R | C89: EDDT26R | D89: 0 | E89: 68 | F89: -0.07
A90: EDDV | B90: 09L | C90: EDDV09L | D90: 60 | E90: 0 | F90: 0.02
A91: EDDV | B91: 09L-T-A2332 | C91: EDDV09L-T-A2332 | D91: 60 | E91: 0 | F91: 0.02
A92: EDDV | B92: 09R | C92: EDDV09R | D92: 22 | E92: 0 | F92: 0.08
A93: EDDV | B93: 27L | C93: EDDV27L | D93: 60 | E93: 0 | F93: -0.09
A94: EDDV | B94: 27R | C94: EDDV27R | D94: 60 | E94: 0 | F94: -0.02
A95: EDDW | B95: 9 | C95: EDDW9 | D95: 60 | E95: 0 | F95: 0.01
A96: EDDW | B96: 09-T-A1046 | C96: EDDW09-T-A1046 | D96: 60 | E96: 0 | F96: 0.01
A97: EDDW | B97: 27 | C97: EDDW27 | D97: 60 | E97: 0 | F97: -0.01
A98: EDDW | B98: 27-T-A1514 | C98: EDDW27-T-A1514 | D98: 60 | E98: 0 | F98: -0.01
A99: EDFH | B99: 3 | C99: EDFH3 | D99: 0 | E99: 300 | F99: -0.33
A100: EDFH | B100: 21 | C100: EDFH21 | D100: 60 | E100: 0 | F100: 0.38
A101: EDHL | B101: 7 | C101: EDHL7 | D101: 150 | E101: 0 | F101: -0.07
A102: EDHL | B102: 25 | C102: EDHL25 | D102: 100 | E102: 0 | F102: 0.07
A103: EDLP | B103: 6 | C103: EDLP6 | D103: 60 | E103: 0 | F103: -0.35
A104: EDLP | B104: 24 | C104: EDLP24 | D104: 60 | E104: 0 | F104: 0.35
A105: EDLV | B105: 9 | C105: EDLV9 | D105: 0 | E105: 275 | F105: 0.12
A106: EDLV | B106: 27 | C106: EDLV27 | D106: 0 | E106: 275 | F106: -0.12
A107: EDNY | B107: 6 | C107: EDNY6 | D107: 0 | E107: 146 | F107: 0.48
A108: EDNY | B108: 06-T-C1001 | C108: EDNY06-T-C1001 | D108: 0 | E108: 146 | F108: 0.48
A109: EDNY | B109: 24 | C109: EDNY24 | D109: 0 | E109: 69 | F109: -0.44
A110: EDSB | B110: 3 | C110: EDSB3 | D110: 60 | E110: 0 | F110: -0.01
A111: EDSB | B111: 21 | C111: EDSB21 | D111: 60 | E111: 0 | F111: 0.01
A112: EETN | B112: 8 | C112: EETN8 | D112: 60 | E112: 0 | F112: 0.04
A113: EETN | B113: 08-T-SUP04 | C113: EETN08-T-SUP04 | D113: 0 | E113: 0 | F113: 0.02
A114: EETN | B114: 26 | C114: EETN26 | D114: 60 | E114: 0 | F114: -0.04
A115: EETN | B115: 26-T-SUP04 | C115: EETN26-T-SUP04 | D115: 60 | E115: 0 | F115: -0.02
A116: EFHK | B116: 04L | C116: EFHK04L | D116: 0 | E116: 0 | F116: 0.46
A117: EFHK | B117: 04R | C117: EFHK04R | D117: 60 | E117: 0 | F117: -0.03
A118: EFHK | B118: 15 | C118: EFHK15 | D118: 0 | E118: 0 | F118: -0.17
A119: EFHK | B119: 22L | C119: EFHK22L | D119: 90 | E119: 0 | F119: 0.03
A120: EFHK | B120: 22R | C120: EFHK22R | D120: 0 | E120: 0 | F120: -0.46
A121: EFHK | B121: 33 | C121: EFHK33 | D121: 0 | E121: 0 | F121: 0.17
A122: EFKI | B122: 7 | C122: EFKI7 | D122: 0 | E122: 0 | F122: 0.65
A123: EFKI | B123: 25 | C123: EFKI25 | D123: 0 | E123: 0 | F123: -0.65
A124: EFKK | B124: 1 | C124: EFKK1 | D124: 0 | E124: 0 | F124: 0.05
A125: EFKK | B125: 19 | C125: EFKK19 | D125: 0 | E125: 0 | F125: -0.05
A126: EFKS | B126: 12 | C126: EFKS12 | D126: 0 | E126: 0 | F126: -0.02
A127: EFKS | B127: 30 | C127: EFKS30 | D127: 0 | E127: 0 | F127: 0.02
A128: EFKT | B128: 16 | C128: EFKT16 | D128: 0 | E128: 0 | F128: 0.15
A129: EFKT | B129: 34 | C129: EFKT34 | D129: 0 | E129: 0 | F129: -0.15
A130: EFOU | B130: 12 | C130: EFOU12 | D130: 0 | E130: 0 | F130: -0.17
A131: EFOU | B131: 30 | C131: =A131&B131 -> EFOU30 | D131: 0 | E131: 0 | F131: 0.16
A132: EFRO | B132: 3 | C132: EFRO3 | D132: 0 | E132: 0 | F132: -0.24
A133: EFRO | B133: 03-T-K3174 | C133: EFRO03-T-K3174 | D133: 0 | E133: 0 | F133: -0.24
A134: EFRO | B134: 21 | C134: EFRO21 | D134: 0 | E134: 0 | F134: 0.24
A135: EFVA | B135: 16 | C135: EFVA16 | D135: 0 | E135: 0 | F135: -0.1
A136: EFVA | B136: 34 | C136: EFVA34 | D136: 0 | E136: 0 | F136: 0.1
A137: EGAA | B137: 7 | C137: EGAA7 | D137: 293 | E137: 0 | F137: 0.68
A138: EGAA | B138: 17 | C138: EGAA17 | D138: 98 | E138: 0 | F138: 0.88
A139: EGAA | B139: 25 | C139: EGAA25 | D139: 362 | E139: 0 | F139: -0.68
A140: EGAA | B140: 35 | C140: EGAA35 | D140: 218 | E140: 0 | F140: -0.89
A141: EGBB | B141: 15 | C141: EGBB15 | D141: 60 | E141: 0 | F141: 0.32
A142: EGBB | B142: 15-T-C0327 | C142: EGBB15-T-C0327 | D142: 60 | E142: 0 | F142: 0.32
A143: EGBB | B143: 33 | C143: EGBB33 | D143: 193 | E143: 0 | F143: -0.33
A144: EGCC | B144: 05L | C144: EGCC05L | D144: 215 | E144: 0 | F144: 0.5
A145: EGCC | B145: 05L-T-A3948 | C145: EGCC05L-T-A3948 | D145: 215 | E145: 0 | F145: 0.5
A146: EGCC | B146: 05R | C146: EGCC05R | D146: 112 | E146: 0 | F146: 0.46
A147: EGCC | B147: 05R-T-A3948 | C147: EGCC05R-T-A3948 | D147: 112 | E147: 0 | F147: 0.46
A148: EGCC | B148: 23L | C148: EGCC23L | D148: 300 | E148: 0 | F148: -0.44
A149: EGCC | B149: 23R | C149: EGCC23R | D149: 300 | E149: 0 | F149: -0.47
A150: EGCN | B150: 2 | C150: EGCN2 | D150: 90 | E150: 0 | F150: -0.31
A151: EGCN | B151: 20 | C151: EGCN20 | D151: 161 | E151: 0 | F151: 0.31
A152: EGFF | B152: 12 | C152: EGFF12 | D152: 185 | E152: 0 | F152: 0.12
A153: EGFF | B153: 30 | C153: EGFF30 | D153: 152 | E153: 0 | F153: -0.12
A154: EGGD | B154: 9 | C154: EGGD9 | D154: 122 | E154: 0 | F154: -0.15
A155: EGGD | B155: 27 | C155: EGGD27 | D155: 1005 | E155: 0 | F155: 0.15
A156: EGGP | B156: 9 | C156: EGGP9 | D156: 201 | E156: 0 | F156: 0.27
A157: EGGP | B157: 27 | C157: EGGP27 | D157: 1143 | E157: 6 | F157: -0.25
A158: EGGW | B158: 7 | C158: EGGW7 | D158: 1081 | E158: 0 | F158: -0.13
A159: EGGW | B159: 07-T-SUP31 | C159: EGGW07-T-SUP31 | D159: 1081 | E159: 0 | F159: -0.13
A160: EGGW | B160: 25 | C160: EGGW25 | D160: 1081 | E160: 57 | F160: 0.13
A161: EGGW | B161: 25-T-SUP31 | C161: EGGW25-T-SUP31 | D161: 1081 | E161: 57 | F161: 0.13
A162: EGKK | B162: 08L | C162: EGKK08L | D162: 479 | E162: 0 | F162: -0.04
A163: EGKK | B163: 08R | C163: EGKK08R | D163: 152 | E163: 74 | F163: -0.07
A164: EGKK | B164: 26L | C164: EGKK26L | D164: 144 | E164: 62 | F164: 0.05
A165: EGKK | B165: 26R | C165: EGKK26R | D165: 142 | E165: 0 | F165: 0.04
A166: EGNJ | B166: 2 | C166: EGNJ2 | D166: 138 | E166: 0 | F166: -0.72
A167: EGNJ | B167: 20 | C167: EGNJ20 | D167: 0 | E167: 0 | F167: 0.68
A168: EGNM | B168: 14 | C168: EGNM14 | D168: 1056 | E168: 0 | F168: -0.33
A169: EGNM | B169: 32 | C169: EGNM32 | D169: 199 | E169: 0 | F169: 0.35
A170: EGNT | B170: 7 | C170: EGNT7 | D170: 73 | E170: 15 | F170: -0.34
A171: EGNT | B171: 25 | C171: EGNT25 | D171: 124 | E171: 0 | F171: 0.34
A172: EGNV | B172: 5 | C172: EGNV5 | D172: 285 | E172: 0 | F172: 0.01
A173: EGNV | B173: 23 | C173: EGNV23 | D173: 197 | E173: 0 | F173: -0.01
A174: EGNX | B174: 9 | C174: EGNX9 | D174: 311 | E174: 30 | F174: -0.26
A175: EGNX | B175: 27 | C175: EGNX27 | D175: 459 | E175: 30 | F175: 0.26
A176: EGPF | B176: 5 | C176: EGPF5 | D176: 124 | E176: 0 | F176: -0.09
A177: EGPF | B177: 05-ALT | C177: EGPF05-ALT | D177: 124 | E177: 0 | F177: -0.09
A178: EGPF | B178: 23 | C178: EGPF23 | D178: 429 | E178: 151 | F178: 0.09
A179: EGPF | B179: 23-ALT | C179: EGPF23-ALT | D179: 429 | E179: 151 | F179: 0.09
A180: EGPF | B180: 23-ALTA | C180: EGPF23-ALTA | D180: 429 | E180: 151 | F180: 0.09
A181: EGPF | B181: 23-ALTB | C181: EGPF23-ALTB | D181: 429 | E181: 151 | F181: 0.09
A182: EGPF | B182: 23-T-A1505 | C182: EGPF23-T-A1505 | D182: 429 | E182: 151 | F182: 0.09
A183: EGPH | B183: 6 | C183: EGPH6 | D183: 60 | E183: 60 | F183: -0.18
A184: EGPH | B184: 24 | C184: EGPH24 | D184: 449 | E184: 61 | F184: 0.18
A185: EGPK | B185: 3 | C185: EGPK3 | D185: 93 | E185: 0 | F185: 0.16
A186: EGPK | B186: 12 | C186: EGPK12 | D186: 185 | E186: 0 | F186: 0.26
A187: EGPK | B187: 21 | C187: EGPK21 | D187: 241 | E187: 85 | F187: -0.16
A188: EGPK | B188: 30 | C188: EGPK30 | D188: 88 | E188: 0 | F188: -0.26
A189: EGSH | B189: 9 | C189: EGSH9 | D189: 151 | E189: 0 | F189: -0.18
A190: EGSH | B190: 27 | C190: EGSH27 | D190: 269 | E190: 0 | F190: 0.18
A191: EGSS | B191: 4 | C191: EGSS4 | D191: 289 | E191: 0 | F191: 0.24
A192: EGSS | B192: 22 | C192: EGSS22 | D192: 267 | E192: 0 | F192: -0.24
A193: EGSY | B193: 7 | C193: EGSY7 | D193: 17 | E193: 45 | F193: -0.47
A194: EGSY | B194: 25 | C194: EGSY25 | D194: 12 | E194: 48 | F194: 0.47
A195: EGTE | B195: 8 | C195: =A195&B195 -> EGTE8 | D195: 216 | E195: 0 | F195: 0.03
A196: EGTE | B196: 26 | C196: EGTE26 | D196: 581 | E196: 0 | F196: -0.03
A197: EHAM | B197: 4 | C197: EHAM4 | D197: 60 | E197: 0 | F197: -0.02
A198: EHAM | B198: 04-T-A0832 | C198: EHAM04-T-A0832 | D198: 60 | E198: 0 | F198: -0.02
A199: EHAM | B199: 6 | C199: EHAM6 | D199: 60 | E199: 0 | F199: -0.01
A200: EHAM | B200: 06-T-A0882 | C200: EHAM06-T-A0882 | D200: 60 | E200: 0 | F200: -0.01
... 563 more rows

Sheet LDA (hidden)
A1: ARPT | B1: RWY | C1: ARPTRWY | D1: LDA
A2: EDDF | B2: 18 | C2: EDDF18 | D2: 0
A3: EDDK | B3: 14R-T-A1773 | C3: EDDK14R-T-A1773 | D3: 0
A4: EGPF | B4: 05-ALT | C4: EGPF05-ALT | D4: 0
A5: EGPF | B5: 23-ALT | C5: EGPF23-ALT | D5: 0
A6: EGPF | B6: 23-ALTA | C6: EGPF23-ALTA | D6: 0
A7: EGPF | B7: 23-ALTB | C7: EGPF23-ALTB | D7: 0
A8: LEBB | B8: 28 | C8: LEBB28 | D8: 0
A9: LEBL | B9: 20 | C9: LEBL20 | D9: 0
A10: LEMD | B10: 14L | C10: LEMD14L | D10: 0
A11: LEMD | B11: 14R | C11: LEMD14R | D11: 0
A12: LEMD | B12: 36L | C12: LEMD36L | D12: 0
A13: LEMD | B13: 36R | C13: LEMD36R | D13: 0
A14: LEMG | B14: 30 | C14: LEMG30 | D14: 0
A15: LESO | B15: 22 | C15: LESO22 | D15: 1427
A16: LFSB | B16: 7 | C16: LFSB7 | D16: 0
A17: OLBA | B17: 34 | C17: OLBA34 | D17: 0
A18: HECA | B18: 23R-T-SUP36 | C18: HECA23R-T-SUP36 | D18: 1
A19: EICK | B19: 07-T-SUP13 | C19: EICK07-T-SUP13 | D19: 799
A20: EICK | B20: 25-T-SUP13 | C20: EICK25-T-SUP13 | D20: 799
A21: EIDW | B21: 16-T-A1168 | C21: EIDW16-T-A1168 | D21: 1360
A22: EIDW | B22: 34-T-A1168 | C22: EIDW34-T-A1168 | D22: 1360
A23: LESO | B23: 4 | C23: LESO4 | D23: 1427
A24: LESO | B24: 04-T-SUP21 | C24: LESO04-T-SUP21 | D24: 1427
A25: LGIR | B25: 12 | C25: LGIR12 | D25: 1566
A26: LGIR | B26: 30 | C26: LGIR30 | D26: 1566
A27: LFSB | B27: 25 | C27: LFSB25 | D27: 1600
A28: EGSY | B28: 7 | C28: EGSY7 | D28: 1777
A29: EGAA | B29: 17 | C29: EGAA17 | D29: 1791
A30: LIBR | B30: 5 | C30: LIBR5 | D30: 1793
A31: LIBR | B31: 23 | C31: LIBR23 | D31: 1793
A32: EKSB | B32: 14 | C32: EKSB14 | D32: 1797
A33: EKSB | B33: 32 | C33: EKSB32 | D33: 1797
A34: EGAA | B34: 35 | C34: EGAA35 | D34: 1799
A35: EGNM | B35: 14 | C35: EGNM14 | D35: 1802
A36: ESNN | B36: 16 | C36: ESNN16 | D36: 1804
A37: ESNN | B37: 34 | C37: ESNN34 | D37: 1804
A38: EGSY | B38: 25 | C38: EGSY25 | D38: 1815
A39: EGPK | B39: 3 | C39: EGPK3 | D39: 1825
A40: EGSH | B40: 9 | C40: EGSH9 | D40: 1842
A41: EGSH | B41: 27 | C41: EGSH27 | D41: 1842
A42: EDDK | B42: 14R | C42: EDDK14R | D42: 1863
A43: EDDK | B43: 32L | C43: EDDK32L | D43: 1863
A44: ENCN | B44: 21 | C44: ENCN21 | D44: 1870
A45: EGGD | B45: 27 | C45: EGGD27 | D45: 1882
A46: LEPP | B46: 33 | C46: LEPP33 | D46: 1905
A47: LEPP | B47: 33-T-B6934 | C47: LEPP33-T-B6934 | D47: 1905
A48: EGPK | B48: 21 | C48: EGPK21 | D48: 1906
A49: LEBB | B49: 10 | C49: LEBB10 | D49: 1910
A50: LEBB | B50: 10-T-SUP10 | C50: LEBB10-T-SUP10 | D50: 1910
A51: EGNM | B51: 32 | C51: EGNM32 | D51: 1916
A52: ENCN | B52: 3 | C52: ENCN3 | D52: 1920
A53: EDHL | B53: 7 | C53: EDHL7 | D53: 1922
A54: ESTA | B54: 14 | C54: ESTA14 | D54: 1945
A55: ESTA | B55: 32 | C55: ESTA32 | D55: 1945
A56: EGNJ | B56: 20 | C56: EGNJ20 | D56: 1950
A57: LGKR | B57: 16 | C57: LGKR16 | D57: 1963
A58: LGKR | B58: 16-T-A1293 | C58: LGKR16-T-A1293 | D58: 1963
A59: EDDG | B59: 25 | C59: EDDG25 | D59: 1970
A60: ENML | B60: 7 | C60: ENML7 | D60: 1980
A61: ENML | B61: 07-T-A3134 | C61: ENML07-T-A3134 | D61: 1980
A62: ENML | B62: 25 | C62: ENML25 | D62: 1980
A63: ENML | B63: 25-T-A3134 | C63: ENML25-T-A3134 | D63: 1980
A64: ENSB | B64: 10 | C64: ENSB10 | D64: 1988
A65: ENHD | B65: 13 | C65: ENHD13 | D65: 2000
A66: ENHD | B66: 31 | C66: ENHD31 | D66: 2000
A67: EHRD | B67: 24 | C67: EHRD24 | D67: 2002
A68: EHRD | B68: 6 | C68: EHRD6 | D68: 2004
A69: EHRD | B69: 06-T-A1205 | C69: EHRD06-T-A1205 | D69: 2004
A70: EGGD | B70: 9 | C70: EGGD9 | D70: 2011
A71: ENAL | B71: 6 | C71: ENAL6 | D71: 2014
A72: EHAM | B72: 4 | C72: EHAM4 | D72: 2020
A73: EHAM | B73: 04-T-A0832 | C73: EHAM04-T-A0832 | D73: 2020
A74: EHAM | B74: 22 | C74: EHAM22 | D74: 2020
A75: EHAM | B75: 22-T-A1131 | C75: EHAM22-T-A1131 | D75: 2020
A76: GCLP | B76: 03R-RAG2 | C76: GCLP03R-RAG2 | D76: 2031
A77: GCLP | B77: 21L-RAG2 | C77: GCLP21L-RAG2 | D77: 2031
A78: EGTE | B78: 8 | C78: EGTE8 | D78: 2036
A79: EGTE | B79: 26 | C79: EGTE26 | D79: 2036
A80: LECO | B80: 21 | C80: LECO21 | D80: 2038
A81: EDDW | B81: 9 | C81: EDDW9 | D81: 2040
A82: EDDW | B82: 09-T-A1046 | C82: EDDW09-T-A1046 | D82: 2040
A83: EDDW | B83: 27 | C83: EDDW27 | D83: 2040
A84: EDDW | B84: 27-T-A1514 | C84: EDDW27-T-A1514 | D84: 2040
A85: ESKN | B85: 16 | C85: ESKN16 | D85: 2043
A86: ESKN | B86: 34 | C86: ESKN34 | D86: 2043
A87: LFBZ | B87: 9 | C87: LFBZ9 | D87: 2045
A88: ENZV | B88: 29 | C88: ENZV29 | D88: 2049
A89: LICJ | B89: 2 | C89: LICJ2 | D89: 2068
A90: LICJ | B90: 20 | C90: LICJ20 | D90: 2068
A91: EGNJ | B91: 2 | C91: EGNJ2 | D91: 2070
A92: EIDW | B92: 16 | C92: EIDW16 | D92: 2072
A93: EIDW | B93: 34 | C93: EIDW34 | D93: 2072
A94: EGGW | B94: 25 | C94: EGGW25 | D94: 2080
A95: EGGW | B95: 25-T-SUP31 | C95: EGGW25-T-SUP31 | D95: 2080
A96: ENAL | B96: 24 | C96: ENAL24 | D96: 2083
A97: EDNY | B97: 6 | C97: EDNY6 | D97: 2086
A98: EDNY | B98: 06-T-C1001 | C98: EDNY06-T-C1001 | D98: 2086
A99: EKCH | B99: 30 | C99: EKCH30 | D99: 2095
A100: EGFF | B100: 12 | C100: EGFF12 | D100: 2098
A101: EBCI | B101: 6 | C101: EBCI6 | D101: 2100
A102: LFRG | B102: 12 | C102: LFRG12 | D102: 2100
A103: LFRG | B103: 12-T-P0902 | C103: LFRG12-T-P0902 | D103: 2100
A104: EDHL | B104: 25 | C104: EDHL25 | D104: 2102
A105: EGGP | B105: 9 | C105: EGGP9 | D105: 2102
A106: ESMX | B106: 1 | C106: ESMX1 | D106: 2106
A107: ESMX | B107: 19 | C107: ESMX19 | D107: 2106
A108: EGNT | B108: 25 | C108: EGNT25 | D108: 2125
A109: EYPA | B109: 1 | C109: EYPA1 | D109: 2130
A110: EYPA | B110: 01-T-SUP15 | C110: EYPA01-T-SUP15 | D110: 2130
A111: EYPA | B111: 19 | C111: EYPA19 | D111: 2130
A112: EYPA | B112: 19-T-SUP15 | C112: EYPA19-T-SUP15 | D112: 2130
A113: LFRG | B113: 30 | C113: LFRG30 | D113: 2130
A114: LFRG | B114: 30-T-P0902 | C114: LFRG30-T-P0902 | D114: 2130
A115: LFRG | B115: 30-T-P0903 | C115: LFRG30-T-P0903 | D115: 2130
A116: EICK | B116: 16 | C116: EICK16 | D116: 2133
A117: EICK | B117: 34 | C117: EICK34 | D117: 2133
A118: ENSB | B118: 28 | C118: ENSB28 | D118: 2138
A119: LEBB | B119: 30 | C119: LEBB30 | D119: 2140
A120: EGKK | B120: 26R | C120: EGKK26R | D120: 2146
A121: EIKN | B121: 8 | C121: EIKN8 | D121: 2147
A122: EDNY | B122: 24 | C122: EDNY24 | D122: 2150
A123: EGGW | B123: 7 | C123: EGGW7 | D123: 2162
A124: EGGW | B124: 07-T-SUP31 | C124: EGGW07-T-SUP31 | D124: 2162
A125: EDDG | B125: 7 | C125: EDDG7 | D125: 2170
A126: EDLP | B126: 6 | C126: EDLP6 | D126: 2180
A127: EDLP | B127: 24 | C127: EDLP24 | D127: 2180
A128: LECO | B128: 3 | C128: LECO3 | D128: 2188
A129: LERS | B129: 7 | C129: LERS7 | D129: 2190
A130: ENZV | B130: 11 | C130: ENZV11 | D130: 2199
A131: LIRZ | B131: 1 | C131: LIRZ1 | D131: 2199
A132: LIRZ | B132: 19 | C132: LIRZ19 | D132: 2199
A133: LEAS | B133: 11 | C133: LEAS11 | D133: 2200
A134: LEAS | B134: 29 | C134: LEAS29 | D134: 2200
A135: LERJ | B135: 11 | C135: LERJ11 | D135: 2200
A136: LERJ | B136: 29 | C136: LERJ29 | D136: 2200
A137: LFRD | B137: 17 | C137: LFRD17 | D137: 2200
A138: LFRD | B138: 35 | C138: LFRD35 | D138: 2200
A139: EGFF | B139: 30 | C139: EGFF30 | D139: 2202
A140: ESGJ | B140: 1 | C140: ESGJ1 | D140: 2203
A141: ESGJ | B141: 19 | C141: ESGJ19 | D141: 2203
A142: LIRA | B142: 15 | C142: LIRA15 | D142: 2203
A143: LIRA | B143: 33 | C143: LIRA33 | D143: 2203
A144: LEPP | B144: 15 | C144: LEPP15 | D144: 2205
A145: EDDT | B145: 26L | C145: EDDT26L | D145: 2208
A146: EGNT | B146: 7 | C146: EGNT7 | D146: 2209
A147: LIRN | B147: 6 | C147: LIRN6 | D147: 2229
A148: ETNL | B148: 09-RAG | C148: ETNL09-RAG | D148: 2230
A149: ETNL | B149: 27-RAG | C149: ETNL27-RAG | D149: 2230
A150: LFBZ | B150: 27 | C150: LFBZ27 | D150: 2230
A151: LFBZ | B151: 27-T-P0967 | C151: LFBZ27-T-P0967 | D151: 2230
A152: LFGJ | B152: 5 | C152: LFGJ5 | D152: 2230
A153: LFGJ | B153: 05-T-P3811 | C153: LFGJ05-T-P3811 | D153: 2230
A154: LFGJ | B154: 23 | C154: LFGJ23 | D154: 2230
A155: LIBP | B155: 22 | C155: LIBP22 | D155: 2231
A156: LIBP | B156: 22-T-B2978 | C156: LIBP22-T-B2978 | D156: 2231
A157: LGSA | B157: 11-RAG3 | C157: LGSA11-RAG3 | D157: 2235
A158: LGSA | B158: 11-RAG3D | C158: LGSA11-RAG3D | D158: 2235
A159: LGSA | B159: 29-RAG3 | C159: LGSA29-RAG3 | D159: 2235
A160: LGSA | B160: 29-RAG3C | C160: LGSA29-RAG3C | D160: 2235
A161: LGSA | B161: 29-RAG3D | C161: LGSA29-RAG3D | D161: 2235
A162: LGIR | B162: 9 | C162: LGIR9 | D162: 2237
A163: LEGE | B163: 19 | C163: LEGE19 | D163: 2240
A164: EGKK | B164: 08L | C164: EGKK08L | D164: 2241
A165: ESNU | B165: 32 | C165: ESNU32 | D165: 2242
A166: LFML | B166: 31L | C166: LFML31L | D166: 2265
A167: ESMT | B167: 1 | C167: ESMT1 | D167: 2268
A168: ESMT | B168: 19 | C168: ESMT19 | D168: 2268
A169: EGGP | B169: 27 | C169: EGGP27 | D169: 2286
A170: EGNV | B170: 5 | C170: EGNV5 | D170: 2291
A171: EGNV | B171: 23 | C171: EGNV23 | D171: 2291
A172: EIKN | B172: 26 | C172: EIKN26 | D172: 2300
A173: LEJR | B173: 2 | C173: LEJR2 | D173: 2300
A174: LEJR | B174: 02-T-E4773 | C174: LEJR02-T-E4773 | D174: 2300
A175: LEJR | B175: 20 | C175: LEJR20 | D175: 2300
A176: LEJR | B176: 20-T-E4773 | C176: LEJR20-T-E4773 | D176: 2300
A177: ESNU | B177: 14 | C177: ESNU14 | D177: 2302
A178: LIPH | B178: 25 | C178: LIPH25 | D178: 2302
A179: GCRR | B179: 3 | C179: GCRR3 | D179: 2310
A180: GCRR | B180: 21 | C180: GCRR21 | D180: 2310
A181: EPKK | B181: 25 | C181: EPKK25 | D181: 2312
A182: ESSD | B182: 14 | C182: ESSD14 | D182: 2313
A183: ESSD | B183: 32 | C183: ESSD32 | D183: 2313
A184: LGKR | B184: 34 | C184: LGKR34 | D184: 2314
A185: LGKR | B185: 34-T-A1402 | C185: LGKR34-T-A1402 | D185: 2314
A186: LIBP | B186: 4 | C186: LIBP4 | D186: 2314
A187: LIBP | B187: 04-T-B2130 | C187: LIBP04-T-B2130 | D187: 2314
A188: LELC | B188: 05R | C188: LELC05R | D188: 2320
A189: LELC | B189: 23L | C189: LELC23L | D189: 2320
A190: LEXJ | B190: 11 | C190: LEXJ11 | D190: 2320
A191: LEXJ | B191: 29 | C191: LEXJ29 | D191: 2320
A192: EDDT | B192: 08R | C192: EDDT08R | D192: 2324
A193: LFBT | B193: 2 | C193: LFBT2 | D193: 2330
A194: LFMP | B194: 33 | C194: LFMP33 | D194: 2330
A195: LIPH | B195: 07-RAG | C195: LIPH07-RAG | D195: 2333
A196: EBLG | B196: 04L | C196: EBLG04L | D196: 2340
A197: EBLG | B197: 22R | C197: EBLG22R | D197: 2340
A198: EDDV | B198: 09R | C198: EDDV09R | D198: 2340
A199: EDDV | B199: 27L | C199: EDDV27L | D199: 2340
A200: LIPH | B200: 7 | C200: LIPH7 | D200: 2342
... 563 more rows

Sheet ASD-DISTANCE (hidden)
C1: Variables | I1: FLAPS | K1: Ref dist
B2: WEIGHT | C2: 40.5 | D2: x1000Kgs | E2: =DATOS!A5 -> 60 | F2: =E2-54 -> 6 | I2: =DATOS!C7 -> 1 + F | K2: 1721
B3: THRUST | C3: 8 | D3: x1 ºC | E3: =IF(TAKEOFF!M10="TOGA",0,DATOS!C70) -> 0
B4: FLAPS 2 | C4: -0.05 | E4: =IF(I2=2,"X","") ->  | I4: WEIGHT | J4: THRUST | K4: FLAPS 2 | L4: FLAPS 3 | M4: WET | N4: WET 6,3 | O4: SLUSH 6,3 | P4: COMPACTED SNOW | Q4: ALTITUDE | R4: HW | S4: TW | T4: TEMP +15 | U4: TEMP -15 | V4: BARO (+1013) | W4: BARO (-1013) | X4: ENG A/I | Y4: ENG/W A/I | Z4: PACKS ON | AA4: 1 REVERSE | AB4: NO REVERSE
B5: FLAPS 3 | C5: -0.07 | E5: =IF(I2=3,"X","") ->  | I5: =F2*C2 -> 243 | J5: =E3*C3 -> 0 | K5: =IF(I2=2,K2*C4,0) -> 0 | L5: =IF(I2=3,K2*C5,0) -> 0 | M5: =IF(E6="X",K2*C6,0) -> 0 | N5: =IF(E7="X",K2*C7,0) -> 0 | O5: =IF(E8="X",K2*C8,0) -> 0 | P5: =IF(E9="X",K2*C9,0) -> 0 | Q5: =K2*F10 -> 0.20652 | R5: =IF(E11<>"",K2*G11,0) -> -117.028 | S5: =IF(E12<>"",K2*G12,0)*-1 -> 0 | T5: =K2*F13 -> 0 | U5: =K2*F14 -> -103.26 | V5: =F15*K2 -> -29.257 | W5: =F16*K2 -> 0 | X5: =IF(E17="X",K2*C17,0) -> 10.326 | Y5: =IF(E18="X",K2*C18,0) -> 0 | Z5: =IF(E19="X",K2*C19,0) -> 0 | AA5: =IF(E20="X",K2*C20,0) -> 0 | AB5: =IF(E21="X",K2*C21,0) -> 0
B6: WET | C6: -0.08 | E6: =IF(DATOS!F9="WET","X","") -> 
B7: WET 6,3 | C7: 0.07 | E7: =IF(DATOS!F9="WET >6,3 MM","X","") -> 
B8: SLUSH 6,3 | C8: 0.09 | E8: =IF(DATOS!F9="SLUSH >6,3 MM","X","") ->  | I8: DISTANCE | J8: METERS
B9: COMPACTED SNOW | C9: 0.12 | E9: =IF(DATOS!F9="COMPACTED SNOW","X","") ->  | I9: ASD | J9: =K2+I5+J5+K5+L5+M5+AB5+N5+O5+P5+Q5+R5+S5+T5+U5+V5+W5+X5+Y5+Z5+AA5 -> 1724.98752
B10: ALTITUDE | C10: 0.01 | D10: X1000ft | E10: =DATOS!C15/1000 -> 0.012 | F10: =E10*C10 -> 0.00012 | I10: TORA | J10: =runways_selected!M9 -> 2660
B11: HWIND | C11: -0.04 | D11: x10kt | E11: =IF(DATOS!F18>0,DATOS!F18,"") -> 17 | F11: =IFERROR(E11/10,"") -> 1.7 | G11: =IFERROR(F11*C11,"") -> -0.068 | I11: STOP Margin | J11: =J10-J9 -> 935.01248
B12: TWIND | C12: 0.11 | D12: x10kt | E12: =IF(DATOS!F18<0,DATOS!F18,"") ->  | F12: =IFERROR(E12/10,"") ->  | G12: =IFERROR(F12*C12,"") ->  | I12: =IFERROR("STOP Margin "&ROUND(J11,0)&" m","") -> STOP Margin 935 m
B13: TEMP (+15) | C13: 0.02 | D13: x10ºC | E13: =IF(TAKEOFF!D16>15,(TAKEOFF!D16-15)/10,0) -> 0 | F13: =C13*E13 -> 0
B14: TEMP (-15) | C14: -0.02 | D14: x10ºC | E14: =IF(TAKEOFF!D16<15,(TAKEOFF!D16-15)/10,0)*-1 -> 3 | F14: =C14*E14 -> -0.06
B15: BARO (+1013) | C15: -0.01 | D15: X10HPA | E15: =IF(TAKEOFF!D18>1013,(TAKEOFF!D18-1013)/10,0) -> 1.7 | F15: =E15*C15 -> -0.017
B16: BARO (-1013) | C16: 0.01 | D16: X10HPA | E16: =IF(TAKEOFF!D18<1013,(TAKEOFF!D18-1013)/10,0) -> 0 | F16: =E16*C16 -> 0
B17: ENG A/I | C17: 0.006 | E17: =IF(TAKEOFF!D22="ENG A/I","X","") -> X
B18: ENG/W A/I | C18: 0.01 | E18: =IF(TAKEOFF!D22="ENG-WING A/I","X","") -> 
B19: PACKS ON | C19: 0.019 | E19: =IF(TAKEOFF!D32="ON","X","") -> 
B20: 1 REVERSE | C20: 0.01 | E20: =IF(TAKEOFF!D38="One operative","X","") -> 
B21: NO REVERSE | C21: 0.015 | E21: =IF(TAKEOFF!D38="All inoperative","X","") -> 

Sheet runways_selected_LDG (hidden)
A2: arpt | B2: =LANDING!D7 -> LEBL | C2: Elev. | D2: =VLOOKUP(B2,ARPT_ELEV!A1:B50000,2,FALSE) -> 12
A3: rwy | B3: =VLOOKUP(LANDING!D9,U11:V28,2,FALSE) -> 24R | C3: =IFERROR(B3,"Select Runway") -> 24R | D3: =B2&B3 -> LEBL24R
A4: rwy corr | B4: =(IF(AND(LEN(B3)=2,LEFT(B3,1)="0"),ROUND(RIGHT(B3,1),0),B3)) -> 24R
A5: rwy/tora | B5: =VLOOKUP(B3,E11:H28,4,0) -> 24R /3352m
A6: INTX | B6: ALL | D6: =IF(B6="ALL","FULL",B6) -> FULL
A7: SHOW IN | B7: =IF(B6="ALL","FULL LENGTH",B6) -> FULL LENGTH
I8: RWY TRK | J8: RWY IDENT | K8: LDA | L8: LDA | M8: LDA
C9: airport | E9: =B2 -> LEBL | H9: 3.2808399 | I9: =INDEX(H11:J28,MATCH(B5,H11:H28,0),2) -> 246 | J9: =INDEX(H11:J28,MATCH(B5,H11:H28,0),3) -> 24R | K9: =INDEX(H11:K28,MATCH(B5,H11:H28,0),4) -> 10997 | L9: =IFERROR(VLOOKUP(D3,LDA!C2:D100000,2,FALSE),0) -> 3352 | M9: =L9 -> 3352 | N9: m | O9: =M9&" m" -> 3352 m
D10: is selected airport? | E10: runway | F10: length | G10: Direction | I10: dir | J10: ident | K10: TORA | Q10: Displace treshold opposite | U10: RWY | V10: rwy equ
B11: 0 | C11: Rw1 | D11: =IF(INDEX(III!$A:$T,MATCH($E$9,III!$A:$A,0)+B11,1)=$E$9,1,0) -> 1 | E11: =IF(D11=1,(INDEX(III!$A:$T,MATCH(E9,III!$A:$A,0)+B11,7)),"") -> 2 | F11: =IF(D11=1,(INDEX(III!$A:$T,MATCH($E$9,III!$A:$A,0)+B11,2)),"") -> 8294 | G11: =IF(D11=1,(IF(INDEX(III!$A:$T,MATCH($E$9,III!$A:$A,0)+B11,11)="",N11,(INDEX(III!$A:$T,MATCH($E$9,III!$A:$A,0)+B11,11)))),"") -> 19 | H11: =IF(D11=1,E11&" /"&ROUND(F11/$H$9,0)&$N$9,"") -> 2 /2528m | I11: =IF(D11=1,ROUND(G11,0),"") -> 19 | J11: =E11 -> 2 | K11: =F11 -> 8294 | L11: =IF(OR(RIGHT(E11,1)="L",RIGHT(E11,1)="R",RIGHT(E11,1)="C")=TRUE,1,0) -> 0 | M11: =IF(L11=0,E11,LEFT(E11,LEN(E11)-1)) -> 2 | N11: =M11*10 -> 20 | O11: =IF(L11=1,"~","") ->  | P11: =IF((RIGHT(H11,1))="m",E11&" /"&F11&"ft",E11&" /"&ROUND(F11*0.3048,0)&"m") -> 2 /8294ft | Q11: 0 | U11: =IF(E11<10,"0"&E11,E11) -> 02 | V11: =E11 -> 2
B12: 0 | C12: Rw2 | D12: =IF(INDEX(III!$A:$T,MATCH($E$9,III!$A:$A,0)+B12,1)=$E$9,1,0) -> 1 | E12: =IF(D12=1,(INDEX(III!$A:$T,MATCH($E$9,III!$A:$A,0)+B12,13)),"") -> 20 | F12: =F11 -> 8294 | G12: =IF(D12=1,(IF(INDEX(III!$A:$T,MATCH($E$9,III!$A:$A,0)+B12,11)="",N12,(INDEX(III!$A:$T,MATCH($E$9,III!$A:$A,0)+B12,17)))),"") -> 199 | H12: =IF(D12=1,E12&" /"&ROUND(F12/$H$9,0)&$N$9,"") -> 20 /2528m | I12: =IF(D12=1,ROUND(G12,0),"") -> 199 | J12: =E12 -> 20 | K12: 8294 | L12: =IF(OR(RIGHT(E12,1)="L",RIGHT(E12,1)="R",RIGHT(E12,1)="C")=TRUE,1,0) -> 0 | M12: =IF(L12=0,E12,LEFT(E12,LEN(E12)-1)) -> 20 | N12: =M12*10 -> 200 | O12: =IF(L12=1,"~","") ->  | P12: =IF((RIGHT(H12,1))="m",E12&" /"&F12&"ft",E12&" /"&ROUND(F12*0.3048,0)&"m") -> 20 /8294ft | Q12: 0 | U12: =IF(E12<10,"0"&E12,E12) -> 20 | V12: =E12 -> 20
B13: 1 | C13: Rw3 | D13: =IF(INDEX(III!$A:$T,MATCH($E$9,III!$A:$A,0)+B13,1)=$E$9,1,0) -> 1 | E13: =IF(D13=1,(INDEX(III!$A:$T,MATCH($E$9,III!$A:$A,0)+B13,7)),"") -> 06L | F13: =IF(D13=1,(INDEX(III!$A:$T,MATCH($E$9,III!$A:$A,0)+B13,2)),"") -> 10997 | G13: =IF(D13=1,(IF(INDEX(III!$A:$T,MATCH($E$9,III!$A:$A,0)+B13,11)="",N13,(INDEX(III!$A:$T,MATCH($E$9,III!$A:$A,0)+B13,11)))),"") -> 66 | H13: 06L /3352m | I13: 66 | J13: 06L | K13: 10997 | L13: 1 | M13: 06 | N13: =M13*10 -> 60 | O13: ~ | P13: 06L /10997ft | Q13: 0 | U13: 06L | V13: 06L
B14: 1 | C14: Rw4 | D14: =IF(INDEX(III!$A:$T,MATCH($E$9,III!$A:$A,0)+B14,1)=$E$9,1,0) -> 1 | E14: =IF(D14=1,(INDEX(III!$A:$T,MATCH($E$9,III!$A:$A,0)+B14,13)),"") -> 24R | F14: =F13 -> 10997 | G14: =IF(D14=1,(IF(INDEX(III!$A:$T,MATCH($E$9,III!$A:$A,0)+B14,11)="",N14,(INDEX(III!$A:$T,MATCH($E$9,III!$A:$A,0)+B14,17)))),"") -> 246 | H14: 24R /3352m | I14: 246 | J14: 24R | K14: 10997 | L14: 1 | M14: 24 | N14: 240 | O14: ~ | P14: 24R /10997ft | Q14: 0 | U14: 24R | V14: 24R
B15: 2 | C15: Rw5 | D15: =IF(INDEX(III!$A:$T,MATCH($E$9,III!$A:$A,0)+B15,1)=$E$9,1,0) -> 1 | E15: =IF(D15=1,(INDEX(III!$A:$T,MATCH($E$9,III!$A:$A,0)+B15,7)),"") -> 06R | F15: =IF(D15=1,(INDEX(III!$A:$T,MATCH($E$9,III!$A:$A,0)+B15,2)),"") -> 8727 | G15: =IF(D15=1,(IF(INDEX(III!$A:$T,MATCH($E$9,III!$A:$A,0)+B15,11)="",N15,(INDEX(III!$A:$T,MATCH($E$9,III!$A:$A,0)+B15,11)))),"") -> 66 | H15: 06R /2660m | I15: 66 | J15: 06R | K15: 8727 | L15: 1 | M15: 06 | N15: 60 | O15: ~ | P15: 06R /8727ft | Q15: 0 | U15: 06R | V15: 06R
B16: 2 | C16: Rw6 | D16: =IF(INDEX(III!$A:$T,MATCH($E$9,III!$A:$A,0)+B16,1)=$E$9,1,0) -> 1 | E16: =IF(D16=1,(INDEX(III!$A:$T,MATCH($E$9,III!$A:$A,0)+B16,13)),"") -> 24L | F16: =F15 -> 8727 | G16: =IF(D16=1,(IF(INDEX(III!$A:$T,MATCH($E$9,III!$A:$A,0)+B16,11)="",N16,(INDEX(III!$A:$T,MATCH($E$9,III!$A:$A,0)+B16,17)))),"") -> 246 | H16: 24L /2660m | I16: 246 | J16: 24L | K16: 8727 | L16: 1 | M16: 24 | N16: 240 | O16: ~ | P16: 24L /8727ft | Q16: 0 | U16: 24L | V16: 24L
B17: 3 | C17: Rw7 | D17: =IF(INDEX(III!$A:$T,MATCH($E$9,III!$A:$A,0)+B17,1)=$E$9,1,0) -> 0 | E17: =IF(D17=1,(INDEX(III!$A:$T,MATCH($E$9,III!$A:$A,0)+B17,7)),"") ->  | F17: =IF(D17=1,(INDEX(III!$A:$T,MATCH($E$9,III!$A:$A,0)+B17,2)),"") ->  | G17: =IF(D17=1,(IF(INDEX(III!$A:$T,MATCH($E$9,III!$A:$A,0)+B17,11)="",N17,(INDEX(III!$A:$T,MATCH($E$9,III!$A:$A,0)+B17,11)))),"") ->  | L17: 0 | Q17: 804
B18: 3 | C18: Rw8 | D18: =IF(INDEX(III!$A:$T,MATCH($E$9,III!$A:$A,0)+B18,1)=$E$9,1,0) -> 0 | E18: =IF(D18=1,(INDEX(III!$A:$T,MATCH($E$9,III!$A:$A,0)+B18,13)),"") ->  | F18: =F17 ->  | G18: =IF(D18=1,(IF(INDEX(III!$A:$T,MATCH($E$9,III!$A:$A,0)+B18,11)="",N18,(INDEX(III!$A:$T,MATCH($E$9,III!$A:$A,0)+B18,17)))),"") ->  | L18: 0 | Q18: 687
B19: 4 | C19: Rw9 | D19: =IF(INDEX(III!$A:$T,MATCH($E$9,III!$A:$A,0)+B19,1)=$E$9,1,0) -> 0 | E19: =IF(D19=1,(INDEX(III!$A:$T,MATCH($E$9,III!$A:$A,0)+B19,7)),"") ->  | F19: =IF(D19=1,(INDEX(III!$A:$T,MATCH($E$9,III!$A:$A,0)+B19,2)),"") ->  | G19: =IF(D19=1,(IF(INDEX(III!$A:$T,MATCH($E$9,III!$A:$A,0)+B19,11)="",N19,(INDEX(III!$A:$T,MATCH($E$9,III!$A:$A,0)+B19,11)))),"") ->  | L19: 0
B20: 4 | C20: Rw10 | D20: =IF(INDEX(III!$A:$T,MATCH($E$9,III!$A:$A,0)+B20,1)=$E$9,1,0) -> 0 | E20: =IF(D20=1,(INDEX(III!$A:$T,MATCH($E$9,III!$A:$A,0)+B20,13)),"") ->  | F20: =F19 ->  | G20: =IF(D20=1,(IF(INDEX(III!$A:$T,MATCH($E$9,III!$A:$A,0)+B20,11)="",N20,(INDEX(III!$A:$T,MATCH($E$9,III!$A:$A,0)+B20,17)))),"") ->  | L20: 0
B21: 5 | C21: Rw11 | D21: =IF(INDEX(III!$A:$T,MATCH($E$9,III!$A:$A,0)+B21,1)=$E$9,1,0) -> 0 | E21: =IF(D21=1,(INDEX(III!$A:$T,MATCH($E$9,III!$A:$A,0)+B21,7)),"") ->  | F21: =IF(D21=1,(INDEX(III!$A:$T,MATCH($E$9,III!$A:$A,0)+B21,2)),"") ->  | G21: =IF(D21=1,(IF(INDEX(III!$A:$T,MATCH($E$9,III!$A:$A,0)+B21,11)="",N21,(INDEX(III!$A:$T,MATCH($E$9,III!$A:$A,0)+B21,11)))),"") ->  | L21: 0
B22: 5 | C22: Rw12 | D22: =IF(INDEX(III!$A:$T,MATCH($E$9,III!$A:$A,0)+B22,1)=$E$9,1,0) -> 0 | E22: =IF(D22=1,(INDEX(III!$A:$T,MATCH($E$9,III!$A:$A,0)+B22,13)),"") ->  | F22: =F21 ->  | G22: =IF(D22=1,(IF(INDEX(III!$A:$T,MATCH($E$9,III!$A:$A,0)+B22,11)="",N22,(INDEX(III!$A:$T,MATCH($E$9,III!$A:$A,0)+B22,17)))),"") ->  | L22: 0
B23: 6 | C23: Rw13 | D23: =IF(INDEX(III!$A:$T,MATCH($E$9,III!$A:$A,0)+B23,1)=$E$9,1,0) -> 0 | E23: =IF(D23=1,(INDEX(III!$A:$T,MATCH($E$9,III!$A:$A,0)+B23,7)),"") ->  | F23: =IF(D23=1,(INDEX(III!$A:$T,MATCH($E$9,III!$A:$A,0)+B23,2)),"") ->  | G23: =IF(D23=1,(IF(INDEX(III!$A:$T,MATCH($E$9,III!$A:$A,0)+B23,11)="",N23,(INDEX(III!$A:$T,MATCH($E$9,III!$A:$A,0)+B23,11)))),"") ->  | L23: 0
B24: 6 | C24: Rw14 | D24: =IF(INDEX(III!$A:$T,MATCH($E$9,III!$A:$A,0)+B24,1)=$E$9,1,0) -> 0 | E24: =IF(D24=1,(INDEX(III!$A:$T,MATCH($E$9,III!$A:$A,0)+B24,13)),"") ->  | F24: =F23 ->  | G24: =IF(D24=1,(IF(INDEX(III!$A:$T,MATCH($E$9,III!$A:$A,0)+B24,11)="",N24,(INDEX(III!$A:$T,MATCH($E$9,III!$A:$A,0)+B24,17)))),"") ->  | L24: 0
B25: 7 | C25: Rw15 | D25: =IF(INDEX(III!$A:$T,MATCH($E$9,III!$A:$A,0)+B25,1)=$E$9,1,0) -> 0 | E25: =IF(D25=1,(INDEX(III!$A:$T,MATCH($E$9,III!$A:$A,0)+B25,7)),"") ->  | F25: =IF(D25=1,(INDEX(III!$A:$T,MATCH($E$9,III!$A:$A,0)+B25,2)),"") ->  | G25: =IF(D25=1,(IF(INDEX(III!$A:$T,MATCH($E$9,III!$A:$A,0)+B25,11)="",N25,(INDEX(III!$A:$T,MATCH($E$9,III!$A:$A,0)+B25,11)))),"") ->  | L25: 0
B26: 7 | C26: Rw16 | D26: =IF(INDEX(III!$A:$T,MATCH($E$9,III!$A:$A,0)+B26,1)=$E$9,1,0) -> 0 | E26: =IF(D26=1,(INDEX(III!$A:$T,MATCH($E$9,III!$A:$A,0)+B26,13)),"") ->  | F26: =F25 ->  | G26: =IF(D26=1,(IF(INDEX(III!$A:$T,MATCH($E$9,III!$A:$A,0)+B26,11)="",N26,(INDEX(III!$A:$T,MATCH($E$9,III!$A:$A,0)+B26,17)))),"") ->  | L26: 0
B27: 8 | C27: Rw17 | D27: =IF(INDEX(III!$A:$T,MATCH($E$9,III!$A:$A,0)+B27,1)=$E$9,1,0) -> 0 | E27: =IF(D27=1,(INDEX(III!$A:$T,MATCH($E$9,III!$A:$A,0)+B27,7)),"") ->  | F27: =IF(D27=1,(INDEX(III!$A:$T,MATCH($E$9,III!$A:$A,0)+B27,2)),"") ->  | G27: =IF(D27=1,(IF(INDEX(III!$A:$T,MATCH($E$9,III!$A:$A,0)+B27,11)="",N27,(INDEX(III!$A:$T,MATCH($E$9,III!$A:$A,0)+B27,11)))),"") ->  | L27: 0
B28: 8 | C28: Rw18 | D28: =IF(INDEX(III!$A:$T,MATCH($E$9,III!$A:$A,0)+B28,1)=$E$9,1,0) -> 0 | E28: =IF(D28=1,(INDEX(III!$A:$T,MATCH($E$9,III!$A:$A,0)+B28,13)),"") ->  | F28: =F27 ->  | G28: =IF(D28=1,(IF(INDEX(III!$A:$T,MATCH($E$9,III!$A:$A,0)+B28,11)="",N28,(INDEX(III!$A:$T,MATCH($E$9,III!$A:$A,0)+B28,17)))),"") ->  | L28: 0

Sheet DATOS (hidden)
N1: Seleccionar | O1: Seleccionar | P1: Seleccionar | Q1: Seleccionar | R1: Seleccionar | U1: 1 + F | V1: 2 | W1: 3 | X1: =IF(C7="1 + F",+F11&C7&$U$2,IF(C7=2,+F11&C7&$V$2,+F11&C7&$W$2)) -> SI1 + F2500 | AB1: Seleccionar | AC1: Coordinates | AE1: 1 | AF1: FIRST SEGMENT | AH1: Seleccionar | AJ1: Seleccionar | AL1: Seleccionar | AN1: Seleccionar | AO1: Seleccionar | AQ1: NO FAILURE | AR1: NOFAIL | AT1: ELECTRICAL | AU1: FLTCONTROL | AV1: SLATSFLAPS | AX1: FLAPS1 | AY1: FLAPS12 | AZ1: FLAPS23 | BA1: FLAPS3 | BB1: FLAPSA3 | BC1: FLAPSFAULT | BD1: SLATSFAULT | BE1: HYDRAULIC | BF1: WINGANTIICE | BG1: BRAKES | BH1: NAVIGATION | BI1: BLEED | BJ1: ENGINE | BL1: Seleccionar | BM1: Seleccionar | BO1: Seleccionar
B2: =TAKEOFF!D6 -> LEBL | J2: (Based on FCOM (PER-TOF) and QRH (FPE)) | M2: TOGA | N2: OFF | O2: OFF | P2: ABOVE | Q2: CONF 1 + F | R2: SI | U2: =+IF(AND(C7="1 + F",F33<3000),2500,IF(AND(C7="1 + F",F33>=3000,F33<3500),3000,3500)) -> 2500 | V2: =+IF(AND(C7=2,F33<2500),2000,IF(AND(C7=2,F33>=2500,F33<3000),2500,3000)) -> 3000 | W2: =+IF(AND(C7=3,F33<2000),1500,IF(AND(C7=3,F33>=2000,F33<2500),2000,2500)) -> 2500 | AB2: =runways_selected!E11 -> 2 | AC2: 41.2882,2.0709 | AE2: 2 | AF2: CLIMB | AH2: DRY | AJ2: LOW | AL2: All operative | AN2: CAT I / VISUAL | AO2: 3 | AQ2: ELECTRICAL | AR2: FAILELEC | AT2: AC BUS 1 FAULT | AU2: ONE SPLR FAULT (if no SPOILER runaway suspected) | AV2: FLAPS AND SLATS AT 0 | AW2: =VLOOKUP(E106,AY78:AZ84,2,FALSE) ->  | AX2: SLATS<1 | AY2: SLATS<1 | AZ2: SLATS<1 | BA2: SLATS<1 | BB2: 1≤SLATS≤3 | BC2: FLAPS<1 | BD2: SLATS<1 | BE2: G SYS LO PR | BF2: WING ANTI ICE SYS FAULT (if Ice Accretion) | BG2: ANTISKID FAULT | BH2: IR 1+2+3 FAULT | BI2: DUAL BLEED SYSTEM FAULT/ WING or ENG BLEED SYSTEM LEAK/ X BLEED SYSTEM FAULT/ ENG BLEED SYSTEM LO TEMP (if Ice Accretion) | BJ2: REV UNLOCK (with buffet) | BL2: >25% | BM2: ON | BO2: 1
M3: FLEX (STD) ºC | N3: ENG A/I | O3: ON | P3: BELOW | Q3: CONF 2 | R3: NO | AB3: =runways_selected!E12 -> 20 | AE3: 3 | AF3: FIELD | AH3: WET | AJ3: MED | AL3: One operative | AN3: CAT II/III - AUTOLAND | AO3: FULL | AQ3: FLTCONTROL | AR3: FAILFLTCONTROL | AT3: DC BUS 2 FAULT | AU3: ONE SPLR FAULT (if SPOILER runaway suspected) | AV3: FLAPS<1 | AX3: SLATS≥1 | AY3: SLATS≥1 | AZ3: SLATS≥1 | BA3: 1≤SLATS | BB3: SLATS>3 | BC3: 1≤FLAPS<2 | BD3: 1≤SLATS | BE3: B SYS LO PR | BG3: ONE BRK RELEASED | BH3: DUAL IR FAULT/ DUAL ADR FAULT | BJ3: SHUTDOWN (if ENG FIRE pushbutton pushed and if Ice Accretion) | BL3: <25% | BM3: OFF | BO3: 2
B4: TAKE OFF | C4: =IFERROR(IF(F55<C5,"MTOW",""),"") ->  | N4: ENG-WING A/I | Q4: CONF 3 | AB4: =runways_selected!E13 -> 06L | AE4: 4 | AH4: WET >6,3 MM | AJ4: MANUAL - MAX | AL4: All inoperative | AQ4: SLATSFLAPS | AR4: FAILSLATSFLAPS | AT4: DC BUS 1+2 FAULT | AU4: TWO SPLR FAULT/ GND SPLR 1+2(3+4) FAULT | AV4: 1≤FLAPS<2 | BA4: SLATS>3 | BC4: 2≤FLAPS | BD4: SLATS>3 | BE4: Y SYS LO PR | BG4: TWO BRK RELEASED | BH4: ALL ADR OFF
A5: =TAKEOFF!D26 -> 60 | B5: ATOW | C5: =A5*1000 -> 60000 | D5: =IFERROR((F55-C5),"") -> 11000 | E5: RWY: | F5: =VLOOKUP(TAKEOFF!D8,runways_selected!U11:V28,2,FALSE) -> 24L | G5: =runways_selected!I9 -> 246 | AB5: =runways_selected!E14 -> 24R | AE5: 5 | AF5: TIRE SPEED | AH5: SLUSH >6,3 MM | AQ5: HYDRAULIC | AR5: FAILHYDRAULIC | AT5: DC ESS BUS FAULT (if no Ice Accretion) | AU5: THREE SPLR FAULT | AV5: 2≤FLAPS<3 | BC5: FLAPS=3 | BE5: G + B REF DIST | BG5: ALTN L(R) RELEASED (if NORM BRK FAULT)
B6: MTOW: | C6: =IFERROR(F55,"Other CONFIG") -> 71000 | D6: TORA: | AB6: =runways_selected!E15 -> 06R | AE6: 6 | AF6: BRAKE ENERGY | AH6: COMPACTED SNOW | AQ6: WINGANTIICE | AR6: FAILWINGAI | AT6: DC ESS BUS FAULT (if Ice Accretion) | AU6: ALL SPLR FAULT | AV6: FLAPS=3 | BC6: FLAPS>3 | BE6: G + Y | BG6: ALTN L(R) RELEASED (if G SYS LO PR)
B7: T/O CONF: | C7: =VLOOKUP(TAKEOFF!D30,M14:N16,2,FALSE) -> 1 + F | D7: =runways_selected!M9 -> 2660 | E7: A/I: | F7: =TAKEOFF!D22 -> ENG A/I | G7: =IFERROR(IF(AND(F15<12,J7<>"mostly clear "),"Reccomended",""),"") -> Reccomended | AB7: =runways_selected!E16 -> 24L | AE7: 7 | AF7: MAX COMPUT WT | AQ7: BRAKES | AR7: FAILBRAKES | AT7: DC ESS SHED BUS (if Ice Accretion) | AU7: GND SPLR FAULT | AV7: FLAPS>3 | BE7: B + Y REF DIST
AB8: =runways_selected!E17 ->  | AE8: 8 | AF8: FINAL TAKEOFF | AQ8: NAVIGATION | AR8: FAILNAV | AT8: DC EMER CONFIG REF DIST calculated with 140kt min | AU8: SEC 1 or SEC 3 FAULT | AV8: FLAPS FAULT
B9: PACKS: | C9: =TAKEOFF!D32 -> OFF | E9: RWY COND: | F9: =TAKEOFF!D20 -> DRY | AB9: =runways_selected!E18 ->  | AE9: 9 | AF9: VMU | AQ9: BLEED | AR9: FAILBLEED | AT9: ELEC EMER CONFIG REF DIST calculated with 140kt min | AU9: SEC 2 FAULT | AV9: SLATS FAULT
B10: *ALL REVERSES OPERATIVES | AB10: =runways_selected!E19 ->  | AL10: All operative | AM10: All reverses operative | AQ10: ENGINE | AR10: FAILENGINE | AU10: SEC 2+3 FAULT
B11: TORA: | C11: =runways_selected!M9 -> 2660 | E11: CLEARWAY: | F11: =IF(TAKEOFF!D36="NO","NO",IF(J12<>0,"SI","NO")) -> SI | J11: CWY | K11: SWY | M11: YES | N11: SI | O11: =VLOOKUP(TAKEOFF!D36,DATOS!M11:N12,2,FALSE) -> SI | AB11: =runways_selected!E20 ->  | AL11: One operative | AM11: One reverse operative | AU11: SEC 1+3 FAULT | AW11: FLAPS>3 | BE11: B + Y REF DIST calculated with 140kt min | BG11: ALTN L(R) RELEASED (if G SYS LO PR)
J12: =IFERROR(IF(O11="NO",0,'SWY-CWY'!J2),0) -> 60 | K12: =IFERROR('SWY-CWY'!K2,0) -> 0 | M12: NO | N12: NO | AB12: =runways_selected!E21 ->  | AL12: All inoperative | AM12: All reverses inoperative | AU12: SEC 1+2 FAULT | BG12: NORM BRK FAULT
B13: QNH: | C13: =METAR!B4 -> 1030 | E13: SLOPE: | F13: ='SWY-CWY'!L2 -> 0 | AB13: =runways_selected!E22 ->  | AU13: RUDDER JAM | BG13: NORM BRK FAULT
C14: =IFERROR(IF(OR(G18>28,G18<-28),"MAX CROSSWIND",""),"") ->  | M14: CONF 1 + F | N14: 1 + F | AB14: =runways_selected!E23 ->  | AU14: SEC 1+2+3 FAULT | BG14: NORM + ALTN FAULT
B15: AIRPORT ELEV: | C15: =VLOOKUP(B2,ARPT_ELEV!A1:$B$60000,2,FALSE) -> 12 | E15: OAT: | F15: =METAR!B3 -> -15 | G15: =CONCATENATE(B2,F5) -> LEBL24L | M15: CONF 2 | N15: 2 | AB15: =runways_selected!E24 ->  | AU15: ALTN LAW/DIRECT LAW/ ELAC 1+2/L+R ELEV FAULT/L(R) ELEV FAULT/ STAB JAM | BG15: NORM + ALTN FAULT
M16: CONF 3 | N16: 3 | AB16: =runways_selected!E25 ->  | AU16: STABILIZER JAM (with man trim not available)
C17: DIR | D17: SPEED | F17: HEAD/W COMPONENT | G17: T/WIND COMP | AB17: =runways_selected!E26 -> 
B18: WIND | C18: =METAR!B1 -> 198 | D18: =METAR!B2 -> 25 | F18: =IF(ISERROR(IF(G5="","",IF(C18="VRB",0,ROUNDUP(D18*COS((RADIANS(C18))-(RADIANS(G5))),0)))),0,(IF(G5="","",IF(C18="VRB",0,ROUNDUP(D18*COS((RADIANS(C18))-(RADIANS(G5))),0))))) -> 17 | G18: =IF(AND(C18>(G5-90), C18<(G5+90)), 0,D18*SIN(((G5-180)-C18)*PI()/180)) -> -18.57862064 | H18: =IF(AND(C18>(G5-90), C18<(G5+90)), 0,D18*COS(((G5-180)-C18)*PI()/180)) -> -16.72826516 | AB18: =runways_selected!E27 -> 
AB19: =runways_selected!E28 -> 
AB20: =runways_selected!E29 -> 0
AB21: =runways_selected!E30 -> 0
AB22: =runways_selected!E31 -> 0
AB23: =runways_selected!E32 -> 0
AB24: =runways_selected!E33 -> 0
AB25: =runways_selected!E34 -> 0
B26: 1. QNH-BLEEDS CORR | E26: MTOW | F26: TFLEX | AB26: =runways_selected!E35 -> 0
B27: QNH/Corr | C27: =IF(C13>1013,"ABOVE","BELOW") -> ABOVE | E27: =+IF(C27="BELOW",-(1013-C13)*140,IF(AND(C15>2000,C15<4000),(1013-C13)*40,0)) -> 0 | F27: =+IF(C27="BELOW",-(1013-C13)/2*1,IF(AND(C15>2000,C15<4000),(1013-C13)/3*1,0)) -> 0 | AB27: =runways_selected!E36 -> 0
B28: A/I - Corr | E28: =IF(F7="OFF",0,IF(F7="ENG A/I",-300,IF(F7="ENG-WING A/I",IF(F15<=20,-950,-1650)))) -> -300 | F28: =IF(F7="ENG A/I",-5,IF(F7="ENG-WING A/I",-11,IF(F7="OFF",0))) -> -5 | AB28: =runways_selected!E37 -> 0
B29: A/C - Corr | E29: =IF(C9="ON",-2200,IF(C9="OFF",0,IF(C9="sELECCIONAR",0))) -> 0 | F29: =IF(C9="ON",-7,IF(C9="OFF",0,IF(C9="sELECCIONAR",0))) -> 0 | AB29: =runways_selected!E38 -> 0
AB30: =runways_selected!E39 -> 0
AB31: =runways_selected!E40 -> 0
B32: 2. WIND-SLOPE CORR | AB32: =runways_selected!E41 -> 0
B33: W/corr | C33: =F18*(IF(C11<'WIND-SLOPE'!C4,'WIND-SLOPE'!C6,IF(C11<='WIND-SLOPE'!D4,'WIND-SLOPE'!D6,IF(C11<='WIND-SLOPE'!E4,'WIND-SLOPE'!E6,IF(C11<='WIND-SLOPE'!F4,'WIND-SLOPE'!F6,IF(C11<='WIND-SLOPE'!G4,'WIND-SLOPE'!G6,IF(C11<='WIND-SLOPE'!H4,'WIND-SLOPE'!H6,IF(C11<='WIND-SLOPE'!I4,'WIND-SLOPE'!I6,IF(C11<='WIND-SLOPE'!J4,'WIND-SLOPE'!J6,IF(C11<='WIND-SLOPE'!K4,'WIND-SLOPE'!K6)))))))))) -> 170 | E33: TORA CORR: | F33: =C11+C33+C34 -> 2830 | AB33: =runways_selected!E42 -> 0
B34: Slope/corr | C34: =F13*(IF(F13>=0,(-IF(C11<'WIND-SLOPE'!C4,'WIND-SLOPE'!C8,IF(C11<='WIND-SLOPE'!D4,'WIND-SLOPE'!D8,IF(C11<='WIND-SLOPE'!E4,'WIND-SLOPE'!E8,IF(C11<='WIND-SLOPE'!F4,'WIND-SLOPE'!F8,IF(C11<='WIND-SLOPE'!G4,'WIND-SLOPE'!G8,IF(C11<='WIND-SLOPE'!H4,'WIND-SLOPE'!H8,IF(C11<='WIND-SLOPE'!I4,'WIND-SLOPE'!I8,IF(C11<='WIND-SLOPE'!J4,'WIND-SLOPE'!J8,IF(C11<='WIND-SLOPE'!K4,'WIND-SLOPE'!K8)))))))))),(-IF(C11<'WIND-SLOPE'!C4,'WIND-SLOPE'!C10,IF(C11<='WIND-SLOPE'!D4,'WIND-SLOPE'!D10,IF(C11<='WIND-SLOPE'!E4,'WIND-SLOPE'!E10,IF(C11<='WIND-SLOPE'!F4,'WIND-SLOPE'!F10,IF(C11<='WIND-SLOPE'!G4,'WIND-SLOPE'!G10,IF(C11<='WIND-SLOPE'!H4,'WIND-SLOPE'!H10,IF(C11<='WIND-SLOPE'!I4,'WIND-SLOPE'!I10,IF(C11<='WIND-SLOPE'!J4,'WIND-SLOPE'!J10,IF(C11<='WIND-SLOPE'!K4,'WIND-SLOPE'!K10)))))))))))) -> 0 | AB34: =runways_selected!E43 -> 0
AB35: =runways_selected!E44 -> 0
AB36: =runways_selected!E45 -> 0
B37: 3. WET RWY | D37: 3.B. CONTAMINATED RUNWAY | AB37: =runways_selected!E46 -> 0
B38: T/O FLEX : | C38: =IF(F9="WET",-IF(F11="NO",HLOOKUP($X$1,'WET-CONT'!$C$5:$K$10,3,0),HLOOKUP(DATOS!$X$1,'WET-CONT'!$C$19:$K$24,3,0)),0) -> 0 | E38: WET >6,3 | F38: SLUSH >6,3 | G38: COMPACTED SNOW | J38: CONTAMINATED CORRECTION | AB38: =runways_selected!E47 -> 0
B39: MTOW CORR: | C39: =IF(F9="WET",-IF(F11="NO",HLOOKUP($X$1,'WET-CONT'!$C$5:$K$10,4,0),HLOOKUP(DATOS!$X$1,'WET-CONT'!$C$19:$K$24,4,0)),0) -> 0 | D39: WEIGHT: | E39: =IF(F9="WET >6,3 MM",IF(DATOS!C7="1 + F",IF(DATOS!F11="SI",+HLOOKUP(+HLOOKUP(DATOS!F33,CONTAM_RWY_TAKEOFF!B4:K4,1,TRUE),CONTAWET61,2,TRUE),+HLOOKUP(+HLOOKUP(DATOS!F33,CONTAM_RWY_TAKEOFF!B4:K4,1,TRUE),CONTAWET61,3,TRUE)),IF(DATOS!C7=2,IF(DATOS!F11="SI",+HLOOKUP(+HLOOKUP(DATOS!F33,CONTAM_RWY_TAKEOFF!B4:K4,1,TRUE),CONTAWET62,2,TRUE),+HLOOKUP(+HLOOKUP(DATOS!F33,CONTAM_RWY_TAKEOFF!B4:K4,1,TRUE),CONTAWET62,3,TRUE)),IF(DATOS!F11="SI",+HLOOKUP(+HLOOKUP(DATOS!F33,CONTAM_RWY_TAKEOFF!B4:K4,1,TRUE),CONTAWET63,2,TRUE),+HLOOKUP(+HLOOKUP(DATOS!F33,CONTAM_RWY_TAKEOFF!B4:K4,1,TRUE),CONTAWET63,3,TRUE)))),"") ->  | F39: =IF(F9="SLUSH >6,3 MM",IF(DATOS!C7="1 + F",IF(DATOS!F11="SI",+HLOOKUP(+HLOOKUP(DATOS!F33,CONTAM_RWY_TAKEOFF!B4:K4,1,TRUE),CONTASLUSH61,2,TRUE),+HLOOKUP(+HLOOKUP(DATOS!F33,CONTAM_RWY_TAKEOFF!B4:K4,1,TRUE),CONTASLUSH61,3,TRUE)),IF(DATOS!C7=2,IF(DATOS!F11="SI",+HLOOKUP(+HLOOKUP(DATOS!F33,CONTAM_RWY_TAKEOFF!B4:K4,1,TRUE),CONTASLUSH62,2,TRUE),+HLOOKUP(+HLOOKUP(DATOS!F33,CONTAM_RWY_TAKEOFF!B4:K4,1,TRUE),CONTASLUSH62,3,TRUE)),IF(DATOS!F11="SI",+HLOOKUP(+HLOOKUP(DATOS!F33,CONTAM_RWY_TAKEOFF!B4:K4,1,TRUE),CONTASLUSH63,2,TRUE),+HLOOKUP(+HLOOKUP(DATOS!F33,CONTAM_RWY_TAKEOFF!B4:K4,1,TRUE),CONTASLUSH63,3,TRUE)))),"") ->  | G39: =IF(F9="COMPACTED SNOW",IF(DATOS!C7="1 + F",IF(DATOS!F11="SI",+HLOOKUP(+HLOOKUP(DATOS!F33,CONTAM_RWY_TAKEOFF!B4:K4,1,TRUE),CONTASNOW1,2,TRUE),+HLOOKUP(+HLOOKUP(DATOS!F33,CONTAM_RWY_TAKEOFF!B4:K4,1,TRUE),CONTASNOW1,3,TRUE)),IF(DATOS!C7=2,IF(DATOS!F11="SI",+HLOOKUP(+HLOOKUP(DATOS!F33,CONTAM_RWY_TAKEOFF!B4:K4,1,TRUE),CONTASNOW2,2,TRUE),+HLOOKUP(+HLOOKUP(DATOS!F33,CONTAM_RWY_TAKEOFF!B4:K4,1,TRUE),CONTASNOW2,3,TRUE)),IF(DATOS!F11="SI",+HLOOKUP(+HLOOKUP(DATOS!F33,CONTAM_RWY_TAKEOFF!B4:K4,1,TRUE),CONTASNOW3,2,TRUE),+HLOOKUP(+HLOOKUP(DATOS!F33,CONTAM_RWY_TAKEOFF!B4:K4,1,TRUE),CONTASNOW3,3,TRUE)))),"") ->  | J39: =SUM(E39:G39) -> 0 | AB39: =runways_selected!E48 -> 0
B40: V1 DECR: | C40: =IF(F9="WET",-IF(F11="NO",HLOOKUP($X$1,'WET-CONT'!$C$5:$K$10,5,0),HLOOKUP(DATOS!$X$1,'WET-CONT'!$C$19:$K$24,5,0)),0) -> 0 | AB40: =runways_selected!E49 -> 0
B41: VR & V2 DECR: | C41: =IF(F9="WET",-IF(F11="NO",HLOOKUP($X$1,'WET-CONT'!$C$5:$K$10,6,0),HLOOKUP(DATOS!$X$1,'WET-CONT'!$C$19:$K$24,6,0)),0) -> 0 | AB41: =runways_selected!E50 -> 0
AB42: =runways_selected!E51 -> 0
AB43: =runways_selected!E52 -> 0
B44: 4. OBSTACLE CLEARANCE | F44: G/C | AB44: =runways_selected!E53 -> 0
B45: MTOW CORR: | C45: =+IF(C7="1 + F",VLOOKUP(F45,OBS_CORRECTION!$A$3:$B$13,2,1),IF(DATOS!C7=2,VLOOKUP(DATOS!F45,OBS_CORRECTION!$A$17:$B$27,2,1),VLOOKUP(DATOS!F45,OBS_CORRECTION!$A$31:$B$41,2,1))) -> 3000 | F45: =OBSTACLES_2!K2 -> 2.8 | AB45: =runways_selected!E54 -> 0
AB46: =runways_selected!E55 -> 0
B47: 5. OBSTACLE SPEED CORR | AB47: =runways_selected!E56 -> 0
B48: V1/VR/V2 CORR | C48: =-C45/1000 -> -3 | AB48: =runways_selected!E57 -> 0
AB49: =runways_selected!E58 -> 0
AB50: =runways_selected!E59 -> 0
B51: MTOW | E51: ELEV.: | F51: =C15 -> 12 | AB51: =runways_selected!E60 -> 0
B52: T/O CONF: | C52: =C7 -> 1 + F | AB52: =runways_selected!E61 -> 0
B53: OAT: | C53: =F15 -> -15 | E53: MTOW: | F53: =IF((MATRIX_MTOW!J5*100)>OPTIONS!C8,OPTIONS!C8,MATRIX_MTOW!J5*100) -> 74300 | AB53: =runways_selected!E62 -> 0
B54: AIRPORT ELEV: | C54: =+IF(C15<500,0,IF(AND(C15>=500,C15<1000),1000,IF(AND(C15>=1000,C15<1500),1000,IF(C15>=1500,2000,2000)))) -> 0 | AB54: =runways_selected!E63 -> 0
B55: TORA CORR: | C55: =IF(AND(ISNUMBER(C33),ISNUMBER(C34)),C11+C33+C34,"") -> 2830 | E55: MTOW CORR: | F55: =IF(ISNUMBER(C39),F53+E27+E28+E29+C39-C45-J39,"") -> 71000 | AB55: =runways_selected!E64 -> 0
AB56: =runways_selected!E65 -> 0
B57: SPEEDS | AB57: =runways_selected!E66 -> 0
B58: AIRPORT ELEV: | C58: =+IF(C19<500,0,IF(AND(C19>=500,C19<1000),1000,IF(AND(C19>=1000,C19<1500),1000,IF(C19>=1500,2000,2000)))) -> 0 | AB58: =runways_selected!E67 -> 0
B59: TORA CORR: | C59: =IF(AND(ISNUMBER(C33),ISNUMBER(C34)),C11+C33+C34,"") -> 2830 | AB59: =runways_selected!E68 -> 0
B60: ATOW: | C60: =ROUND(C5, -3) -> 60000 | AB60: =runways_selected!E69 -> 0
B61: V1: | C61: =+VLOOKUP(C60,INDIRECT(MATRIX!E7),2,FALSE) -> 135 | D61: VR: | E61: =+VLOOKUP(C60,INDIRECT(MATRIX!E7),3,FALSE) -> 135 | F61: V2: | G61: =+VLOOKUP(C60,INDIRECT(MATRIX!E7),4,FALSE) -> 135 | AB61: =runways_selected!E70 -> 0
B62: SPEEDS CORRECTED: | AB62: =runways_selected!E71 -> 0
B63: V1: | C63: =IF(ISNUMBER(C40),C61+C40+C48,"") -> 132 | D63: VR: | E63: =IF(ISNUMBER(C41),E61+C41+C48,"") -> 132 | F63: V2: | G63: =IF(ISNUMBER(C41),G61+C41+C48,"") -> 132 | AB63: =runways_selected!E72 -> 0
AB64: =runways_selected!E73 -> 0
AB65: =runways_selected!E74 -> 0
AB66: =runways_selected!E75 -> 0
B67: T FLEX | AB67: =runways_selected!E76 -> 0
B68: TFLEX | C68: =IF((IF(TAKEOFF!D16>(IF(+VLOOKUP(C60,INDIRECT(MATRIX!E7),8,FALSE)<0,0,+VLOOKUP(C60,INDIRECT(MATRIX!E7),8,FALSE))),IF(+VLOOKUP(C60,INDIRECT(MATRIX!E7),8,FALSE)<0,0,+VLOOKUP(C60,INDIRECT(MATRIX!E7),8,FALSE))+2,IF(+VLOOKUP(C60,INDIRECT(MATRIX!E7),8,FALSE)<0,0,+VLOOKUP(C60,INDIRECT(MATRIX!E7),8,FALSE))))<TAKEOFF!D16,TAKEOFF!D16+2,IF(TAKEOFF!D16>(IF(+VLOOKUP(C60,INDIRECT(MATRIX!E7),8,FALSE)<0,0,+VLOOKUP(C60,INDIRECT(MATRIX!E7),8,FALSE))),IF(+VLOOKUP(C60,INDIRECT(MATRIX!E7),8,FALSE)<0,0,+VLOOKUP(C60,INDIRECT(MATRIX!E7),8,FALSE))+2,IF(+VLOOKUP(C60,INDIRECT(MATRIX!E7),8,FALSE)<0,0,+VLOOKUP(C60,INDIRECT(MATRIX!E7),8,FALSE)))) -> 70 | I68: =+VLOOKUP(C60,INDIRECT(MATRIX!E7),6,FALSE) -> 3 | AB68: =runways_selected!E77 -> 0
B69: TFLEX CORR: | C69: =IF(TAKEOFF!D16>(IF(IF(ISNUMBER(C38),C68+F27+F28+F29+C38,"")<0,0,IF(ISNUMBER(C38),C68+F27+F28+F29+C38,""))),(IF(IF(ISNUMBER(C38),C68+F27+F28+F29+C38,"")<0,0,IF(ISNUMBER(C38),C68+F27+F28+F29+C38,"")))+2,(IF(IF(ISNUMBER(C38),C68+F27+F28+F29+C38,"")<0,0,IF(ISNUMBER(C38),C68+F27+F28+F29+C38,"")))) -> 65 | I69: =+VLOOKUP(C60,INDIRECT(MATRIX!E7),7,FALSE) -> 3 | AB69: =runways_selected!E78 -> 0
B70: TFLEX FINAL: | C70: =MIN(+HLOOKUP(C54,'TFLEX MAX'!$C$2:$E$3,2,0)+F27+F28+F29,C69) -> 63 | AB70: =runways_selected!E79 -> 0
AB71: =runways_selected!E80 -> 0
AB72: =runways_selected!E81 -> 0
AB73: =runways_selected!E82 -> 0
AB74: =runways_selected!E83 -> 0
AB75: =runways_selected!E84 -> 0
AB76: =runways_selected!E85 -> 0
AB77: =runways_selected!E86 -> 0
B78: V1: | C78: =IFERROR(+IF(F9="WET >6,3 MM",CONTAM_RWY_TAKEOFF!O8,IF(F9="SLUSH >6,3 MM",CONTAM_RWY_TAKEOFF!O56,IF(DATOS!F9="COMPACTED SNOW",CONTAM_RWY_TAKEOFF!O97,C63))),"Check Conf.") -> 132 | D78: VR: | E78: =IFERROR(+IF(F9="WET >6,3 MM",CONTAM_RWY_TAKEOFF!P8,IF(F9="SLUSH >6,3 MM",CONTAM_RWY_TAKEOFF!P56,IF(DATOS!F9="COMPACTED SNOW",CONTAM_RWY_TAKEOFF!P97,E63))),"Check Conf.") -> 132 | F78: V2: | G78: =IFERROR(+IF(F9="WET >6,3 MM",CONTAM_RWY_TAKEOFF!Q8,IF(F9="SLUSH >6,3 MM",CONTAM_RWY_TAKEOFF!Q56,IF(DATOS!F9="COMPACTED SNOW",CONTAM_RWY_TAKEOFF!Q97,G63))),"Check Conf.") -> 132 | AB78: =runways_selected!E87 -> 0 | AY78: FLAPS<1 | AZ78: FLAPS1
AB79: =runways_selected!E88 -> 0 | AY79: 1≤FLAPS<2 | AZ79: FLAPS12
B80: T FLEX: | C80: =IF(TAKEOFF!D28="TOGA","TOGA",(IFERROR(IF($F$45>=2.4,"TOGA",C70),"Config"))) -> TOGA | D80: ºC | E80: MTOW CODE: | F80: =IFERROR(VLOOKUP(I68,AE1:AF9,2,FALSE),"") -> FIELD | AB80: =runways_selected!E89 -> 0 | AY80: 2≤FLAPS<3 | AZ80: FLAPS23
E81: =IFERROR(+VLOOKUP(C60,INDIRECT(MATRIX!E7),5,FALSE),"") -> 3/3 | F81: =IFERROR(VLOOKUP(I69,AE1:AF9,2,FALSE),"") -> FIELD | AB81: =runways_selected!E90 -> 0 | AY81: FLAPS=3 | AZ81: FLAPS3
C82: =IF(C5>64499,"OVERWEIGHT LANDING","") ->  | F82: =IFERROR(IF(C45<=0,"","OBSTACLE"),"") -> OBSTACLE | J82: =IF(F82="",F80&"-"&F81,F82&"-"&F80&"-"&F81) -> OBSTACLE-FIELD-FIELD | AB82: =runways_selected!E91 -> 0 | AY82: FLAPS>3 | AZ82: FLAPSA3
AB83: =runways_selected!E92 -> 0 | AY83: FLAPS FAULT | AZ83: FLAPSFAULT
B84: EOSID: | C84: =IFERROR(VLOOKUP(G15,EOSID,2,FALSE),"NO EOSID") -> STD. At 1600 turn LEFT to LESBA HP. LESBA HP: D25.3/R096 D116.7 BCN. Inbound track 276Deg., RIGHT turn. Turns before HP based on 15Deg. bank angle. | AB84: =runways_selected!E93 -> 0 | AY84: SLATS FAULT | AZ84: SLATSFAULT
B85: EO ACC: | C85: =IFERROR((C15+OPTIONS!C9)&" ft","") -> 1512 ft | D85: NADP: | E85: Seleccionar | F85: =IFERROR("RED:"&" "&(C15+800)&" AGL","") -> RED: 812 AGL | G85: =IFERROR(IF(E85=1,"ACC: "&(C15+3000)&" AGL","ACC: "&(C15+800)&" AGL"),"") -> ACC: 812 AGL | AB85: =runways_selected!E94 -> 0
AB86: =runways_selected!E95 -> 0
B87: LANDING
P88: ICE ACCRETION:
B89: RWY: | C89: =runways_selected_LDG!B3 -> 24R | D89: =IFERROR(IF(C89="Seleccionar","",+VLOOKUP(C89,'AIRPORT RWYS'!$B$1:$F$20000,2,0)),"") ->  | E89: X-WIND: | F89: =IFERROR(IF(F104>F101,"MAX X-WIND",""),"") ->  | P89: YES | Q89: SI
P90: NO | Q90: NO
B91: ALW: | C91: =LANDING!D25*1000 -> 54000 | D91: =IF(C91>64499,"OVERWEIGHT LANDING","") ->  | E91: RWY COND: | F91: =VLOOKUP(LANDING!D19,DATOS!P108:Q117,2,FALSE) -> Dry | J91: temp; | K91: =LANDING!D15 -> 20
P92: FLAPS
B93: APPROACH: | C93: =VLOOKUP(LANDING!D29,DATOS!P96:Q97,2,FALSE) -> CAT I / VISUAL | E93: FLAPS: | F93: =VLOOKUP(LANDING!D27,DATOS!P93:Q94,2,FALSE) -> FULL | G93: =IF(AND(G111="RE",C107="TE"),"LDG CONFIG 3","") ->  | P93: CONF 3 | Q93: 3
P94: CONF FULL | Q94: FULL
B95: AUTOBRAKE: | C95: =VLOOKUP(LANDING!D33,DATOS!P102:Q104,2,FALSE) -> LOW | E95: SPEED CORR (+5): | F95: SI | G95: =IFERROR(IF(MATRIX_LDG!L14="NO SPD COR LDG DIST","No cor in LDG DIST",""),"") -> 
P96: Normal (STD) | Q96: CAT I / VISUAL
B97: REVERSERS: | C97: =LANDING!D35 -> All operative | E97: Factored LD: | F97: =IFERROR(MATRIX_LDG!R20,"") -> 2334.5 | G97: (+15% applied) | P97: CAT II | Q97: CAT II/III - AUTOLAND
E98: Stop margin: | F98: =IFERROR(C102-F97,"") -> 1017.5
E99: =IF(F97>C102,"Insuf. LDG DISTANCE","") ->  | G99: =IFERROR(IF(G18>=F101,"MAX CROSSWIND",""),"") ->  | P99: Manual - A/THR off | Q99: OFF
B100: AIRPORT ELEV: | C100: =runways_selected_LDG!D2 -> 12 | P100: Manual - A/THR on (STD) | Q100: ON
B101: LEVEL: | C101: =VLOOKUP(F91,RWYCOND_LDG!A2:C11,2,FALSE) -> Dry | E101: MAX CROSSWIND: | F101: =VLOOKUP(F91,RWYCOND_LDG!A2:C11,3,FALSE) -> 38 | G101: HEAD/W COMPONENT
B102: LDA: | C102: =runways_selected_LDG!L9 -> 3352 | E102: SLOPE: | F102: ='SWY-CWY'!L6 -> -0.01 | G102: =IF(ISERROR(IF(runways_selected_LDG!I9="","",IF(C104="VRB",0,ROUNDUP(D104*COS((RADIANS(C104))-(RADIANS(runways_selected_LDG!I9))),0)))),0,(IF(runways_selected_LDG!I9="","",IF(C104="VRB",0,ROUNDUP(D104*COS((RADIANS(C104))-(RADIANS(runways_selected_LDG!I9))),0))))) -> 5 | P102: Manual (STD) | Q102: MANUAL - MAX
C103: DIR | D103: SPEED | F103: X-WIND COMP | G103: T/WIND COMP | P103: Low | Q103: LOW
B104: WIND | C104: =METAR!B8 -> 250 | D104: =METAR!B9 -> 5 | F104: =D104*(ABS(SIN(ABS(C104-(runways_selected_LDG!I9*10))*PI()/180))) -> 3.830222216 | G104: =IF(AND(C104>(runways_selected_LDG!I9-90), C104<(runways_selected_LDG!I9+90)), 0,D104*SIN(((runways_selected_LDG!I9-180)-C104)*PI()/180)) -> 0.3487823687 | P104: Med | Q104: MED
B106: FAILURE SYSTEM: | C106: =VLOOKUP(LANDING!K9,DATOS!P120:Q129,2,FALSE) -> NO FAILURE | D106: FAILURE: | E106: =LANDING!P9 -> AC BUS 1 FAULT
C107: =IF(C106="NO FAILURE","","TE") ->  | D107: SLAT/FLAP:
P108: 6- Dry | Q108: Dry | R108: Dry
B109: CG (%): | C109: =LANDING!D38 -> >25% | E109: FLD With FAIL: | F109: =IFERROR(LDGDIST_FAIL!AD9,"") ->  | P109: 5- <3mm Wet | Q109: <3mm Wet | R109: Good
B110: A/THR: | C110: =VLOOKUP(LANDING!D31,DATOS!P99:Q100,2,FALSE) -> ON | E110: Stop margin: | F110: =IFERROR(C102-F109,"") ->  | P110: 5- <3mm Slush | Q110: <3mm Slush | R110: Good
B111: ICE ACCRETION: | C111: =VLOOKUP(LANDING!F21,P89:Q90,2,FALSE) -> SI | E111: VREF: | F111: =IFERROR(LDGDIST_FAIL!S9,0) -> 0 | G111: =IFERROR(LDGDIST_FAIL!AD9,"RE") -> RE | P111: 5- <3mm Snow | Q111: <3mm Snow | R111: Good
C112: =IFERROR(IF(K91<12,"Reccomended",""),"") ->  | P112: 5- <3mm Frost | Q112: <3mm Frost | R112: Good
E113: FLAP POS LDG | F113: =LDGDIST_FAIL!AD8 -> 0 | P113: 4- Compact Snow > -15°C | Q113: Compacted Snow > -15°C | R113: Good to Medium
B114: NO FAILURE | E114: FAILURE | P114: 3- Compact Snow < -15°C | Q114: Compacted Snow < -15°C | R114: Medium
B115: VAPP = VLS + APPR COR | E115: VAPP = VREF + AVREF + APPR COR | P115: 3- >3mm Snow | Q115: >3mm Snow | R115: Medium
B116: VAPP: | C116: =IFERROR(VAPP!V5,"") -> 128 | E116: VAPP: | F116: =IF(C106<>"NO FAILURE",IFERROR(VAPP!AB17,""),"") ->  | G116: =IFERROR(IF(LDGDIST_FAIL!AB5="INOP","REVERSERS INOP",""),"") ->  | K116: VAPP: | L116: =IF(C106="NO FAILURE",C116,F116) -> 128 | P116: 2- >3mm Water/Slush | Q116: >3mm Water/Slush | R116: Medium to Poor
B117: FOLD: | C117: =F97 -> 2334.5 | D117: (+15% applied) | E117: FOLD: | F117: =IF(F109<C117,C117,F109) ->  | G117: =IF(AND(G111="RE",C107="TE"),"LDG CONFIG 3","") ->  | K117: LD | L117: =IF(E106<>"NO FAILURE",L118+(L118-(L118*1.15)),MATRIX_LDG!R13) -> 1984.325 | P117: 1- Ice (cold & dry) | Q117: Ice (cold & dry) | R117: Poor
B118: margin: | C118: =F98 -> 1017.5 | E118: margin: | F118: =IF(F110="",C118,F110) -> 1017.5 | K118: F-LD | L118: =IF(F117="",C117,IF(C106="NO FAILURE",C117,F117)) -> 2334.5
B119: =IF(C117="","",IF(C117>=C102,"Recalculate parameters","")) ->  | K119: margin: | L119: =IF(C106="NO FAILURE",C118,F118) -> 1017.5
P120: NO ECAM ALERTS | Q120: NO FAILURE
P121: ELEC | Q121: ELECTRICAL
P122: F/CTL | Q122: FLTCONTROL
B123: NO FAILURE | E123: FAILURE | K123: DISTANCE | L123: METERS | P123: SLATS/FLAPS | Q123: SLATSFLAPS
B124: FOLD: | C124: Stop Margin: | D124: ALD | E124: FOLD: | F124: Stop Margin: | G124: ALD | K124: LDA | L124: =runways_selected_LDG!M9 -> 3352 | P124: HYD | Q124: HYDRAULIC
B125: =C117 -> 2334.5 | C125: =C118 -> 1017.5 | D125: =C102 -> 3352 | E125: =F117 ->  | F125: =F118 -> 1017.5 | G125: =C102 -> 3352 | K125: LD | L125: =L117 -> 1984.325 | P125: WING A.ICE | Q125: WINGANTIICE
K126: F-LD | L126: =L118 -> 2334.5 | P126: BRAKES | Q126: BRAKES
K127: margin | L127: =L119 -> 1017.5 | P127: NAV | Q127: NAVIGATION
P128: AIR | Q128: BLEED
P129: ENG | Q129: ENGINE
K130: LD
K131: DISTANCE | L131: METERS
K132: LD | L132: =L125 -> 1984.325
K133: LDA | L133: =L124 -> 3352
K135: F-LD
K136: DISTANCE | L136: METERS
K137: F-LD | L137: =L126 -> 2334.5
K138: LDA | L138: =L124 -> 3352
K140: MARGIN
K141: DISTANCE | L141: METERS
K142: margin | L142: =L127 -> 1017.5
K143: LDA | L143: =L124 -> 3352
L144: =IFERROR("margin "&ROUND(L142,0)&" m","") -> margin 1018 m

Sheet TAKEOFF
I4: =IFERROR(" "&D8&" - "&runways_selected!B7,"") -> 24L - FULL LENGTH
C6: AIRPORT | D6: LEBL
Q7: ="EOSID: "&DATOS!C84 -> EOSID: STD. At 1600 turn LEFT to LESBA HP. LESBA HP: D25.3/R096 D116.7 BCN. Inbound track 276Deg., RIGHT turn. Turns before HP based on 15Deg. bank angle.
C8: RWY | D8: 24L | K8: CONF | M8: =DATOS!C7 -> 1 + F
C10: INTX | D10: FULL LENGTH | K10: THRUST | M10: =IFERROR(IF(D28="TOGA","TOGA","FLEX "&(ROUND(DATOS!C80,0)&" ºC")),"TOGA") -> TOGA
B12: =IF(runways_selected!C3="Select Runway","!!-Select Runway","") ->  | G12: =IF(runways_selected!O9="X","Select INTX","") ->  | K12: V1 | L12: =DATOS!C78&" kt" -> 132 kt
C14: WIND º/kt | D14: 198/25 | K14: VR | L14: =DATOS!E78&" kt" -> 132 kt
C16: OAT ºC | D16: -15 | K16: V2 | L16: =DATOS!G78&" kt" -> 132 kt
C18: QNH hPa | D18: 1030 | K18: Limitation | L18: =DATOS!J82 -> OBSTACLE-FIELD-FIELD
C20: RWY COND | D20: DRY | K20: ENG OUT ACC | M20: =DATOS!C85 -> 1512 ft
C22: A-ICE | D22: ENG A/I
K24: REV FOR COMPUTATION
K25: =VLOOKUP(D38,DATOS!AL10:AM12,2,FALSE) -> All reverses operative
C26: TOW T | D26: 60
C28: T.O THRUST | D28: FLEX (STD) ºC
C30: CONF | D30: CONF 1 + F | K30: MTOW (PERF) | M30: =IFERROR(ROUND(DATOS!F55/1000,1)&" T","Check Config") -> 71 T
C32: AIR COND | D32: OFF | K32: =IF(DATOS!F45>2.4,OBSTACLES_2!O2,"") -> OBST: 229 m - 29 ft (From brake rel.)
C36: CWY | D36: YES
C38: REVERSES | D38: All operative
B43: =OPTIONS!B14 -> Version 1.1 (Created by FLIGHTCREWSIM - operations@flightcrewsim.com) - 2023
B44: FOR SIMULATION USE ONLY

Sheet LANDING
I5: =IFERROR(D9,"") -> 24R
C7: AIRPORT | D7: LEBL | J7: ECAM ALERTS | O7: =IF(K9<>"NO ECAM ALERTS","Select ECAM alert","") -> 
C9: RWY | D9: 24R | K9: NO ECAM ALERTS | P9: AC BUS 1 FAULT
B11: =IF(runways_selected_LDG!C3="Select Runway","!!-Select Runway","") ->  | P11: Slats/Flaps: | T11: SLATS≥1
C13: WIND º/kt | D13: 250/5 | J13: =IF(INOP_SYSTEMS!G3=0,"",IF(K9<>"SLATS/FLAPS","",INOP_SYSTEMS!G3&CHAR(10)&INOP_SYSTEMS!G4&CHAR(10)&INOP_SYSTEMS!G5&CHAR(10)&INOP_SYSTEMS!G6&CHAR(10)&INOP_SYSTEMS!G7&CHAR(10)&INOP_SYSTEMS!G8&CHAR(10)&INOP_SYSTEMS!G9&CHAR(10)&INOP_SYSTEMS!G10&CHAR(10)&INOP_SYSTEMS!G11&CHAR(10)&INOP_SYSTEMS!G12&CHAR(10)&INOP_SYSTEMS!G13&CHAR(10))) ->  | T13: =INOP_SYSTEMS!G3 -> 
C15: OAT ºC | D15: 20
C17: QNH hPa | D17: 1011 | K17: =IF(K9="NO ECAM ALERTS","VLS","Vref") -> VLS | M17: =IF(K9="NO ECAM ALERTS",VAPP!P5&" kt",VAPP!P17&" kt") -> 123 kt | T17: Wind | U17: =IF(VAPP!W14<0,(ROUND(VAPP!W14,0))*(-1),ROUND(VAPP!W14,0))&" kt" -> 2 kt
C19: RWY COND | D19: 6- Dry | K19: =IF(K9="NO ECAM ALERTS","APPR COR","ΔVref") -> APPR COR | M19: =IF(K9="NO ECAM ALERTS",ROUND(VAPP!Z16,0)&" kt",VAPP!Q17&" kt") -> 5 kt | T19: VA/THR | U19: =VAPP!T14&" kt" -> 5 kt
C21: ICE ACCRETION | F21: YES | K21: =IF(K9="NO ECAM ALERTS","VAPP","APPR COR") -> VAPP | M21: =IF(K9="NO ECAM ALERTS",IF(K9="NO ECAM ALERTS",ROUND(DATOS!L116,0),ROUND(DATOS!L116,0))&" kt",ROUND(VAPP!Z16,0)&" kt") -> 128 kt | T21: Vice accretion | U21: =VAPP!V14&" kt" -> 0 kt
V22: =IF(T10="NO ECAM ALERTS",DATOS!L118,DATOS!O117)&" kt" -> kt
K23: VAPP | M23: =ROUND(DATOS!L116,0)&" kt" -> 128 kt
C25: LW T | D25: 54 | J25: LIST of INOP SYSTEMS
C27: LDG CONF | D27: CONF FULL | J27: =IF(INOP_SYSTEMS!F3=0,"",INOP_SYSTEMS!F3&CHAR(10)&INOP_SYSTEMS!F4&CHAR(10)&INOP_SYSTEMS!F5&CHAR(10)&INOP_SYSTEMS!F6&CHAR(10)&INOP_SYSTEMS!F7&CHAR(10)&INOP_SYSTEMS!F8&CHAR(10)&INOP_SYSTEMS!F9&CHAR(10)&INOP_SYSTEMS!F10&CHAR(10)&INOP_SYSTEMS!F11&CHAR(10)&INOP_SYSTEMS!F12&CHAR(10)&INOP_SYSTEMS!F13&CHAR(10)&INOP_SYSTEMS!F14&CHAR(10)&INOP_SYSTEMS!F15&CHAR(10)&INOP_SYSTEMS!F16&CHAR(10)&INOP_SYSTEMS!F17&CHAR(10)&INOP_SYSTEMS!F18&CHAR(10)&INOP_SYSTEMS!F19&CHAR(10)&INOP_SYSTEMS!F20&CHAR(10)&INOP_SYSTEMS!F21&CHAR(10)&INOP_SYSTEMS!F22&CHAR(10)) -> 
C29: APPR TYPE | D29: Normal (STD)
C31: LDG TECH | D31: Manual - A/THR on (STD)
C33: BRK MODE | D33: Low
C35: REV | D35: All operative
C38: CG % | D38: >25%
C44: =OPTIONS!B14 -> Version 1.1 (Created by FLIGHTCREWSIM - operations@flightcrewsim.com) - 2023
C45: FOR SIMULATION USE ONLY
B101: =OPTIONS!B14 -> Version 1.1 (Created by FLIGHTCREWSIM - operations@flightcrewsim.com) - 2023
B102: FOR SIMULATION USE ONLY

Sheet TO&LDG_FIGS (hidden)
A2: DISTANCE | B2: METERS | E2: CWY | F2: SWY
A3: LDA | B3: =DATOS!L124 -> 3352 | E3: =DATOS!J12 -> 60 | F3: =DATOS!K12 -> 0
A4: LD | B4: =DATOS!L125 -> 1984.325
A5: F-LD | B5: =DATOS!L126 -> 2334.5
A6: margin | B6: =DATOS!L127 -> 1017.5
A9: LD
A10: DISTANCE | B10: METERS
A11: LD | B11: =B4 -> 1984.325
A12: LDA | B12: =B3 -> 3352
A14: F-LD
A15: DISTANCE | B15: METERS
A16: F-LD | B16: =B5 -> 2334.5
A17: LDA | B17: =B3 -> 3352
A19: MARGIN
A20: DISTANCE | B20: METERS
A21: margin | B21: =B6 -> 1017.5
A22: LDA | B22: =B3 -> 3352
B23: =IFERROR("margin "&ROUND(B21,0)&" m","") -> margin 1018 m

Sheet IN-FLIGHT
D4: WORK IN PROGRESS
B6: =OPTIONS!B14 -> Version 1.1 (Created by FLIGHTCREWSIM - operations@flightcrewsim.com) - 2023
B7: FOR SIMULATION USE ONLY

Sheet LOADSHEET
D4: WORK IN PROGRESS
B6: =OPTIONS!B14 -> Version 1.1 (Created by FLIGHTCREWSIM - operations@flightcrewsim.com) - 2023
B7: FOR SIMULATION USE ONLY

Sheet OPTIONS
AA1: ="TAKEOFF - A320/"&C7 -> TAKEOFF - A320/EC-H10 | AC1: A320-214
AA2: ="LANDING - A320/"&C7 -> LANDING - A320/EC-H10 | AC2: NEO
AA3: ="IN-FLIGHT - A320/"&C7 -> IN-FLIGHT - A320/EC-H10
B4: OPTIONS | G4: NOTE FOR FRENCH USERS: If you have any troubles to open the file in iPad, switch the Excel language to English (Ipad settings / Excel / preferred language / English (or Spanish)) | AA4: ="LOADSHEET - A320/"&C7 -> LOADSHEET - A320/EC-H10
B6: TYPE: | C6: A320-214 | D6: (NEO WIP)
B7: ACFT REG: | C7: EC-H10 | G7: ORDER YOUR FULL AND CURRENT VERSION (V1.2) HERE
B8: MTOW Default: | C8: 74300 | D8: Kgs
B9: EO ACCEL Default: | C9: 1500 | D9: ft
B10: TFLEX MAX: | C10: 68
B12: DATABASE: | C12: AIRAC 2213
B14: Version 1.1 (Created by FLIGHTCREWSIM - operations@flightcrewsim.com) - 2023
B15: (Based on A320 FCOM (PER-TOF) and QRH (FPE))
B16: FOR SIMULATION USE ONLY
B23: Change Log:
B25: V1.1 (29/12/2022)
B26: - LANDING Calculations
B27: - Inserted ECAM ALERTS (LDG)
B29: T/O - EOACC corrections por Temp y QNH
B30: LDG - GA gradient
B31: T/O & LDG - mangas de viento
B32: max t/o & ldg cross wind
B33: ocultar ice accretion si no hay?
B34: corregir wind correction

Sheet runways_selected (hidden)
A2: arpt | B2: =TAKEOFF!D6 -> LEBL
A3: rwy | B3: =VLOOKUP(TAKEOFF!D8,U11:V28,2,FALSE) -> 24L | C3: =IFERROR(B3,"Select Runway") -> 24L | D3: =B2&B3 -> LEBL24L
A4: rwy corr | B4: =(IF(AND(LEN(B3)=2,LEFT(B3,1)="0"),ROUND(RIGHT(B3,1),0),B3)) -> 24L
A5: rwy/tora | B5: =VLOOKUP(B3,E11:H28,4,0) -> 24L /2660m
A6: INTX | B6: =IF(TAKEOFF!D10="FULL LENGTH","ALL",TAKEOFF!D10) -> ALL | D6: =IF(B6="ALL","FULL",B6) -> FULL
A7: SHOW IN | B7: =IF(B6="ALL","FULL LENGTH",B6) -> FULL LENGTH | M7: =IFERROR(ROUND(M9,0)&" m","") -> 2660 m
I8: RWY TRK | J8: RWY IDENT | K8: TORA | M8: TORA
C9: airport | E9: =B2 -> LEBL | H9: 3.2808399 | I9: =INDEX(H11:J28,MATCH(B5,H11:H28,0),2) -> 246 | J9: =INDEX(H11:J28,MATCH(B5,H11:H28,0),3) -> 24L | K9: =INDEX(H11:K28,MATCH(B5,H11:H28,0),4) -> 8727 | L9: =IF(B6="ALL",ROUND(K9/3.2808399,0),INTERSECTIONS!I2) -> 2660 | M9: =L9 -> 2660 | N9: m | O9: =IFERROR(M9,"X") -> 2660
D10: is selected airport? | E10: runway | F10: length | G10: Direction | I10: dir | J10: ident | K10: TORA | Q10: Displace treshold opposite | U10: RWY | V10: rwy equ
B11: 0 | C11: Rw1 | D11: =IF(INDEX(III!$A:$T,MATCH($E$9,III!$A:$A,0)+B11,1)=$E$9,1,0) -> 1 | E11: =IF(D11=1,(INDEX(III!$A:$T,MATCH(E9,III!$A:$A,0)+B11,7)),"") -> 2 | F11: =IF(D11=1,(INDEX(III!$A:$T,MATCH($E$9,III!$A:$A,0)+B11,2)),"") -> 8294 | G11: =IF(D11=1,(IF(INDEX(III!$A:$T,MATCH($E$9,III!$A:$A,0)+B11,11)="",N11,(INDEX(III!$A:$T,MATCH($E$9,III!$A:$A,0)+B11,11)))),"") -> 19 | H11: =IF(D11=1,E11&" /"&ROUND(F11/$H$9,0)&$N$9,"") -> 2 /2528m | I11: =IF(D11=1,ROUND(G11,0),"") -> 19 | J11: =E11 -> 2 | K11: =F11 -> 8294 | L11: =IF(OR(RIGHT(E11,1)="L",RIGHT(E11,1)="R",RIGHT(E11,1)="C")=TRUE,1,0) -> 0 | M11: =IF(L11=0,E11,LEFT(E11,LEN(E11)-1)) -> 2 | N11: =M11*10 -> 20 | O11: =IF(L11=1,"~","") ->  | P11: =IF((RIGHT(H11,1))="m",E11&" /"&F11&"ft",E11&" /"&ROUND(F11*0.3048,0)&"m") -> 2 /8294ft | Q11: 0 | U11: =IF(E11<10,"0"&E11,E11) -> 02 | V11: =E11 -> 2
B12: 0 | C12: Rw2 | D12: =IF(INDEX(III!$A:$T,MATCH($E$9,III!$A:$A,0)+B12,1)=$E$9,1,0) -> 1 | E12: =IF(D12=1,(INDEX(III!$A:$T,MATCH($E$9,III!$A:$A,0)+B12,13)),"") -> 20 | F12: =F11 -> 8294 | G12: =IF(D12=1,(IF(INDEX(III!$A:$T,MATCH($E$9,III!$A:$A,0)+B12,11)="",N12,(INDEX(III!$A:$T,MATCH($E$9,III!$A:$A,0)+B12,17)))),"") -> 199 | H12: =IF(D12=1,E12&" /"&ROUND(F12/$H$9,0)&$N$9,"") -> 20 /2528m | I12: =IF(D12=1,ROUND(G12,0),"") -> 199 | J12: =E12 -> 20 | K12: 8294 | L12: =IF(OR(RIGHT(E12,1)="L",RIGHT(E12,1)="R",RIGHT(E12,1)="C")=TRUE,1,0) -> 0 | M12: =IF(L12=0,E12,LEFT(E12,LEN(E12)-1)) -> 20 | N12: =M12*10 -> 200 | O12: =IF(L12=1,"~","") ->  | P12: =IF((RIGHT(H12,1))="m",E12&" /"&F12&"ft",E12&" /"&ROUND(F12*0.3048,0)&"m") -> 20 /8294ft | Q12: 0 | U12: =IF(E12<10,"0"&E12,E12) -> 20 | V12: =E12 -> 20
B13: 1 | C13: Rw3 | D13: =IF(INDEX(III!$A:$T,MATCH($E$9,III!$A:$A,0)+B13,1)=$E$9,1,0) -> 1 | E13: =IF(D13=1,(INDEX(III!$A:$T,MATCH($E$9,III!$A:$A,0)+B13,7)),"") -> 06L | F13: =IF(D13=1,(INDEX(III!$A:$T,MATCH($E$9,III!$A:$A,0)+B13,2)),"") -> 10997 | G13: =IF(D13=1,(IF(INDEX(III!$A:$T,MATCH($E$9,III!$A:$A,0)+B13,11)="",N13,(INDEX(III!$A:$T,MATCH($E$9,III!$A:$A,0)+B13,11)))),"") -> 66 | H13: 06L /3352m | I13: 66 | J13: 06L | K13: 10997 | L13: 1 | M13: 06 | N13: =M13*10 -> 60 | O13: ~ | P13: 06L /10997ft | Q13: 0 | U13: 06L | V13: 06L
B14: 1 | C14: Rw4 | D14: =IF(INDEX(III!$A:$T,MATCH($E$9,III!$A:$A,0)+B14,1)=$E$9,1,0) -> 1 | E14: =IF(D14=1,(INDEX(III!$A:$T,MATCH($E$9,III!$A:$A,0)+B14,13)),"") -> 24R | F14: =F13 -> 10997 | G14: =IF(D14=1,(IF(INDEX(III!$A:$T,MATCH($E$9,III!$A:$A,0)+B14,11)="",N14,(INDEX(III!$A:$T,MATCH($E$9,III!$A:$A,0)+B14,17)))),"") -> 246 | H14: 24R /3352m | I14: 246 | J14: 24R | K14: 10997 | L14: 1 | M14: 24 | N14: 240 | O14: ~ | P14: 24R /10997ft | Q14: 0 | U14: 24R | V14: 24R
B15: 2 | C15: Rw5 | D15: =IF(INDEX(III!$A:$T,MATCH($E$9,III!$A:$A,0)+B15,1)=$E$9,1,0) -> 1 | E15: =IF(D15=1,(INDEX(III!$A:$T,MATCH($E$9,III!$A:$A,0)+B15,7)),"") -> 06R | F15: =IF(D15=1,(INDEX(III!$A:$T,MATCH($E$9,III!$A:$A,0)+B15,2)),"") -> 8727 | G15: =IF(D15=1,(IF(INDEX(III!$A:$T,MATCH($E$9,III!$A:$A,0)+B15,11)="",N15,(INDEX(III!$A:$T,MATCH($E$9,III!$A:$A,0)+B15,11)))),"") -> 66 | H15: 06R /2660m | I15: 66 | J15: 06R | K15: 8727 | L15: 1 | M15: 06 | N15: 60 | O15: ~ | P15: 06R /8727ft | Q15: 0 | U15: 06R | V15: 06R
B16: 2 | C16: Rw6 | D16: =IF(INDEX(III!$A:$T,MATCH($E$9,III!$A:$A,0)+B16,1)=$E$9,1,0) -> 1 | E16: =IF(D16=1,(INDEX(III!$A:$T,MATCH($E$9,III!$A:$A,0)+B16,13)),"") -> 24L | F16: =F15 -> 8727 | G16: =IF(D16=1,(IF(INDEX(III!$A:$T,MATCH($E$9,III!$A:$A,0)+B16,11)="",N16,(INDEX(III!$A:$T,MATCH($E$9,III!$A:$A,0)+B16,17)))),"") -> 246 | H16: 24L /2660m | I16: 246 | J16: 24L | K16: 8727 | L16: 1 | M16: 24 | N16: 240 | O16: ~ | P16: 24L /8727ft | Q16: 0 | U16: 24L | V16: 24L
B17: 3 | C17: Rw7 | D17: =IF(INDEX(III!$A:$T,MATCH($E$9,III!$A:$A,0)+B17,1)=$E$9,1,0) -> 0 | E17: =IF(D17=1,(INDEX(III!$A:$T,MATCH($E$9,III!$A:$A,0)+B17,7)),"") ->  | F17: =IF(D17=1,(INDEX(III!$A:$T,MATCH($E$9,III!$A:$A,0)+B17,2)),"") ->  | G17: =IF(D17=1,(IF(INDEX(III!$A:$T,MATCH($E$9,III!$A:$A,0)+B17,11)="",N17,(INDEX(III!$A:$T,MATCH($E$9,III!$A:$A,0)+B17,11)))),"") ->  | L17: 0 | Q17: 804
B18: 3 | C18: Rw8 | D18: =IF(INDEX(III!$A:$T,MATCH($E$9,III!$A:$A,0)+B18,1)=$E$9,1,0) -> 0 | E18: =IF(D18=1,(INDEX(III!$A:$T,MATCH($E$9,III!$A:$A,0)+B18,13)),"") ->  | F18: =F17 ->  | G18: =IF(D18=1,(IF(INDEX(III!$A:$T,MATCH($E$9,III!$A:$A,0)+B18,11)="",N18,(INDEX(III!$A:$T,MATCH($E$9,III!$A:$A,0)+B18,17)))),"") ->  | L18: 0 | Q18: 687
B19: 4 | C19: Rw9 | D19: =IF(INDEX(III!$A:$T,MATCH($E$9,III!$A:$A,0)+B19,1)=$E$9,1,0) -> 0 | E19: =IF(D19=1,(INDEX(III!$A:$T,MATCH($E$9,III!$A:$A,0)+B19,7)),"") ->  | F19: =IF(D19=1,(INDEX(III!$A:$T,MATCH($E$9,III!$A:$A,0)+B19,2)),"") ->  | G19: =IF(D19=1,(IF(INDEX(III!$A:$T,MATCH($E$9,III!$A:$A,0)+B19,11)="",N19,(INDEX(III!$A:$T,MATCH($E$9,III!$A:$A,0)+B19,11)))),"") ->  | L19: 0
B20: 4 | C20: Rw10 | D20: =IF(INDEX(III!$A:$T,MATCH($E$9,III!$A:$A,0)+B20,1)=$E$9,1,0) -> 0 | E20: =IF(D20=1,(INDEX(III!$A:$T,MATCH($E$9,III!$A:$A,0)+B20,13)),"") ->  | F20: =F19 ->  | G20: =IF(D20=1,(IF(INDEX(III!$A:$T,MATCH($E$9,III!$A:$A,0)+B20,11)="",N20,(INDEX(III!$A:$T,MATCH($E$9,III!$A:$A,0)+B20,17)))),"") ->  | L20: 0
B21: 5 | C21: Rw11 | D21: =IF(INDEX(III!$A:$T,MATCH($E$9,III!$A:$A,0)+B21,1)=$E$9,1,0) -> 0 | E21: =IF(D21=1,(INDEX(III!$A:$T,MATCH($E$9,III!$A:$A,0)+B21,7)),"") ->  | F21: =IF(D21=1,(INDEX(III!$A:$T,MATCH($E$9,III!$A:$A,0)+B21,2)),"") ->  | G21: =IF(D21=1,(IF(INDEX(III!$A:$T,MATCH($E$9,III!$A:$A,0)+B21,11)="",N21,(INDEX(III!$A:$T,MATCH($E$9,III!$A:$A,0)+B21,11)))),"") ->  | L21: 0
B22: 5 | C22: Rw12 | D22: =IF(INDEX(III!$A:$T,MATCH($E$9,III!$A:$A,0)+B22,1)=$E$9,1,0) -> 0 | E22: =IF(D22=1,(INDEX(III!$A:$T,MATCH($E$9,III!$A:$A,0)+B22,13)),"") ->  | F22: =F21 ->  | G22: =IF(D22=1,(IF(INDEX(III!$A:$T,MATCH($E$9,III!$A:$A,0)+B22,11)="",N22,(INDEX(III!$A:$T,MATCH($E$9,III!$A:$A,0)+B22,17)))),"") ->  | L22: 0
B23: 6 | C23: Rw13 | D23: =IF(INDEX(III!$A:$T,MATCH($E$9,III!$A:$A,0)+B23,1)=$E$9,1,0) -> 0 | E23: =IF(D23=1,(INDEX(III!$A:$T,MATCH($E$9,III!$A:$A,0)+B23,7)),"") ->  | F23: =IF(D23=1,(INDEX(III!$A:$T,MATCH($E$9,III!$A:$A,0)+B23,2)),"") ->  | G23: =IF(D23=1,(IF(INDEX(III!$A:$T,MATCH($E$9,III!$A:$A,0)+B23,11)="",N23,(INDEX(III!$A:$T,MATCH($E$9,III!$A:$A,0)+B23,11)))),"") ->  | L23: 0
B24: 6 | C24: Rw14 | D24: =IF(INDEX(III!$A:$T,MATCH($E$9,III!$A:$A,0)+B24,1)=$E$9,1,0) -> 0 | E24: =IF(D24=1,(INDEX(III!$A:$T,MATCH($E$9,III!$A:$A,0)+B24,13)),"") ->  | F24: =F23 ->  | G24: =IF(D24=1,(IF(INDEX(III!$A:$T,MATCH($E$9,III!$A:$A,0)+B24,11)="",N24,(INDEX(III!$A:$T,MATCH($E$9,III!$A:$A,0)+B24,17)))),"") ->  | L24: 0
B25: 7 | C25: Rw15 | D25: =IF(INDEX(III!$A:$T,MATCH($E$9,III!$A:$A,0)+B25,1)=$E$9,1,0) -> 0 | E25: =IF(D25=1,(INDEX(III!$A:$T,MATCH($E$9,III!$A:$A,0)+B25,7)),"") ->  | F25: =IF(D25=1,(INDEX(III!$A:$T,MATCH($E$9,III!$A:$A,0)+B25,2)),"") ->  | G25: =IF(D25=1,(IF(INDEX(III!$A:$T,MATCH($E$9,III!$A:$A,0)+B25,11)="",N25,(INDEX(III!$A:$T,MATCH($E$9,III!$A:$A,0)+B25,11)))),"") ->  | L25: 0
B26: 7 | C26: Rw16 | D26: =IF(INDEX(III!$A:$T,MATCH($E$9,III!$A:$A,0)+B26,1)=$E$9,1,0) -> 0 | E26: =IF(D26=1,(INDEX(III!$A:$T,MATCH($E$9,III!$A:$A,0)+B26,13)),"") ->  | F26: =F25 ->  | G26: =IF(D26=1,(IF(INDEX(III!$A:$T,MATCH($E$9,III!$A:$A,0)+B26,11)="",N26,(INDEX(III!$A:$T,MATCH($E$9,III!$A:$A,0)+B26,17)))),"") ->  | L26: 0
B27: 8 | C27: Rw17 | D27: =IF(INDEX(III!$A:$T,MATCH($E$9,III!$A:$A,0)+B27,1)=$E$9,1,0) -> 0 | E27: =IF(D27=1,(INDEX(III!$A:$T,MATCH($E$9,III!$A:$A,0)+B27,7)),"") ->  | F27: =IF(D27=1,(INDEX(III!$A:$T,MATCH($E$9,III!$A:$A,0)+B27,2)),"") ->  | G27: =IF(D27=1,(IF(INDEX(III!$A:$T,MATCH($E$9,III!$A:$A,0)+B27,11)="",N27,(INDEX(III!$A:$T,MATCH($E$9,III!$A:$A,0)+B27,11)))),"") ->  | L27: 0
B28: 8 | C28: Rw18 | D28: =IF(INDEX(III!$A:$T,MATCH($E$9,III!$A:$A,0)+B28,1)=$E$9,1,0) -> 0 | E28: =IF(D28=1,(INDEX(III!$A:$T,MATCH($E$9,III!$A:$A,0)+B28,13)),"") ->  | F28: =F27 ->  | G28: =IF(D28=1,(IF(INDEX(III!$A:$T,MATCH($E$9,III!$A:$A,0)+B28,11)="",N28,(INDEX(III!$A:$T,MATCH($E$9,III!$A:$A,0)+B28,17)))),"") ->  | L28: 0

Sheet III (hidden)
A1: https://ourairports.com/data/ | D1: UPDATED: Dec 13, 2022 | E1: *COMPARAR ACTUAL CON NUEVO PARA VER CAMBIOS (MODIFICAR INTERSECTIONS / EOSID / SWY-CWY / MATRIX OBSTACLE) | P1: *SUSTITUIR "." POR "," EN HDG PISTAS
A2: airport_ident | B2: length_ft | C2: width_ft | D2: surface | E2: lighted | F2: closed | G2: PISTA 1 | H2: le_latitude_deg | I2: le_longitude_deg | J2: le_elevation_ft | K2: le_heading_degT | L2: le_displaced_threshold_ft | M2: he_ident | N2: he_latitude_deg | O2: he_longitude_deg | P2: he_elevation_ft | Q2: he_heading_degT | R2: he_displaced_threshold_ft | S2: id | T2: airport_ref
A3: 00A | B3: 80 | C3: 80 | D3: ASPH-G | E3: 1 | F3: 0 | G3: H1
A4: 00AK | B4: 2500 | C4: 70 | D4: GRVL | E4: 0 | F4: 0 | G4: N | M4: S
A5: 00AL | B5: 2300 | C5: 200 | D5: TURF | E5: 0 | F5: 0 | G5: 1 | M5: 19
A6: 00AR | B6: 40 | C6: 40 | D6: GRASS | E6: 0 | F6: 0 | G6: H1 | M6: H1
A7: 00AS | B7: 1450 | C7: 60 | D7: Turf | E7: 0 | F7: 0 | G7: 1 | M7: 19
A8: 00AZ | B8: 1700 | C8: 60 | D8: GRAVEL | E8: 0 | F8: 0 | G8: 15 | M8: 33
A9: 00CA | B9: 6000 | C9: 1900-03-20 | D9: ASPH | E9: 00:00:00 | F9: 00:00:00 | G9: 4 | H9: 3.534930038e+16 | I9: -1.168929977e+16 | K9: 50 | M9: 22 | N9: 3536029815673820 | O9: -1.168779984e+16
A10: 00CO | B10: 3900 | C10: 1900-01-20 | D10: TURF-G | E10: 00:00:00 | F10: 00:00:00 | G10: 16 | M10: 34
A11: 00FA | B11: 3200 | C11: 1900-04-09 | D11: TURF | E11: 00:00:00 | F11: 00:00:00 | G11: 8 | M11: 26 | R11: 800
A12: 00FD | B12: 74 | C12: 1900-03-14 | D12: TURF | E12: 00:00:00 | F12: 00:00:00 | G12: H1
A13: 00FL | B13: 4090 | C13: 1900-04-09 | D13: TURF | E13: 00:00:00 | F13: 00:00:00 | G13: 12 | M13: 30
A14: 00GA | B14: 2600 | C14: 1900-03-20 | D14: TURF | E14: 00:00:00 | F14: 00:00:00 | G14: 9 | M14: 27
A15: 00GE | B15: 125 | C15: 1900-04-04 | D15: ASPH | E15: 1900-01-01 | F15: 00:00:00 | G15: H1
A16: 00HI | B16: 1155 | C16: 1900-02-14 | D16: ASPH-G | E16: 00:00:00 | F16: 00:00:00 | G16: H1
A17: 00ID | B17: 3300 | C17: 1900-02-09 | D17: TURF | E17: 00:00:00 | F17: 00:00:00 | G17: 8 | M17: 26
A18: 00ID | B18: 2700 | C18: 1900-02-09 | D18: TURF | E18: 00:00:00 | F18: 00:00:00 | G18: 11 | M18: 29
A19: 00IL | B19: 2500 | C19: 1900-03-15 | D19: TURF-F | E19: 00:00:00 | F19: 00:00:00 | G19: 18 | L19: 1900-10-16 | M19: 36 | R19: 350
A20: 00IN | B20: 40 | C20: 1900-02-09 | D20: MATS | E20: 1900-01-01 | F20: 00:00:00 | G20: H1
A21: 00IS | B21: 1600 | C21: 1900-03-10 | D21: TURF | E21: 00:00:00 | F21: 00:00:00 | G21: 9 | M21: 24
A22: 00KS | B22: 2600 | C22: 1900-03-25 | D22: TURF | E22: 00:00:00 | F22: 00:00:00 | G22: 17 | M22: 35
A23: 00KY | B23: 2100 | C23: 1900-04-09 | D23: TURF | E23: 00:00:00 | F23: 00:00:00 | G23: 1 | M23: 19
A24: 00LA | B24: 40 | C24: 1900-02-09 | D24: TURF | E24: 00:00:00 | F24: 00:00:00 | G24: H1
A25: 00LL | B25: 25 | C25: 1900-01-25 | D25: CONC | E25: 00:00:00 | F25: 00:00:00 | G25: H1
A26: 00LS | B26: 2600 | C26: 1900-04-09 | D26: TURF | E26: 00:00:00 | F26: 00:00:00 | G26: 18 | M26: 36
A27: 00MD | B27: 1700 | C27: 1900-03-15 | D27: TURF | E27: 00:00:00 | F27: 00:00:00 | G27: 14 | M27: 32
A28: 00MI | B28: 100 | C28: 1900-04-09 | D28: TURF | E28: 00:00:00 | F28: 00:00:00 | G28: H1
A29: 00MN | B29: 2949 | C29: 1900-07-18 | D29: TURF-G | E29: 1900-01-01 | F29: 00:00:00 | G29: 6 | M29: 24
A30: 00MO | B30: 2400 | C30: 1900-01-25 | D30: TURF | E30: 00:00:00 | F30: 00:00:00 | G30: 8 | M30: 26
A31: 00N | B31: 1900 | C31: 1900-05-29 | D31: TURF-G | E31: 1900-01-01 | F31: 00:00:00 | G31: 18 | M31: 36
A32: 00NC | B32: 2650 | C32: 1900-02-05 | D32: ASPH-G | E32: 00:00:00 | F32: 00:00:00 | G32: 5 | M32: 23
A33: 00NJ | B33: 50 | C33: 1900-02-19 | D33: ASPH | E33: 00:00:00 | F33: 00:00:00 | G33: H1
A34: 00NY | B34: 2350 | C34: 1900-03-20 | D34: TURF | E34: 1900-01-01 | F34: 00:00:00 | G34: 3 | M34: 21
A35: 00OH | B35: 2695 | C35: 1900-03-30 | D35: TURF-G | E35: 00:00:00 | F35: 00:00:00 | G35: 8 | M35: 26
A36: 00OI | B36: 42 | C36: 1900-02-11 | D36: CONC | E36: 00:00:00 | F36: 00:00:00 | G36: H1
A37: 00OK | B37: 2200 | C37: 60 | D37: Turf/Dirt | E37: 00:00:00 | F37: 00:00:00 | G37: 17 | M37: 35
A38: 00PA | B38: 80 | C38: 1900-03-20 | D38: TURF-G | E38: 00:00:00 | F38: 00:00:00 | G38: H1
A39: 00PN | B39: 500 | C39: 1900-03-15 | D39: TURF | E39: 00:00:00 | F39: 00:00:00 | G39: 12 | M39: 30
A40: 00PS | B40: 3100 | C40: 1900-04-09 | D40: TURF-G | E40: 00:00:00 | F40: 00:00:00 | G40: 8 | L40: 1903-08-27 | M40: 26 | R40: 1072
A41: 00S | B41: 2600 | C41: 1900-03-30 | D41: TURF-P | E41: 00:00:00 | F41: 00:00:00 | G41: 6 | M41: 24
A42: 00SC | B42: 2900 | C42: 1900-04-09 | D42: TURF | E42: 00:00:00 | F42: 00:00:00 | G42: 8 | M42: 26
A43: 00SD | B43: 2400 | C43: 1900-02-19 | D43: Turf | E43: 00:00:00 | F43: 00:00:00 | G43: 18 | M43: 36
A44: 00TA | B44: 85 | C44: 1900-03-25 | D44: CONC-G | E44: 00:00:00 | F44: 00:00:00 | G44: H1
A45: 00TE | B45: 48 | C45: 1900-02-17 | D45: TURF | E45: 00:00:00 | F45: 00:00:00 | G45: H1
A46: 00TN | B46: 1800 | C46: 1900-05-29 | D46: TURF | E46: 00:00:00 | F46: 00:00:00 | G46: 9 | M46: 27
A47: 00TS | B47: 1200 | C47: 1900-02-14 | D47: TURF | E47: 00:00:00 | F47: 00:00:00 | G47: 1 | M47: 19
A48: 00TX | B48: 50 | C48: 1900-02-19 | D48: CONC | E48: 00:00:00 | F48: 00:00:00 | G48: H1
A49: 00VA | B49: 1300 | C49: 1900-04-09 | D49: TURF | E49: 00:00:00 | F49: 00:00:00 | G49: 1 | M49: 19 | Q49: 270
A50: 00VI | B50: 1500 | C50: 1900-02-19 | D50: TURF | E50: 00:00:00 | F50: 00:00:00 | G50: 9 | M50: 27
A51: 00W | B51: 3400 | C51: 1900-02-19 | D51: GRAVEL-F | E51: 00:00:00 | F51: 00:00:00 | G51: 14 | M51: 32
A52: 00WA | B52: 1105 | C52: 1900-03-10 | D52: TURF-G | E52: 00:00:00 | F52: 00:00:00 | G52: 8 | M52: 26
A53: 00WI | B53: 1000 | C53: 60 | D53: TURF | E53: 00:00:00 | F53: 00:00:00 | G53: 9 | H53: 4430419921875 | I53: -89052001953125 | K53: 87.2 | M53: 27 | N53: 4430440139770500 | O53: -8904820251464840 | R53: 200
A54: 00WN | B54: 1440 | C54: 1900-02-19 | D54: TURF-G | E54: 00:00:00 | F54: 00:00:00 | G54: 5 | M54: 23
A55: 00WV | B55: 1800 | C55: 1900-04-09 | D55: TURF | E55: 00:00:00 | F55: 00:00:00 | G55: 5 | M55: 23
A56: 00XS | B56: 1475 | C56: 1900-03-15 | D56: TURF-F | E56: 00:00:00 | F56: 00:00:00 | G56: 17 | M56: 35
A57: 01A | B57: 1175 | C57: 1900-02-09 | D57: GRAVEL-F | E57: 00:00:00 | F57: 00:00:00 | G57: 8 | M57: 26
A58: 01AK | B58: 40 | C58: 1900-02-09 | D58: CONC | E58: 1900-01-01 | F58: 00:00:00 | G58: H1
A59: 01AL | B59: 2500 | C59: 1900-06-08 | D59: TURF | E59: 1900-01-01 | F59: 00:00:00 | G59: N | M59: S
A60: 01AR | B60: 55 | C60: 1900-02-24 | D60: CONC | E60: 1900-01-01 | F60: 00:00:00 | G60: H1
A61: 01AZ | B61: 210 | C61: 1900-05-29 | D61: TURF | E61: 00:00:00 | F61: 00:00:00 | G61: H1
A62: 01C | B62: 2517 | C62: 1900-04-29 | D62: TURF-G | E62: 1900-01-01 | F62: 00:00:00 | G62: 9 | H62: 4334170150756830 | I62: -8577989959716790 | J62: 815 | L62: 1901-01-21 | M62: 27 | N62: 4334170150756830 | O62: -8577030181884760 | P62: 1902-03-25 | R62: 580
A63: 01CA | B63: 20 | C63: 1900-01-20 | D63: ASPH | E63: 00:00:00 | F63: 00:00:00 | G63: H1
A64: 01CL | B64: 3100 | C64: 1900-02-19 | D64: ASPH-TRTD | E64: 1900-01-01 | F64: 00:00:00 | G64: 9 | L64: 1901-05-14 | M64: 27
A65: 01CN | B65: 60 | C65: 60 | D65: ASPH | E65: 00:00:00 | F65: 00:00:00 | G65: H1
A66: 01CO | B66: 125 | C66: 1900-02-09 | D66: ASPH | E66: 00:00:00 | F66: 00:00:00 | G66: H1
A67: 01CT | B67: 70 | C67: 1900-03-10 | D67: TURF-GRVL | E67: 00:00:00 | F67: 00:00:00 | G67: H1
A68: 01FA | B68: 2000 | C68: 1900-04-09 | D68: TURF | E68: 00:00:00 | F68: 00:00:00 | G68: 10 | M68: 28
A69: 01FA | B69: 1500 | C69: 1900-04-09 | D69: TURF | E69: 00:00:00 | F69: 00:00:00 | G69: 18 | M69: 36
A70: 01FD | B70: 110 | C70: 1900-04-19 | D70: CONC | E70: 00:00:00 | F70: 00:00:00 | G70: H1
A71: 01FL | B71: 3000 | C71: 1900-02-19 | D71: TURF | E71: 1900-01-01 | F71: 00:00:00 | G71: 18 | M71: 36 | R71: 800
A72: 01GA | B72: 65 | C72: 1900-03-05 | D72: CONC | E72: 00:00:00 | F72: 00:00:00 | G72: H1
A73: 01GE | B73: 2560 | C73: 1900-03-15 | D73: TURF | E73: 00:00:00 | F73: 00:00:00 | G73: 10 | M73: 28
A74: 01IA | B74: 2575 | C74: 1900-02-19 | D74: TURF-F | E74: 1900-01-01 | F74: 00:00:00 | G74: 17 | L74: 1900-10-01 | M74: 35
A75: 01ID | B75: 2894 | C75: 1900-04-09 | D75: TURF-F | E75: 00:00:00 | F75: 00:00:00 | G75: 14 | H75: 4.261100006e+16 | I75: -1.120350037e+16 | M75: 32 | N75: 4260369873046870 | O75: -1.120309982e+16
A76: 01IL | B76: 416 | C76: 1900-08-03 | D76: TURF | E76: 00:00:00 | F76: 00:00:00 | G76: H1
A77: 01IN | B77: 45 | C77: 1900-02-14 | D77: ASPH | E77: 00:00:00 | F77: 00:00:00 | G77: H1
A78: 01IS | B78: 1300 | C78: 1900-04-09 | D78: TURF | E78: 00:00:00 | F78: 00:00:00 | G78: 9 | M78: 27
A79: 01J | B79: 3365 | C79: 1900-05-04 | D79: TURF-P | E79: 1900-01-01 | F79: 00:00:00 | G79: 18 | H79: 3.06909008e+16 | I79: -8190640258789060 | J79: 59 | L79: 1902-03-05 | M79: 36 | N79: 3.068169975e+16 | O79: -8190499877929680 | P79: 1900-02-28 | R79: 370
A80: 01K | B80: 2460 | C80: 1900-04-19 | D80: TURF-G | E80: 1900-01-01 | F80: 00:00:00 | G80: 17 | J80: 1157 | M80: 35
A81: 01KS | B81: 2400 | C81: 1900-04-09 | D81: TURF | E81: 00:00:00 | F81: 00:00:00 | G81: 18 | M81: 36
A82: 01KY | B82: 40 | C82: 1900-02-09 | D82: CONC | E82: 00:00:00 | F82: 00:00:00 | G82: H1
A83: 01LA | B83: 2000 | C83: 60 | D83: TURF | E83: 00:00:00 | F83: 00:00:00 | G83: 9 | M83: 27
A84: 01LL | B84: 1600 | C84: 1900-03-10 | D84: TURF | E84: 00:00:00 | F84: 00:00:00 | G84: 2 | M84: 20
A85: 01LS | B85: 1800 | C85: 1900-05-29 | D85: TURF | E85: 00:00:00 | F85: 00:00:00 | G85: 9 | H85: 3.072270012e+16 | I85: -910802001953125 | K85: 92.2 | M85: 27 | N85: 3072249984741210 | O85: -9107450103759760
A86: 01MA | B86: 32 | C86: 1900-02-01 | D86: TURF | E86: 00:00:00 | F86: 00:00:00 | G86: H1
A87: 01MD | B87: 3500 | C87: 1900-04-09 | D87: WATER | E87: 00:00:00 | F87: 00:00:00 | G87: 16 | M87: 34
A88: 01ME | B88: 5000 | C88: 1901-05-14 | D88: WATER | E88: 00:00:00 | F88: 00:00:00 | G88: 2 | M88: 20
A89: 01ME | B89: 5000 | C89: 1901-05-14 | D89: WATER | E89: 00:00:00 | F89: 00:00:00 | G89: 15 | M89: 33
A90: 01MI | B90: 50 | C90: 1900-02-19 | D90: CONC | E90: 00:00:00 | F90: 00:00:00 | G90: H1
A91: 01MN | B91: 10000 | C91: 1901-08-22 | D91: WATER | E91: 00:00:00 | F91: 00:00:00 | G91: E | M91: W
A92: 01MN | B92: 10000 | C92: 1901-08-22 | D92: WATER | E92: 00:00:00 | F92: 00:00:00 | G92: NW | M92: SE
A93: 01MO | B93: 37 | C93: 1900-02-06 | D93: CONC | E93: 00:00:00 | F93: 00:00:00 | G93: H1
A94: 01MT | B94: 5000 | C94: 1900-03-10 | D94: ASPH-G | E94: 00:00:00 | F94: 00:00:00 | G94: 13 | H94: 4879499816894530 | I94: -1.148860016e+16 | K94: 148 | M94: 31 | N94: 4878329849243160 | O94: -114875 | R94: 150
A95: 01MU | B95: 54 | C95: 1900-03-15 | D95: TURF | E95: 1900-01-01 | F95: 00:00:00 | G95: H1
A96: 01NC | B96: 3200 | C96: 1900-03-15 | D96: ASPH-TURF | E96: 00:00:00 | F96: 00:00:00 | G96: 3 | M96: 21
A97: 01NC | B97: 2000 | C97: 1900-02-19 | D97: TURF | E97: 00:00:00 | F97: 00:00:00 | G97: 18 | M97: 36
A98: 01NE | B98: 2750 | C98: 1900-02-19 | D98: TURF | E98: 00:00:00 | F98: 00:00:00 | G98: 10 | M98: 28
A99: 01NH | B99: 600 | C99: 1900-03-20 | D99: ASPH | E99: 00:00:00 | F99: 00:00:00 | G99: 17 | M99: 35
A100: 01NJ | B100: 125 | C100: 1900-03-10 | D100: DIRT | E100: 00:00:00 | F100: 00:00:00 | G100: H1
A101: 01NM | B101: 2700 | C101: 1900-03-10 | D101: DIRT | E101: 00:00:00 | F101: 00:00:00 | G101: 2 | M101: 20
A102: 01NM | B102: 2000 | C102: 60 | D102: GRVL | E102: 00:00:00 | F102: 00:00:00 | G102: 9 | M102: 27
A103: 01NV | B103: 2000 | C103: 1900-03-15 | D103: ASPH | E103: 00:00:00 | F103: 00:00:00 | G103: 18 | M103: 36
A104: 01NY | B104: 100 | C104: 1900-04-09 | D104: CON | E104: 1900-01-01 | F104: 00:00:00 | G104: H1
A105: 01OH | B105: 100 | C105: 1900-01-30 | D105: CONC-G | E105: 00:00:00 | F105: 00:00:00 | G105: H1
A106: 01OI | B106: 30 | C106: 1900-01-25 | D106: ASPH | E106: 1900-01-01 | F106: 00:00:00 | G106: H1
A107: 01OK | B107: 2640 | C107: 1900-03-15 | D107: Turf | E107: 00:00:00 | F107: 00:00:00 | G107: 17 | H107: 3.436072159e+16 | I107: -967364730834961 | J107: 1058 | M107: 35 | N107: 343930549621582 | O107: -9668888854980460 | P107: 1902-11-08
A108: 01OL | B108: 1600 | C108: 60 | D108: GRVL-DIRT | E108: 00:00:00 | F108: 00:00:00 | G108: 5 | K108: 50 | M108: 23 | Q108: 230
A109: 01OR | B109: 4800 | C109: 60 | D109: TURF | E109: 00:00:00 | F109: 00:00:00 | G109: 7 | M109: 25
A110: 01PA | B110: 60 | C110: 1900-04-09 | D110: TURF | E110: 00:00:00 | F110: 00:00:00 | G110: H1
A111: 01PN | B111: 1700 | C111: 1900-04-29 | D111: TURF-G | E111: 00:00:00 | F111: 00:00:00 | G111: 6 | M111: 24
A112: 01PS | B112: 1200 | C112: 1900-04-27 | D112: TURF-F | E112: 1900-01-01 | F112: 00:00:00 | G112: 3 | M112: 21
A113: 01SC | B113: 2580 | C113: 1900-01-30 | D113: CONC | E113: 00:00:00 | F113: 00:00:00 | G113: 18 | M113: 36
A114: 01TA | B114: 30 | C114: 1900-02-24 | D114: TURF-F | E114: 00:00:00 | F114: 00:00:00 | G114: H1
A115: 01TE | B115: 2433 | C115: 1900-04-09 | D115: TURF | E115: 00:00:00 | F115: 00:00:00 | G115: 4 | M115: 22
A116: 01TN | B116: 2700 | C116: 60 | D116: TURF | E116: 00:00:00 | F116: 00:00:00 | G116: 18 | M116: 36
A117: 01TX | B117: 500 | C117: 60 | D117: TURF | E117: 00:00:00 | F117: 00:00:00 | G117: 9 | M117: 27
A118: 01TX | B118: 700 | C118: 1900-03-15 | D118: DIRT-P | E118: 00:00:00 | F118: 00:00:00 | G118: 18 | M118: 36
A119: 01U | B119: 2700 | C119: 1900-03-20 | D119: DIRT-P | E119: 00:00:00 | F119: 00:00:00 | G119: 3 | M119: 21
A120: 01U | B120: 3400 | C120: 1900-02-09 | D120: DIRT-P | E120: 00:00:00 | F120: 00:00:00 | G120: 15 | M120: 33
A121: 01UT | B121: 3200 | C121: 60 | D121: TURF | E121: 00:00:00 | F121: 00:00:00 | G121: E | M121: W
A122: 01VA | B122: 1500 | C122: 1900-02-05 | D122: CONC | E122: 00:00:00 | F122: 00:00:00 | G122: 3 | M122: 21
A123: 01WA | B123: 36 | C123: 1900-04-29 | D123: TURF | E123: 00:00:00 | F123: 00:00:00 | G123: H1 | H123: 4400559997558590 | I123: -903905029296875 | N123: 4401179885864250 | O123: -9038919830322260
A124: 01WI | B124: 2300 | C124: 1900-02-09 | D124: ASPH | E124: 1900-01-01 | F124: 00:00:00 | G124: 1 | K124: 9.6 | M124: 19
A125: 01WN | B125: 40 | C125: 1900-01-28 | D125: CONC-G | E125: 00:00:00 | F125: 00:00:00 | G125: H1
A126: 01WT | B126: 28 | C126: 1900-03-15 | D126: DIRT-TURF-G | E126: 00:00:00 | F126: 00:00:00 | G126: H1
A127: 01WY | B127: 4360 | C127: 1900-03-05 | D127: DIRT-TURF-G | E127: 00:00:00 | F127: 00:00:00 | G127: 12 | M127: 30
A128: 01WY | B128: 2600 | C128: 1900-02-19 | D128: CONC | E128: 1900-01-01 | F128: 00:00:00 | G128: 16 | M128: 34
A129: 01XA | B129: 50 | C129: 1900-02-19 | D129: CONC | E129: 00:00:00 | F129: 00:00:00 | G129: H1 | M129: H1
A130: 01XS | B130: 50 | C130: 1900-02-14 | D130: GRVL | E130: 00:00:00 | F130: 00:00:00 | G130: H1
A131: 02AK | B131: 2200 | C131: 1900-05-29 | D131: TURF | E131: 00:00:00 | F131: 00:00:00 | G131: 15 | M131: 33
A132: 02AL | B132: 2000 | C132: 1900-02-14 | D132: ASPH-G | E132: 00:00:00 | F132: 00:00:00 | G132: 18 | L132: 1901-08-22 | M132: 36 | R132: 600
A133: 02AR | B133: 4400 | C133: 1900-03-20 | D133: TURF | E133: 00:00:00 | F133: 00:00:00 | G133: 7 | M133: 25
A134: 02AZ | B134: 4500 | C134: 1900-02-24 | D134: PSP | E134: 00:00:00 | F134: 00:00:00 | G134: 17 | M134: 35
A135: 02CA | B135: 55 | C135: 1900-04-09 | D135: CONC-TURF | E135: 00:00:00 | F135: 00:00:00 | G135: H1
A136: 02CD | B136: 2500 | C136: 60 | D136: DIRT | E136: 00:00:00 | F136: 00:00:00 | G136: 15 | M136: 33
A137: 02CL | B137: 3000 | C137: 1900-02-19 | D137: GRAVEL | E137: 00:00:00 | F137: 00:00:00 | G137: 16 | M137: 34
A138: 02CO | B138: 2670 | C138: 1900-02-19 | D138: ASPH | E138: 00:00:00 | F138: 00:00:00 | G138: 17 | M138: 35
A139: 02CT | B139: 50 | C139: 1900-05-29 | D139: TURF | E139: 00:00:00 | F139: 00:00:00 | G139: H1
A140: 02FA | B140: 2485 | C140: 1900-05-29 | D140: Turf | E140: 00:00:00 | F140: 00:00:00 | G140: 18 | H140: 3.094759941e+16 | I140: -8663600158691400 | J140: 190 | M140: 36 | N140: 3095709991455070 | O140: -8663490295410150 | P140: 1900-07-27
A141: 02FD | B141: 3443 | C141: 1900-04-09 | D141: TURF-F | E141: 00:00:00 | F141: 00:00:00 | G141: 1 | M141: 19
A142: 02FL | B142: 1800 | C142: 1900-04-09 | D142: TURF | E142: 00:00:00 | F142: 00:00:00 | G142: 12 | M142: 30
A143: 02GA | B143: 1200 | C143: 1900-04-09 | D143: TURF | E143: 00:00:00 | F143: 00:00:00 | G143: 8 | M143: 26
A144: 02GA | B144: 1500 | C144: 1900-04-09 | D144: TURF | E144: 00:00:00 | F144: 00:00:00 | G144: 13 | M144: 31
A145: 02GE | B145: 3400 | C145: 1900-04-09 | D145: CONC | E145: 00:00:00 | F145: 00:00:00 | G145: 9 | M145: 27
A146: 02HI | B146: 100 | C146: 1900-02-19 | D146: CONC | E146: 00:00:00 | F146: 00:00:00 | G146: H1
A147: 02IA | B147: 50 | C147: 1900-04-09 | D147: TURF | E147: 00:00:00 | F147: 00:00:00 | G147: H1
A148: 02ID | B148: 2000 | C148: 1900-04-09 | D148: TURF | E148: 00:00:00 | F148: 00:00:00 | G148: NE | L148: 1900-07-18 | M148: SW
A149: 02II | B149: 1100 | C149: 1900-05-29 | D149: TURF | E149: 00:00:00 | F149: 00:00:00 | G149: 10 | M149: 28
A150: 02IN | B150: 1020 | C150: 1900-02-09 | D150: MATS | E150: 00:00:00 | F150: 00:00:00 | G150: 9 | M150: 27
A151: 02IS | B151: 40 | C151: 1900-04-09 | D151: TURF | E151: 00:00:00 | F151: 00:00:00 | G151: H1
A152: 02KS | B152: 1650 | C152: 1900-05-29 | D152: TURF | E152: 00:00:00 | F152: 00:00:00 | G152: 11 | M152: 29
A153: 02KS | B153: 1950 | C153: 1900-04-09 | D153: CONC | E153: 00:00:00 | F153: 00:00:00 | G153: 18 | M153: 36
A154: 02KY | B154: 100 | C154: 1900-01-20 | D154: CONC | E154: 00:00:00 | F154: 00:00:00 | G154: H1
A155: 02LA | B155: 20 | C155: 1900-01-24 | D155: CONC | E155: 00:00:00 | F155: 00:00:00 | G155: H1
A156: 02LS | B156: 24 | C156: 1900-02-19 | D156: ASPH | E156: 00:00:00 | F156: 00:00:00 | G156: H1
A157: 02MA | B157: 50 | C157: 60 | D157: TURF | E157: 00:00:00 | F157: 00:00:00 | G157: H1
A158: 02ME | B158: 2400 | C158: 1900-04-09 | D158: TURF | E158: 00:00:00 | F158: 00:00:00 | G158: 14 | M158: 32
A159: 02MI | B159: 2000 | C159: 1900-07-10 | D159: TURF-P | E159: 00:00:00 | F159: 00:00:00 | G159: 9 | M159: 27
A160: 02MN | B160: 1897 | C160: 1900-07-10 | D160: TURF-F | E160: 00:00:00 | F160: 00:00:00 | G160: 3 | M160: 21
A161: 02MN | B161: 2500 | C161: 1900-03-22 | D161: TURF-P | E161: 00:00:00 | F161: 00:00:00 | G161: 12 | M161: 30
A162: 02MN | B162: 2553 | C162: 1900-02-19 | D162: TURF-G | E162: 00:00:00 | F162: 00:00:00 | G162: 13 | M162: 31
A163: 02MO | B163: 2200 | C163: 60 | D163: TURF-F | E163: 00:00:00 | F163: 00:00:00 | G163: 8 | M163: 26
A164: 02MS | B164: 2150 | C164: 1900-05-04 | D164: TURF | E164: 00:00:00 | F164: 00:00:00 | G164: 12 | M164: 30
A165: 02MU | B165: 1900 | C165: 1900-04-09 | D165: TURF | E165: 00:00:00 | F165: 00:00:00 | G165: N | M165: S
A166: 02NC | B166: 100 | C166: 1900-10-26 | D166: WATER | E166: 00:00:00 | F166: 00:00:00 | G166: H1
A167: 02NH | B167: 3000 | C167: 1900-01-20 | D167: TURF | E167: 00:00:00 | F167: 00:00:00 | G167: 18W | M167: 36W
A168: 02NH | B168: 20 | C168: 1900-02-19 | D168: TURF | E168: 00:00:00 | F168: 00:00:00 | G168: H1
A169: 02NV | B169: 2200 | C169: 1900-01-25 | D169: TURF | E169: 00:00:00 | F169: 00:00:00 | G169: 9 | M169: 27
A170: 02NY | B170: 25 | C170: 1900-02-19 | D170: TURF | E170: 00:00:00 | F170: 00:00:00 | G170: H1
A171: 02OH | B171: 2750 | C171: 1900-03-15 | D171: TURF | E171: 00:00:00 | F171: 00:00:00 | G171: 9 | M171: 27
A172: 02OI | B172: 1500 | C172: 1900-01-30 | D172: TURF | E172: 00:00:00 | F172: 00:00:00 | G172: E | M172: W
A173: 02OR | B173: 2000 | C173: 1900-04-09 | D173: TURF-G | E173: 1900-01-01 | F173: 00:00:00 | G173: E | M173: W
A174: 02P | B174: 100 | C174: 1900-02-19 | D174: TURF-GRVL | E174: 00:00:00 | F174: 00:00:00 | G174: H1
A175: 02PA | B175: 60 | C175: 1900-02-09 | D175: ASPH | E175: 00:00:00 | F175: 00:00:00 | G175: H1
A176: 02PN | B176: 40 | C176: 1900-02-19 | D176: TURF | E176: 00:00:00 | F176: 00:00:00 | G176: H1
A177: 02PR | B177: 2000 | C177: 1900-04-09 | D177: TURF | E177: 00:00:00 | F177: 00:00:00 | G177: 6 | M177: 24
A178: 02PS | B178: 500 | C178: 1900-05-29 | D178: TURF-G | E178: 00:00:00 | F178: 00:00:00 | G178: 1 | M178: 19
A179: 02SC | B179: 3600 | C179: 60 | D179: DIRT-G | E179: 00:00:00 | F179: 00:00:00 | G179: 4 | M179: 22
A180: 02T | B180: 4050 | C180: 1900-02-01 | D180: CONC | E180: 00:00:00 | F180: 00:00:00 | G180: 2 | M180: 20
A181: 02TA | B181: 32 | C181: 1900-02-09 | D181: CONC | E181: 1900-01-01 | F181: 00:00:00 | G181: H1
A182: 02TE | B182: 40 | C182: 1900-04-29 | D182: TURF | E182: 00:00:00 | F182: 00:00:00 | G182: H1
A183: 02TN | B183: 1600 | C183: 1900-03-20 | D183: TURF | E183: 00:00:00 | F183: 00:00:00 | G183: 11 | M183: 29 | R183: 240
A184: 02TX | B184: 4800 | C184: 1900-01-30 | D184: DIRT | E184: 00:00:00 | F184: 00:00:00 | G184: 17 | M184: 35
A185: 02UT | B185: 4000 | C185: 1900-02-19 | D185: DIRT-P | E185: 00:00:00 | F185: 00:00:00 | G185: 7 | M185: 25
A186: 02UT | B186: 4000 | C186: 1900-03-20 | D186: TURF | E186: 00:00:00 | F186: 00:00:00 | G186: 16 | M186: 34 | R186: 500
A187: 02VA | B187: 3000 | C187: 1900-02-19 | D187: TURF | E187: 00:00:00 | F187: 00:00:00 | G187: 18 | M187: 36
A188: 02WA | B188: 2650 | C188: 60 | D188: TURF | E188: 00:00:00 | F188: 00:00:00 | G188: 16 | L188: 1902-03-10 | M188: 34
A189: 02WI | B189: 2200 | C189: 1900-01-30 | D189: DIRT | E189: 00:00:00 | F189: 00:00:00 | G189: 18 | M189: 36
A190: 02WN | B190: 1500 | C190: 1900-02-19 | D190: Turf | E190: 00:00:00 | F190: 00:00:00 | G190: 13 | M190: 31
A191: 02XA | B191: 1950 | C191: 1900-02-09 | D191: TURF | E191: 00:00:00 | F191: 00:00:00 | G191: 18 | M191: 36
A192: 02XS | B192: 1500 | C192: 1900-02-09 | D192: TURF | E192: 00:00:00 | F192: 00:00:00 | G192: 2 | M192: 20
A193: 02XS | B193: 1320 | C193: 1900-03-10 | D193: DIRT | E193: 00:00:00 | F193: 00:00:00 | G193: 11 | M193: 29
A194: 03AK | B194: 1000 | C194: 1901-05-14 | D194: WATER | E194: 00:00:00 | F194: 00:00:00 | G194: 7 | M194: 25
A195: 03AK | B195: 6000 | C195: 1901-05-14 | D195: WATER | E195: 00:00:00 | F195: 00:00:00 | G195: N | M195: S
A196: 03AK | B196: 2600 | C196: 1900-02-19 | D196: CONC | E196: 1900-01-01 | F196: 00:00:00 | G196: NE | M196: SW
A197: 03AL | B197: 50 | C197: 1900-04-26 | D197: CONC | E197: 1900-01-01 | F197: 00:00:00 | G197: H1
A198: 03AR | B198: 117 | C198: 60 | D198: DIRT | E198: 1900-01-01 | F198: 00:00:00 | G198: H1
A199: 03AZ | B199: 3600 | C199: 1900-02-09 | D199: CONC | E199: 1900-01-01 | F199: 00:00:00 | G199: E | M199: W
A200: 03CA | B200: 40 | C200: 1900-01-30 | D200: ASPH-G | E200: 00:00:00 | F200: 00:00:00 | G200: H1 | H200: 4021670150756830 | I200: -1047490005493160 | J200: 4900 | N200: 4020830154418940 | O200: -1.047399979e+16 | P200: 1913-07-20
... 4300 more rows

Sheet INTERSECTIONS (hidden)
F1: =runways_selected!B2&runways_selected!B3 -> LEBL24L | I1: TORA / INTX | K1: TORA
A2: ARPT | B2: INTX | C2: ARPT & INTX | D2: TORA corr | F2: FULL LENGTH | H2: =F1&runways_selected!B6 -> LEBL24LALL | I2: =K2-(IF(runways_selected!B6="ALL",0,(VLOOKUP(H2,C3:D3130,2,0)))) -> 4179.1128 | K2: 4179.1128
A3: DTMB25 | B3: B | C3: DTMB25B | D3: 700 | F3: =IFERROR(INDEX($B$3:$B$1007,SMALL(IF(F$1=$A$3:$A$1007,ROW($B$3:$B$1007)-MIN(ROW($A$3:$A$1007))+1,""),ROW()-2)),"") -> 
A4: DTTA29 | B4: F | C4: DTTA29F | D4: 200 | F4: =IFERROR(INDEX($B$3:$B$1007,SMALL(IF(F$1=$A$3:$A$1007,ROW($B$3:$B$1007)-MIN(ROW($A$3:$A$1007))+1,""),ROW()-2)),"") -> 
A5: EBBR1 | B5: C5 | C5: EBBR1C5 | D5: 662 | F5: =IFERROR(INDEX($B$3:$B$1007,SMALL(IF(F$1=$A$3:$A$1007,ROW($B$3:$B$1007)-MIN(ROW($A$3:$A$1007))+1,""),ROW()-2)),"") -> 
A6: EBBR1 | B6: E1 | C6: EBBR1E1 | D6: 912 | F6: =IFERROR(INDEX($B$3:$B$1007,SMALL(IF(F$1=$A$3:$A$1007,ROW($B$3:$B$1007)-MIN(ROW($A$3:$A$1007))+1,""),ROW()-2)),"") -> 
A7: EBBR1 | B7: E3 | C7: EBBR1E3 | D7: 959 | F7: =IFERROR(INDEX($B$3:$B$1007,SMALL(IF(F$1=$A$3:$A$1007,ROW($B$3:$B$1007)-MIN(ROW($A$3:$A$1007))+1,""),ROW()-2)),"") -> 
A8: EBBR07L | B8: B9 | C8: EBBR07LB9 | D8: 1114 | F8: =IFERROR(INDEX($B$3:$B$1007,SMALL(IF(F$1=$A$3:$A$1007,ROW($B$3:$B$1007)-MIN(ROW($A$3:$A$1007))+1,""),ROW()-2)),"") -> 
A9: EBBR07L | B9: B8 | C9: EBBR07LB8 | D9: 1033 | F9: =IFERROR(INDEX($B$3:$B$1007,SMALL(IF(F$1=$A$3:$A$1007,ROW($B$3:$B$1007)-MIN(ROW($A$3:$A$1007))+1,""),ROW()-2)),"") -> 
A10: EBBR07L | B10: B7 | C10: EBBR07LB7 | D10: 1796 | F10: =IFERROR(INDEX($B$3:$B$1007,SMALL(IF(F$1=$A$3:$A$1007,ROW($B$3:$B$1007)-MIN(ROW($A$3:$A$1007))+1,""),ROW()-2)),"") -> 
A11: EBBR07L | B11: A6 | C11: EBBR07LA6 | D11: 992 | F11: =IFERROR(INDEX($B$3:$B$1007,SMALL(IF(F$1=$A$3:$A$1007,ROW($B$3:$B$1007)-MIN(ROW($A$3:$A$1007))+1,""),ROW()-2)),"") -> 
A12: EBBR07L | B12: A5 | C12: EBBR07LA5 | D12: 1480 | F12: =IFERROR(INDEX($B$3:$B$68,SMALL(IF(F$1=$A$3:$A$68,ROW($B$3:$B$68)-MIN(ROW($A$3:$A$68))+1,""),ROW()-2)),"") -> 
A13: EBBR07L | B13: A3 | C13: EBBR07LA3 | D13: 2068 | F13: =IFERROR(INDEX($B$3:$B$68,SMALL(IF(F$1=$A$3:$A$68,ROW($B$3:$B$68)-MIN(ROW($A$3:$A$68))+1,""),ROW()-2)),"") -> 
A14: EBBR07R | B14: C3 | C14: EBBR07RC3 | D14: 1117 | F14: =IFERROR(INDEX($B$3:$B$68,SMALL(IF(F$1=$A$3:$A$68,ROW($B$3:$B$68)-MIN(ROW($A$3:$A$68))+1,""),ROW()-2)),"") -> 
A15: EBBR07R | B15: C4 | C15: EBBR07RC4 | D15: 1099 | F15: =IFERROR(INDEX($B$3:$B$68,SMALL(IF(F$1=$A$3:$A$68,ROW($B$3:$B$68)-MIN(ROW($A$3:$A$68))+1,""),ROW()-2)),"") -> 
A16: EBBR07R | B16: C5 | C16: EBBR07RC5 | D16: 743 | F16: =IFERROR(INDEX($B$3:$B$68,SMALL(IF(F$1=$A$3:$A$68,ROW($B$3:$B$68)-MIN(ROW($A$3:$A$68))+1,""),ROW()-2)),"") -> 
A17: EBBR07R | B17: C6 | C17: EBBR07RC6 | D17: 486 | F17: =IFERROR(INDEX($B$3:$B$68,SMALL(IF(F$1=$A$3:$A$68,ROW($B$3:$B$68)-MIN(ROW($A$3:$A$68))+1,""),ROW()-2)),"") -> 
A18: EBBR07R | B18: H | C18: EBBR07RH | D18: 0 | F18: =IFERROR(INDEX($B$3:$B$68,SMALL(IF(F$1=$A$3:$A$68,ROW($B$3:$B$68)-MIN(ROW($A$3:$A$68))+1,""),ROW()-2)),"") -> 
A19: EBBR07R | B19: P1 | C19: EBBR07RP1 | D19: 267 | F19: =IFERROR(INDEX($B$3:$B$68,SMALL(IF(F$1=$A$3:$A$68,ROW($B$3:$B$68)-MIN(ROW($A$3:$A$68))+1,""),ROW()-2)),"") -> 
A20: EBBR07R | B20: P2 | C20: EBBR07RP2 | D20: 550 | F20: =IFERROR(INDEX($B$3:$B$68,SMALL(IF(F$1=$A$3:$A$68,ROW($B$3:$B$68)-MIN(ROW($A$3:$A$68))+1,""),ROW()-2)),"") -> 
A21: EBBR19 | B21: E7 | C21: EBBR19E7 | D21: 312 | F21: =IFERROR(INDEX($B$3:$B$68,SMALL(IF(F$1=$A$3:$A$68,ROW($B$3:$B$68)-MIN(ROW($A$3:$A$68))+1,""),ROW()-2)),"") -> 
A22: EBBR19 | B22: E6 | C22: EBBR19E6 | D22: 823 | F22: =IFERROR(INDEX($B$3:$B$68,SMALL(IF(F$1=$A$3:$A$68,ROW($B$3:$B$68)-MIN(ROW($A$3:$A$68))+1,""),ROW()-2)),"") -> 
A23: EBBR19 | B23: E5 | C23: EBBR19E5 | D23: 1429
A24: EBBR19 | B24: E4 | C24: EBBR19E4 | D24: 1429
A25: EBBR19 | B25: A1 | C25: EBBR19A1 | D25: 162
A26: EBBR25L | B26: C1 | C26: EBBR25LC1 | D26: 1001
A27: EBBR25L | B27: C2 | C27: EBBR25LC2 | D27: 1521
A28: EBBR25L | B28: P5 | C28: EBBR25LP5 | D28: 1001
A29: EBBR25L-T-SUP28 | B29: P5 | C29: EBBR25L-T-SUP28P5 | D29: 1001
A30: EBBR25L-T-SUP28 | B30: C1 | C30: EBBR25L-T-SUP28C1 | D30: 1001
A31: EBBR25L-T-SUP28 | B31: C2 | C31: EBBR25L-T-SUP28C2 | D31: 1521
A32: EBBR25R | B32: B7 | C32: EBBR25RB7 | D32: 2112
A33: EBBR25R | B33: B6 | C33: EBBR25RB6 | D33: 1650
A34: EBBR25R | B34: B5 | C34: EBBR25RB5 | D34: 1638
A35: EBBR25R | B35: B3 | C35: EBBR25RB3 | D35: 881
A36: EBBR25R | B36: B1 | C36: EBBR25RB1 | D36: 372
A37: EBBR25R | B37: A3 | C37: EBBR25RA3 | D37: 1644
A38: EBBR25R | B38: A1 | C38: EBBR25RA1 | D38: 211
A39: EBBR25R-T-SUP03 | B39: A1 | C39: EBBR25R-T-SUP03A1 | D39: 211
A40: EBBR25R-T-SUP03 | B40: B1 | C40: EBBR25R-T-SUP03B1 | D40: 372
A41: EBBR25R-T-SUP03 | B41: B7 | C41: EBBR25R-T-SUP03B7 | D41: 2112
A42: EBBR25R-T-SUP03 | B42: B6 | C42: EBBR25R-T-SUP03B6 | D42: 1650
A43: EBBR25R-T-SUP03 | B43: A3 | C43: EBBR25R-T-SUP03A3 | D43: 1644
A44: EBBR25R-T-SUP03 | B44: B5 | C44: EBBR25R-T-SUP03B5 | D44: 1638
A45: EBBR25R-T-SUP03 | B45: B3 | C45: EBBR25R-T-SUP03B3 | D45: 881
A46: EBCI6 | B46: S2 | C46: EBCI6S2 | D46: 715
A47: EBCI24 | B47: S4 | C47: EBCI24S4 | D47: 600
A48: EBLG04R | B48: S3 | C48: EBLG04RS3 | D48: 2092
A49: EBLG04R | B49: S2 | C49: EBLG04RS2 | D49: 1212
A50: EBLG04R | B50: C2 | C50: EBLG04RC2 | D50: 1137
A51: EBLG04R | B51: C1 | C51: EBLG04RC1 | D51: 1117
A52: EBLG04R | B52: C0 | C52: EBLG04RC0 | D52: 387
A53: EBLG22L | B53: C3 | C53: EBLG22LC3 | D53: 1890
A54: EBLG22L | B54: C4 | C54: EBLG22LC4 | D54: 1140
A55: EBLG22L | B55: S3 | C55: EBLG22LS3 | D55: 1890
A56: EBLG22L | B56: S4 | C56: EBLG22LS4 | D56: 1140
A57: EBLG22L | B57: S5 | C57: EBLG22LS5 | D57: 403
A58: EDDB07L | B58: K2 | C58: EDDB07LK2 | D58: 1450
A59: EDDB07L | B59: K1 | C59: EDDB07LK1 | D59: 300
A60: EDDB07R | B60: M3 | C60: EDDB07RM3 | D60: 1525
A61: EDDB07R-T-A2410 | B61: M3 | C61: EDDB07R-T-A2410M3 | D61: 1525
A62: EDDB25L | B62: M7 | C62: EDDB25LM7 | D62: 1285
A63: EDDB25L | B63: M6 | C63: EDDB25LM6 | D63: 1735
A64: EDDB25L-T-A2420 | B64: M7 | C64: EDDB25L-T-A2420M7 | D64: 1285
A65: EDDB25L-T-A2420 | B65: M6 | C65: EDDB25L-T-A2420M6 | D65: 1735
A66: EDDB25R | B66: L6 | C66: EDDB25RL6 | D66: 1085
A67: EDDB25R | B67: L7 | C67: EDDB25RL7 | D67: 300
A68: EDDB25R | B68: K3 | C68: EDDB25RK3 | D68: 1250
A69: EDDB25R | B69: K4 | C69: EDDB25RK4 | D69: 300
A70: EDDB25R | B70: K5 | C70: EDDB25RK5 | D70: 215
A71: EDDB25R-T-A1086 | B71: K5 | C71: EDDB25R-T-A1086K5 | D71: 215
A72: EDDB25R-T-A1086 | B72: K3 | C72: EDDB25R-T-A1086K3 | D72: 1250
A73: EDDB25R-T-A1086 | B73: L6 | C73: EDDB25R-T-A1086L6 | D73: 1085
A74: EDDB25R-T-A1086 | B74: L7 | C74: EDDB25R-T-A1086L7 | D74: 300
A75: EDDB25R-T-A1086 | B75: K4 | C75: EDDB25R-T-A1086K4 | D75: 300
A76: EDDB25R-T-A1445 | B76: L6 | C76: EDDB25R-T-A1445L6 | D76: 1085
A77: EDDB25R-T-A1445 | B77: K5 | C77: EDDB25R-T-A1445K5 | D77: 215
A78: EDDB25R-T-A1445 | B78: L7 | C78: EDDB25R-T-A1445L7 | D78: 300
A79: EDDB25R-T-A1445 | B79: K3 | C79: EDDB25R-T-A1445K3 | D79: 1250
A80: EDDB25R-T-A1445 | B80: K4 | C80: EDDB25R-T-A1445K4 | D80: 300
A81: EDDC4 | B81: A | C81: EDDC4A | D81: 0
A82: EDDC4 | B82: B | C82: EDDC4B | D82: 350
A83: EDDC22 | B83: E | C83: EDDC22E | D83: 0
A84: EDDC22 | B84: D | C84: EDDC22D | D84: 690
A85: EDDF07C | B85: L14 | C85: EDDF07CL14 | D85: 1588
A86: EDDF07C | B86: L16 | C86: EDDF07CL16 | D86: 988
A87: EDDF07C | B87: L17 | C87: EDDF07CL17 | D87: 688
A88: EDDF07C-T-A1500 | B88: L17 | C88: EDDF07C-T-A1500L17 | D88: 688
A89: EDDF07C-T-A1500 | B89: L14 | C89: EDDF07C-T-A1500L14 | D89: 1588
A90: EDDF07C-T-A1500 | B90: L16 | C90: EDDF07C-T-A1500L16 | D90: 988
A91: EDDF07R | B91: M25 | C91: EDDF07RM25 | D91: 915
A92: EDDF07R | B92: M19 | C92: EDDF07RM19 | D92: 1670
A93: EDDF18 | B93: S | C93: EDDF18S | D93: 1215
A94: EDDF18 | B94: R | C94: EDDF18R | D94: 1128
A95: EDDF18 | B95: NSOUTH | C95: EDDF18NSOUTH | D95: 76
A96: EDDF18 | B96: M | C96: EDDF18M | D96: 516
A97: EDDF18 | B97: L | C97: EDDF18L | D97: 147
A98: EDDF25C | B98: M8 | C98: EDDF25CM8 | D98: 405
A99: EDDF25C | B99: L6 | C99: EDDF25CL6 | D99: 734
A100: EDDF25C | B100: L5 | C100: EDDF25CL5 | D100: 405
A101: EDDF25C | B101: L4 | C101: EDDF25CL4 | D101: 300
A102: EDDF25C | B102: L3 | C102: EDDF25CL3 | D102: 28
A103: EDDF25C-T-A2294 | B103: L3 | C103: EDDF25C-T-A2294L3 | D103: 28
A104: EDDF25C-T-A2294 | B104: L4 | C104: EDDF25C-T-A2294L4 | D104: 300
A105: EDDF25C-T-A2294 | B105: M8 | C105: EDDF25C-T-A2294M8 | D105: 405
A106: EDDF25C-T-A2294 | B106: L6 | C106: EDDF25C-T-A2294L6 | D106: 734
A107: EDDF25C-T-A2294 | B107: L5 | C107: EDDF25C-T-A2294L5 | D107: 405
A108: EDDF25L | B108: M19 | C108: EDDF25LM19 | D108: 2300
A109: EDDF25L | B109: M7 | C109: EDDF25LM7 | D109: 506
A110: EDDF25L-T-A2409 | B110: M19 | C110: EDDF25L-T-A2409M19 | D110: 2300
A111: EDDF25L-T-A2409 | B111: M7 | C111: EDDF25L-T-A2409M7 | D111: 506
A112: EDDH5 | B112: D3 | C112: EDDH5D3 | D112: 795
A113: EDDH5 | B113: D6 | C113: EDDH5D6 | D113: 1655
A114: EDDH5 | B114: D4 | C114: EDDH5D4 | D114: 1170
A115: EDDH05-T-SUP11 | B115: D6 | C115: EDDH05-T-SUP11D6 | D115: 1655
A116: EDDH05-T-SUP11 | B116: D4 | C116: EDDH05-T-SUP11D4 | D116: 1170
A117: EDDH05-T-SUP11 | B117: D3 | C117: EDDH05-T-SUP11D3 | D117: 795
A118: EDDH15 | B118: E3 | C118: EDDH15E3 | D118: 1126
A119: EDDH23 | B119: D6 | C119: EDDH23D6 | D119: 1575
A120: EDDH23 | B120: A6 | C120: EDDH23A6 | D120: 600
A121: EDDH23 | B121: A4 | C121: EDDH23A4 | D121: 157
A122: EDDH23 | B122: A3 | C122: EDDH23A3 | D122: 112
A123: EDDH23 | B123: D8 | C123: EDDH23D8 | D123: 990
A124: EDDH23-T-A2070 | B124: A6 | C124: EDDH23-T-A2070A6 | D124: 600
A125: EDDH23-T-A2070 | B125: A3 | C125: EDDH23-T-A2070A3 | D125: 112
A126: EDDH23-T-A2070 | B126: A4 | C126: EDDH23-T-A2070A4 | D126: 157
A127: EDDH23-T-A2070 | B127: D6 | C127: EDDH23-T-A2070D6 | D127: 1575
A128: EDDH23-T-A2070 | B128: D8 | C128: EDDH23-T-A2070D8 | D128: 990
A129: EDDH33 | B129: A6 | C129: EDDH33A6 | D129: 590
A130: EDDH33 | B130: B6 | C130: EDDH33B6 | D130: 440
A131: EDDH33 | B131: D9 | C131: EDDH33D9 | D131: 585
A132: EDDH33 | B132: E4 | C132: EDDH33E4 | D132: 1410
A133: EDDH33 | B133: G | C133: EDDH33G | D133: -145
A134: EDDK14L | B134: A5 | C134: EDDK14LA5 | D134: 228
A135: EDDK14L | B135: A4 | C135: EDDK14LA4 | D135: 1072
A136: EDDK32R | B136: A1 | C136: EDDK32RA1 | D136: 229
A137: EDDK32R | B137: A2 | C137: EDDK32RA2 | D137: 1253
A138: EDDK32R | B138: A3 | C138: EDDK32RA3 | D138: 2034
A139: EDDK32R-T-A2396 | B139: A3 | C139: EDDK32R-T-A2396A3 | D139: 2034
A140: EDDK32R-T-A2396 | B140: A1 | C140: EDDK32R-T-A2396A1 | D140: 229
A141: EDDK32R-T-A2396 | B141: A2 | C141: EDDK32R-T-A2396A2 | D141: 1253
A142: EDDL05L | B142: K3 | C142: EDDL05LK3 | D142: 680
A143: EDDL05R | B143: L8 | C143: EDDL05RL8 | D143: 225
A144: EDDL05R | B144: L6 | C144: EDDL05RL6 | D144: 669
A145: EDDL23L | B145: L1 | C145: EDDL23LL1 | D145: 55
A146: EDDL23L | B146: L2 | C146: EDDL23LL2 | D146: 200
A147: EDDL23L | B147: L3 | C147: EDDL23LL3 | D147: 465
A148: EDDL23R | B148: K2 | C148: EDDL23RK2 | D148: 338
A149: EDDL23R | B149: K1 | C149: EDDL23RK1 | D149: 120
A150: EDDM08L | B150: A3 | C150: EDDM08LA3 | D150: 200
A151: EDDM08L | B151: A4 | C151: EDDM08LA4 | D151: 1180
A152: EDDM08L | B152: A6 | C152: EDDM08LA6 | D152: 1800
A153: EDDM08R | B153: B6 | C153: EDDM08RB6 | D153: 1780
A154: EDDM08R | B154: B4 | C154: EDDM08RB4 | D154: 1160
A155: EDDM08R | B155: B3 | C155: EDDM08RB3 | D155: 200
A156: EDDM26L | B156: B10 | C156: EDDM26LB10 | D156: 1800
A157: EDDM26L | B157: B12 | C157: EDDM26LB12 | D157: 1180
A158: EDDM26L | B158: B13 | C158: EDDM26LB13 | D158: 200
A159: EDDM26R | B159: A13 | C159: EDDM26RA13 | D159: 200
A160: EDDM26R | B160: A12 | C160: EDDM26RA12 | D160: 1220
A161: EDDM26R | B161: A10 | C161: EDDM26RA10 | D161: 1740
A162: EDDN10 | B162: D | C162: EDDN10D | D162: 800
A163: EDDN10 | B163: E | C163: EDDN10E | D163: 400
A164: EDDN28 | B164: B | C164: EDDN28B | D164: 738
A165: EDDS7 | B165: F | C165: EDDS7F | D165: 1325
A166: EDDS7 | B166: G | C166: EDDS7G | D166: 1135
A167: EDDS7 | B167: H | C167: EDDS7H | D167: 830
A168: EDDS7 | B168: I | C168: EDDS7I | D168: 255
A169: EDDS7 | B169: W | C169: EDDS7W | D169: 825
A170: EDDS7 | B170: X | C170: EDDS7X | D170: 95
A171: EDDS25 | B171: C | C171: EDDS25C | D171: 870
A172: EDDS25 | B172: B | C172: EDDS25B | D172: 610
A173: EDDT08L | B173: RW | C173: EDDT08LRW | D173: 1050
A174: EDDT08L | B174: TM | C174: EDDT08LTM | D174: 1083
A175: EDDT08L | B175: TN | C175: EDDT08LTN | D175: 1083
A176: EDDT08R | B176: TS | C176: EDDT08RTS | D176: 532
A177: EDDT26L | B177: RE | C177: EDDT26LRE | D177: 736
A178: EDDT26R | B178: RE | C178: EDDT26RRE | D178: 1058
A179: EDDV09L | B179: G | C179: EDDV09LG | D179: -300
A180: EDDV09L | B180: H | C180: EDDV09LH | D180: 0
A181: EDDV09L | B181: J | C181: EDDV09LJ | D181: 500
A182: EDDV09L | B182: K | C182: EDDV09LK | D182: 950
A183: EDDV09L-T-A2332 | B183: K | C183: EDDV09L-T-A2332K | D183: 950
A184: EDDV09L-T-A2332 | B184: J | C184: EDDV09L-T-A2332J | D184: 500
A185: EDDV09L-T-A2332 | B185: H | C185: EDDV09L-T-A2332H | D185: 0
A186: EDDV09L-T-A2332 | B186: G | C186: EDDV09L-T-A2332G | D186: 0
A187: EDDV09R | B187: D | C187: EDDV09RD | D187: 370
A188: EDDV27L | B188: B | C188: EDDV27LB | D188: 300
A189: EDDV27R | B189: N | C189: EDDV27RN | D189: 0
A190: EDDV27R | B190: M | C190: EDDV27RM | D190: -300
A191: EDDV27R | B191: L | C191: EDDV27RL | D191: 1300
A192: EDFH3 | B192: C | C192: EDFH3C | D192: 1055
A193: EDFH3 | B193: D | C193: EDFH3D | D193: 1895
A194: EDFH21 | B194: E | C194: EDFH21E | D194: 1095
A195: EDFH21 | B195: F | C195: EDFH21F | D195: 300
A196: EDFH21 | B196: D | C196: EDFH21D | D196: 1895
A197: EDHL7 | B197: B | C197: EDHL7B | D197: 325
A198: EDLP6 | B198: C | C198: EDLP6C | D198: 570
A199: EDLP6 | B199: D | C199: EDLP6D | D199: 0
A200: EDLP24 | B200: A | C200: EDLP24A | D200: 0
... 656 more rows

Sheet METAR (hidden)
A1: VIENTO (dir) | B1: =MID(C1,1,3) -> 198 | C1: =TAKEOFF!D14 -> 198/25
A2: VIENTO (kts) | B2: =MID(C1,5,2) -> 25
A3: TEMP | B3: =TAKEOFF!D16 -> -15
A4: QNH | B4: =TAKEOFF!D18 -> 1030
A8: VIENTO (dir) | B8: =MID(C8,1,3) -> 250 | C8: =LANDING!D13 -> 250/5
A9: VIENTO (kts) | B9: =IF(C8=0,0,MID(C8,5,2)) -> 5
A10: TEMP | B10: =LANDING!D15 -> 20
A11: QNH | B11: =LANDING!D17 -> 1011

Sheet VAPP (hidden)
A1: VAPP WITHOUT FAILURE
R2: A/THR | S2: ICE FULL | T2: ICE 3 | U2: H/WIND
A3: VAPP = VLS + APPR COR | R3: =IF(DATOS!C110="ON",5,0) -> 5 | S3: =IF(AND(DATOS!C111="SI",DATOS!F93="FULL"),5,0) -> 5 | T3: =IF(AND(DATOS!C111="SI",DATOS!F93<>"FULL"),10,0) -> 0 | U3: =DATOS!G102*0.333333 -> 1.666665
A4: VLS | P4: VLS | Q4: CG COR | V4: VAPP
A5: Weight (T) | B5: 40000 | C5: 42000 | D5: 46000 | E5: 50000 | F5: 54000 | G5: 58000 | H5: 62000 | I5: 66000 | J5: 70000 | K5: 74000 | L5: 78000 | P5: =IF(DATOS!F93="FULL",HLOOKUP(DATOS!C91,B5:L7,2,TRUE),HLOOKUP(DATOS!C91,B5:L7,3,TRUE)) -> 123 | Q5: =IF(DATOS!C109="<25%",2,0) -> 0 | R5: =IF(U3>15,15,MAX(R3:U3)) -> 5 | V5: =P5+Q5+R5 -> 128
A6: FULL | B6: 106 | C6: 109 | D6: 114 | E6: 119 | F6: 123 | G6: 128 | H6: 132 | I6: 136 | J6: 140 | K6: 144 | L6: 148
A7: 3 | B7: 110 | C7: 113 | D7: 117 | E7: 123 | F7: 127 | G7: 133 | H7: 137 | I7: 141 | J7: 145 | K7: 149 | L7: 153 | S7: SPD COR LDG DIST: | U7: =IF(R5=U3,"NO SPD COR LDG DIST","") -> 
T11: APPR COR
A13: VAPP WITH FAILURE | T13: A/THR | U13: ICE FULL | V13: ICE 3 | W13: H/WIND
T14: =IF(DATOS!C110="ON",5,0) -> 5 | U14: =IF(AND(DATOS!C111="SI",DATOS!F93="FULL"),5,0) -> 5 | V14: =IF(AND(DATOS!C111="SI",DATOS!F93<>"FULL"),10,0) -> 0 | W14: =DATOS!G102*0.333333 -> 1.666665
A15: VAPP = VREF + AVREF + APPR COR | T15: =IF(W14>15,15,MAX(T14:W14)) -> 5
A16: VREF | P16: VREF | Q16: AREF | S16: AVREF <=10KT | T16: =IF((Q17)>20,20,T15) -> 5 | Y16: APPR COR FINAL | Z16: =IF(SUM(Y17:Y19)<0,5,SUM(Y17:Y19)) -> 5 | AB16: VAPP
A17: Weight (T) | C17: 40000 | D17: 42000 | E17: 46000 | F17: 50000 | G17: 54000 | H17: 58000 | I17: 62000 | J17: 66000 | K17: 70000 | L17: 74000 | M17: 78000 | P17: =IF(P18<Q184,140,P18) -> 123 | Q17: =VLOOKUP(Q19,T31:U46,2,FALSE) -> 0 | Y17: =IF(Q17<10,T16,0) -> 5 | AB17: =P17+Q17+Z16 -> 128
A18: VREF = VLS CONF FULL (kt) | B18: M25 | C18: 108 | D18: 111 | E18: 116 | F18: 121 | G18: 125 | H18: 130 | I18: 134 | J18: 138 | K18: 142 | L18: 146 | M18: 150 | N18: =IF(DATOS!C109="<25%","M25","P25") -> P25 | P18: =IF(N18="M25",HLOOKUP(DATOS!C91,VAPP!C17:M19,2,TRUE),HLOOKUP(DATOS!C91,VAPP!C17:M19,3,TRUE)) -> 123 | Q18: =IFERROR(Q22,Q17) -> 0 | T18: H/WIND | Y18: =IF(AND(Q17>10,Q17<20),T20,0) -> 0
B19: P25 | C19: 106 | D19: 109 | E19: 114 | F19: 119 | G19: 123 | H19: 128 | I19: 132 | J19: 136 | K19: 140 | L19: 144 | M19: 148 | Q19: =DATOS!F111 -> 0 | T19: =IF(W14>10,10,DATOS!G102*0.333333) -> 1.666665 | Y19: =IF(Q17>=20,0,0) -> 0
Q20: =RIGHT(Q19,5) -> 0 | S20: AVREF > 10KT <20KT | T20: =IF((R17+T19)>20,20,W14) -> 1.666665
Q21: =LEFT(Q20,3) -> 0 | Y21: SPD COR LDG DIST: | AA21: =IF(T16=W14,"NO SPD COR LDG DIST","") -> 
Q22: =#REF!+Q19 -> 
S23: AVREF >= 20KT | T23: 0
T31: 0 | U31: 0
T32: 5 | U32: 5
T33: 6 | U33: 6
T34: 6 | U34: 6
T35: 10 | U35: 10
T36: 10 | U36: 10
T37: 15 | U37: 15
T38: 16 | U38: 16
T39: 25 | U39: 25
T40: 30 | U40: 30
T41: 45 | U41: 45
T42: 50 | U42: 50
T43: 0 / 140kt | U43: 0
T44: 10 / 140kt | U44: 10
T45: 25 / 140kt | U45: 25
T46: 6 / 140kt | U46: 6

Sheet LDGDIST_FAIL (hidden)
A1: ELECTRICAL SYSTEM
A2: Dry
A3: Corrections on Landing Distance (m) | F3: WEIGHT | H3: SPD | I3: ALT | J3: WIND | K3: TEMP | L3: SLOPE | M3: REV
A4: FAILURE | B4: FLAPS LEVER for LDG | D4: AVREF | E4: REF DIST (m) for 66T | F4: Per 1T BELOW 66T " | G4: Per 1T ABOVE 66T | H4: Per 5Id | I4: Per 1000ft above SL | J4: Per 5kt TW | K4: Per 10°C ABOVE ISA | L4: Per 1% Down Slope | M4: Per Thrust Reverser Operative | S4: AVREF | T4: REF DIST (m) for 66T | U4: Per 1T BELOW 66T " | V4: Per 1T ABOVE 66T | W4: Per 5Id | X4: Per 1000ft above SL | Y4: Per 5kt TW | Z4: Per 10°C ABOVE ISA | AA4: Per 1% Down Slope | AB4: Per Thrust Reverser Operative
A5: AC BUS 1 FAULT | B5: FULL | C5: =CONCATENATE(A5,B5,$A$2) -> AC BUS 1 FAULTFULLDry | D5: 0 | E5: 1140 | F5: -10 | G5: 40 | H5: 70 | I5: 40 | J5: 130 | K5: 40 | L5: 20 | M5: -10 | Q5: =VLOOKUP(DATOS!C106,DATOS!AQ2:AR107,2,FALSE) ->  | R5: =IF(Q5="FAILSLATSFLAPS",CONCATENATE(DATOS!E106,DATOS!E107,DATOS!C101),CONCATENATE(DATOS!E106,DATOS!F93,DATOS!C101)) ->  | S5: =+VLOOKUP($R$5,INDIRECT($Q$5),2,FALSE) ->  | T5: =+VLOOKUP($R$5,INDIRECT($Q$5),3,FALSE) ->  | U5: =+VLOOKUP($R$5,INDIRECT($Q$5),4,FALSE) ->  | V5: =+VLOOKUP($R$5,INDIRECT($Q$5),5,FALSE) ->  | W5: =+VLOOKUP($R$5,INDIRECT($Q$5),6,FALSE) ->  | X5: =+VLOOKUP($R$5,INDIRECT($Q$5),7,FALSE) ->  | Y5: =+VLOOKUP($R$5,INDIRECT($Q$5),8,FALSE) ->  | Z5: =+VLOOKUP($R$5,INDIRECT($Q$5),9,FALSE) ->  | AA5: =+VLOOKUP($R$5,INDIRECT($Q$5),10,FALSE) ->  | AB5: =+VLOOKUP($R$5,INDIRECT($Q$5),11,FALSE) ->  | AC5: =SUM(AC6:AC7) -> 0
A6: AC BUS 1 FAULT | B6: 3 | C6: =CONCATENATE(A6,B6,$A$2) -> AC BUS 1 FAULT3Dry | D6: 6 | E6: 1230 | F6: -10 | G6: 50 | H6: 80 | I6: 40 | J6: 120 | K6: 50 | L6: 30 | M6: -20 | U6: =IF(DATOS!C91<66000,"BELOW","ABOVE") -> BELOW | V6: =IF(DATOS!C91<66000,"BELOW","ABOVE") -> BELOW | X6: =IF(DATOS!C100>1000,"ABOVE","BELOW") -> BELOW | Z6: =IF(DATOS!F15>14.9,"ABOVE","BELOW") -> BELOW | AA6: =IF(DATOS!F102<0,"DOWN","") -> DOWN | AC6: =IFERROR(IF(DATOS!C97="ALL OPER",2*-1,""),"0") -> 
A7: DC BUS 2 FAULT | B7: FULL | C7: DC BUS 2 FAULTFULLDry | D7: 0 | E7: 1250 | F7: -10 | G7: 40 | H7: 90 | I7: 40 | J7: 120 | K7: 40 | L7: 30 | M7: -20 | U7: =(DATOS!C91-66000)/1000 -> -12 | V7: =(DATOS!C91-66000)/1000 -> -12 | X7: =(DATOS!C100-1000)/1000 -> -0.988 | Y7: =ROUNDUP(DATOS!G104/5,0) -> 1 | Z7: =ROUNDDOWN(DATOS!F15/10,0) -> -1 | AA7: =ROUNDUP(DATOS!F102,0) -> -1 | AC7: =IF(DATOS!C97="ONLY 1 OPER",1*-1,"") ->  | AD7: FLAP POS FOR LANDING
A8: DC BUS 2 FAULT | B8: 3 | C8: DC BUS 2 FAULT3Dry | D8: 6 | E8: 1320 | F8: -10 | G8: 40 | H8: 90 | I8: 50 | J8: 130 | K8: 40 | L8: 30 | M8: -30 | S8: AVREF | T8: REF DIST (m) for 66T | U8: Per 1T BELOW 66T " | V8: Per 1T ABOVE 66T | W8: Per 5Id | X8: Per 1000ft above SL | Y8: Per 5kt TW | Z8: Per 10°C ABOVE ISA | AA8: Per 1% Down Slope | AB8: Per Thrust Reverser Operative | AD8: =IFERROR(+VLOOKUP($R$5,INDIRECT($Q$5),12,FALSE),0) -> 0
A9: DC BUS 1+2 FAULT | B9: FULL | C9: DC BUS 1+2 FAULTFULLDry | D9: 0 | E9: 1810 | F9: -20 | G9: 70 | H9: 120 | I9: 70 | J9: 200 | K9: 60 | L9: 90 | M9: INOP | S9: =S5 ->  | T9: =T5 ->  | U9: =(IF(U6="BELOW",U5*U7,0))*-1 ->  | V9: =(IF(V6="ABOVE",V5*V7,0)) -> 0 | W9: =IF(DATOS!F95="SI",W5,0) ->  | X9: =IF(X6="ABOVE",X5*X7,0) -> 0 | Y9: =IF(Y7<0,Y5*Y7,0)*-1 -> 0 | Z9: =IF(Z6="ABOVE",Z5*Z7,0) -> 0 | AA9: =IF(AA6="DOWN",AA5*AA7,0) ->  | AB9: =IFERROR((AB5*AC5)*-1,0) -> 0 | AD9: =(IF(T9="Landing Distance greater than 6 000 m for all conditions",6000,SUM(T9:AB9))-W11) -> 
A10: DC BUS 1+2 FAULT | B10: 3 | C10: DC BUS 1+2 FAULT3Dry | D10: 6 | E10: 1970 | F10: -20 | G10: 90 | H10: 120 | I10: 80 | J10: 210 | K10: 70 | L10: 110 | M10: INOP | W10: =VAPP!AA21 -> 
A11: DC ESS BUS FAULT (if no Ice Accretion) | B11: FULL | C11: DC ESS BUS FAULT (if no Ice Accretion)FULLDry | D11: 0 | E11: 1140 | F11: -10 | G11: 40 | H11: 70 | I11: 40 | J11: 130 | K11: 40 | L11: 20 | M11: -10 | W11: =IF(W10="NO SPD COR LDG DIST",W9,0) -> 0
A12: DC ESS BUS FAULT (if no Ice Accretion) | B12: 3 | C12: DC ESS BUS FAULT (if no Ice Accretion)3Dry | D12: 6 | E12: 1230 | F12: -10 | G12: 50 | H12: 80 | I12: 50 | J12: 120 | K12: 50 | L12: 30 | M12: -20
A13: DC ESS BUS FAULT (if Ice Accretion) | B13: FULL | C13: DC ESS BUS FAULT (if Ice Accretion)FULLDry | D13: 10 | E13: 1270 | F13: -10 | G13: 50 | H13: 80 | I13: 50 | J13: 130 | K13: 40 | L13: 20 | M13: -20
A14: DC ESS BUS FAULT (if Ice Accretion) | B14: 3 | C14: DC ESS BUS FAULT (if Ice Accretion)3Dry | D14: 16 | E14: 1380 | F14: -10 | G14: 50 | H14: 80 | I14: 50 | J14: 130 | K14: 40 | L14: 30 | M14: -20
A15: DC ESS SHED BUS (if Ice Accretion) | B15: FULL | C15: DC ESS SHED BUS (if Ice Accretion)FULLDry | D15: 10 | E15: 1260 | F15: -10 | G15: 40 | H15: 70 | I15: 50 | J15: 130 | K15: 40 | L15: 20 | M15: -10
A16: DC ESS SHED BUS (if Ice Accretion) | B16: 3 | C16: DC ESS SHED BUS (if Ice Accretion)3Dry | D16: 16 | E16: 1370 | F16: -10 | G16: 50 | H16: 80 | I16: 50 | J16: 120 | K16: 40 | L16: 30 | M16: -20
A17: DC EMER CONFIG REF DIST calculated with 140kt min | B17: FULL | C17: DC EMER CONFIG REF DIST calculated with 140kt minFULLDry | D17: 0 / 140kt | E17: 1900 | F17: -10 | G17: 70 | H17: 130 | I17: 70 | J17: 200 | K17: 70 | L17: 90 | M17: INOP
A18: DC EMER CONFIG REF DIST calculated with 140kt min | B18: 3 | C18: DC EMER CONFIG REF DIST calculated with 140kt min3Dry | D18: 6 / 140kt | E18: 1980 | F18: -10 | G18: 90 | H18: 120 | I18: 80 | J18: 210 | K18: 70 | L18: 110 | M18: INOP
A19: ELEC EMER CONFIG REF DIST calculated with 140kt min | B19: 3 | C19: ELEC EMER CONFIG REF DIST calculated with 140kt min3Dry | D19: 10 / 140kt | E19: 2020 | F19: -10 | G19: 80 | H19: 110 | I19: 80 | J19: 210 | K19: 70 | L19: 100 | M19: INOP
A21: Good
A22: AC BUS 1 FAULT | B22: FULL | C22: =CONCATENATE(A22,B22,$A$21) -> AC BUS 1 FAULTFULLGood | D22: 0 | E22: 1510 | F22: -20 | G22: 50 | H22: 120 | I22: 70 | J22: 220 | K22: 70 | L22: 60 | M22: -40
A23: AC BUS 1 FAULT | B23: 3 | C23: =CONCATENATE(A23,B23,$A$21) -> AC BUS 1 FAULT3Good | D23: 6 | E23: 1680 | F23: -20 | G23: 60 | H23: 130 | I23: 90 | J23: 240 | K23: 80 | L23: 70 | M23: -60
A24: DC BUS 2 FAULT | B24: FULL | C24: DC BUS 2 FAULTFULLGood | D24: 0 | E24: 1750 | F24: -20 | G24: 60 | H24: 170 | I24: 100 | J24: 270 | K24: 80 | L24: 100 | M24: -80
A25: DC BUS 2 FAULT | B25: 3 | C25: DC BUS 2 FAULT3Good | D25: 6 | E25: 1920 | F25: -20 | G25: 60 | H25: 180 | I25: 110 | J25: 290 | K25: 90 | L25: 110 | M25: -90
A26: DC BUS 1+2 FAULT | B26: FULL | C26: DC BUS 1+2 FAULTFULLGood | D26: 0 | E26: 1950 | F26: -20 | G26: 80 | H26: 170 | I26: 100 | J26: 290 | K26: 90 | L26: 130 | M26: INOP
A27: DC BUS 1+2 FAULT | B27: 3 | C27: DC BUS 1+2 FAULT3Good | D27: 6 | E27: 2150 | F27: -30 | G27: 80 | H27: 180 | I27: 110 | J27: 310 | K27: 100 | L27: 150 | M27: INOP
A28: DC ESS BUS FAULT (if no Ice Accretion) | B28: FULL | C28: DC ESS BUS FAULT (if no Ice Accretion)FULLGood | D28: 0 | E28: 1520 | F28: -20 | G28: 50 | H28: 120 | I28: 80 | J28: 230 | K28: 60 | L28: 60 | M28: -50
A29: DC ESS BUS FAULT (if no Ice Accretion) | B29: 3 | C29: DC ESS BUS FAULT (if no Ice Accretion)3Good | D29: 6 | E29: 1690 | F29: -20 | G29: 60 | H29: 130 | I29: 90 | J29: 250 | K29: 80 | L29: 70 | M29: -60
A30: DC ESS BUS FAULT (if Ice Accretion) | B30: FULL | C30: DC ESS BUS FAULT (if Ice Accretion)FULLGood | D30: 10 | E30: 1700 | F30: -20 | G30: 50 | H30: 120 | I30: 90 | J30: 240 | K30: 80 | L30: 70 | M30: -60
A31: DC ESS BUS FAULT (if Ice Accretion) | B31: 3 | C31: DC ESS BUS FAULT (if Ice Accretion)3Good | D31: 16 | E31: 1900 | F31: -20 | G31: 60 | H31: 130 | I31: 100 | J31: 260 | K31: 80 | L31: 80 | M31: -80
A32: DC ESS SHED BUS (if Ice Accretion) | B32: FULL | C32: DC ESS SHED BUS (if Ice Accretion)FULLGood | D32: 10 | E32: 1640 | F32: -20 | G32: 50 | H32: 110 | I32: 80 | J32: 220 | K32: 70 | L32: 60 | M32: -40
A33: DC ESS SHED BUS (if Ice Accretion) | B33: 3 | C33: DC ESS SHED BUS (if Ice Accretion)3Good | D33: 16 | E33: 1820 | F33: -20 | G33: 60 | H33: 120 | I33: 90 | J33: 240 | K33: 80 | L33: 70 | M33: -60
A34: DC EMER CONFIG REF DIST calculated with 140kt min | B34: FULL | C34: DC EMER CONFIG REF DIST calculated with 140kt minFULLGood | D34: 0 / 140kt | E34: 2060 | F34: -10 | G34: 80 | H34: 170 | I34: 100 | J34: 290 | K34: 100 | L34: 130 | M34: INOP
A35: DC EMER CONFIG REF DIST calculated with 140kt min | B35: 3 | C35: DC EMER CONFIG REF DIST calculated with 140kt min3Good | D35: 6 / 140kt | E35: 2160 | F35: -10 | G35: 80 | H35: 180 | I35: 110 | J35: 310 | K35: 100 | L35: 150 | M35: INOP
A36: ELEC EMER CONFIG REF DIST calculated with 140kt min | B36: 3 | C36: ELEC EMER CONFIG REF DIST calculated with 140kt min3Good | D36: 10 / 140kt | E36: 2210 | F36: -10 | G36: 80 | H36: 180 | I36: 110 | J36: 300 | K36: 110 | L36: 140 | M36: INOP
A38: Good to Medium
A39: AC BUS 1 FAULT | B39: FULL | C39: =CONCATENATE(A39,B39,$A$38) -> AC BUS 1 FAULTFULLGood to Medium | D39: 0 | E39: 1760 | F39: -20 | G39: 40 | H39: 100 | I39: 70 | J39: 200 | K39: 60 | L39: 80 | M39: -70
A40: AC BUS 1 FAULT | B40: 3 | C40: =CONCATENATE(A40,B40,$A$38) -> AC BUS 1 FAULT3Good to Medium | D40: 6 | E40: 1930 | F40: -20 | G40: 40 | H40: 110 | I40: 70 | J40: 210 | K40: 70 | L40: 90 | M40: -90
A41: DC BUS 2 FAULT | B41: FULL | C41: DC BUS 2 FAULTFULLGood to Medium | D41: 0 | E41: 2040 | F41: -20 | G41: 40 | H41: 140 | I41: 80 | J41: 220 | K41: 80 | L41: 130 | M41: -140
A42: DC BUS 2 FAULT | B42: 3 | C42: DC BUS 2 FAULT3Good to Medium | D42: 6 | E42: 2210 | F42: -20 | G42: 40 | H42: 140 | I42: 80 | J42: 230 | K42: 80 | L42: 140 | M42: -160
A43: DC BUS 1+2 FAULT | B43: FULL | C43: DC BUS 1+2 FAULTFULLGood to Medium | D43: 0 | E43: 2060 | F43: -20 | G43: 50 | H43: 140 | I43: 80 | J43: 230 | K43: 70 | L43: 130 | M43: INOP
A44: DC BUS 1+2 FAULT | B44: 3 | C44: DC BUS 1+2 FAULT3Good to Medium | D44: 6 | E44: 2230 | F44: -20 | G44: 60 | H44: 150 | I44: 90 | J44: 240 | K44: 80 | L44: 150 | M44: INOP
A45: DC ESS BUS FAULT (if no Ice Accretion) | B45: FULL | C45: DC ESS BUS FAULT (if no Ice Accretion)FULLGood to Medium | D45: 0 | E45: 1790 | F45: -20 | G45: 40 | H45: 110 | I45: 70 | J45: 200 | K45: 60 | L45: 90 | M45: -110
A46: DC ESS BUS FAULT (if no Ice Accretion) | B46: 3 | C46: DC ESS BUS FAULT (if no Ice Accretion)3Good to Medium | D46: 6 | E46: 1970 | F46: -20 | G46: 40 | H46: 110 | I46: 70 | J46: 220 | K46: 70 | L46: 100 | M46: -130
A47: DC ESS BUS FAULT (if Ice Accretion) | B47: FULL | C47: DC ESS BUS FAULT (if Ice Accretion)FULLGood to Medium | D47: 10 | E47: 1970 | F47: -20 | G47: 40 | H47: 100 | I47: 70 | J47: 210 | K47: 60 | L47: 100 | M47: -120
A48: DC ESS BUS FAULT (if Ice Accretion) | B48: 3 | C48: DC ESS BUS FAULT (if Ice Accretion)3Good to Medium | D48: 16 | E48: 2150 | F48: -20 | G48: 40 | H48: 110 | I48: 80 | J48: 210 | K48: 80 | L48: 110 | M48: -150
A49: DC ESS SHED BUS (if Ice Accretion) | B49: FULL | C49: DC ESS SHED BUS (if Ice Accretion)FULLGood to Medium | D49: 10 | E49: 1870 | F49: -20 | G49: 40 | H49: 90 | I49: 70 | J49: 200 | K49: 60 | L49: 80 | M49: -80
A50: DC ESS SHED BUS (if Ice Accretion) | B50: 3 | C50: DC ESS SHED BUS (if Ice Accretion)3Good to Medium | D50: 16 | E50: 2050 | F50: -20 | G50: 40 | H50: 90 | I50: 80 | J50: 200 | K50: 70 | L50: 90 | M50: -90
A51: DC EMER CONFIG REF DIST calculated with 140kt min | B51: FULL | C51: DC EMER CONFIG REF DIST calculated with 140kt minFULLGood to Medium | D51: 0 / 140kt | E51: 2160 | F51: -10 | G51: 50 | H51: 140 | I51: 80 | J51: 230 | K51: 80 | L51: 140 | M51: INOP
A52: DC EMER CONFIG REF DIST calculated with 140kt min | B52: 3 | C52: DC EMER CONFIG REF DIST calculated with 140kt min3Good to Medium | D52: 6 / 140kt | E52: 2230 | F52: -10 | G52: 60 | H52: 150 | I52: 90 | J52: 230 | K52: 80 | L52: 150 | M52: INOP
A53: ELEC EMER CONFIG REF DIST calculated with 140kt min | B53: 3 | C53: ELEC EMER CONFIG REF DIST calculated with 140kt min3Good to Medium | D53: 10 / 140kt | E53: 2270 | F53: -10 | G53: 60 | H53: 140 | I53: 90 | J53: 230 | K53: 80 | L53: 140 | M53: INOP
A55: Medium
A56: AC BUS 1 FAULT | B56: FULL | C56: =CONCATENATE(A56,B56,$A$55) -> AC BUS 1 FAULTFULLMedium | D56: 0 | E56: 1970 | F56: -20 | G56: 40 | H56: 110 | I56: 70 | J56: 230 | K56: 70 | L56: 120 | M56: -100
A57: AC BUS 1 FAULT | B57: 3 | C57: =CONCATENATE(A57,B57,$A$55) -> AC BUS 1 FAULT3Medium | D57: 6 | E57: 2180 | F57: -20 | G57: 40 | H57: 120 | I57: 80 | J57: 240 | K57: 80 | L57: 140 | M57: -120
A58: DC BUS 2 FAULT | B58: FULL | C58: DC BUS 2 FAULTFULLMedium | D58: 0 | E58: 2330 | F58: -20 | G58: 50 | H58: 150 | I58: 90 | J58: 270 | K58: 80 | L58: 190 | M58: -200
A59: DC BUS 2 FAULT | B59: 3 | C59: DC BUS 2 FAULT3Medium | D59: 6 | E59: 2530 | F59: -20 | G59: 50 | H59: 160 | I59: 100 | J59: 280 | K59: 90 | L59: 210 | M59: -230
A60: DC BUS 1+2 FAULT | B60: FULL | C60: DC BUS 1+2 FAULTFULLMedium | D60: 0 | E60: 2360 | F60: -20 | G60: 50 | H60: 160 | I60: 90 | J60: 270 | K60: 90 | L60: 200 | M60: INOP
A61: DC BUS 1+2 FAULT | B61: 3 | C61: DC BUS 1+2 FAULT3Medium | D61: 6 | E61: 2570 | F61: -20 | G61: 50 | H61: 170 | I61: 100 | J61: 280 | K61: 100 | L61: 230 | M61: INOP
A62: DC ESS BUS FAULT (if no Ice Accretion) | B62: FULL | C62: DC ESS BUS FAULT (if no Ice Accretion)FULLMedium | D62: 0 | E62: 2030 | F62: -20 | G62: 40 | H62: 120 | I62: 80 | J62: 240 | K62: 70 | L62: 130 | M62: -170
A63: DC ESS BUS FAULT (if no Ice Accretion) | B63: 3 | C63: DC ESS BUS FAULT (if no Ice Accretion)3Medium | D63: 6 | E63: 2250 | F63: -20 | G63: 40 | H63: 120 | I63: 90 | J63: 260 | K63: 80 | L63: 160 | M63: -200
A64: DC ESS BUS FAULT (if Ice Accretion) | B64: FULL | C64: DC ESS BUS FAULT (if Ice Accretion)FULLMedium | D64: 10 | E64: 2220 | F64: -20 | G64: 40 | H64: 110 | I64: 80 | J64: 250 | K64: 80 | L64: 140 | M64: -180
A65: DC ESS BUS FAULT (if Ice Accretion) | B65: 3 | C65: DC ESS BUS FAULT (if Ice Accretion)3Medium | D65: 16 | E65: 2450 | F65: -20 | G65: 50 | H65: 120 | I65: 90 | J65: 260 | K65: 90 | L65: 160 | M65: -220
A66: DC ESS SHED BUS (if Ice Accretion) | B66: FULL | C66: DC ESS SHED BUS (if Ice Accretion)FULLMedium | D66: 10 | E66: 2080 | F66: -20 | G66: 40 | H66: 100 | I66: 80 | J66: 230 | K66: 80 | L66: 110 | M66: -110
A67: DC ESS SHED BUS (if Ice Accretion) | B67: 3 | C67: DC ESS SHED BUS (if Ice Accretion)3Medium | D67: 16 | E67: 2300 | F67: -20 | G67: 40 | H67: 110 | I67: 90 | J67: 240 | K67: 80 | L67: 130 | M67: -130
A68: DC EMER CONFIG REF DIST calculated with 140kt min | B68: FULL | C68: DC EMER CONFIG REF DIST calculated with 140kt minFULLMedium | D68: 0 / 140kt | E68: 2480 | F68: -10 | G68: 50 | H68: 150 | I68: 100 | J68: 280 | K68: 90 | L68: 210 | M68: INOP
A69: DC EMER CONFIG REF DIST calculated with 140kt min | B69: 3 | C69: DC EMER CONFIG REF DIST calculated with 140kt min3Medium | D69: 6 / 140kt | E69: 2580 | F69: -10 | G69: 50 | H69: 170 | I69: 100 | J69: 280 | K69: 100 | L69: 220 | M69: INOP
A70: ELEC EMER CONFIG REF DIST calculated with 140kt min | B70: 3 | C70: ELEC EMER CONFIG REF DIST calculated with 140kt min3Medium | D70: 10 / 140kt | E70: 2580 | F70: -10 | G70: 50 | H70: 160 | I70: 100 | J70: 270 | K70: 100 | L70: 200 | M70: INOP
A72: Medium to Poor
A73: AC BUS 1 FAULT | B73: FULL | C73: =CONCATENATE(A73,B73,$A$72) -> AC BUS 1 FAULTFULLMedium to Poor | D73: 0 | E73: 2250 | F73: -30 | G73: 70 | H73: 170 | I73: 130 | J73: 380 | K73: 110 | L73: 180 | M73: -120
A74: AC BUS 1 FAULT | B74: 3 | C74: =CONCATENATE(A74,B74,$A$72) -> AC BUS 1 FAULT3Medium to Poor | D74: 6 | E74: 2600 | F74: -40 | G74: 90 | H74: 200 | I74: 150 | J74: 430 | K74: 150 | L74: 240 | M74: -150
A75: DC BUS 2 FAULT | B75: FULL | C75: DC BUS 2 FAULTFULLMedium to Poor | D75: 0 | E75: 2730 | F75: -40 | G75: 90 | H75: 250 | I75: 170 | J75: 500 | K75: 160 | L75: 330 | M75: -240
A76: DC BUS 2 FAULT | B76: 3 | C76: DC BUS 2 FAULT3Medium to Poor | D76: 6 | E76: 3150 | F76: -40 | G76: 100 | H76: 280 | I76: 200 | J76: 570 | K76: 190 | L76: 440 | M76: -300
A77: DC BUS 1+2 FAULT | B77: FULL | C77: DC BUS 1+2 FAULTFULLMedium to Poor | D77: 0 | E77: 2800 | F77: -40 | G77: 90 | H77: 260 | I77: 180 | J77: 540 | K77: 150 | L77: 370 | M77: INOP
A78: DC BUS 1+2 FAULT | B78: 3 | C78: DC BUS 1+2 FAULT3Medium to Poor | D78: 6 | E78: 3240 | F78: -50 | G78: 110 | H78: 300 | I78: 220 | J78: 630 | K78: 190 | L78: 500 | M78: INOP
A79: DC ESS BUS FAULT (if no Ice Accretion) | B79: FULL | C79: DC ESS BUS FAULT (if no Ice Accretion)FULLMedium to Poor | D79: 0 | E79: 2330 | F79: -30 | G79: 80 | H79: 180 | I79: 140 | J79: 420 | K79: 120 | L79: 210 | M79: -190
A80: DC ESS BUS FAULT (if no Ice Accretion) | B80: 3 | C80: DC ESS BUS FAULT (if no Ice Accretion)3Medium to Poor | D80: 6 | E80: 2710 | F80: -40 | G80: 90 | H80: 210 | I80: 170 | J80: 490 | K80: 140 | L80: 280 | M80: -240
A81: DC ESS BUS FAULT (if Ice Accretion) | B81: FULL | C81: DC ESS BUS FAULT (if Ice Accretion)FULLMedium to Poor | D81: 10 | E81: 2590 | F81: -30 | G81: 80 | H81: 170 | I81: 150 | J81: 430 | K81: 130 | L81: 230 | M81: -220
A82: DC ESS BUS FAULT (if Ice Accretion) | B82: 3 | C82: DC ESS BUS FAULT (if Ice Accretion)3Medium to Poor | D82: 16 | E82: 3020 | F82: -40 | G82: 90 | H82: 200 | I82: 180 | J82: 500 | K82: 160 | L82: 310 | M82: -300
A83: DC ESS SHED BUS (if Ice Accretion) | B83: FULL | C83: DC ESS SHED BUS (if Ice Accretion)FULLMedium to Poor | D83: 10 | E83: 2410 | F83: -30 | G83: 70 | H83: 150 | I83: 130 | J83: 370 | K83: 120 | L83: 170 | M83: -130
A84: DC ESS SHED BUS (if Ice Accretion) | B84: 3 | C84: DC ESS SHED BUS (if Ice Accretion)3Medium to Poor | D84: 16 | E84: 2780 | F84: -30 | G84: 80 | H84: 170 | I84: 150 | J84: 420 | K84: 150 | L84: 230 | M84: -170
A85: DC EMER CONFIG REF DIST calculated with 140kt min | B85: FULL | C85: DC EMER CONFIG REF DIST calculated with 140kt minFULLMedium to Poor | D85: 0 / 140kt | E85: 2960 | F85: -10 | G85: 90 | H85: 250 | I85: 190 | J85: 540 | K85: 170 | L85: 380 | M85: INOP
A86: DC EMER CONFIG REF DIST calculated with 140kt min | B86: 3 | C86: DC EMER CONFIG REF DIST calculated with 140kt min3Medium to Poor | D86: 6 / 140kt | E86: 3240 | F86: -10 | G86: 110 | H86: 300 | I86: 220 | J86: 620 | K86: 200 | L86: 490 | M86: INOP
A87: ELEC EMER CONFIG REF DIST calculated with 140kt min | B87: 3 | C87: ELEC EMER CONFIG REF DIST calculated with 140kt min3Medium to Poor | D87: 10 / 140kt | E87: 3230 | F87: -20 | G87: 100 | H87: 260 | I87: 190 | J87: 540 | K87: 200 | L87: 420 | M87: INOP
A89: Poor
A90: AC BUS 1 FAULT | B90: FULL | C90: =CONCATENATE(A90,B90,$A$89) -> AC BUS 1 FAULTFULLPoor | D90: 0 | E90: 3690 | F90: -30 | G90: 70 | H90: 150 | I90: 140 | J90: 580 | K90: 170 | L90: 1 010 | M90: -360
A91: AC BUS 1 FAULT | B91: 3 | C91: =CONCATENATE(A91,B91,$A$89) -> AC BUS 1 FAULT3Poor | D91: 6 | E91: 4260 | F91: -40 | G91: 80 | H91: 180 | I91: 170 | J91: 620 | K91: 200 | L91: 1 250 | M91: -480
A92: DC BUS 2 FAULT | B92: FULL | C92: DC BUS 2 FAULTFULLPoor | D92: 0 | E92: Landing Distance greater than 6 000 m for all conditions
A93: DC BUS 2 FAULT | B93: 3 | C93: DC BUS 2 FAULT3Poor | D93: 6 | E93: Landing Distance greater than 6 000 m for all conditions
A94: DC BUS 1+2 FAULT | B94: FULL | C94: DC BUS 1+2 FAULTFULLPoor | D94: 0 | E94: Landing Distance greater than 6 000 m for all conditions
A95: DC BUS 1+2 FAULT | B95: 3 | C95: DC BUS 1+2 FAULT3Poor | D95: 6 | E95: Landing Distance greater than 6 000 m for all conditions
A96: DC ESS BUS FAULT (if no Ice Accretion) | B96: FULL | C96: DC ESS BUS FAULT (if no Ice Accretion)FULLPoor | D96: 0 | E96: Landing Distance greater than 6 000 m for all conditions
A97: DC ESS BUS FAULT (if no Ice Accretion) | B97: 3 | C97: DC ESS BUS FAULT (if no Ice Accretion)3Poor | D97: 6 | E97: Landing Distance greater than 6 000 m for all conditions
A98: DC ESS BUS FAULT (if Ice Accretion) | B98: FULL | C98: DC ESS BUS FAULT (if Ice Accretion)FULLPoor | D98: 10 | E98: Landing Distance greater than 6 000 m for all conditions
A99: DC ESS BUS FAULT (if Ice Accretion) | B99: 3 | C99: DC ESS BUS FAULT (if Ice Accretion)3Poor | D99: 16 | E99: Landing Distance greater than 6 000 m for all conditions
A100: DC ESS SHED BUS (if Ice Accretion) | B100: FULL | C100: DC ESS SHED BUS (if Ice Accretion)FULLPoor | D100: 10 | E100: 3770 | F100: -30 | G100: 70 | H100: 140 | I100: 150 | J100: 570 | K100: 170 | L100: 930 | M100: -450
A101: DC ESS SHED BUS (if Ice Accretion) | B101: 3 | C101: DC ESS SHED BUS (if Ice Accretion)3Poor | D101: 16 | E101: 4360 | F101: -40 | G101: 80 | H101: 160 | I101: 170 | J101: 610 | K101: 200 | L101: 1 150 | M101: -580
A102: DC EMER CONFIG REF DIST calculated with 140kt min | B102: FULL | C102: DC EMER CONFIG REF DIST calculated with 140kt minFULLPoor | D102: 0 / 140kt | E102: Landing Distance greater than 6 000 m for all conditions
A103: DC EMER CONFIG REF DIST calculated with 140kt min | B103: 3 | C103: DC EMER CONFIG REF DIST calculated with 140kt min3Poor | D103: 6 / 140kt | E103: Landing Distance greater than 6 000 m for all conditions
A104: ELEC EMER CONFIG REF DIST calculated with 140kt min | B104: 3 | C104: ELEC EMER CONFIG REF DIST calculated with 140kt min3Poor | D104: 10 / 140kt | E104: Landing Distance greater than 6 000 m for all conditions
A106: FLIGHT CONTROLS SYSTEM
A107: Dry
A108: Corrections on Landing Distance (m) | F108: WEIGHT | H108: SPD | I108: ALT | J108: WIND | K108: TEMP | L108: SLOPE | M108: REV
A109: FAILURE | B109: FLAPS LEVER for LDG | D109: AVREF | E109: REF DIST (m) for 66T | F109: Per 1T BELOW 66T | G109: Per 1T ABOVE 66T | H109: Per 5kt | I109: Per 1000ft above SL | J109: Per 5kt TW | K109: Per 10°C ABOVE ISA | L109: Per 1% Down Slope | M109: Per Thrust Reverser Operative
A110: ONE SPLR FAULT (if no SPOILER runaway suspected) | B110: FULL | C110: =CONCATENATE(A110,B110,$A$107) -> ONE SPLR FAULT (if no SPOILER runaway suspected)FULLDry | D110: 0 | E110: 1170 | F110: -10 | G110: 40 | H110: 70 | I110: 40 | J110: 120 | K110: 40 | L110: 20 | M110: -20
A111: ONE SPLR FAULT (if no SPOILER runaway suspected) | B111: 3 | C111: =CONCATENATE(A111,B111,$A$107) -> ONE SPLR FAULT (if no SPOILER runaway suspected)3Dry | D111: 6 | E111: 1240 | F111: -10 | G111: 50 | H111: 80 | I111: 50 | J111: 130 | K111: 40 | L111: 30 | M111: -20
A112: ONE SPLR FAULT (if SPOILER runaway suspected) | B112: 3 | C112: ONE SPLR FAULT (if SPOILER runaway suspected)3Dry | D112: 10 | E112: 1300 | F112: -10 | G112: 50 | H112: 80 | I112: 50 | J112: 130 | K112: 40 | L112: 20 | M112: -20
A113: TWO SPLR FAULT/ GND SPLR 1+2(3+4) FAULT | B113: FULL | C113: TWO SPLR FAULT/ GND SPLR 1+2(3+4) FAULTFULLDry | D113: 0 | E113: 1210 | F113: -10 | G113: 40 | H113: 90 | I113: 40 | J113: 120 | K113: 40 | L113: 30 | M113: -20
A114: TWO SPLR FAULT/ GND SPLR 1+2(3+4) FAULT | B114: 3 | C114: =CONCATENATE(A114,B114,$A$107) -> TWO SPLR FAULT/ GND SPLR 1+2(3+4) FAULT3Dry | D114: 6 | E114: 1280 | F114: -10 | G114: 50 | H114: 80 | I114: 50 | J114: 130 | K114: 40 | L114: 30 | M114: -20
A115: THREE SPLR FAULT | B115: FULL | C115: THREE SPLR FAULTFULLDry | D115: 0 | E115: 1260 | F115: -10 | G115: 40 | H115: 90 | I115: 40 | J115: 120 | K115: 40 | L115: 30 | M115: -20
A116: THREE SPLR FAULT | B116: 3 | C116: THREE SPLR FAULT3Dry | D116: 6 | E116: 1330 | F116: -10 | G116: 40 | H116: 90 | I116: 50 | J116: 130 | K116: 40 | L116: 30 | M116: -30
A117: ALL SPLR FAULT | B117: FULL | C117: ALL SPLR FAULTFULLDry | D117: 0 | E117: 1380 | F117: -10 | G117: 40 | H117: 120 | I117: 50 | J117: 130 | K117: 50 | L117: 40 | M117: -40
A118: ALL SPLR FAULT | B118: 3 | C118: ALL SPLR FAULT3Dry | D118: 6 | E118: 1440 | F118: -10 | G118: 40 | H118: 110 | I118: 50 | J118: 130 | K118: 50 | L118: 40 | M118: -40
A119: GND SPLR FAULT | B119: FULL | C119: GND SPLR FAULTFULLDry | D119: 0 | E119: 1380 | F119: -10 | G119: 40 | H119: 120 | I119: 50 | J119: 130 | K119: 50 | L119: 40 | M119: -40
A120: GND SPLR FAULT | B120: 3 | C120: GND SPLR FAULT3Dry | D120: 6 | E120: 1440 | F120: -10 | G120: 40 | H120: 110 | I120: 50 | J120: 130 | K120: 50 | L120: 40 | M120: -40
A121: SEC 1 or SEC 3 FAULT | B121: FULL | C121: SEC 1 or SEC 3 FAULTFULLDry | D121: 0 | E121: 1170 | F121: -10 | G121: 40 | H121: 80 | I121: 40 | J121: 120 | K121: 40 | L121: 20 | M121: -20
A122: SEC 1 or SEC 3 FAULT | B122: 3 | C122: SEC 1 or SEC 3 FAULT3Dry | D122: 6 | E122: 1250 | F122: -10 | G122: 50 | H122: 80 | I122: 50 | J122: 130 | K122: 40 | L122: 30 | M122: -20
A123: SEC 2 FAULT | B123: FULL | C123: SEC 2 FAULTFULLDry | D123: 0 | E123: 1140 | F123: -10 | G123: 40 | H123: 70 | I123: 40 | J123: 130 | K123: 40 | L123: 20 | M123: -10
A124: SEC 2 FAULT | B124: 3 | C124: SEC 2 FAULT3Dry | D124: 6 | E124: 1230 | F124: -10 | G124: 50 | H124: 80 | I124: 40 | J124: 120 | K124: 50 | L124: 30 | M124: -20
A125: SEC 2+3 FAULT | B125: FULL | C125: SEC 2+3 FAULTFULLDry | D125: 0 | E125: 1250 | F125: -10 | G125: 40 | H125: 90 | I125: 40 | J125: 120 | K125: 40 | L125: 30 | M125: -20
A126: SEC 2+3 FAULT | B126: 3 | C126: SEC 2+3 FAULT3Dry | D126: 6 | E126: 1320 | F126: -10 | G126: 40 | H126: 80 | I126: 50 | J126: 130 | K126: 40 | L126: 30 | M126: -20
A127: SEC 1+3 FAULT | B127: FULL | C127: SEC 1+3 FAULTFULLDry | D127: 0 | E127: 1310 | F127: -10 | G127: 40 | H127: 100 | I127: 50 | J127: 120 | K127: 50 | L127: 40 | M127: -30
A128: SEC 1+3 FAULT | B128: 3 | C128: SEC 1+3 FAULT3Dry | D128: 6 | E128: 1380 | F128: -10 | G128: 40 | H128: 100 | I128: 50 | J128: 130 | K128: 50 | L128: 40 | M128: -30
A129: SEC 1+2 FAULT | B129: FULL | C129: SEC 1+2 FAULTFULLDry | D129: 0 | E129: 1200 | F129: -10 | G129: 40 | H129: 80 | I129: 40 | J129: 120 | K129: 40 | L129: 30 | M129: -20
A130: SEC 1+2 FAULT | B130: 3 | C130: SEC 1+2 FAULT3Dry | D130: 6 | E130: 1280 | F130: -10 | G130: 50 | H130: 80 | I130: 50 | J130: 130 | K130: 40 | L130: 30 | M130: -20
A131: RUDDER JAM | B131: FULL | C131: RUDDER JAMFULLDry | D131: 0 | E131: 1270 | F131: -10 | G131: 60 | H131: 110 | I131: 60 | J131: 150 | K131: 50 | L131: 40 | M131: -20
A132: RUDDER JAM | B132: 3 | C132: RUDDER JAM3Dry | D132: 6 | E132: 1420 | F132: -20 | G132: 60 | H132: 110 | I132: 70 | J132: 160 | K132: 60 | L132: 40 | M132: -20
A133: SEC 1+2+3 FAULT | B133: 3 | C133: SEC 1+2+3 FAULT3Dry | D133: 10 | E133: 1510 | F133: -10 | G133: 40 | H133: 120 | I133: 60 | J133: 140 | K133: 50 | L133: 40 | M133: INOP
A134: ALTN LAW/DIRECT LAW/ ELAC 1+2/L+R ELEV FAULT/L(R) ELEV FAULT/ STAB JAM | B134: 3 | C134: ALTN LAW/DIRECT LAW/ ELAC 1+2/L+R ELEV FAULT/L(R) ELEV FAULT/ STAB JAM3Dry | D134: 10 | E134: 1280 | F134: -10 | G134: 50 | H134: 80 | I134: 50 | J134: 120 | K134: 50 | L134: 30 | M134: -20
A136: Good
A137: ONE SPLR FAULT (if no SPOILER runaway suspected) | B137: FULL | C137: =CONCATENATE(A137,B137,$A$136) -> ONE SPLR FAULT (if no SPOILER runaway suspected)FULLGood | D137: 0 | E137: 1560 | F137: -20 | G137: 50 | H137: 130 | I137: 80 | J137: 230 | K137: 70 | L137: 60 | M137: -50
A138: ONE SPLR FAULT (if no SPOILER runaway suspected) | B138: 3 | C138: =CONCATENATE(A138,B138,$A$136) -> ONE SPLR FAULT (if no SPOILER runaway suspected)3Good | D138: 6 | E138: 1720 | F138: -20 | G138: 60 | H138: 140 | I138: 90 | J138: 250 | K138: 90 | L138: 80 | M138: -60
A139: ONE SPLR FAULT (if SPOILER runaway suspected) | B139: 3 | C139: ONE SPLR FAULT (if SPOILER runaway suspected)3Good | D139: 10 | E139: 1810 | F139: -20 | G139: 60 | H139: 140 | I139: 100 | J139: 260 | K139: 80 | L139: 80 | M139: -60
A140: TWO SPLR FAULT/ GND SPLR 1+2(3+4) FAULT | B140: FULL | C140: TWO SPLR FAULT/ GND SPLR 1+2(3+4) FAULTFULLGood | D140: 0 | E140: 1670 | F140: -20 | G140: 60 | H140: 150 | I140: 90 | J140: 250 | K140: 80 | L140: 80 | M140: -60
A141: TWO SPLR FAULT/ GND SPLR 1+2(3+4) FAULT | B141: 3 | C141: TWO SPLR FAULT/ GND SPLR 1+2(3+4) FAULT3Good | D141: 6 | E141: 1840 | F141: -20 | G141: 60 | H141: 160 | I141: 100 | J141: 280 | K141: 90 | L141: 100 | M141: -70
A142: THREE SPLR FAULT | B142: FULL | C142: THREE SPLR FAULTFULLGood | D142: 0 | E142: 1770 | F142: -20 | G142: 60 | H142: 170 | I142: 100 | J142: 270 | K142: 90 | L142: 100 | M142: -70
A143: THREE SPLR FAULT | B143: 3 | C143: THREE SPLR FAULT3Good | D143: 6 | E143: 1940 | F143: -20 | G143: 70 | H143: 190 | I143: 110 | J143: 290 | K143: 100 | L143: 120 | M143: -90
A144: ALL SPLR FAULT | B144: FULL | C144: ALL SPLR FAULTFULLGood | D144: 0 | E144: 2070 | F144: -30 | G144: 70 | H144: 260 | I144: 120 | J144: 330 | K144: 110 | L144: 180 | M144: -120
A145: ALL SPLR FAULT | B145: 3 | C145: ALL SPLR FAULT3Good | D145: 6 | E145: 2240 | F145: -30 | G145: 80 | H145: 270 | I145: 130 | J145: 350 | K145: 130 | L145: 200 | M145: -130
A146: GND SPLR FAULT | B146: FULL | C146: GND SPLR FAULTFULLGood | D146: 0 | E146: 2070 | F146: -30 | G146: 70 | H146: 260 | I146: 120 | J146: 330 | K146: 110 | L146: 180 | M146: -120
A147: GND SPLR FAULT | B147: 3 | C147: GND SPLR FAULT3Good | D147: 6 | E147: 2240 | F147: -30 | G147: 80 | H147: 270 | I147: 130 | J147: 350 | K147: 130 | L147: 200 | M147: -130
A148: SEC 1 or SEC 3 FAULT | B148: FULL | C148: SEC 1 or SEC 3 FAULTFULLGood | D148: 0 | E148: 1580 | F148: -20 | G148: 50 | H148: 130 | I148: 80 | J148: 230 | K148: 70 | L148: 70 | M148: -50
A149: SEC 1 or SEC 3 FAULT | B149: 3 | C149: SEC 1 or SEC 3 FAULT3Good | D149: 6 | E149: 1760 | F149: -20 | G149: 60 | H149: 150 | I149: 100 | J149: 260 | K149: 80 | L149: 80 | M149: -60
A150: SEC 2 FAULT | B150: FULL | C150: SEC 2 FAULTFULLGood | D150: 0 | E150: 1510 | F150: -20 | G150: 50 | H150: 120 | I150: 70 | J150: 220 | K150: 70 | L150: 60 | M150: -40
A151: SEC 2 FAULT | B151: 3 | C151: SEC 2 FAULT3Good | D151: 6 | E151: 1680 | F151: -20 | G151: 60 | H151: 130 | I151: 90 | J151: 240 | K151: 80 | L151: 70 | M151: -50
A152: SEC 2+3 FAULT | B152: FULL | C152: SEC 2+3 FAULTFULLGood | D152: 0 | E152: 1740 | F152: -20 | G152: 60 | H152: 160 | I152: 90 | J152: 260 | K152: 80 | L152: 90 | M152: -70
A153: SEC 2+3 FAULT | B153: 3 | C153: SEC 2+3 FAULT3Good | D153: 6 | E153: 1910 | F153: -20 | G153: 60 | H153: 180 | I153: 110 | J153: 290 | K153: 90 | L153: 110 | M153: -80
A154: SEC 1+3 FAULT | B154: FULL | C154: SEC 1+3 FAULTFULLGood | D154: 0 | E154: 1880 | F154: -20 | G154: 70 | H154: 200 | I154: 100 | J154: 290 | K154: 100 | L154: 130 | M154: -100
A155: SEC 1+3 FAULT | B155: 3 | C155: SEC 1+3 FAULT3Good | D155: 6 | E155: 2060 | F155: -20 | G155: 70 | H155: 220 | I155: 120 | J155: 310 | K155: 110 | L155: 150 | M155: -120
A156: SEC 1+2 FAULT | B156: FULL | C156: SEC 1+2 FAULTFULLGood | D156: 0 | E156: 1650 | F156: -20 | G156: 60 | H156: 150 | I156: 90 | J156: 250 | K156: 80 | L156: 80 | M156: -60
A157: SEC 1+2 FAULT | B157: 3 | C157: SEC 1+2 FAULT3Good | D157: 6 | E157: 1830 | F157: -20 | G157: 60 | H157: 160 | I157: 100 | J157: 270 | K157: 90 | L157: 100 | M157: -80
A158: RUDDER JAM | B158: FULL | C158: RUDDER JAMFULLGood | D158: 0 | E158: 1680 | F158: -20 | G158: 60 | H158: 140 | I158: 100 | J158: 270 | K158: 80 | L158: 80 | M158: -50
A159: RUDDER JAM | B159: 3 | C159: RUDDER JAM3Good | D159: 6 | E159: 1920 | F159: -20 | G159: 70 | H159: 160 | I159: 120 | J159: 300 | K159: 100 | L159: 110 | M159: -80
A160: SEC 1+2+3 FAULT | B160: 3 | C160: SEC 1+2+3 FAULT3Good | D160: 10 | E160: 2390 | F160: -30 | G160: 80 | H160: 280 | I160: 140 | J160: 360 | K160: 140 | L160: 220 | M160: INOP
A161: ALTN LAW/DIRECT LAW/ ELAC 1+2/L+R ELEV FAULT/L(R) ELEV FAULT/ STAB JAM | B161: 3 | C161: ALTN LAW/DIRECT LAW/ ELAC 1+2/L+R ELEV FAULT/L(R) ELEV FAULT/ STAB JAM3Good | D161: 10 | E161: 1710 | F161: -20 | G161: 50 | H161: 120 | I161: 90 | J161: 240 | K161: 70 | L161: 60 | M161: -50
A163: Good to Medium
A164: ONE SPLR FAULT (if no SPOILER runaway suspected) | B164: FULL | C164: =CONCATENATE(A164,B164,$A$163) -> ONE SPLR FAULT (if no SPOILER runaway suspected)FULLGood to Medium | D164: 0 | E164: 1820 | F164: -20 | G164: 40 | H164: 110 | I164: 70 | J164: 200 | K164: 70 | L164: 90 | M164: -90
A165: ONE SPLR FAULT (if no SPOILER runaway suspected) | B165: 3 | C165: =CONCATENATE(A165,B165,$A$163) -> ONE SPLR FAULT (if no SPOILER runaway suspected)3Good to Medium | D165: 6 | E165: 1980 | F165: -20 | G165: 40 | H165: 110 | I165: 70 | J165: 210 | K165: 70 | L165: 100 | M165: -100
A166: ONE SPLR FAULT (if SPOILER runaway suspected) | B166: 3 | C166: ONE SPLR FAULT (if SPOILER runaway suspected)3Good to Medium | D166: 10 | E166: 2060 | F166: -20 | G166: 40 | H166: 110 | I166: 80 | J166: 210 | K166: 70 | L166: 100 | M166: -110
A167: TWO SPLR FAULT/ GND SPLR 1+2(3+4) FAULT | B167: FULL | C167: TWO SPLR FAULT/ GND SPLR 1+2(3+4) FAULTFULLGood to Medium | D167: 0 | E167: 1950 | F167: -20 | G167: 40 | H167: 120 | I167: 70 | J167: 220 | K167: 70 | L167: 110 | M167: -100
A168: TWO SPLR FAULT/ GND SPLR 1+2(3+4) FAULT | B168: 3 | C168: TWO SPLR FAULT/ GND SPLR 1+2(3+4) FAULT3Good to Medium | D168: 6 | E168: 2100 | F168: -20 | G168: 40 | H168: 130 | I168: 80 | J168: 220 | K168: 80 | L168: 120 | M168: -120
A169: THREE SPLR FAULT | B169: FULL | C169: THREE SPLR FAULTFULLGood to Medium | D169: 0 | E169: 2060 | F169: -20 | G169: 40 | H169: 140 | I169: 80 | J169: 220 | K169: 70 | L169: 130 | M169: -120
A170: THREE SPLR FAULT | B170: 3 | C170: THREE SPLR FAULT3Good to Medium | D170: 6 | E170: 2220 | F170: -20 | G170: 40 | H170: 150 | I170: 80 | J170: 230 | K170: 80 | L170: 140 | M170: -140
A171: ALL SPLR FAULT | B171: FULL | C171: ALL SPLR FAULTFULLGood to Medium | D171: 0 | E171: 2380 | F171: -20 | G171: 50 | H171: 210 | I171: 90 | J171: 250 | K171: 90 | L171: 210 | M171: -190
A172: ALL SPLR FAULT | B172: 3 | C172: ALL SPLR FAULT3Good to Medium | D172: 6 | E172: 2530 | F172: -20 | G172: 50 | H172: 210 | I172: 100 | J172: 260 | K172: 100 | L172: 210 | M172: -200
A173: GND SPLR FAULT | B173: FULL | C173: GND SPLR FAULTFULLGood to Medium | D173: 0 | E173: 2380 | F173: -20 | G173: 50 | H173: 210 | I173: 90 | J173: 250 | K173: 90 | L173: 210 | M173: -190
A174: GND SPLR FAULT | B174: 3 | C174: GND SPLR FAULT3Good to Medium | D174: 6 | E174: 2530 | F174: -20 | G174: 50 | H174: 210 | I174: 100 | J174: 260 | K174: 100 | L174: 210 | M174: -200
A175: SEC 1 or SEC 3 FAULT | B175: FULL | C175: SEC 1 or SEC 3 FAULTFULLGood to Medium | D175: 0 | E175: 1840 | F175: -20 | G175: 40 | H175: 110 | I175: 70 | J175: 200 | K175: 70 | L175: 90 | M175: -90
A176: SEC 1 or SEC 3 FAULT | B176: 3 | C176: SEC 1 or SEC 3 FAULT3Good to Medium | D176: 6 | E176: 2020 | F176: -20 | G176: 40 | H176: 120 | I176: 80 | J176: 210 | K176: 70 | L176: 110 | M176: -110
A177: SEC 2 FAULT | B177: FULL | C177: SEC 2 FAULTFULLGood to Medium | D177: 0 | E177: 1760 | F177: -20 | G177: 40 | H177: 100 | I177: 70 | J177: 200 | K177: 60 | L177: 80 | M177: -80
A178: SEC 2 FAULT | B178: 3 | C178: SEC 2 FAULT3Good to Medium | D178: 6 | E178: 1930 | F178: -20 | G178: 40 | H178: 110 | I178: 70 | J178: 210 | K178: 70 | L178: 90 | M178: -90
A179: SEC 2+3 FAULT | B179: FULL | C179: SEC 2+3 FAULTFULLGood to Medium | D179: 0 | E179: 2020 | F179: -20 | G179: 40 | H179: 140 | I179: 80 | J179: 220 | K179: 70 | L179: 120 | M179: -120
A180: SEC 2+3 FAULT | B180: 3 | C180: SEC 2+3 FAULT3Good to Medium | D180: 6 | E180: 2180 | F180: -20 | G180: 40 | H180: 140 | I180: 80 | J180: 230 | K180: 80 | L180: 130 | M180: -130
A181: SEC 1+3 FAULT | B181: FULL | C181: SEC 1+3 FAULTFULLGood to Medium | D181: 0 | E181: 2180 | F181: -20 | G181: 50 | H181: 160 | I181: 80 | J181: 240 | K181: 80 | L181: 160 | M181: -150
A182: SEC 1+3 FAULT | B182: 3 | C182: SEC 1+3 FAULT3Good to Medium | D182: 6 | E182: 2340 | F182: -20 | G182: 50 | H182: 170 | I182: 90 | J182: 240 | K182: 90 | L182: 170 | M182: -170
A183: SEC 1+2 FAULT | B183: FULL | C183: SEC 1+2 FAULTFULLGood to Medium | D183: 0 | E183: 1920 | F183: -20 | G183: 40 | H183: 120 | I183: 70 | J183: 210 | K183: 70 | L183: 110 | M183: -100
A184: SEC 1+2 FAULT | B184: 3 | C184: SEC 1+2 FAULT3Good to Medium | D184: 6 | E184: 2100 | F184: -20 | G184: 40 | H184: 130 | I184: 80 | J184: 220 | K184: 70 | L184: 120 | M184: -120
A185: RUDDER JAM | B185: FULL | C185: RUDDER JAMFULLGood to Medium | D185: 0 | E185: 1940 | F185: -20 | G185: 50 | H185: 120 | I185: 90 | J185: 240 | K185: 70 | L185: 110 | M185: -100
A186: RUDDER JAM | B186: 3 | C186: RUDDER JAM3Good to Medium | D186: 6 | E186: 2180 | F186: -20 | G186: 50 | H186: 140 | I186: 100 | J186: 260 | K186: 90 | L186: 140 | M186: -130
A187: SEC 1+2+3 FAULT | B187: 3 | C187: SEC 1+2+3 FAULT3Good to Medium | D187: 10 | E187: 2660 | F187: -20 | G187: 50 | H187: 210 | I187: 100 | J187: 260 | K187: 110 | L187: 230 | M187: INOP
A188: ALTN LAW/DIRECT LAW/ ELAC 1+2/L+R ELEV FAULT/L(R) ELEV FAULT/ STAB JAM | B188: 3 | C188: ALTN LAW/DIRECT LAW/ ELAC 1+2/L+R ELEV FAULT/L(R) ELEV FAULT/ STAB JAM3Good to Medium | D188: 10 | E188: 1940 | F188: -20 | G188: 40 | H188: 100 | I188: 70 | J188: 200 | K188: 70 | L188: 90 | M188: -90
A190: Medium
A191: ONE SPLR FAULT (if no SPOILER runaway suspected) | B191: FULL | C191: =CONCATENATE(A191,B191,$A$190) -> ONE SPLR FAULT (if no SPOILER runaway suspected)FULLMedium | D191: 0 | E191: 2040 | F191: -20 | G191: 40 | H191: 120 | I191: 80 | J191: 230 | K191: 80 | L191: 130 | M191: -120
A192: ONE SPLR FAULT (if no SPOILER runaway suspected) | B192: 3 | C192: =CONCATENATE(A192,B192,$A$190) -> ONE SPLR FAULT (if no SPOILER runaway suspected)3Medium | D192: 6 | E192: 2240 | F192: -20 | G192: 50 | H192: 130 | I192: 80 | J192: 250 | K192: 80 | L192: 150 | M192: -140
A193: ONE SPLR FAULT (if SPOILER runaway suspected) | B193: 3 | C193: ONE SPLR FAULT (if SPOILER runaway suspected)3Medium | D193: 10 | E193: 2320 | F193: -20 | G193: 50 | H193: 130 | I193: 90 | J193: 250 | K193: 90 | L193: 150 | M193: -150
A194: TWO SPLR FAULT/ GND SPLR 1+2(3+4) FAULT | B194: FULL | C194: TWO SPLR FAULT/ GND SPLR 1+2(3+4) FAULTFULLMedium | D194: 0 | E194: 2200 | F194: -20 | G194: 50 | H194: 140 | I194: 80 | J194: 250 | K194: 80 | L194: 160 | M194: -140
A195: TWO SPLR FAULT/ GND SPLR 1+2(3+4) FAULT | B195: 3 | C195: TWO SPLR FAULT/ GND SPLR 1+2(3+4) FAULT3Medium | D195: 6 | E195: 2390 | F195: -20 | G195: 50 | H195: 150 | I195: 90 | J195: 260 | K195: 90 | L195: 180 | M195: -170
A196: THREE SPLR FAULT | B196: FULL | C196: THREE SPLR FAULTFULLMedium | D196: 0 | E196: 2330 | F196: -20 | G196: 50 | H196: 160 | I196: 90 | J196: 260 | K196: 90 | L196: 190 | M196: -170
A197: THREE SPLR FAULT | B197: 3 | C197: THREE SPLR FAULT3Medium | D197: 6 | E197: 2530 | F197: -20 | G197: 50 | H197: 170 | I197: 100 | J197: 270 | K197: 100 | L197: 210 | M197: -190
A198: ALL SPLR FAULT | B198: FULL | C198: ALL SPLR FAULTFULLMedium | D198: 0 | E198: 2730 | F198: -30 | G198: 60 | H198: 230 | I198: 110 | J198: 300 | K198: 110 | L198: 300 | M198: -260
A199: ALL SPLR FAULT | B199: 3 | C199: ALL SPLR FAULT3Medium | D199: 6 | E199: 2920 | F199: -30 | G199: 60 | H199: 230 | I199: 120 | J199: 300 | K199: 120 | L199: 310 | M199: -280
A200: GND SPLR FAULT | B200: FULL | C200: GND SPLR FAULTFULLMedium | D200: 0 | E200: 2730 | F200: -30 | G200: 60 | H200: 230 | I200: 110 | J200: 300 | K200: 110 | L200: 300 | M200: -260
A201: GND SPLR FAULT | B201: 3 | C201: GND SPLR FAULT3Medium | D201: 6 | E201: 2920 | F201: -30 | G201: 60 | H201: 230 | I201: 120 | J201: 300 | K201: 120 | L201: 310 | M201: -280
A202: SEC 1 or SEC 3 FAULT | B202: FULL | C202: SEC 1 or SEC 3 FAULTFULLMedium | D202: 0 | E202: 2080 | F202: -20 | G202: 40 | H202: 120 | I202: 80 | J202: 240 | K202: 70 | L202: 130 | M202: -120
A203: SEC 1 or SEC 3 FAULT | B203: 3 | C203: SEC 1 or SEC 3 FAULT3Medium | D203: 6 | E203: 2290 | F203: -20 | G203: 50 | H203: 130 | I203: 90 | J203: 250 | K203: 80 | L203: 160 | M203: -150
A204: SEC 2 FAULT | B204: FULL | C204: SEC 2 FAULTFULLMedium | D204: 0 | E204: 1970 | F204: -20 | G204: 40 | H204: 110 | I204: 70 | J204: 230 | K204: 70 | L204: 120 | M204: -110
A205: SEC 2 FAULT | B205: 3 | C205: SEC 2 FAULT3Medium | D205: 6 | E205: 2180 | F205: -20 | G205: 40 | H205: 120 | I205: 80 | J205: 240 | K205: 80 | L205: 140 | M205: -130
A206: SEC 2+3 FAULT | B206: FULL | C206: SEC 2+3 FAULTFULLMedium | D206: 0 | E206: 2280 | F206: -20 | G206: 50 | H206: 150 | I206: 90 | J206: 260 | K206: 90 | L206: 180 | M206: -160
A207: SEC 2+3 FAULT | B207: 3 | C207: SEC 2+3 FAULT3Medium | D207: 6 | E207: 2480 | F207: -20 | G207: 50 | H207: 160 | I207: 90 | J207: 270 | K207: 100 | L207: 190 | M207: -180
A208: SEC 1+3 FAULT | B208: FULL | C208: SEC 1+3 FAULTFULLMedium | D208: 0 | E208: 2480 | F208: -20 | G208: 50 | H208: 180 | I208: 100 | J208: 280 | K208: 100 | L208: 220 | M208: -200
A209: SEC 1+3 FAULT | B209: 3 | C209: SEC 1+3 FAULT3Medium | D209: 6 | E209: 2680 | F209: -30 | G209: 50 | H209: 190 | I209: 100 | J209: 280 | K209: 110 | L209: 240 | M209: -230
... 441 more rows

Sheet INOP_SYSTEMS (hidden)
F1: =DATOS!E106 -> AC BUS 1 FAULT
A2: DC BUS 1+2 FAULT | B2: Inop pair(s) of spoilers = 1,2,5 | E2: Posición | F2: Inop systems | G2: WARNING | H2: flap position | I2: BRK MODE
A3: DC BUS 1+2 FAULT | B3: Normal braking inop. On wheel(s): 1,2,3,4 | E3: 1 | F3: =IFERROR(INDEX(inopsystems,SMALL(IF(OFFSET(inopsystems,0,0,ROWS(inopsystems),1)=F1,ROW(OFFSET(inopsystems,0,0,ROWS(inopsystems),1))-ROW(OFFSET(inopsystems,0,0,1,1))+1,ROW(OFFSET(inopsystems,ROWS(inopsystems)-1,0,1,1))+1),E3:E36),2),"") ->  | G3: =IFERROR(INDEX(inopsystems,SMALL(IF(OFFSET(inopsystems,0,0,ROWS(inopsystems),1)=F1,ROW(OFFSET(inopsystems,0,0,ROWS(inopsystems),1))-ROW(OFFSET(inopsystems,0,0,1,1))+1,ROW(OFFSET(inopsystems,ROWS(inopsystems)-1,0,1,1))+1),E3:E36),3),"") ->  | H3: =IF(AND(G3="FLAPS LVR POS: 3",LANDING!D27="CONF FULL",LANDING!K9<>"NO ECAM ALERTS"),"warning","") ->  | I3: =IF(AND(G3="Select BRK MODE MANUAL",LANDING!D33<>"Manual (STD)",LANDING!K9<>"NO ECAM ALERTS"),"warning","") -> 
A4: DC BUS 1+2 FAULT | B4: Antiskid off | E4: 2
A5: DC BUS 1+2 FAULT | B5: Inop reversers for engine(s) =1,2 | E5: 3
A6: DC BUS 1+2 FAULT | B6: Ground idle inop = all engines | E6: 4
A7: DC ESS BUS FAULT (if no Ice Accretion) | B7: Inop pair(s) of spoilers = 3 | E7: 5
A8: DC ESS BUS FAULT (if no Ice Accretion) | B8: Inop reversers for engine(s) =2 | E8: 6
A9: DC ESS BUS FAULT (if no Ice Accretion) | B9: Ground idle inop = all engines | E9: 7
A10: DC ESS BUS FAULT (if Ice Accretion) | B10: Inop pair(s) of spoilers = 3 | E10: 8
A11: DC ESS BUS FAULT (if Ice Accretion) | B11: Inop reversers for engine(s) =2 | E11: 9
A12: DC ESS BUS FAULT (if Ice Accretion) | B12: Ground idle inop = all engines | E12: 10
A13: DC EMER CONFIG REF DIST calculated with 140kt min | B13: Inop pair(s) of spoilers = 1,2,5 | E13: 11
A14: DC EMER CONFIG REF DIST calculated with 140kt min | B14: Normal braking inop. On wheel(s): 1,2,3,4 | E14: 12
A15: DC EMER CONFIG REF DIST calculated with 140kt min | B15: Antiskid off | E15: 13
A16: DC EMER CONFIG REF DIST calculated with 140kt min | B16: Nose gear wheel steering inop | E16: 14
A17: DC EMER CONFIG REF DIST calculated with 140kt min | B17: Inop reversers for engine(s) =1,2 | E17: 15
A18: ELEC EMER CONFIG REF DIST calculated with 140kt min | B18: Inop pair(s) of spoilers = 1,2,5 | E18: 16
A19: ELEC EMER CONFIG REF DIST calculated with 140kt min | B19: Normal braking inop. On wheel(s): 1,2,3,4 | E19: 17
A20: ELEC EMER CONFIG REF DIST calculated with 140kt min | B20: Antiskid off | E20: 18
A21: ELEC EMER CONFIG REF DIST calculated with 140kt min | B21: Nose gear wheel steering inop | E21: 19
A22: ELEC EMER CONFIG REF DIST calculated with 140kt min | B22: Inop reversers for engine(s) =1,2 | E22: 20
A23: ONE SPLR FAULT (if no SPOILER runaway suspected) | B23: 1 pair of spoilers inop | E23: 21
A24: ONE SPLR FAULT (if SPOILER runaway suspected) | B24: 1 pair of spoilers inop | E24: 22
A25: TWO SPLR FAULT/ GND SPLR 1+2(3+4) FAULT | B25: 2 pairs of spoilers inop | E25: 23
A26: THREE SPLR FAULT | B26: 3 pairs of spoilers inop | E26: 24
A27: ALL SPLR FAULT | B27: Inop pair(s) of spoilers = 1,2,3,4,5 | E27: 25
A28: GND SPLR FAULT | B28: Inop pair(s) of spoilers = 1,2,3,4,5 | E28: 26
A29: GND SPLR FAULT | B29: 2 ailerons inop | E29: 27
A30: GND SPLR FAULT | B30: Inop reversers for engine(s)= 1,2 | E30: 28
A31: SEC 1 or SEC 3 FAULT | B31: Inop pair(s) of spoilers = 3,4 | E31: 29
A32: SEC 2 FAULT | B32: Inop pair(s) of spoilers = 5 | E32: 30
A33: SEC 2+3 FAULT | B33: Inop pair(s) of spoilers = 3,4,5
A34: SEC 1+3 FAULT | B34: Inop pair(s) of spoilers = 1,2,3,4
A35: SEC 1+2 FAULT | B35: Inop pair(s) of spoilers = 1,2,3,5
A36: RUDDER JAM | B36: Rudder inop
A37: SEC 1+2+3 FAULT | B37: Inop pair(s) of spoilers = 1,2,3,4,5
A38: FLAPS AND SLATS AT 0 | B38: Ground idle inop = all engines
A39: FLAPS<1 | B39: Ground idle inop = all engines | C39: FLAPS LVR POS: 3
A40: 1≤FLAPS<2 | B40: Ground idle inop = all engines | C40: FLAPS LVR POS: 3
A41: 2≤FLAPS<3 | B41: Ground idle inop = all engines | C41: FLAPS LVR POS: 3
A42: FLAPS=3 | B42: Ground idle inop = all engines | C42: FLAPS LVR POS: 3
A43: FLAPS>3 | B43: Ground idle inop = all engines | C43: FLAPS LVR POS: 3
A44: FLAPS FAULT | B44: Ground idle inop = all engines | C44: FLAPS LVR POS: 1+F
A45: SLATS FAULT | B45: - | C45: FLAPS LVR POS: 3
A46: G SYS LO PR | B46: Inop pair(s) of spoilers = 1,5
A47: G SYS LO PR | B47: Normal braking inop. On wheel(s): 1,2,3,4
A48: G SYS LO PR | B48: Inop reversers for engine(s) = 1
A49: B SYS LO PR | B49: Inop pair(s) of spoilers = 3
A50: Y SYS LO PR | B50: Inop pair(s) of spoilers = 2,4
A51: Y SYS LO PR | B51: Nose gear wheel steering inop
A52: Y SYS LO PR | B52: Inop reversers for engine(s) = 2
A53: G + B REF DIST | B53: Inop pair(s) of spoilers = 1,3,5 | C53: FLAPS LVR POS: 3
A54: G + B REF DIST | B54: 2 ailerons inop
A55: G + B REF DIST | B55: Elevator(s) partially inop
A56: G + B REF DIST | B56: Normal braking inop. On wheel(s): 1,2,3,4
A57: G + B REF DIST | B57: Nose gear wheel steering inop
A58: G + B REF DIST | B58: Inop reversers for engine(s) = 1
A59: G + Y | B59: Autobrake System inop (Select BRK MODE MANUAL) | C59: Select BRK MODE MANUAL
A60: ANTISKID FAULT | B60: Normal braking inop. On wheel(s): 1,2,3,4 | C60: Select BRK MODE MANUAL
A61: ANTISKID FAULT | B61: Antiskid off
A62: ONE BRK RELEASED | B62: Inop brakes for wheel(s): 1
A63: TWO BRK RELEASED | B63: Inop brakes for wheel(s): 2
A64: IR 1+2+3 FAULT | B64: Fixed deceleration | C64: FLAPS LVR POS: 3
A65: DUAL IR FAULT/ DUAL ADR FAULT | C65: FLAPS LVR POS: 3
A66: ALL ADR OFF | C66: FLAPS LVR POS: 3
A67: REV UNLOCK (with buffet) | B67: Inop reversers for engine(s) = 1 | C67: FLAPS LVR POS: 1+F
A68: REV UNLOCK (with buffet) | B68: Inop engine(s) = 1
A69: SHUTDOWN (if ENG FIRE pushbutton pushed and if Ice Accretion) | B69: Inop engine(s) = 1 or 2
A70: SHUTDOWN (if ENG FIRE pushbutton pushed and if Ice Accretion) | B70: Inop reversers for engine(s) = 1 or 2
A71: STABILIZER JAM (with man trim not available) | B71: Trim inop | C71: FLAPS LVR POS: 3

Sheet MLW (hidden)
A1: APPROACH CLIMB LIMITING WEIGHT (1000 KG) - CONF 2
A2: ONE ENGINE OUT ONE ENGINE AT GO AROUND THRUST | H2: High Air Conditioning Anti Ice OFF | K2: Gradient : 2.1 % V = 1.23 Vs
A3: OAT (T) | B3: PRESSURE ALTITUDE (FT}
B4: -2000 | C4: 0 | D4: 200 | E4: 400 | F4: 600 | G4: 800 | H4: 1000 | I4: 2000 | J4: 5000 | K4: 9200 | L4: 12000 | M4: 14100
A5: 10 | B5: 84.6 | C5: 83.6 | D5: 83.4 | E5: 83.1 | F5: 82.9 | G5: 82.7 | H5: 82.4 | I5: 81.3 | J5: 81.6 | K5: 73.1 | L5: 65.9 | M5: 60.4
A6: 20 | B6: 84.2 | C6: 83.3 | D6: 83.1 | E6: 82.8 | F6: 82.6 | G6: 82.4 | H6: 82.1 | I6: 81.1 | J6: 81.3 | K6: 70.5 | L6: 60.5 | M6: 54.4
A7: 22 | B7: 84.1 | C7: 83.2 | D7: 83 | E7: 82.8 | F7: 82.5 | G7: 82.3 | H7: 82.1 | I7: 81 | J7: 81.3 | K7: 69.3 | L7: 59.5 | M7: 53.6
A8: 24 | B8: 84.1 | C8: 83.2 | D8: 82.9 | E8: 82.7 | F8: 82.5 | G8: 82.2 | H8: 82 | I8: 81 | J8: 80.9 | K8: 68.1 | L8: 58.6
A9: 26 | B9: 84 | C9: 83.1 | D9: 82.9 | E9: 82.7 | F9: 82.4 | G9: 82.2 | H9: 82 | I9: 80.9 | J9: 79.9 | K9: 66.8 | L9: 57.7
A10: 28 | B10: 83.9 | C10: 83.1 | D10: 82.8 | E10: 82.6 | F10: 82.4 | G10: 82.1 | H10: 81.9 | I10: 80.9 | J10: 79 | K10: 65.7
A11: 30 | B11: 83.9 | C11: 83 | D11: 82.8 | E11: 82.6 | F11: 82.3 | G11: 82.1 | H11: 81.9 | I11: 80.8 | J11: 78 | K11: 64.6
A12: 32 | B12: 83.8 | C12: 83 | D12: 82.8 | E12: 82.5 | F12: 82.3 | G12: 82.1 | H12: 81.8 | I12: 80.8 | J12: 77 | K12: 63.5
A13: 34 | B13: 83.8 | C13: 82.9 | D13: 82.7 | E13: 82.5 | F13: 82.3 | G13: 82 | H13: 81.8 | I13: 80.8 | J13: 76.2 | K13: 62.3
A14: 36 | B14: 83.7 | C14: 82.9 | D14: 82.7 | E14: 82.5 | F14: 82.2 | G14: 82 | H14: 81.8 | I14: 80.7 | J14: 74.7 | K14: 61.2
A15: 38 | B15: 83.1 | C15: 82.9 | D15: 82.7 | E15: 82.4 | F15: 82.2 | G15: 82 | H15: 81.8 | I15: 80.7 | J15: 72.9
A16: 40 | B16: 83.7 | C16: 82.9 | D16: 82.6 | E16: 82.4 | F16: 82.2 | G16: 82 | H16: 81.8 | I16: 80.7 | J16: 71.1
A17: 42 | B17: 83.6 | C17: 82.8 | D17: 82.6 | E17: 82.4 | F17: 82.2 | G17: 81.9 | H17: 81.7 | I17: 78.8 | J17: 69.4
A18: 44 | B18: 83.6 | C18: 82.8 | D18: 82.2 | E18: 81.6 | F18: 81 | G18: 80.4 | H18: 79.9 | I18: 77 | J18: 67.7
A19: 46 | B19: 83.5 | C19: 80.9 | D19: 80.3 | E19: 79.8 | F19: 79.2 | G19: 78.6 | H19: 78.1 | I19: 75.5
A20: 48 | B20: 83.4 | C20: 79.1 | D20: 78.5 | E20: 78 | F20: 77.4 | G20: 76.8 | H20: 76.4 | I20: 73.7
A21: 50 | B21: 81.5 | C21: 77.3 | D21: 76.7 | E21: 76.3 | F21: 75.8 | G21: 75.3 | H21: 74.1 | I21: 72
A22: 52 | B22: 79.6 | C22: 75.7 | D22: 75.1 | E22: 74.6 | F22: 74 | G22: 73.5 | H22: 73
A23: 54 | B23: 77.6 | C23: 73.9 | D23: 73.3 | E23: 72.8
A24: 55 | B24: 76.8 | C24: 73
A25: CORRECTIONS | C25: AIR CONDITIONING OFF | F25: ENG NE ANTI ICE ON | I25: TOTAL ANTI ICE ON | L25: SPEED INCREASE (PER 0.01 Vs)
A26: WEIGHT | C26: + 1400 kg | F26: - 300 kg up to 9200 ft - 3600 kg above 9200 It | I26: - 1100 kg up to 5000 ft - 7000 kg above 5000 It | L26: + 200 kg
A31: APPROACH CLIMB LIMITING WEIGHT (1000 KG) - CONF 3
A32: ONE ENGINE OUT ONE ENGINE AT GO AROUND THRUST | H32: High Air Conditioning Anti Ice OFF | K32: Gradient : 2.1 % V = 1.23 Vs
A33: OAT (t) | B33: PRESSURE ALTITUDE (FT)
B34: -2000 | C34: 0 | D34: 200 | E34: 400 | F34: 600 | G34: 800 | H34: 1000 | I34: 2000 | J34: 5000 | K34: 9200 | L34: 12000 | M34: 14100
A35: ffl | B35: 84.4 | C35: 83.4 | D35: 83.2 | E35: 82.9 | F35: 82.7 | G35: 82.5 | H35: 82.2 | I35: 81.1 | J35: 81.4 | K35: 72.8 | L35: 65.6 | M35: 60.1
A36: 20 | B36: 84 | C36: 83.1 | D36: 82.9 | E36: 82.6 | F36: 82.4 | G36: 82.2 | H36: 81.9 | I36: 80.8 | J36: 81.1 | K36: 70.2 | L36: 60.2 | M36: 54.2
A37: 22 | B37: 83.9 | C37: 83 | D37: 82.8 | E37: 82.6 | F37: 82.3 | G37: 82.1 | H37: 81.9 | I37: 80.8 | J37: 81.1 | K37: 69 | L37: 59.2 | M37: 53.3
A38: 24 | B38: 83.9 | C38: 83 | D38: 82.7 | E38: 82.5 | F38: 82.3 | G38: 82 | H38: 81.8 | I38: 80.7 | J38: 80.6 | K38: 67.8 | L38: 58.3
A39: 26 | B39: 83.8 | C39: 82.9 | D39: 82.7 | E39: 82.5 | F39: 82.2 | G39: 82 | H39: 81.8 | I39: 80.7 | J39: 79.7 | K39: 66.5 | L39: 57.5
A40: 28 | B40: 83.7 | C40: 82.9 | D40: 82.6 | E40: 82.4 | F40: 82.2 | G40: 81.9 | H40: 81.7 | I40: 80.6 | J40: 78.8 | K40: 65.4
A41: 30 | B41: 83.7 | C41: 82.8 | D41: 82.6 | E41: 82.4 | F41: 82.1 | G41: 81.9 | H41: 81.7 | I41: 80.6 | J41: 77.8 | K41: 64.4
A42: 32 | B42: 83.6 | C42: 82.8 | D42: 82.6 | E42: 82.3 | F42: 82.1 | G42: 81.9 | H42: 81.6 | I42: 80.6 | J42: 16.8 | K42: 63.3
A43: 34 | B43: 83.6 | C43: 82.7 | D43: 82.5 | E43: 82.3 | F43: 82.1 | G43: 81.8 | H43: 81.6 | I43: 80.6 | J43: 75.9 | K43: 62.1
A44: 36 | B44: 83.5 | C44: 82.7 | D44: 82.5 | E44: 82.3 | F44: 82 | G44: 81.8 | H44: 81.6 | I44: 80.5 | J44: 74.4 | K44: 60.9
A45: 38 | B45: 83.5 | C45: 82.7 | D45: 82.5 | E45: 82.2 | F45: 82 | G45: 81.8 | H45: 81.6 | I45: 80.5 | J45: 72.6
A46: 40 | B46: 83.5 | C46: 82.7 | D46: 82.4 | E46: 82.2 | F46: 82 | G46: 81.8 | H46: 81.6 | I46: 80.5 | J46: 70.8
A47: 42 | B47: 83.4 | C47: 82.6 | D47: 82.4 | E47: 82.2 | F47: 82 | G47: 81.7 | H47: 81.5 | I47: 78.6 | J47: 69.1
A48: 44 | B48: 83.4 | C48: 82.5 | D48: 82 | E48: 81.4 | F48: 80.8 | G48: 80.3 | H48: 79.7 | I48: 76.8 | J48: 67.5
A49: 46 | B49: 83.3 | C49: 80.7 | D49: 80.2 | E49: 79.6 | F49: 79 | G49: 78.5 | H49: 77.9 | I49: 75.2
A50: 48 | B50: 83.2 | C50: 78.9 | D50: 78.3 | E50: 77.8 | F50: 77.2 | G50: 76.7 | H50: 76.2 | I50: 73.4
A51: 50 | B51: 81.3 | C51: 77.1 | D51: 76.6 | E51: 76.1 | F51: 75.6 | G51: 75 | H51: 74.5 | I51: 71.7
A52: 52 | B52: 79.4 | C52: 75.4 | D52: 74.9 | E52: 74.3 | F52: 73.8 | G52: 73.2 | H52: 72.1
A53: 54 | B53: 77.5 | C53: 73.6 | D53: 73.1 | E53: 72.5
A54: 55 | B54: 76.6 | C54: 72.7
A55: CORRECTIONS | C55: AIR CONDITIONING OFF | F55: ENG NE ANTI ICE ON | I55: TOTAL ANTI ICE ON | L55: SPEED INCREASE (PER 0.01 Vs)
A56: WEIGHT | C56: + 1400 kg | F56: - 300 kg up to 9200 ft - 3600 kg above 9200 It | I56: 1100 kg up to 5000 ft - 6900 kg above 5000 It | L56: + 200 kg
A61: APPROACH CLIMB LIMITING WEIGHT (1000 KG) - CONF 2 - CAT II
A62: ONE ENGINE OUT ONE ENGINE AT GO AROUND THRUST | H62: Nigh Air Conditioning Anti Ice OFF | K62: Gradient : 2.5 %
A63: OAT (T) | B63: PRESSURE ALTITUDE (FT)
B64: -2000 | C64: 0 | D64: 200 | E64: 400 | F64: 600 | G64: 800 | H64: 1000 | I64: 2000 | J64: 5000 | K64: 9200 | L64: 12000 | M64: 14100
A65: 10 | B65: 83 | C65: 82 | D65: 81.8 | E65: 81.6 | F65: 81.4 | G65: 81.1 | H65: 80.9 | I65: 79.8 | J65: 80 | K65: 71.7 | L65: 64.7 | M65: 59.4
A66: 20 | B66: 82.6 | C66: 81.7 | D66: 81.5 | E66: 81.3 | F66: 81.1 | G66: 80.8 | H66: 80.6 | I66: 79.5 | J66: 79.8 | K66: 69.2 | L66: 59.5 | M66: 53.6
A67: 22 | B67: 82.6 | C67: 81.7 | D67: 81.4 | E67: 81.2 | F67: 81 | G67: 80.8 | H67: 80.5 | I67: 79.5 | J67: 79.7 | K67: 68 | L67: 58.5 | M67: 52.8
A68: 24 | B68: 82.5 | C68: 81.6 | D68: 81.4 | E68: 81.2 | F68: 80.9 | G68: 80.7 | H68: 80.5 | I68: 19.4 | J68: 79.3 | K68: 66.9 | L68: 57.6
A69: 26 | B69: 82.4 | C69: 81.6 | D69: 81.3 | E69: 81.1 | F69: 80.9 | G69: 80.7 | H69: 80.4 | I69: 79.4 | J69: 78.4 | K69: 65.6 | L69: 56.8
A70: 28 | B70: 82.4 | C70: 81.5 | D70: 81.3 | E70: 81.1 | F70: 80.8 | G70: 80.6 | H70: 80.4 | I70: 79.3 | J70: 77.5 | K70: 64.6
A71: 30 | B71: 82.3 | C71: 81.5 | D71: 81.2 | E71: 81 | F71: 80.8 | G71: 80.6 | H71: 80.3 | I71: 79.3 | J71: 76.6 | K71: 63.5
A72: 32 | B72: 82.3 | C72: 81.4 | D72: 81.2 | E72: 81 | F72: 80.8 | G72: 80.5 | H72: 80.3 | I72: 79.3 | J72: 75.8 | K72: 62.4
A73: 34 | B73: 82.2 | C73: 81.4 | D73: 81.2 | E73: 80.9 | F73: 80.7 | G73: 80.5 | H73: 80.3 | I73: 79.2 | J73: 74.8 | K73: 61.3
A74: 36 | B74: 82.2 | C74: 81.3 | D74: 81.1 | E74: 80.9 | F74: 80.7 | G74: 80.5 | H74: 80.3 | I74: 79.2 | J74: 73.3 | K74: 60.1
A75: 38 | B75: 82.2 | C75: 81.3 | D75: 81.1 | E75: 80.9 | F75: 80.7 | G75: 80.5 | H75: 80.3 | I75: 79.2 | J75: 71.5
A76: 40 | B76: 82.1 | C76: 81.3 | D76: 81.1 | E76: 80.9 | F76: 80.7 | G76: 80.4 | H76: 80.2 | I76: 79.1 | J76: 69.8
A77: 42 | B77: 82.1 | C77: 81.3 | D77: 81.1 | E77: 80.9 | F77: 80.6 | G77: 80.4 | H77: 80.2 | I77: 77.3 | J77: 68.1
A78: 44 | B78: 82 | C78: 81.2 | D78: 80.6 | E78: 80.1 | F78: 79.5 | G78: 79 | H78: 78.4 | I78: 75.8 | J78: 66.6
A79: 46 | B79: 82 | C79: 79.4 | D79: 78.9 | E79: 78.3 | F79: 77.8 | G79: 77.2 | H79: 76.7 | I79: 74.1
A80: 48 | B80: 81.9 | C80: 77.6 | D80: 77.1 | E80: 76.6 | F80: 76.1 | G80: 75.7 | H80: 75.1 | I80: 72.4
A81: 50 | B81: 80 | C81: 76 | D81: 75.5 | E81: 75 | F81: 74.5 | G81: 73.9 | H81: 73.4 | I81: 70.7
A82: 52 | B82: 78.1 | C82: 74.3 | D82: 73.8 | E82: 73.3 | F82: 72.7 | G82: 72.2 | H82: 71.7
A83: 54 | B83: 76.4 | C83: 72.6 | D83: 72 | E83: 71.5
A84: 55 | B84: 75.6 | C84: 71.7
A85: CORRECTIONS | C85: AIR CONDITIONING OFF | F85: ENGINE ANTI ICE ON | J85: TOTAL ANTI ICE ON
A86: WEIGIIT | C86: + 1400 kg | F86: - 300 kg up to 9200 It - 3400 kg above 9200 ft | J86: - 1000 kg up to 5000 ft - 6700 kg above 5000 ft
A91: APPROACH CLIMB LIMITING WEIGHT (1000 KG) - CONF 3 - CAT II
A92: ONE ENGINE OUT ONE ENGINE AT GO AROUND THRUST | H92: High Air Conditioning Anti Ice OFF | K92: Gradient : 2.5 %
A93: OAT (T) | B93: PRESSURE ALTITUDE (FT)
B94: -2000 | C94: 0 | D94: 200 | E94: 400 | F94: 600 | G94: 800 | H94: 1000 | I94: 2000 | J94: 5000 | K94: 9200 | L94: 12000 | M94: 14100
A95: 510 | B95: 81 | C95: 80.1 | D95: 79.9 | E95: 79.7 | F95: 79.4 | G95: 79.2 | H95: 79 | I95: 77.9 | J95: 78.2 | K95: 69.9 | L95: 63.1 | M95: 57.9
A96: 20 | B96: 80.7 | C96: 79.8 | D96: 79.6 | E96: 79.4 | F96: 79.2 | G96: 78.9 | H96: 78.7 | I96: 77.7 | J96: 77.9 | K96: 67.5 | L96: 58 | M96: 52.3
A97: 22 | B97: 80.6 | C97: 79.8 | D97: 79.6 | E97: 79.3 | F97: 19.1 | G97: 78.9 | H97: 78.7 | I97: 17.6 | J97: 77.9 | K97: 66.3 | L97: 51.1 | M97: 51.5
A98: 24 | B98: 80.6 | C98: 79.7 | D98: 79.5 | E98: 79.3 | F98: 79 | G98: 78.8 | H98: 78.6 | I98: 11.5 | J98: 77.4 | K98: 65.2 | L98: 56.2
A99: 26 | B99: 80.5 | C99: 79.7 | D99: 79.4 | E99: 79.2 | F99: 79 | G99: 18.8 | H99: 18.5 | I99: 17.5 | J99: 76.6 | K99: 64 | L99: 55.4
A100: 28 | B100: 80.5 | C100: 79.6 | D100: 79.4 | E100: 79.2 | F100: 78.9 | G100: 78.7 | H100: 78.5 | I100: 77.5 | J100: 75.8 | K100: 63
A101: 30 | B101: 80.4 | C101: 79.6 | D101: 79.3 | E101: 79.1 | F101: 78.9 | G101: 78.7 | H101: 78.5 | I101: 77.4 | J101: 74.9 | K101: 62
A102: 32 | B102: 80.4 | C102: 79.5 | D102: 79.3 | E102: 79.1 | F102: 78.9 | G102: 78.6 | H102: 78.4 | I102: 77.4 | J102: 73.9 | K102: 60.9
A103: 34 | B103: 80.3 | C103: 79.5 | D103: 79.3 | E103: 79.1 | F103: 18.8 | G103: 78.6 | H103: 78.4 | I103: 17.4 | J103: 73 | K103: 59.8
A104: 36 | B104: 80.3 | C104: 79.5 | D104: 79.2 | E104: 79 | F104: 78.8 | G104: 18.6 | H104: 78.4 | I104: 77.4 | J104: 71.5 | K104: 58.7
A105: 38 | B105: 80.2 | C105: 79.4 | D105: 79.2 | E105: 79 | F105: 18.8 | G105: 78.6 | H105: 78.4 | I105: 77.4 | J105: 69.8
A106: 40 | B106: 80.2 | C106: 79.4 | D106: 79.2 | E106: 79 | F106: 78.8 | G106: 78.6 | H106: 78.4 | I106: 77.3 | J106: 68.1
A107: 42 | B107: 80.1 | C107: 79.4 | D107: 79.2 | E107: 79 | F107: 78.7 | G107: 78.5 | H107: 78.3 | I107: 75.6 | J107: 66.5
A108: 44 | B108: 80.1 | C108: 79.3 | D108: 78.8 | E108: 78.2 | F108: 77.7 | G108: 77.1 | H108: 76.6 | I108: 74 | J108: 65
A109: 46 | B109: 80.1 | C109: 77.6 | D109: 77 | E109: 76.6 | F109: 76.1 | G109: 75.6 | H109: 75 | I109: 72.3
A110: 48 | B110: 80 | C110: 76 | D110: 75.5 | E110: 74.9 | F110: 74.4 | G110: 73.9 | H110: 73.3 | I110: 70.6
A111: 50 | B111: 78.1 | C111: 74.3 | D111: 73.8 | E111: 73.2 | F111: 72.7 | G111: 72.2 | H111: 71.7 | I111: 69
A112: 52 | B112: 76.4 | C112: 72.6 | D112: 72.1 | E112: 71.5 | F112: 71 | G112: 70.5 | H112: 70
A113: 54 | B113: 74.7 | C113: 70.9 | D113: 70.4 | E113: 69.8
A114: 55 | B114: 73.8 | C114: 70
A115: CORRECTIONS | C115: AIR CONDITIONING OFF | F115: ENGINE ANTI ICE ON | J115: TOTAL ANTI ICE ON
A116: WEIGHT | C116: + 1300 kg | F116: - 300 kg up to 9200 It - 3400 kg above 9200 It | J116: - 100C kg up to 5000 ft - 6600 kg above 5000 ft

Sheet MATRIX_LDG (hidden)
K1: Dry | L1: DRY
K2: Good | L2: GOOD
C3: CALC | D3: INPUT | E3: TEÓRICO | K3: Good to Medium | L3: GOODTOMEDIUM
C4: T/O CONF: | D4: =DATOS!F93 -> FULL | E4: =D4 -> FULL | K4: Medium | L4: MEDIUM
C5: LEVEL | D5: =DATOS!C101 -> Dry | E5: =VLOOKUP(D5,K1:L6,2,FALSE) -> DRY | K5: Medium to Poor | L5: MEDIUMTOPOOR
C6: AUTOBRAKE | D6: =DATOS!C95 -> LOW | E6: =D6 -> LOW | K6: Poor | L6: POOR
C7: NOMBRE MATRIZ | E7: =+VLOOKUP(E4&E5&E6,$F$13:$G$128,2,0) -> LDGDRYFULL
Q9: =SUM(Q10:Q11) -> 0
K10: =IF(DATOS!C91<66000,"BELOW","ABOVE") -> BELOW | M10: =IF(DATOS!C100>1000,"ABOVE","BELOW") -> BELOW | O10: =IF(DATOS!K91>14.9,"ABOVE","BELOW") -> ABOVE | P10: =IF(DATOS!F102<0,"DOWN","") -> DOWN | Q10: =IFERROR(IF(DATOS!C97="ALL OPER",2*-1,""),"0") -> 
C11: MAPPING | K11: =(DATOS!C91-66000)/1000 -> -12 | M11: =(DATOS!C100-1000)/1000 -> -0.988 | N11: =ROUNDUP(DATOS!G104/5,0) -> 1 | O11: =ROUNDDOWN(DATOS!K91/10,0) -> 2 | P11: =ROUNDUP(DATOS!F102,0) -> -1 | Q11: =IF(DATOS!C97="ONLY 1 OPER",1*-1,"") -> 
C12: T/O CONF: | D12: LEVEL | E12: AUTOBRAKE | F12: buscarv | G12: NOMBRE MATRIZ | J12: DIST (m) for 66T | K12: WEIGHT | L12: SPEED | M12: ALT | N12: TW | O12: TEMP | P12: SLOPE | Q12: REV | R12: ALD
C13: FULL | D13: DRY | E13: LOW | F13: =+C13&D13&E13 -> FULLDRYLOW | G13: =CONCATENATE("LDG",D13,C13) -> LDGDRYFULL | J13: =+VLOOKUP(DATOS!C95,INDIRECT(MATRIX_LDG!E7),2,FALSE) -> 1960 | K13: =(IF(K10="BELOW",+VLOOKUP(DATOS!C95,INDIRECT(MATRIX_LDG!E7),3,FALSE),+VLOOKUP(DATOS!C95,INDIRECT(MATRIX_LDG!E7),4,FALSE)))*K11 -> -240 | L13: =IF(DATOS!F95="SI",+VLOOKUP(DATOS!C95,INDIRECT(MATRIX_LDG!E7),5,FALSE),"") -> 140 | M13: =IF(M11>0,+VLOOKUP(DATOS!C95,INDIRECT(MATRIX_LDG!E7),6,FALSE),"") ->  | N13: =IF(N11<0,+VLOOKUP(DATOS!C95,INDIRECT(MATRIX_LDG!E7),7,FALSE)*N11,"") ->  | O13: =IF(O10="ABOVE",+VLOOKUP(DATOS!C95,INDIRECT(MATRIX_LDG!E7),8,FALSE)*O11,"") -> 140 | P13: =IFERROR(IF(P10="DOWN",+VLOOKUP(DATOS!C95,INDIRECT(MATRIX_LDG!E7),9,FALSE)*P11,"")*-1,0) -> 30 | Q13: =+VLOOKUP(DATOS!C95,INDIRECT(MATRIX_LDG!E7),10,FALSE)*Q9 -> 0 | R13: =(SUM(J13:Q13)-L15) -> 2030
C14: FULL | D14: DRY | E14: MED | F14: =+C14&D14&E14 -> FULLDRYMED | G14: =CONCATENATE("LDG",D14,C14) -> LDGDRYFULL | L14: =VAPP!U7 -> 
C15: FULL | D15: DRY | E15: MANUAL - MAX | F15: =+C15&D15&E15 -> FULLDRYMANUAL - MAX | G15: LDGDRYFULL | L15: =IF(L14="NO SPD COR LDG DIST",L13,0) -> 0 | Q15: =IF(DATOS!D91="OVERWEIGHT LANDING","OVERWT","") ->  | R15: =IFERROR(+VLOOKUP(Q15,INDIRECT(MATRIX_LDG!E7),2,FALSE),0) -> 0
C16: FULL | D16: GOOD | E16: LOW | F16: =+C16&D16&E16 -> FULLGOODLOW | G16: LDGGOODFULL
C17: FULL | D17: GOOD | E17: MED | F17: FULLGOODMED | G17: LDGGOODFULL | Q17: =IF(DATOS!C93="CAT II/III - AUTOLAND","AUTO","") ->  | R17: =IFERROR(+VLOOKUP(Q17,INDIRECT(MATRIX_LDG!E7),2,FALSE),0) -> 0
C18: FULL | D18: GOOD | E18: MANUAL - MAX | F18: FULLGOODMANUAL - MAX | G18: LDGGOODFULL
C19: FULL | D19: GOODTOMEDIUM | E19: LOW | F19: FULLGOODTOMEDIUMLOW | G19: LDGGOODTOMEDIUMFULL
C20: FULL | D20: GOODTOMEDIUM | E20: MED | F20: FULLGOODTOMEDIUMMED | G20: LDGGOODTOMEDIUMFULL | Q20: F-LD | R20: =(R13+R15+R17)*1.15 -> 2334.5
C21: FULL | D21: GOODTOMEDIUM | E21: MANUAL - MAX | F21: FULLGOODTOMEDIUMMANUAL - MAX | G21: LDGGOODTOMEDIUMFULL
C22: FULL | D22: MEDIUM | E22: LOW | F22: FULLMEDIUMLOW | G22: LDGMEDIUMFULL
C23: FULL | D23: MEDIUM | E23: MED | F23: FULLMEDIUMMED | G23: LDGMEDIUMFULL
C24: FULL | D24: MEDIUM | E24: MANUAL - MAX | F24: FULLMEDIUMMANUAL - MAX | G24: LDGMEDIUMFULL
C25: FULL | D25: MEDIUMTOPOOR | E25: LOW | F25: FULLMEDIUMTOPOORLOW | G25: LDGMEDIUMTOPOORFULL
C26: FULL | D26: MEDIUMTOPOOR | E26: MED | F26: FULLMEDIUMTOPOORMED | G26: LDGMEDIUMTOPOORFULL
C27: FULL | D27: MEDIUMTOPOOR | E27: MANUAL - MAX | F27: FULLMEDIUMTOPOORMANUAL - MAX | G27: LDGMEDIUMTOPOORFULL
C28: FULL | D28: POOR | E28: LOW | F28: FULLPOORLOW | G28: LDGPOORFULL
C29: FULL | D29: POOR | E29: MED | F29: FULLPOORMED | G29: LDGPOORFULL
C30: FULL | D30: POOR | E30: MANUAL - MAX | F30: FULLPOORMANUAL - MAX | G30: LDGPOORFULL
C31: 3 | D31: DRY | E31: LOW | F31: =+C31&D31&E31 -> 3DRYLOW | G31: LDGDRY3
C32: 3 | D32: DRY | E32: MED | F32: 3DRYMED | G32: LDGDRY3
C33: 3 | D33: DRY | E33: MANUAL - MAX | F33: 3DRYMANUAL - MAX | G33: LDGDRY3
C34: 3 | D34: GOOD | E34: LOW | F34: 3GOODLOW | G34: LDGGOOD3
C35: 3 | D35: GOOD | E35: MED | F35: 3GOODMED | G35: LDGGOOD3
C36: 3 | D36: GOOD | E36: MANUAL - MAX | F36: 3GOODMANUAL - MAX | G36: LDGGOOD3
C37: 3 | D37: GOODTOMEDIUM | E37: LOW | F37: 3GOODTOMEDIUMLOW | G37: LDGGOODTOMEDIUM3
C38: 3 | D38: GOODTOMEDIUM | E38: MED | F38: 3GOODTOMEDIUMMED | G38: LDGGOODTOMEDIUM3
C39: 3 | D39: GOODTOMEDIUM | E39: MANUAL - MAX | F39: 3GOODTOMEDIUMMANUAL - MAX | G39: LDGGOODTOMEDIUM3
C40: 3 | D40: MEDIUM | E40: LOW | F40: 3MEDIUMLOW | G40: LDGMEDIUM3
C41: 3 | D41: MEDIUM | E41: MED | F41: 3MEDIUMMED | G41: LDGMEDIUM3
C42: 3 | D42: MEDIUM | E42: MANUAL - MAX | F42: 3MEDIUMMANUAL - MAX | G42: LDGMEDIUM3
C43: 3 | D43: MEDIUMTOPOOR | E43: LOW | F43: 3MEDIUMTOPOORLOW | G43: LDGMEDIUMTOPOOR3
C44: 3 | D44: MEDIUMTOPOOR | E44: MED | F44: 3MEDIUMTOPOORMED | G44: LDGMEDIUMTOPOOR3
C45: 3 | D45: MEDIUMTOPOOR | E45: MANUAL - MAX | F45: 3MEDIUMTOPOORMANUAL - MAX | G45: LDGMEDIUMTOPOOR3
C46: 3 | D46: POOR | E46: LOW | F46: 3POORLOW | G46: LDGPOOR3
C47: 3 | D47: POOR | E47: MED | F47: 3POORMED | G47: LDGPOOR3
C48: 3 | D48: POOR | E48: MANUAL - MAX | F48: 3POORMANUAL - MAX | G48: LDGPOOR3
F80: =+C80&D80&E80 -> 

Sheet LDG_DISTANCE (hidden)
A1: DRY
A2: FULL
A3: Corrections on Landing Distance (m) | C3: WEIGHT | E3: SPD | F3: ALT | G3: WIND | H3: TEMP | I3: SLOPE | J3: REV
B4: REF | C4: Per 1T | D4: Per 1T | H4: Per 10°C | I4: Per 1% | J4: Per Thrust
A5: Braking Mode | B5: DIST (m) for 66T | C5: BELOW 66T | D5: ABOVE 66T | E5: Per 5Id | F5: Per 1000ft above SL | G5: Per 5kt TW | H5: ABOVE ISA | I5: Down Slope | J5: Reverser Operative
A6: MANUAL - MAX | B6: 1090 | C6: 10 | D6: 40 | E6: 70 | F6: 40 | G6: 120 | H6: 40 | I6: 20 | J6: 10
A7: MED | B7: 1380 | C7: 10 | D7: 30 | E7: 90 | F7: 50 | G7: 140 | H7: 40 | I7: 10 | J7: 0
A8: LOW | B8: 1960 | C8: 20 | D8: 50 | E8: 140 | F8: 70 | G8: 200 | H8: 70 | I8: 30 | J8: 10
A9: OVERWT | B9: 420
A10: AUTO | B10: 330
A12: 3
A13: Corrections on Landing Distance (m) | C13: WEIGHT | E13: SPD | F13: ALT | G13: WIND | H13: TEMP | I13: SLOPE | J13: REV
B14: REF | C14: Per 1T | D14: Per 1T | H14: Per 10°C | I14: Per 1% | J14: Per Thrust
A15: Braking Mode | B15: DIST (m) for 66T | C15: BELOW 66T | D15: ABOVE 66T | E15: Per 5Id | F15: Per 1000ft above SL | G15: Per 5kt TW | H15: ABOVE ISA | I15: Down Slope | J15: Reverser Operative
A16: MANUAL - MAX | B16: 1170 | C16: 10 | D16: 50 | E16: 80 | F16: 40 | G16: 130 | H16: 40 | I16: 20 | J16: 10
A17: MED | B17: 1460 | C17: 10 | D17: 40 | E17: 100 | F17: 50 | G17: 140 | H17: 50 | I17: 10 | J17: 0
A18: LOW | B18: 2100 | C18: 20 | D18: 50 | E18: 150 | F18: 80 | G18: 210 | H18: 70 | I18: 30 | J18: 10
A20: OVERWT | B20: 500
A21: AUTO | B21: 350
A24: GOOD
A25: FULL
A26: Corrections on Landing Distance (m) | C26: WEIGHT | E26: SPD | F26: ALT | G26: WIND | H26: TEMP | I26: SLOPE | J26: REV
B27: REF | C27: Per 1T | D27: Per 1T | F27: Per 1000ft | H27: Per 10°C | I27: Per 1% | J27: Per Thrust
A28: Braking Mode | B28: DIST (m) for 66T | C28: BELOW 66T | D28: ABOVE 66T | E28: Per 5Id | F28: above SL | G28: Per 5kt TW | H28: ABOVE ISA | I28: Down Slope | J28: Reverser Operative
A29: MANUAL - MAX | B29: 1410 | C29: 10 | D29: 50 | E29: 110 | F29: 70 | G29: 210 | H29: 60 | I29: 50 | J29: 30
A30: MED | B30: 1460 | C30: 20 | D30: 50 | E30: 110 | F30: 70 | G30: 210 | H30: 60 | I30: 50 | J30: 20
A31: LOW | B31: 1960 | C31: 20 | D31: 50 | E31: 140 | F31: 70 | G31: 200 | H31: 70 | I31: 30 | J31: 10
A32: OVERWT | B32: 370
A33: AUTO | B33: 280
A35: 3
A36: Corrections on Landing Distance (m) | C36: WEIGHT | E36: SPD | F36: ALT | G36: WIND | H36: TEMP | I36: SLOPE | J36: REV
B37: REF | C37: Per 1T | D37: Per 1T | F37: Per 1000ft | H37: Per 10°C | I37: Per 1% | J37: Per Thrust
A38: Braking Mode | B38: DIST (m) for 66T | C38: BELOW 66T | D38: ABOVE 66T | E38: Per 5Id | F38: above SL | G38: Per 5kt TW | H38: ABOVE ISA | I38: Down Slope | J38: Reverser Operative
A39: MANUAL - MAX | B39: 1550 | C39: 20 | D39: 50 | E39: 120 | F39: 80 | G39: 230 | H39: 70 | I39: 60 | J39: 40
A40: MED | B40: 1600 | C40: 20 | D40: 50 | E40: 120 | F40: 80 | G40: 230 | H40: 70 | I40: 60 | J40: 40
A41: LOW | B41: 2100 | C41: 20 | D41: 50 | E41: 150 | F41: 80 | G41: 210 | H41: 70 | I41: 30 | J41: 10
A43: OVERWT | B43: 430
A44: AUTO | B44: 280
A47: GOOD TO MEDIUM
A48: FULL
A49: Corrections on Landing Distance (m) | C49: WEIGHT | E49: SPD | F49: ALT | G49: WIND | H49: TEMP | I49: SLOPE | J49: REV
A50: Braking Mode | B50: REF DIST (m) for 66T | C50: Per 1T BELOW 66T | D50: Per 1T ABOVE 66T | E50: Per 5Id | F50: Per 1000ft above SL | G50: Per 5kt TW | H50: Per 10°C ABOVE ISA | I50: Per 1% Down Slope | J50: Per Thrust Reverser Operative
A51: MANUAL - MAX | B51: 1660 | C51: 10 | D51: 40 | E51: 90 | F51: 60 | G51: 190 | H51: 60 | I51: 70 | J51: 70
A52: MED | B52: 1700 | C52: 20 | D52: 40 | E52: 90 | F52: 60 | G52: 190 | H52: 60 | I52: 70 | J52: 70
A53: LOW | B53: 1970 | C53: 20 | D53: 50 | E53: 140 | F53: 70 | G53: 210 | H53: 70 | I53: 50 | J53: 10
A55: OVERWT | B55: 390
A56: AUTO | B56: 280
A58: 3
A59: Corrections on Landing Distance (m) | C59: WEIGHT | E59: SPD | F59: ALT | G59: WIND | H59: TEMP | I59: SLOPE | J59: REV
A60: Braking Mode | B60: REF DIST (m) for 66T | C60: Per 1T BELOW 66T | D60: Per 1T ABOVE 66T | E60: Per 5Id | F60: Per 1000ft above SL | G60: Per 5Id TW | H60: Per 10°C ABOVE ISA | I60: Per 1% Down Slope | J60: Per Thrust Reverser Operative
A61: MANUAL - MAX | B61: 1810 | C61: 20 | D61: 40 | E61: 100 | F61: 70 | G61: 200 | H61: 60 | I61: 80 | J61: 80
A62: MED | B62: 1850 | C62: 20 | D62: 40 | E62: 100 | F62: 70 | G62: 200 | H62: 60 | I62: 90 | J62: 90
A63: LOW | B63: 2110 | C63: 20 | D63: 50 | E63: 150 | F63: 80 | G63: 220 | H63: 80 | I63: 50 | J63: 10
A65: OVERWT | B65: 460
A66: AUTO | B66: 280
A70: MEDIUM
A71: FULL
A72: Corrections on Landing Distance (m) | C72: WEIGHT | E72: SPD | F72: ALT | G72: WIND | H72: TEMP | I72: SLOPE | J72: REV
A73: Braking Mode | B73: REF DIST (m) for 66T | C73: Per 1T BELOW 66T | D73: Per 1T ABOVE 66T | E73: Per 5Id | F73: Per 1000ft above SL | G73: Per 5Id TW | H73: Per 10°C ABOVE ISA | I73: Per 1% Down Slope | J73: Per Thrust Reverser Operative
A74: MANUAL - MAX | B74: 1860 | C74: 20 | D74: 40 | E74: 100 | F74: 70 | G74: 220 | H74: 60 | I74: 110 | J74: 90
A75: MED | B75: 1890 | C75: 20 | D75: 40 | E75: 100 | F75: 70 | G75: 220 | H75: 70 | I75: 110 | J75: 100
A76: LOW | B76: 2050 | C76: 20 | D76: 50 | E76: 130 | F76: 80 | G76: 230 | H76: 70 | I76: 90 | J76: 40
A78: OVERWT | B78: 380
A79: AUTO | B79: 290
A81: 3
A82: Corrections on Landing Distance (m) | C82: WEIGHT | E82: SPD | F82: ALT | G82: WIND | H82: TEMP | I82: SLOPE | J82: REV
A83: Braking Mode | B83: REF DIST (m) for 66T | C83: Per 1T BELOW 66T | D83: Per 1T ABOVE 66T | E83: Per 5Id | F83: Per 1000ft above SL | G83: Per 5Id TW | H83: Per 10°C ABOVE ISA | I83: Per 1% Down Slope | J83: Per Thrust Reverser Operative
A84: MANUAL - MAX | B84: 2030 | C84: 20 | D84: 50 | E84: 110 | F84: 80 | G84: 230 | H84: 80 | I84: 120 | J84: 110
A85: MED | B85: 2070 | C85: 20 | D85: 40 | E85: 110 | F85: 80 | G85: 230 | H85: 80 | I85: 120 | J85: 120
A86: LOW | B86: 2210 | C86: 20 | D86: 50 | E86: 140 | F86: 80 | G86: 240 | H86: 80 | I86: 110 | J86: 60
A88: OVERWT | B88: 440
A89: AUTO | B89: 290
A91: MEDIUM TO POOR
A92: FULL
A93: Corrections on Landing Distance (m) | C93: WEIGHT | E93: SPD | F93: ALT | G93: WIND | H93: TEMP | I93: SLOPE | J93: REV
B94: REF | C94: Per 1T | D94: Per 1T | H94: Per 10°C | I94: Per 1% | J94: Per Thrust
A95: Braking Mode | B95: DIST (m) for 66T | C95: BELOW 66T | D95: ABOVE 66T | E95: Per 5Id | F95: Per 1000ft above SL | G95: Per 5Id TW | H95: ABOVE ISA | I95: Down Slope | J95: Reverser Operative
A96: MANUAL - MAX | B96: 2080 | C96: 30 | D96: 70 | E96: 160 | F96: 110 | G96: 360 | H96: 110 | I96: 160 | J96: 100
A97: MED | B97: 2100 | C97: 20 | D97: 70 | E97: 150 | F97: 120 | G97: 370 | H97: 100 | I97: 160 | J97: 110
A98: LOW | B98: 2130 | C98: 20 | D98: 70 | E98: 160 | F98: 110 | G98: 370 | H98: 110 | I98: 160 | J98: 50
A100: OVERWT | B100: 320
A101: AUTO | B101: 330
A103: 3
A104: Corrections on Landing Distance (m) | C104: WEIGHT | E104: SPD | F104: ALT | G104: WIND | H104: TEMP | I104: SLOPE | J104: REV
B105: REF | C105: Per 1T | D105: Per 1T | H105: Per 10°C | I105: Per 1% | J105: Per Thrust
A106: Braking Mode | B106: DIST (m) for 66T | C106: BELOW 66T | D106: ABOVE 66T | E106: Per 5Id | F106: Per 1000ft above SL | G106: Per 5Id TW | H106: ABOVE ISA | I106: Down Slope | J106: Reverser Operative
A107: MANUAL - MAX | B107: 2380 | C107: 30 | D107: 80 | E107: 180 | F107: 140 | G107: 410 | H107: 130 | I107: 200 | J107: 130
A108: MED | B108: 2390 | C108: 30 | D108: 80 | E108: 190 | F108: 140 | G108: 410 | H108: 130 | I108: 210 | J108: 140
A109: LOW | B109: 2420 | C109: 30 | D109: 80 | E109: 190 | F109: 140 | G109: 410 | H109: 130 | I109: 210 | J109: 100
A111: OVERWT | B111: 380
A112: AUTO | B112: 350
A115: POOR
A116: FULL
A117: Corrections on Landing Distance (m) | C117: WEIGHT | E117: SPD | F117: ALT | G117: WIND | H117: TEMP | I117: SLOPE | J117: REV
B118: REF | C118: Per 1T | D118: Per 1T | F118: Per 1000ft | H118: Per 10°C | I118: Per 1% | J118: Per Thrust
A119: Braking Mode | B119: DIST (m) for 66T | C119: BELOW 66T | D119: ABOVE 66T | E119: Per 5Id | F119: above SL | G119: Per 5kt TW | H119: ABOVE ISA | I119: Down Slope | J119: Reverser Operative
A120: MANUAL - MAX | B120: 3450 | C120: 30 | D120: 70 | E120: 150 | F120: 130 | G120: 560 | H120: 160 | I120: 920 | J120: 320
A121: MED | B121: 3480 | C121: 30 | D121: 70 | E121: 140 | F121: 130 | G121: 570 | H121: 160 | I121: 930 | J121: 340
A122: LOW | B122: 3510 | C122: 30 | D122: 70 | E122: 140 | F122: 130 | G122: 570 | H122: 160 | I122: 930 | J122: 340
A124: OVERWT | B124: 330
A125: AUTO | B125: 460
A128: 3
A129: Corrections on Landing Distance (m) | C129: WEIGHT | E129: SPD | F129: ALT | G129: WIND | H129: TEMP | I129: SLOPE | J129: REV
B130: REF | C130: Per 1T | D130: Per 1T | F130: Per 1000ft | H130: Per 10°C | I130: Per 1% | J130: Per Thrust
A131: Braking Mode | B131: DIST (m) for 66T | C131: BELOW 66T | D131: ABOVE 66T | E131: Per 5Id | F131: above SL | G131: Per 5Id TW | H131: ABOVE ISA | I131: Down Slope | J131: Reverser Operative
A132: MANUAL - MAX | B132: 3970 | C132: 40 | D132: 80 | E132: 160 | F132: 150 | G132: 610 | H132: 180 | I132: 1 150 | J132: 430
A133: MED | B133: 3990 | C133: 40 | D133: 80 | E133: 160 | F133: 150 | G133: 610 | H133: 180 | I133: 1 150 | J133: 450
A134: LOW | B134: 4020 | C134: 40 | D134: 80 | E134: 170 | F134: 150 | G134: 610 | H134: 180 | I134: 1 150 | J134: 450
A136: OVERWT | B136: 380
A137: AUTO | B137: 490

Sheet RWYCOND_LDG (hidden)
A1: Runway State | B1: Level | C1: Maximum Crosswind (Gust included)
A2: Dry | B2: Dry | C2: 38
A3: <3mm Wet | B3: Good | C3: 38
A4: <3mm Slush | B4: Good | C4: 29
A5: <3mm Snow | B5: Good | C5: 29
A6: <3mm Frost | B6: Good | C6: 29
A7: Compacted Snow > -15°C | B7: Good to Medium | C7: 29
A8: Compacted Snow < -15°C | B8: Medium | C8: 25
A9: >3mm Snow | B9: Medium | C9: 25
A10: >3mm Water/Slush | B10: Medium to Poor | C10: 20
A11: Ice (cold & dry) | B11: Poor | C11: 15

Sheet CONTAM_RWY_TAKEOFF (hidden)
A2: TAKEOFF FROM A 6.3 MM (1/4 INCH) WATER COVERED RUNWAY | O2: MTOW COR1 | P2: MTOW COR2 | Q2: MTOW COR3
A3: TAKEOFF CONFIGURATION | B3: 1 + F | C3: 1 + F | D3: 1 + F | E3: 1 + F | F3: 2 | G3: 2 | H3: 2 | I3: 3 | J3: 3 | K3: 3 | O3: =IF(DATOS!C7="1 + F",IF(DATOS!F11="SI",+HLOOKUP(+HLOOKUP(DATOS!F33,CONTAM_RWY_TAKEOFF!B4:K4,1,TRUE),CONTAWET61,2,TRUE),+HLOOKUP(+HLOOKUP(DATOS!F33,CONTAM_RWY_TAKEOFF!B4:K4,1,TRUE),CONTAWET61,3,TRUE)),IF(DATOS!C7=2,IF(DATOS!F11="SI",+HLOOKUP(+HLOOKUP(DATOS!F33,CONTAM_RWY_TAKEOFF!B4:K4,1,TRUE),CONTAWET62,2,TRUE),+HLOOKUP(+HLOOKUP(DATOS!F33,CONTAM_RWY_TAKEOFF!B4:K4,1,TRUE),CONTAWET62,3,TRUE)),IF(DATOS!F11="SI",+HLOOKUP(+HLOOKUP(DATOS!F33,CONTAM_RWY_TAKEOFF!B4:K4,1,TRUE),CONTAWET63,2,TRUE),+HLOOKUP(+HLOOKUP(DATOS!F33,CONTAM_RWY_TAKEOFF!B4:K4,1,TRUE),CONTAWET63,3,TRUE)))) -> 12800 | P3: =DATOS!F53-CONTAM_RWY_TAKEOFF!O3 -> 61500 | Q3: =+IF(DATOS!C7="1 + F",IF(P3>MAX(B11:E11),P3,HLOOKUP(P3,$B$11:$E$12,2,1)),IF(DATOS!C7=2,IF(P3>MAX(B20:E20),P3,HLOOKUP(P3,$B$20:$E$21,2,1)),IF(P3>MAX(B30:E30),P3,HLOOKUP(P3,$B$30:$E$31,2,1)))) -> 61500
A4: RUNWAY LENGTH | B4: 2500 | C4: 3000 | D4: 3500 | E4: 4000 | F4: 2000 | G4: 2500 | H4: 3000 | I4: 1750 | J4: 2000 | K4: 2500
A5: RUNWAY LENGTH | B5: =+ROUNDDOWN(B4/1000,0)*1000 -> 2000 | C5: =+ROUNDDOWN(C4/1000,0)*1000 -> 3000 | D5: 4000 | E5: 5000 | F5: 1000 | G5: 2000 | H5: 3000 | I5: =+ROUNDDOWN(I4/1000,0)*1000 -> 1000 | J5: =+ROUNDDOWN(J4/1000,0)*1000 -> 2000 | K5: 3000
A6: SI | B6: 12800 | C6: 11700 | D6: 9800 | E6: 9800 | F6: 13900 | G6: 13200 | H6: 11400 | I6: 14900 | J6: 14500 | K6: 13100
A7: NO | B7: 10500 | C7: 10100 | D7: 9000 | E7: 9000 | F7: 11100 | G7: 11100 | H7: 10400 | I7: 11400 | J7: 11800 | K7: 11800 | O7: V1 | P7: VR | Q7: V2
O8: =+IF(DATOS!C7="1 + F",HLOOKUP(DATOS!C5,CONTAM_RWY_TAKEOFF!$B$14:$R$17,4,1),IF(DATOS!C7=2,HLOOKUP(DATOS!C5,CONTAM_RWY_TAKEOFF!$B$24:$R$27,4,1),HLOOKUP(DATOS!C5,CONTAM_RWY_TAKEOFF!$B$33:$Q$36,4,1))) -> 120 | P8: =+IF(DATOS!C7="1 + F",HLOOKUP(DATOS!C5,CONTAM_RWY_TAKEOFF!$B$14:$R$17,3,1),IF(DATOS!C7=2,HLOOKUP(DATOS!C5,CONTAM_RWY_TAKEOFF!$B$24:$R$27,3,1),HLOOKUP(DATOS!C5,CONTAM_RWY_TAKEOFF!$B$33:$Q$36,3,1))) -> 138 | Q8: =+IF(DATOS!C7="1 + F",HLOOKUP(DATOS!C5,CONTAM_RWY_TAKEOFF!$B$14:$R$17,2,1),IF(DATOS!C7=2,HLOOKUP(DATOS!C5,CONTAM_RWY_TAKEOFF!$B$24:$R$27,2,1),HLOOKUP(DATOS!C5,CONTAM_RWY_TAKEOFF!$B$33:$Q$36,2,1))) -> 141
A10: CONF 1 + F
A11: CORRECTED WEIGHT | B11: 55200 | C11: 56000 | D11: 58000 | E11: 58100
A12: MTOW | B12: 46000 | C12: 50000 | D12: 58000 | E12: EQUAL TO CORRECTED WEIGHT
A14: ATOW | B14: 46700 | C14: 48000 | D14: 50000 | E14: 52000 | F14: 54000 | G14: 56000 | H14: 58000 | I14: 60000 | J14: 62000 | K14: 64000 | L14: 66000 | M14: 68000 | N14: 70000 | O14: 72000 | P14: 74000 | Q14: 76000 | R14: 78000
A15: V2 | B15: 124 | C15: 126 | D15: 129 | E15: 131 | F15: 134 | G15: 136 | H15: 138 | I15: 141 | J15: 143 | K15: 145 | L15: 148 | M15: 150 | N15: 152 | O15: 155 | P15: 157 | Q15: 159 | R15: 161
A16: VR | B16: 121 | C16: 123 | D16: 126 | E16: 128 | F16: 131 | G16: 133 | H16: 135 | I16: 138 | J16: 140 | K16: 142 | L16: 145 | M16: 147 | N16: 149 | O16: 152 | P16: 154 | Q16: 156 | R16: 158
A17: V1 | B17: 117 | C17: 117 | D17: 117 | E17: 117 | F17: 117 | G17: 117 | H17: 117 | I17: 120 | J17: 122 | K17: 124 | L17: 127 | M17: 129 | N17: 131 | O17: 134 | P17: 136 | Q17: 138 | R17: 140
A19: CONF 2
A20: WEIGHT | B20: 56800 | C20: 58000 | D20: 59000 | E20: 59100
A21: MTOW | B21: 48700 | C21: 55000 | D21: 59000 | E21: EQUAL TO CORRECTED WEIGHT
A24: ATOW | B24: 48700 | C24: 50000 | D24: 52000 | E24: 54000 | F24: 56000 | G24: 58000 | H24: 59000 | I24: 60000 | J24: 62000 | K24: 64000 | L24: 66000 | M24: 68000 | N24: 70000 | O24: 72000 | P24: 74000 | Q24: 76000 | R24: 78000
A25: V2 | B25: 125 | C25: 127 | D25: 129 | E25: 132 | F25: 134 | G25: 137 | H25: 138 | I25: 139 | J25: 141 | K25: 143 | L25: 146 | M25: 148 | N25: 150 | O25: 153 | P25: 155 | Q25: 157 | R25: 159
A26: VR | B26: 119 | C26: 121 | D26: 123 | E26: 126 | F26: 128 | G26: 131 | H26: 132 | I26: 133 | J26: 135 | K26: 137 | L26: 140 | M26: 142 | N26: 144 | O26: 147 | P26: 149 | Q26: 151 | R26: 153
A27: V1 | B27: 115 | C27: 115 | D27: 115 | E27: 115 | F27: 115 | G27: 115 | H27: 115 | I27: 116 | J27: 118 | K27: 120 | L27: 123 | M27: 125 | N27: 127 | O27: 130 | P27: 132 | Q27: 134 | R27: 136
A29: CONF 3
A30: WEIGHT | B30: 57800 | C30: 58000 | D30: 60000 | E30: 60100
A31: MTOW | B31: 48000 | C31: 49000 | D31: 60000 | E31: EQUAL TO CORRECTED WEIGHT
A33: ATOW | B33: 48000 | C33: 50000 | D33: 52000 | E33: 54000 | F33: 56000 | G33: 58000 | H33: 60000 | I33: 62000 | J33: 64000 | K33: 66000 | L33: 68000 | M33: 70000 | N33: 72000 | O33: 74000 | P33: 76000 | Q33: 78000
A34: V2 | B34: 126 | C34: 126 | D34: 128 | E34: 131 | F34: 133 | G34: 135 | H34: 138 | I34: 140 | J34: 142 | K34: 145 | L34: 147 | M34: 149 | N34: 151 | O34: 153 | P34: 155 | Q34: 157
A35: VR | B35: 118 | C35: 121 | D35: 123 | E35: 126 | F35: 128 | G35: 130 | H35: 133 | I35: 135 | J35: 137 | K35: 140 | L35: 142 | M35: 144 | N35: 146 | O35: 148 | P35: 150 | Q35: 152
A36: V1 | B36: 114 | C36: 114 | D36: 114 | E36: 114 | F36: 114 | G36: 114 | H36: 114 | I36: 116 | J36: 118 | K36: 121 | L36: 123 | M36: 125 | N36: 129 | O36: 129 | P36: 131 | Q36: 133
A50: TAKEOFF FROM A 6.3 MM (1/4 INCH) SLUSH COVERED RUNWAY | O50: MTOW COR1 | P50: MTOW COR2 | Q50: MTOW COR3
A51: TAKEOFF CONFIGURATION | B51: 1 + F | C51: 1 + F | D51: 1 + F | E51: 1 + F | F51: 2 | G51: 2 | H51: 2 | I51: 3 | J51: 3 | K51: 3 | O51: =IF(DATOS!C7="1 + F",IF(DATOS!F11="SI",+HLOOKUP(+HLOOKUP(DATOS!F33,CONTAM_RWY_TAKEOFF!B52:K52,1,TRUE),CONTASLUSH61,2,TRUE),+HLOOKUP(+HLOOKUP(DATOS!F33,CONTAM_RWY_TAKEOFF!B53:K53,1,TRUE),CONTASLUSH61,3,TRUE)),IF(DATOS!C7=2,IF(DATOS!F11="SI",+HLOOKUP(+HLOOKUP(DATOS!F33,CONTAM_RWY_TAKEOFF!B52:K52,1,TRUE),CONTASLUSH62,2,TRUE),+HLOOKUP(+HLOOKUP(DATOS!F33,CONTAM_RWY_TAKEOFF!B52:K52,1,TRUE),CONTASLUSH62,3,TRUE)),IF(DATOS!F11="SI",+HLOOKUP(+HLOOKUP(DATOS!F33,CONTAM_RWY_TAKEOFF!B52:K52,1,TRUE),CONTASLUSH63,2,TRUE),+HLOOKUP(+HLOOKUP(DATOS!F33,CONTAM_RWY_TAKEOFF!B52:K52,1,TRUE),CONTASLUSH63,3,TRUE)))) -> 13200 | P51: =DATOS!F53-CONTAM_RWY_TAKEOFF!O51 -> 61100 | Q51: =+IF(DATOS!C55="1 + F",IF(P51>MAX(B59:E59),P51,HLOOKUP(P51,$B$59:$E$60,2,1)),IF(DATOS!C55=2,IF(P51>MAX(B68:E68),P51,HLOOKUP(P51,$B$68:$E$69,2,1)),IF(P51>MAX(B78:E78),P51,HLOOKUP(P51,$B$78:$E$79,2,1)))) -> 61100
A52: RUNWAY LENGTH | B52: 2500 | C52: 3000 | D52: 3500 | E52: 4000 | F52: 2000 | G52: 2500 | H52: 3000 | I52: 1750 | J52: 2000 | K52: 2500
A53: RUNWAY LENGTH | B53: =+ROUNDDOWN(B52/1000,0)*1000 -> 2000 | C53: =+ROUNDDOWN(C52/1000,0)*1000 -> 3000 | D53: 4000 | E53: 5000 | F53: 1000 | G53: 2000 | H53: 3000 | I53: =+ROUNDDOWN(I52/1000,0)*1000 -> 1000 | J53: =+ROUNDDOWN(J52/1000,0)*1000 -> 2000 | K53: 3000
A54: SI | B54: 13200 | C54: 11800 | D54: 9800 | E54: 9800 | F54: 14500 | G54: 13800 | H54: 11600 | I54: 15200 | J54: 15200 | K54: 13900
A55: NO | B55: 10900 | C55: 10200 | D55: 9000 | E55: 9000 | F55: 11700 | G55: 11700 | H55: 10600 | I55: 11500 | J55: 12500 | K55: 12600 | O55: V1 | P55: VR | Q55: V2
O56: =+IF(DATOS!C7="1 + F",HLOOKUP(DATOS!C5,CONTAM_RWY_TAKEOFF!$B$62:$R$65,4,1),IF(DATOS!C7=2,HLOOKUP(DATOS!C5,CONTAM_RWY_TAKEOFF!$B$72:$R$75,4,1),HLOOKUP(DATOS!C5,CONTAM_RWY_TAKEOFF!$B$81:$Q$84,4,1))) -> 123 | P56: =+IF(DATOS!C7="1 + F",HLOOKUP(DATOS!C5,CONTAM_RWY_TAKEOFF!$B$62:$R$65,3,1),IF(DATOS!C7=2,HLOOKUP(DATOS!C5,CONTAM_RWY_TAKEOFF!$B$72:$R$75,3,1),HLOOKUP(DATOS!C5,CONTAM_RWY_TAKEOFF!$B$81:$Q$84,3,1))) -> 139 | Q56: =+IF(DATOS!C7="1 + F",HLOOKUP(DATOS!C5,CONTAM_RWY_TAKEOFF!$B$62:$R$65,2,1),IF(DATOS!C7=2,HLOOKUP(DATOS!C5,CONTAM_RWY_TAKEOFF!$B$72:$R$75,2,1),HLOOKUP(DATOS!C5,CONTAM_RWY_TAKEOFF!$B$81:$Q$84,2,1))) -> 141
A58: CONF 1 + F
A59: CORRECTED WEIGHT | B59: 53200 | C59: 54000 | D59: 55000 | E59: 55100
A60: MTOW | B60: 46700 | C60: 51000 | D60: 55000 | E60: EQUAL TO CORRECTED WEIGHT
A62: ATOW | B62: 46700 | C62: 48000 | D62: 50000 | E62: 52000 | F62: 54000 | G62: 56000 | H62: 58000 | I62: 60000 | J62: 62000 | K62: 64000 | L62: 66000 | M62: 68000 | N62: 70000 | O62: 72000 | P62: 74000 | Q62: 76000 | R62: 78000
A63: V2 | B63: 124 | C63: 126 | D63: 129 | E63: 131 | F63: 134 | G63: 135 | H63: 138 | I63: 141 | J63: 143 | K63: 145 | L63: 148 | M63: 150 | N63: 152 | O63: 155 | P63: 157 | Q63: 159 | R63: 161
A64: VR | B64: 122 | C64: 124 | D64: 127 | E64: 129 | F64: 132 | G64: 133 | H64: 136 | I64: 139 | J64: 141 | K64: 143 | L64: 146 | M64: 148 | N64: 150 | O64: 153 | P64: 155 | Q64: 157 | R64: 159
A65: V1 | B65: 117 | C65: 117 | D65: 117 | E65: 117 | F65: 117 | G65: 117 | H65: 120 | I65: 123 | J65: 125 | K65: 127 | L65: 130 | M65: 132 | N65: 134 | O65: 137 | P65: 139 | Q65: 141 | R65: 143
A67: CONF 2
A68: WEIGHT | B68: 54800 | C68: 56000 | D68: 56700 | E68: 56800
A69: MTOW | B69: 48000 | C69: 53000 | D69: 56700 | E69: EQUAL TO CORRECTED WEIGHT
A72: ATOW | B72: 48000 | C72: 50000 | D72: 52000 | E72: 54000 | F72: 56000 | G72: 57000 | H72: 58000 | I72: 60000 | J72: 62000 | K72: 64000 | L72: 66000 | M72: 68000 | N72: 70000 | O72: 72000 | P72: 74000 | Q72: 76000 | R72: 78000
A73: V2 | B73: 124 | C73: 127 | D73: 129 | E73: 132 | F73: 134 | G73: 135 | H73: 137 | I73: 139 | J73: 141 | K73: 143 | L73: 146 | M73: 148 | N73: 150 | O73: 153 | P73: 155 | Q73: 157 | R73: 159
A74: VR | B74: 119 | C74: 122 | D74: 124 | E74: 127 | F74: 129 | G74: 130 | H74: 132 | I74: 134 | J74: 136 | K74: 138 | L74: 141 | M74: 143 | N74: 145 | O74: 148 | P74: 150 | Q74: 152 | R74: 154
A75: V1 | B75: 115 | C75: 115 | D75: 115 | E75: 115 | F75: 115 | G75: 115 | H75: 117 | I75: 119 | J75: 121 | K75: 123 | L75: 126 | M75: 128 | N75: 130 | O75: 133 | P75: 135 | Q75: 137 | R75: 139
A77: CONF 3
A78: WEIGHT | B78: 56300 | C78: 58000 | D78: 58700 | E78: 58800
A79: MTOW | B79: 48000 | C79: 55000 | D79: 58700 | E79: EQUAL TO CORRECTED WEIGHT
A81: ATOW | B81: 48 | C81: 50 | D81: 52 | E81: 54 | F81: 56 | G81: 58 | H81: 60 | I81: 62 | J81: 64 | K81: 66 | L81: 68 | M81: 70 | N81: 72 | O81: 74 | P81: 76 | Q81: 78
A82: V2 | B82: 123 | C82: 126 | D82: 128 | E82: 131 | F82: 133 | G82: 135 | H82: 138 | I82: 140 | J82: 142 | K82: 145 | L82: 147 | M82: 149 | N82: 151 | O82: 153 | P82: 155 | Q82: 157
A83: VR | B83: 118 | C83: 121 | D83: 123 | E83: 126 | F83: 128 | G83: 130 | H83: 133 | I83: 135 | J83: 137 | K83: 140 | L83: 142 | M83: 144 | N83: 146 | O83: 148 | P83: 150 | Q83: 152
A84: V1 | B84: 114 | C84: 114 | D84: 114 | E84: 114 | F84: 114 | G84: 114 | H84: 116 | I84: 118 | J84: 120 | K84: 123 | L84: 125 | M84: 127 | N84: 129 | O84: 131 | P84: 133 | Q84: 135
A91: TAKEOFF FROM A COMPACTED SNOW COVERED RUNWAY | O91: MTOW COR1 | P91: MTOW COR2 | Q91: MTOW COR3
A92: TAKEOFF CONFIGURATION | B92: 1 + F | C92: 1 + F | D92: 1 + F | E92: 1 + F | F92: 2 | G92: 2 | H92: 2 | I92: 3 | J92: 3 | K92: 3 | O92: =IF(DATOS!C7="1 + F",IF(DATOS!F11="SI",+HLOOKUP(+HLOOKUP(DATOS!F33,CONTAM_RWY_TAKEOFF!B93:K93,1,TRUE),CONTASNOW1,2,TRUE),+HLOOKUP(+HLOOKUP(DATOS!F33,CONTAM_RWY_TAKEOFF!B94:K94,1,TRUE),CONTASNOW1,3,TRUE)),IF(DATOS!C7=2,IF(DATOS!F11="SI",+HLOOKUP(+HLOOKUP(DATOS!F33,CONTAM_RWY_TAKEOFF!B93:K93,1,TRUE),CONTASNOW2,2,TRUE),+HLOOKUP(+HLOOKUP(DATOS!F33,CONTAM_RWY_TAKEOFF!B93:K93,1,TRUE),CONTASNOW2,3,TRUE)),IF(DATOS!F11="SI",+HLOOKUP(+HLOOKUP(DATOS!F33,CONTAM_RWY_TAKEOFF!B93:K93,1,TRUE),CONTASNOW33,2,TRUE),+HLOOKUP(+HLOOKUP(DATOS!F33,CONTAM_RWY_TAKEOFF!B93:K93,1,TRUE),CONTASNOW3,3,TRUE)))) -> 8600 | P92: =DATOS!F53-CONTAM_RWY_TAKEOFF!O92 -> 65700 | Q92: =+IF(DATOS!C55="1 + F",IF(P92>MAX(B100:E100),P92,HLOOKUP(P92,$B$100:$E$101,2,1)),IF(DATOS!C55=2,IF(P92>MAX(B109:E109),P92,HLOOKUP(P92,$B$109:$E$110,2,1)),IF(P92>MAX(B119:E119),P92,HLOOKUP(P92,$B$119:$E$120,2,1)))) -> 65700
A93: RUNWAY LENGTH | B93: 2500 | C93: 3000 | D93: 3500 | E93: 4000 | F93: 2000 | G93: 2500 | H93: 3000 | I93: 1750 | J93: 2000 | K93: 2500
A94: RUNWAY LENGTH | B94: =+ROUNDDOWN(B93/1000,0)*1000 -> 2000 | C94: =+ROUNDDOWN(C93/1000,0)*1000 -> 3000 | D94: 4000 | E94: 5000 | F94: 1000 | G94: 2000 | H94: 3000 | I94: =+ROUNDDOWN(I93/1000,0)*1000 -> 1000 | J94: =+ROUNDDOWN(J93/1000,0)*1000 -> 2000 | K94: 3000
A95: SI | B95: 8600 | C95: 8500 | D95: 8500 | E95: 9800 | F95: 10500 | G95: 7400 | H95: 5600 | I95: 13100 | J95: 10300 | K95: 8200
A96: NO | B96: 6300 | C96: 6300 | D96: 7400 | E96: 9000 | F96: 7700 | G96: 5300 | H96: 4600 | I96: 9600 | J96: 7600 | K96: 6900 | O96: V1 | P96: VR | Q96: V2
O97: =+IF(DATOS!C7="1 + F",HLOOKUP(DATOS!C5,CONTAM_RWY_TAKEOFF!$B$103:$R$106,4,1),IF(DATOS!C7=2,HLOOKUP(DATOS!C5,CONTAM_RWY_TAKEOFF!$B$113:$R$116,4,1),HLOOKUP(DATOS!C5,CONTAM_RWY_TAKEOFF!$B$122:$Q$125,4,1))) -> 124 | P97: =+IF(DATOS!C7="1 + F",HLOOKUP(DATOS!C5,CONTAM_RWY_TAKEOFF!$B$103:$R$106,3,1),IF(DATOS!C7=2,HLOOKUP(DATOS!C5,CONTAM_RWY_TAKEOFF!$B$113:$R$116,3,1),HLOOKUP(DATOS!C5,CONTAM_RWY_TAKEOFF!$B$122:$Q$125,3,1))) -> 140 | Q97: =+IF(DATOS!C7="1 + F",HLOOKUP(DATOS!C5,CONTAM_RWY_TAKEOFF!$B$103:$R$106,2,1),IF(DATOS!C7=2,HLOOKUP(DATOS!C5,CONTAM_RWY_TAKEOFF!$B$113:$R$116,2,1),HLOOKUP(DATOS!C5,CONTAM_RWY_TAKEOFF!$B$122:$Q$125,2,1))) -> 141
A99: CONF 1 + F
A100: CORRECTED WEIGHT | B100: 50000 | C100: 52700 | D100: 54000 | E100: 54100
A101: MTOW | B101: 45000 | C101: 46700 | D101: 54000 | E101: EQUAL TO CORRECTED WEIGHT
A103: ATOW | B103: 46000 | C103: 48000 | D103: 50000 | E103: 52000 | F103: 54000 | G103: 56000 | H103: 58000 | I103: 60000 | J103: 62000 | K103: 64000 | L103: 66000 | M103: 68000 | N103: 70000 | O103: 72000 | P103: 74000 | Q103: 76000 | R103: 78000
A104: V2 | B104: 124 | C104: 126 | D104: 129 | E104: 131 | F104: 134 | G104: 136 | H104: 138 | I104: 141 | J104: 143 | K104: 145 | L104: 148 | M104: 150 | N104: 152 | O104: 155 | P104: 157 | Q104: 159 | R104: 161
A105: VR | B105: 123 | C105: 125 | D105: 128 | E105: 130 | F105: 133 | G105: 135 | H105: 137 | I105: 140 | J105: 142 | K105: 144 | L105: 147 | M105: 149 | N105: 151 | O105: 154 | P105: 156 | Q105: 158 | R105: 160
A106: V1 | B106: 117 | C106: 117 | D106: 117 | E106: 117 | F106: 117 | G106: 119 | H106: 121 | I106: 124 | J106: 126 | K106: 128 | L106: 131 | M106: 133 | N106: 135 | O106: 138 | P106: 140 | Q106: 142 | R106: 144
A108: CONF 2
A109: WEIGHT | B109: 54800 | C109: 56000 | D109: 56700 | E109: 56800
A110: MTOW | B110: 48000 | C110: 53000 | D110: 56700 | E110: EQUAL TO CORRECTED WEIGHT
A113: ATOW | B113: 48000 | C113: 50000 | D113: 52000 | E113: 54000 | F113: 56000 | G113: 57000 | H113: 58000 | I113: 60000 | J113: 62000 | K113: 64000 | L113: 66000 | M113: 68000 | N113: 70000 | O113: 72000 | P113: 74000 | Q113: 76000 | R113: 78000
A114: V2 | B114: 124 | C114: 127 | D114: 129 | E114: 132 | F114: 134 | G114: 135 | H114: 137 | I114: 139 | J114: 141 | K114: 143 | L114: 146 | M114: 148 | N114: 150 | O114: 153 | P114: 155 | Q114: 157 | R114: 159
A115: VR | B115: 119 | C115: 122 | D115: 124 | E115: 127 | F115: 129 | G115: 130 | H115: 132 | I115: 134 | J115: 136 | K115: 138 | L115: 141 | M115: 143 | N115: 145 | O115: 148 | P115: 150 | Q115: 152 | R115: 154
A116: V1 | B116: 115 | C116: 115 | D116: 115 | E116: 115 | F116: 115 | G116: 115 | H116: 117 | I116: 119 | J116: 121 | K116: 123 | L116: 126 | M116: 128 | N116: 130 | O116: 133 | P116: 135 | Q116: 137 | R116: 139
A118: CONF 3
A119: WEIGHT | B119: 56300 | C119: 58000 | D119: 58700 | E119: 58800
A120: MTOW | B120: 48000 | C120: 55000 | D120: 58700 | E120: EQUAL TO CORRECTED WEIGHT
A122: ATOW | B122: 48000 | C122: 50000 | D122: 52000 | E122: 54000 | F122: 56000 | G122: 58000 | H122: 60000 | I122: 62000 | J122: 64000 | K122: 66000 | L122: 68000 | M122: 70000 | N122: 72000 | O122: 74000 | P122: 76000 | Q122: 78000
A123: V2 | B123: 123 | C123: 126 | D123: 128 | E123: 131 | F123: 133 | G123: 135 | H123: 138 | I123: 140 | J123: 142 | K123: 145 | L123: 147 | M123: 149 | N123: 151 | O123: 153 | P123: 155 | Q123: 157
A124: VR | B124: 119 | C124: 122 | D124: 124 | E124: 127 | F124: 129 | G124: 131 | H124: 134 | I124: 136 | J124: 138 | K124: 141 | L124: 143 | M124: 145 | N124: 147 | O124: 149 | P124: 151 | Q124: 153
A125: V1 | B125: 114 | C125: 114 | D125: 114 | E125: 114 | F125: 114 | G125: 114 | H125: 116 | I125: 118 | J125: 120 | K125: 123 | L125: 125 | M125: 127 | N125: 129 | O125: 131 | P125: 133 | Q125: 135

Sheet MATRIX (hidden)
K1: 1500 | L1: 1500
K2: 1750 | L2: 1750
C3: CALC | D3: INPUT | E3: TEÓRICO | K3: 2000 | L3: 2000
C4: T/O CONF: | D4: =+DATOS!C52 -> 1 + F | E4: =+IF(D4="1 + F","1",IF(D4=2,2,3)) -> 1 | K4: 2250 | L4: 2250
C5: AIRPORT ELEV: | D5: =+DATOS!C54 -> 0 | E5: =ROUND(D5, -3) -> 0 | K5: 2500 | L5: 2500
C6: TORA CORR: | D6: =+DATOS!C55 -> 2830 | E6: =VLOOKUP(D6,K1:L15,TRUE) -> 2750 | K6: 2750 | L6: 2750
C7: NOMBRE MATRIZ | E7: =+VLOOKUP(E4&E5&E6,$F$13:$G$134,2,0) -> FLAP10FT2750M | K7: 3000 | L7: 3000
K8: 3250 | L8: 3250
K9: 3750 | L9: 3750
C11: MAPPING
C12: T/O CONF: | D12: AIRPORT ELEV: | E12: TORA CORR: | F12: buscarv | G12: NOMBRE MATRIZ
C13: 1 | D13: 0 | E13: 2000 | F13: =+C13&D13&E13 -> 102000 | G13: =CONCATENATE("FLAP",C13,D13,"FT",E13,"M") -> FLAP10FT2000M
C14: 1 | D14: 0 | E14: 2500 | F14: =+C14&D14&E14 -> 102500 | G14: FLAP10FT2500M
C15: 1 | D15: 0 | E15: 2250 | F15: =+C15&D15&E15 -> 102250 | G15: FLAP10FT2250M
C16: 1 | D16: 0 | E16: 2750 | F16: =+C16&D16&E16 -> 102750 | G16: FLAP10FT2750M
C17: 1 | D17: 0 | E17: 3000 | F17: 103000 | G17: FLAP10FT3000M
C18: 1 | D18: 0 | E18: 3250 | F18: 103250 | G18: FLAP10FT3250M
C19: 1 | D19: 0 | E19: 3750 | F19: 103750 | G19: FLAP10FT3750M
C20: 1 | D20: 1000 | E20: 2000 | F20: 110002000 | G20: FLAP11000FT2000M
C21: 1 | D21: 1000 | E21: 2500 | F21: 110002500 | G21: =CONCATENATE("FLAP",C21,D21,"FT",E21,"M") -> FLAP11000FT2500M
C22: 1 | D22: 1000 | E22: 2250 | F22: 110002250 | G22: FLAP11000FT2250M
C23: 1 | D23: 1000 | E23: 2750 | F23: 110002750 | G23: FLAP11000FT2750M
C24: 1 | D24: 1000 | E24: 3000 | F24: 110003000 | G24: FLAP11000FT3000M
C25: 1 | D25: 1000 | E25: 3250 | F25: 110003250 | G25: FLAP11000FT3250M
C26: 1 | D26: 1000 | E26: 2500 | F26: 110002500 | G26: FLAP11000FT2500M
C27: 1 | D27: 1000 | E27: 3750 | F27: 110003750 | G27: FLAP11000FT3750M
C28: 1 | D28: 2000 | E28: 2000 | F28: 120002000 | G28: FLAP12000FT2000M
C29: 1 | D29: 2000 | E29: 2250 | F29: 120002250 | G29: FLAP12000FT2250M
C30: 1 | D30: 2000 | E30: 2750 | F30: =+C30&D30&E30 -> 120002750 | G30: FLAP12000FT2750M
C31: 1 | D31: 2000 | E31: 3000 | F31: 120003000 | G31: FLAP12000FT3000M
C32: 1 | D32: 2000 | E32: 3250 | F32: 120003250 | G32: FLAP12000FT3250M
C33: 1 | D33: 2000 | E33: 3750 | F33: 120003750 | G33: FLAP12000FT3750M
C34: 2 | D34: 0 | E34: 2000 | F34: 202000 | G34: FLAP20FT2000M
C35: 2 | D35: 0 | E35: 2500 | F35: 202500 | G35: FLAP20FT2500M
C36: 2 | D36: 0 | E36: 2250 | F36: 202250 | G36: FLAP20FT2250M
C37: 2 | D37: 0 | E37: 2750 | F37: 202750 | G37: FLAP20FT2750M
C38: 2 | D38: 0 | E38: 3000 | F38: 203000 | G38: FLAP20FT3000M
C39: 2 | D39: 0 | E39: 3250 | F39: 203250 | G39: FLAP20FT3250M
C40: 2 | D40: 0 | E40: 3750 | F40: 203750 | G40: FLAP20FT3750M
C41: 2 | D41: 1000 | E41: 2000 | F41: 210002000 | G41: FLAP21000FT2000M
C42: 2 | D42: 1000 | E42: 2500 | F42: 210002500 | G42: FLAP21000FT2500M
C43: 2 | D43: 1000 | E43: 2250 | F43: 210002250 | G43: FLAP21000FT2250M
C44: 2 | D44: 1000 | E44: 2750 | F44: 210002750 | G44: FLAP21000FT2750M
C45: 2 | D45: 1000 | E45: 3000 | F45: 210003000 | G45: FLAP21000FT3000M
C46: 2 | D46: 1000 | E46: 3250 | F46: 210003250 | G46: FLAP21000FT3250M
C47: 2 | D47: 1000 | E47: 2500 | F47: 210002500 | G47: FLAP21000FT2500M
C48: 2 | D48: 1000 | E48: 3750 | F48: 210003750 | G48: FLAP21000FT3750M
C49: 2 | D49: 2000 | E49: 2000 | F49: 220002000 | G49: FLAP22000FT2000M
C50: 2 | D50: 2000 | E50: 2250 | F50: 220002250 | G50: FLAP22000FT2250M
C51: 2 | D51: 2000 | E51: 2750 | F51: 220002750 | G51: FLAP22000FT2750M
C52: 2 | D52: 2000 | E52: 3000 | F52: 220003000 | G52: FLAP22000FT3000M
C53: 2 | D53: 2000 | E53: 3250 | F53: 220003250 | G53: FLAP22000FT3250M
C54: 2 | D54: 2000 | E54: 3750 | F54: 220003750 | G54: FLAP22000FT3750M
C55: 3 | D55: 0 | E55: 1500 | F55: 301500 | G55: FLAP30FT1500M
C56: 3 | D56: 0 | E56: 1750 | F56: 301750 | G56: FLAP30FT1750M
C57: 3 | D57: 0 | E57: 2000 | F57: 302000 | G57: FLAP30FT2000M
C58: 3 | D58: 0 | E58: 2250 | F58: 302250 | G58: FLAP30FT2250M
C59: 3 | D59: 0 | E59: 2500 | F59: 302500 | G59: FLAP30FT2500M
C60: 3 | D60: 1000 | E60: 1500 | F60: 310001500 | G60: FLAP31000FT1500M
C61: 3 | D61: 1000 | E61: 1750 | F61: 310001750 | G61: FLAP31000FT1750M
C62: 3 | D62: 1000 | E62: 2000 | F62: 310002000 | G62: FLAP31000FT2000M
C63: 3 | D63: 1000 | E63: 2250 | F63: 310002250 | G63: FLAP31000FT2250M
C64: 3 | D64: 1000 | E64: 2500 | F64: 310002500 | G64: FLAP31000FT2500M
C65: 3 | D65: 1000 | E65: 1500 | F65: 310001500 | G65: FLAP31000FT1500M
C66: 3 | D66: 2000 | E66: 1750 | F66: 320001750 | G66: FLAP32000FT1750M
C67: 3 | D67: 2000 | E67: 2000 | F67: 320002000 | G67: FLAP32000FT2000M
C68: 3 | D68: 2000 | E68: 2250 | F68: 320002250 | G68: FLAP32000FT2250M
C69: 3 | D69: 2000 | E69: 2500 | F69: 320002500 | G69: FLAP32000FT2500M
F101: =+C101&D101&E101 -> 

Sheet TREF_WGT (hidden)
A2: 2250-WT | B2: 2000V1 | C2: 2000-VR | D2: 2000-V2 | E2: CODE | F2: CODE | G2: CODE | H2: TFLEX
A3: 80000 | B3: =C35-3 -> 147 | C3: 150 | D3: 152 | E3: 3/9 | F3: 3 | G3: 9 | H3: -20
A4: 79000 | B4: 145 | C4: 149 | D4: 151 | E4: 3/9 | F4: 3 | G4: 9 | H4: -10
A5: 78000 | B5: 144 | C5: 148 | D5: 150 | E5: 3/9 | F5: 3 | G5: 9 | H5: 0
A6: 77000 | B6: 142 | C6: 147 | D6: 149 | E6: 3/9 | F6: 3 | G6: 9 | H6: 10
A7: 76000 | B7: 140 | C7: 146 | D7: 148 | E7: 3/9 | F7: 3 | G7: 9 | H7: 20
A8: 75000 | B8: 139 | C8: 145 | D8: 147 | E8: 3/9 | F8: 3 | G8: 9 | H8: 30
A9: 74000 | B9: 138 | C9: 144 | D9: 146 | E9: 3/9 | F9: 3 | G9: 9 | H9: 40
A10: 73000 | B10: 137 | C10: 144 | D10: 146 | E10: 3/9 | F10: 3 | G10: 9 | H10: 44
A11: 72000 | B11: 137 | C11: 143 | D11: 145 | E11: 3/9 | F11: 3 | G11: 9 | H11: 46
A12: 71000 | B12: 137 | C12: 142 | D12: 144 | E12: 3/9 | F12: 3 | G12: 9 | H12: 48
A13: 70000 | B13: 136 | C13: 141 | D13: 143 | E13: 3/9 | F13: 3 | G13: 9 | H13: 50
A14: 69000 | B14: 136 | C14: 140 | D14: 142 | E14: 3/9 | F14: 3 | G14: 9 | H14: 52
A15: 68000 | B15: 136 | C15: 139 | D15: 141 | E15: 3/9 | F15: 3 | G15: 9 | H15: 54
A16: 68000 | B16: 135 | C16: 139 | D16: 140 | E16: 3/9 | F16: 3 | G16: 9 | H16: 55
A17: 67000 | B17: 135 | C17: 138 | D17: 139 | E17: 3/9 | F17: 3 | G17: 9 | H17: 57
A18: 66000 | B18: 135 | C18: 137 | D18: 138 | E18: 3/9 | F18: 3 | G18: 9 | H18: 59
A19: 65000 | B19: 134 | C19: 136 | D19: 137 | E19: 3/9 | F19: 3 | G19: 9 | H19: 61
A20: 64000 | B20: 134 | C20: 135 | D20: 136 | E20: 3/9 | F20: 3 | G20: 9 | H20: 63
A21: 63000 | B21: 128 | C21: 134 | D21: 135 | E21: 3/9 | F21: 3 | G21: 9 | H21: 65
A22: 62000 | B22: 133 | C22: 133 | D22: 134 | E22: 3/9 | F22: 3 | G22: 9 | H22: 67
A23: 61000 | B23: 132 | C23: 132 | D23: 133 | E23: 3/9 | F23: 3 | G23: 9 | H23: 68
A24: 60000 | B24: =B23-2 -> 130 | C24: =C23-2 -> 130 | D24: =D23-2 -> 131 | E24: 3/9 | F24: 3 | G24: 9 | H24: 68
A25: 59000 | B25: =B24-2 -> 128 | C25: =C24-2 -> 128 | D25: =D24-2 -> 129 | E25: 3/9 | F25: 3 | G25: 9 | H25: 68
A26: 58000 | B26: 126 | C26: 126 | D26: 127 | E26: 3/9 | F26: 3 | G26: 9 | H26: 68
A27: 57000 | B27: 124 | C27: 124 | D27: 125 | E27: 3/9 | F27: 3 | G27: 9 | H27: 68
A28: 56000 | B28: 122 | C28: 122 | D28: 123 | E28: 3/9 | F28: 3 | G28: 9 | H28: 68
A29: 55000 | B29: 120 | C29: 120 | D29: 121 | E29: 3/9 | F29: 3 | G29: 9 | H29: 68
A30: 54000 | B30: 118 | C30: 118 | D30: 119 | E30: 3/9 | F30: 3 | G30: 9 | H30: 68
A33: 2250 m | I33: 1+F - 0ft
A34: 2250-WT | B34: 2250-WT | C34: 2250-V1 | D34: 2250-VR | E34: 2250-V2 | F34: CODE | G34: CODE | H34: CODE | I34: TFLEX
A35: 80400 | B35: =ROUND(A35, -3) -> 80000 | C35: 150 | D35: 153 | E35: 155 | F35: 3/9 | G35: 3 | H35: 9 | I35: -20
A36: 79400 | B36: =ROUND(A36, -3) -> 79000 | C36: 148 | D36: 152 | E36: 154 | F36: 3/9 | G36: 3 | H36: 9 | I36: -10
A37: 78400 | B37: 78000 | C37: 147 | D37: 151 | E37: 153 | F37: 3/9 | G37: 3 | H37: 9 | I37: 0
A38: 77300 | B38: 77000 | C38: 145 | D38: 150 | E38: 152 | F38: 3/9 | G38: 3 | H38: 9 | I38: 10
A39: 76000 | B39: 76000 | C39: 143 | D39: 149 | E39: 151 | F39: 3/9 | G39: 3 | H39: 9 | I39: 20
A40: 74800 | B40: 75000 | C40: 142 | D40: 148 | E40: 150 | F40: 3/9 | G40: 3 | H40: 9 | I40: 30
A41: 73600 | B41: 74000 | C41: 141 | D41: 147 | E41: 149 | F41: 3/9 | G41: 3 | H41: 9 | I41: 40
A42: 73100 | B42: 73000 | C42: 140 | D42: 147 | E42: 149 | F42: 3/9 | G42: 3 | H42: 9 | I42: 44
A43: 72100 | B43: 72000 | C43: 140 | D43: 146 | E43: 148 | F43: 3/9 | G43: 3 | H43: 9 | I43: 46
A44: 71100 | B44: 71000 | C44: 140 | D44: 145 | E44: 147 | F44: 3/9 | G44: 3 | H44: 9 | I44: 48
A45: 70200 | B45: 70000 | C45: 139 | D45: 144 | E45: 146 | F45: 3/9 | G45: 3 | H45: 9 | I45: 50
A46: 69200 | B46: 69000 | C46: 139 | D46: 143 | E46: 145 | F46: 3/9 | G46: 3 | H46: 9 | I46: 52
A47: 68200 | B47: 68000 | C47: 139 | D47: 142 | E47: 144 | F47: 3/9 | G47: 3 | H47: 9 | I47: 54
A48: 67800 | B48: 68000 | C48: 138 | D48: 142 | E48: 143 | F48: 3/9 | G48: 3 | H48: 9 | I48: 55
A49: 66800 | B49: 67000 | C49: 138 | D49: 141 | E49: 142 | F49: 3/9 | G49: 3 | H49: 9 | I49: 57
A50: 65800 | B50: 66000 | C50: 138 | D50: 140 | E50: 141 | F50: 3/9 | G50: 3 | H50: 9 | I50: 59
A51: 64800 | B51: 65000 | C51: 137 | D51: 139 | E51: 140 | F51: 3/9 | G51: 3 | H51: 9 | I51: 61
A52: 63800 | B52: 64000 | C52: 137 | D52: 138 | E52: 139 | F52: 3/9 | G52: 3 | H52: 9 | I52: 63
A53: 62900 | B53: 63000 | C53: 131 | D53: 137 | E53: 138 | F53: 3/9 | G53: 3 | H53: 9 | I53: 65
A54: 61600 | B54: 62000 | C54: 136 | D54: 136 | E54: 137 | F54: 3/9 | G54: 3 | H54: 9 | I54: 67
A55: 61000 | B55: 61000 | C55: 135 | D55: 135 | E55: 136 | F55: 3/9 | G55: 3 | H55: 9 | I55: 68
A56: 60000 | B56: 60000 | C56: =C55-2 -> 133 | D56: =D55-2 -> 133 | E56: 134 | F56: 3/9 | G56: 3 | H56: 9 | I56: 68
A57: 59000 | B57: 59000 | C57: =C56-2 -> 131 | D57: 131 | E57: 132 | F57: 3/9 | G57: 3 | H57: 9 | I57: 68
A58: 58000 | B58: 58000 | C58: 129 | D58: 129 | E58: 130 | F58: 3/9 | G58: 3 | H58: 9 | I58: 68
A59: 57000 | B59: 57000 | C59: 127 | D59: 127 | E59: 128 | F59: 3/9 | G59: 3 | H59: 9 | I59: 68
A60: 56000 | B60: 56000 | C60: 125 | D60: 125 | E60: 126 | F60: 3/9 | G60: 3 | H60: 9 | I60: 68
A61: 55000 | B61: 55000 | C61: 123 | D61: 123 | E61: 124 | F61: 3/9 | G61: 3 | H61: 9 | I61: 68
A62: 54000 | B62: 54000 | C62: 121 | D62: 121 | E62: 122 | F62: 3/9 | G62: 3 | H62: 9 | I62: 68
B63: 0
B64: 0
A65: 2500 m | I65: 1+F - 0ft
A66: 2500-WT | C66: 2500-V1 | D66: 2500-VR | E66: 2500-V2 | F66: CODE | G66: C | H66: E | I66: TFLEX
A67: 82900 | B67: 83000 | C67: 155 | D67: 157 | E67: 159 | F67: 3/6 | G67: 3 | H67: 6 | I67: -20
A68: 82200 | B68: 82000 | C68: 153 | D68: 155 | E68: 157 | F68: 3/6 | G68: 3 | H68: 6 | I68: -10
A69: 81300 | B69: 81000 | C69: 151 | D69: 154 | E69: 156 | F69: 3/6 | G69: 3 | H69: 6 | I69: 0
A70: 80200 | B70: 80000 | C70: 149 | D70: 153 | E70: 155 | F70: 3/6 | G70: 3 | H70: 6 | I70: 10
A71: 79200 | B71: 79000 | C71: 147 | D71: 152 | E71: 154 | F71: 3/6 | G71: 3 | H71: 6 | I71: 20
A72: 78100 | B72: 78000 | C72: 145 | D72: 151 | E72: 153 | F72: 3/6 | G72: 3 | H72: 6 | I72: 30
A73: 77100 | B73: 77000 | C73: 144 | D73: 150 | E73: 151 | F73: 3/6 | G73: 3 | H73: 6 | I73: 40
A74: 76600 | B74: 77000 | C74: 143 | D74: 149 | E74: 151 | F74: 3/6 | G74: 3 | H74: 6 | I74: 44
A75: 75700 | B75: 76000 | C75: 144 | D75: 149 | E75: 151 | F75: 3/6 | G75: 3 | H75: 6 | I75: 46
A76: 74600 | B76: 75000 | C76: 144 | D76: 148 | E76: 150 | F76: 3/6 | G76: 3 | H76: 6 | I76: 48
B77: 74000 | C77: 144 | D77: 147 | E77: 149 | F77: 3/6 | G77: 3 | H77: 6 | I77: 50
A78: 73400 | B78: 73000 | C78: 144 | D78: 148 | E78: 149 | F78: 3/9 | G78: 3 | H78: 9 | I78: 50
A79: 72500 | B79: 73000 | C79: 143 | D79: 147 | E79: 148 | F79: 3/9 | G79: 3 | H79: 9 | I79: 52
A80: 72200 | B80: 72000 | C80: 143 | D80: 146 | E80: 147 | F80: 3/9 | G80: 3 | H80: 9 | I80: 54
A81: 70600 | B81: 71000 | C81: 143 | D81: 145 | E81: 147 | F81: 3/9 | G81: 3 | H81: 9 | I81: 55
A82: 69500 | B82: 70000 | C82: 143 | D82: 144 | E82: 145 | F82: 3/9 | G82: 3 | H82: 9 | I82: 57
B83: 69000 | C83: 143 | D83: 143 | E83: 143 | F83: 3/9 | G83: 3 | H83: 9 | I83: 59
A84: 68300 | B84: 68000 | C84: 142 | D84: 143 | E84: 144 | F84: 3/9 | G84: 3 | H84: 9 | I84: 59
A85: 67200 | B85: 67000 | C85: 142 | D85: 142 | E85: 143 | F85: 3/9 | G85: 3 | H85: 9 | I85: 61
A86: 65900 | B86: 66000 | C86: 142 | D86: 142 | E86: 143 | F86: 3/3 | G86: 3 | H86: 3 | I86: 63
A87: 64600 | B87: 65000 | C87: 142 | D87: 142 | E87: 143 | F87: 3/3 | G87: 3 | H87: 3 | I87: 65
B88: 64000 | C88: 142 | D88: 142 | E88: 143 | F88: 3/3 | G88: 3 | H88: 3 | I88: 67
A89: 63300 | B89: 63000 | C89: 141 | D89: 141 | E89: 142 | F89: 3/3 | G89: 3 | H89: 3 | I89: 67
A90: 62600 | B90: 63000 | C90: 140 | D90: 140 | E90: 141 | F90: 3/3 | G90: 3 | H90: 3 | I90: 68
B91: 62000 | C91: 139 | D91: 139 | E91: 140 | F91: 3/3 | G91: 3 | H91: 3 | I91: 69
B92: 61000 | C92: 138 | D92: 138 | E92: 139 | F92: 3/3 | G92: 3 | H92: 3 | I92: 70
B93: 60000 | C93: 137 | D93: 137 | E93: 138 | F93: 3/3 | G93: 3 | H93: 3 | I93: 70
B94: 59000 | C94: 136 | D94: 136 | E94: 137 | F94: 3/3 | G94: 3 | H94: 3 | I94: 70
B95: 58000 | C95: =C94-2 -> 134 | D95: =D94-2 -> 134 | E95: 135 | F95: 3/3 | G95: 3 | H95: 3 | I95: 70
B96: 57000 | C96: =C95-2 -> 132 | D96: 132 | E96: 133 | F96: 3/3 | G96: 3 | H96: 3 | I96: 70
B97: 56000 | C97: 130 | D97: 130 | E97: 131 | F97: 3/3 | G97: 3 | H97: 3 | I97: 70
B98: 55000 | C98: 128 | D98: 128 | E98: 129 | F98: 3/3 | G98: 3 | H98: 3 | I98: 70
B99: 54000 | C99: 126 | D99: 126 | E99: 127 | F99: 3/3 | G99: 3 | H99: 3 | I99: 70
B100: 0
B101: 0
A102: 2750 m | I102: 1+F - 0ft
A103: 2750-WT | C103: 2750-V1 | D103: 2750-VR | E103: 2750-V2 | F103: CODE | G103: C | H103: E | I103: TFLEX
A104: 83800 | B104: 84000 | C104: 154 | D104: 159 | E104: 161 | F104: 3/6 | G104: 3 | H104: 6 | I104: -20
A105: 83000 | B105: 83000 | C105: 152 | D105: 157 | E105: 159 | F105: 3/6 | G105: 3 | H105: 6 | I105: -10
A106: 82400 | B106: 82000 | C106: 150 | D106: 155 | E106: 157 | F106: 3/6 | G106: 3 | H106: 6 | I106: 0
A107: 81500 | B107: 82000 | C107: 148 | D107: 154 | E107: 156 | F107: 3/6 | G107: 3 | H107: 6 | I107: 10
A108: 80500 | B108: 81000 | C108: 146 | D108: 153 | E108: 155 | F108: 3/6 | G108: 3 | H108: 6 | I108: 20
A109: 79500 | B109: 80000 | C109: 144 | D109: 152 | E109: 154 | F109: 3/6 | G109: 3 | H109: 6 | I109: 30
A110: 78500 | B110: 79000 | C110: 142 | D110: 151 | E110: 153 | F110: 3/6 | G110: 3 | H110: 6 | I110: 40
A111: 78100 | B111: 78000 | C111: 142 | D111: 151 | E111: 152 | F111: 3/6 | G111: 3 | H111: 6 | I111: 44
A112: 77200 | B112: 77000 | C112: 142 | D112: 150 | E112: 152 | F112: 3/6 | G112: 3 | H112: 6 | I112: 46
A113: 76200 | B113: 76000 | C113: 143 | D113: 149 | E113: 151 | F113: 3/6 | G113: 3 | H113: 6 | I113: 48
A114: 75200 | B114: 75000 | C114: 144 | D114: 149 | E114: 150 | F114: 3/6 | G114: 3 | H114: 6 | I114: 50
A115: 74200 | B115: 74000 | C115: 145 | D115: 148 | E115: 150 | F115: 3/6 | G115: 3 | H115: 6 | I115: 52
A116: 73200 | B116: 73000 | C116: 146 | D116: 148 | E116: 149 | F116: 3/6 | G116: 3 | H116: 6 | I116: 54
A117: 72600 | B117: 73000 | C117: 146 | D117: 148 | E117: 149 | F117: 3/6 | G117: 3 | H117: 6 | I117: 55
B118: 72000 | C118: 146 | D118: 148 | E118: 149 | F118: 3/6 | G118: 3 | H118: 6 | I118: 56
A119: 71300 | B119: 71000 | C119: 147 | D119: 148 | E119: 149 | F119: 3/6 | G119: 3 | H119: 6 | I119: 57
A120: 70000 | B120: =ROUND(A120, -3) -> 70000 | C120: 147 | D120: 147 | E120: 148 | F120: 2/3 | G120: 2 | H120: 3 | I120: 59
A121: 68700 | B121: 69000 | C121: 147 | D121: 147 | E121: 148 | F121: 2/3 | G121: 2 | H121: 3 | I121: 61
B122: 68000 | C122: 147 | D122: 147 | E122: 148 | F122: 2/3 | G122: 2 | H122: 3 | I122: 63
A123: 67300 | B123: 67000 | C123: 147 | D123: 147 | E123: 148 | F123: 3/3 | G123: 3 | H123: 3 | I123: 63
A124: 65900 | B124: 66000 | C124: 146 | D124: 146 | E124: 147 | F124: 3/3 | G124: 3 | H124: 3 | I124: 65
A125: 64500 | B125: 65000 | C125: 145 | D125: 145 | E125: 145 | F125: 3/3 | G125: 3 | H125: 3 | I125: 67
A126: 63800 | B126: 64000 | C126: =C125-2 -> 143 | D126: =D125-2 -> 143 | E126: 143 | F126: 3/3 | G126: 3 | H126: 3 | I126: 68
B127: 63000 | C127: =C126-2 -> 141 | D127: 141 | E127: 141 | F127: 3/3 | G127: 3 | H127: 3 | I127: 69
B128: 62000 | C128: 139 | D128: 139 | E128: 139 | F128: 3/3 | G128: 3 | H128: 3 | I128: 70
B129: 61000 | C129: 137 | D129: 137 | E129: 137 | F129: 3/3 | G129: 3 | H129: 3 | I129: 70
B130: 60000 | C130: 135 | D130: 135 | E130: 135 | F130: 3/3 | G130: 3 | H130: 3 | I130: 70
B131: 59000 | C131: 133 | D131: 133 | E131: 133 | F131: 3/3 | G131: 3 | H131: 3 | I131: 70
B132: 58000 | C132: 131 | D132: 131 | E132: 131 | F132: 3/3 | G132: 3 | H132: 3 | I132: 70
B133: 57000 | C133: 129 | D133: 129 | E133: 129 | F133: 3/3 | G133: 3 | H133: 3 | I133: 70
B134: 56000 | C134: 127 | D134: 127 | E134: 127 | F134: 3/3 | G134: 3 | H134: 3 | I134: 70
B135: 55000 | C135: 125 | D135: 125 | E135: 125 | F135: 3/3 | G135: 3 | H135: 3 | I135: 70
B136: 54000 | C136: 123 | D136: 123 | E136: 123 | F136: 3/3 | G136: 3 | H136: 3 | I136: 70
A141: 3000 m | I141: 1+F - 0ft
A142: 3000-WT | C142: 3000-V1 | D142: 3000-VR | E142: 3000-V2 | F142: CODE | G142: C | H142: E | I142: TFLEX
A143: 84500 | B143: 85000 | C143: 154 | D143: 162 | E143: 164 | F143: 3/6 | G143: 3 | H143: 6 | I143: -20
A144: 83800 | B144: 84000 | C144: 151 | D144: 160 | E144: 162 | F144: 3/6 | G144: 3 | H144: 6 | I144: -10
A145: 83100 | B145: 83000 | C145: 149 | D145: 158 | E145: 160 | F145: 3/6 | G145: 3 | H145: 6 | I145: 0
A146: 82500 | B146: 83000 | C146: 147 | D146: 156 | E146: 158 | F146: 3/6 | G146: 3 | H146: 6 | I146: 10
A147: 81600 | B147: 82000 | C147: 145 | D147: 154 | E147: 156 | F147: 3/6 | G147: 3 | H147: 6 | I147: 20
A148: 80600 | B148: 81000 | C148: 143 | D148: 153 | E148: 155 | F148: 3/6 | G148: 3 | H148: 6 | I148: 30
A149: 79700 | B149: 80000 | C149: 141 | D149: 152 | E149: 154 | F149: 3/6 | G149: 3 | H149: 6 | I149: 40
A150: 79300 | B150: 79000 | C150: 140 | D150: 152 | E150: 154 | F150: 3/6 | G150: 3 | H150: 6 | I150: 44
A151: 78300 | B151: 78000 | C151: 141 | D151: 151 | E151: 153 | F151: 3/6 | G151: 3 | H151: 6 | I151: 46
A152: 77400 | B152: 77000 | C152: 142 | D152: 150 | E152: 152 | F152: 3/6 | G152: 3 | H152: 6 | I152: 48
A153: 76200 | B153: 76000 | C153: 143 | D153: 150 | E153: 151 | F153: 3/6 | G153: 3 | H153: 6 | I153: 50
A154: 75000 | B154: 75000 | C154: 144 | D154: 150 | E154: 151 | F154: 3/6 | G154: 3 | H154: 6 | I154: 52
A155: 73800 | B155: 74000 | C155: 145 | D155: 150 | E155: 151 | F155: 3/6 | G155: 3 | H155: 6 | I155: 54
A156: 73200 | B156: 73000 | C156: 146 | D156: 150 | E156: 151 | F156: 3/6 | G156: 3 | H156: 6 | I156: 55
A157: 71900 | B157: 72000 | C157: 147 | D157: 150 | E157: 151 | F157: 3/6 | G157: 3 | H157: 6 | I157: 57
A158: 70700 | B158: 71000 | C158: 148 | D158: 150 | E158: 151 | F158: 3/6 | G158: 3 | H158: 6 | I158: 59
A159: 69500 | B159: 70000 | C159: 149 | D159: 151 | E159: 151 | F159: 3/6 | G159: 3 | H159: 6 | I159: 61
B160: 69000 | C160: 150 | D160: 152 | E160: 151 | F160: 3/6 | G160: 3 | H160: 6 | I160: 63
A161: 68300 | B161: 68000 | C161: 151 | D161: 151 | E161: 151 | F161: 3/6 | G161: 3 | H161: 6 | I161: 63
A162: 66900 | B162: 67000 | C162: 150 | D162: 150 | E162: 151 | F162: 3/3 | G162: 3 | H162: 3 | I162: 65
A163: 65500 | B163: 66000 | C163: 149 | D163: 149 | E163: 150 | F163: 3/3 | G163: 3 | H163: 3 | I163: 67
A164: 64700 | B164: 65000 | C164: 148 | D164: 148 | E164: 148 | F164: 2/3 | G164: 2 | H164: 3 | I164: 68
B165: 64000 | C165: =C164-2 -> 146 | D165: =D164-2 -> 146 | E165: 146 | F165: 2/3 | G165: 2 | H165: 3 | I165: 68
B166: 63000 | C166: =C165-2 -> 144 | D166: =D165-2 -> 144 | E166: =E165-2 -> 144 | F166: 2/3 | G166: 2 | H166: 3 | I166: 68
B167: 62000 | C167: 142 | D167: 142 | E167: 142 | F167: 2/3 | G167: 2 | H167: 3 | I167: 68
B168: 61000 | C168: 140 | D168: 140 | E168: 140 | F168: 2/3 | G168: 2 | H168: 3 | I168: 68
B169: 60000 | C169: 138 | D169: 138 | E169: 138 | F169: 2/3 | G169: 2 | H169: 3 | I169: 68
B170: 59000 | C170: 136 | D170: 136 | E170: 136 | F170: 2/3 | G170: 2 | H170: 3 | I170: 68
B171: 58000 | C171: 134 | D171: 134 | E171: 134 | F171: 2/3 | G171: 2 | H171: 3 | I171: 68
B172: 57000 | C172: 132 | D172: 132 | E172: 132 | F172: 2/3 | G172: 2 | H172: 3 | I172: 68
B173: 56000 | C173: 130 | D173: 130 | E173: 130 | F173: 2/3 | G173: 2 | H173: 3 | I173: 68
B174: 55000 | C174: 128 | D174: 128 | E174: 128 | F174: 2/3 | G174: 2 | H174: 3 | I174: 68
B175: 54000 | C175: 126 | D175: 126 | E175: 126 | F175: 2/3 | G175: 2 | H175: 3 | I175: 68
B179: 0
B180: 0
A181: 3250 m | I181: 1+F - 0ft | S181: 1+F - 0ft
A182: 3250-WT | C182: 3250-V1 | D182: 3250-VR | E182: 3250-V2 | F182: CODE | G182: C | H182: E | I182: TFLEX | M182: 3750-V1 | N182: 3750-VR | O182: 3750-V2 | P182: CODE | Q182: C | R182: E | S182: TFLEX
A183: 85100 | B183: 85000 | C183: 153 | D183: 164 | E183: 166 | F183: 3/6 | G183: 3 | H183: 6 | I183: -20 | L183: 85000 | M183: 153 | N183: 164 | O183: 166 | P183: 3/6 | Q183: 3 | R183: 6 | S183: -20
A184: 84500 | B184: 85000 | C184: 151 | D184: 162 | E184: 164 | F184: 3/6 | G184: 3 | H184: 6 | I184: -10 | L184: 85000 | M184: 151 | N184: 162 | O184: 164 | P184: 3/6 | Q184: 3 | R184: 6 | S184: -10
A185: 83900 | B185: 84000 | C185: 148 | D185: 160 | E185: 162 | F185: 3/6 | G185: 3 | H185: 6 | I185: 0 | L185: 84000 | M185: 148 | N185: 160 | O185: 162 | P185: 3/6 | Q185: 3 | R185: 6 | S185: 0
A186: 83200 | B186: 83000 | C186: 146 | D186: 158 | E186: 160 | F186: 3/6 | G186: 3 | H186: 6 | I186: 10 | L186: 83000 | M186: 146 | N186: 158 | O186: 160 | P186: 3/6 | Q186: 3 | R186: 6 | S186: 10
A187: 82400 | B187: 82000 | C187: 144 | D187: 157 | E187: 158 | F187: 3/6 | G187: 3 | H187: 6 | I187: 20 | L187: 82000 | M187: 144 | N187: 157 | O187: 158 | P187: 3/6 | Q187: 3 | R187: 6 | S187: 20
A188: 81700 | B188: 82000 | C188: 142 | D188: 155 | E188: 157 | F188: 3/6 | G188: 3 | H188: 6 | I188: 30 | L188: 82000 | M188: 142 | N188: 155 | O188: 157 | P188: 3/6 | Q188: 3 | R188: 6 | S188: 30
A189: 80900 | B189: 81000 | C189: 140 | D189: 154 | E189: 155 | F189: 3/6 | G189: 3 | H189: 6 | I189: 40 | L189: 81000 | M189: 140 | N189: 154 | O189: 155 | P189: 3/6 | Q189: 3 | R189: 6 | S189: 40
A190: 80500 | B190: 81000 | C190: 139 | D190: 153 | E190: 155 | F190: 3/6 | G190: 3 | H190: 6 | I190: 44 | L190: 81000 | M190: 139 | N190: 153 | O190: 155 | P190: 3/6 | Q190: 3 | R190: 6 | S190: 44
B191: 80000 | C191: 138 | D191: 152 | E191: 155 | F191: 3/6 | G191: 3 | H191: 6 | I191: 48 | L191: 80000 | M191: 138 | N191: 152 | O191: 155 | P191: 3/6 | Q191: 3 | R191: 6 | S191: 48
A192: 79400 | B192: 79000 | C192: 140 | D192: 152 | E192: 154 | F192: 3/6 | G192: 3 | H192: 6 | I192: 46 | L192: 79000 | M192: 140 | N192: 152 | O192: 154 | P192: 3/6 | Q192: 3 | R192: 6 | S192: 46
A193: 78100 | B193: 78000 | C193: 141 | D193: 152 | E193: 154 | F193: 3/6 | G193: 3 | H193: 6 | I193: 48 | L193: 78000 | M193: 141 | N193: 152 | O193: 154 | P193: 3/6 | Q193: 3 | R193: 6 | S193: 48
A194: 76900 | B194: 77000 | C194: 142 | D194: 152 | E194: 154 | F194: 3/6 | G194: 3 | H194: 6 | I194: 50 | L194: 77000 | M194: 142 | N194: 152 | O194: 154 | P194: 3/6 | Q194: 3 | R194: 6 | S194: 50
A195: 75600 | B195: 76000 | C195: 143 | D195: 152 | E195: 153 | F195: 3/6 | G195: 3 | H195: 6 | I195: 52 | L195: 76000 | M195: 143 | N195: 152 | O195: 153 | P195: 3/6 | Q195: 3 | R195: 6 | S195: 52
A196: 14400 | B196: 75000 | C196: 145 | D196: 152 | E196: 153 | F196: 3/6 | G196: 3 | H196: 6 | I196: 54 | L196: 75000 | M196: 145 | N196: 152 | O196: 153 | P196: 3/6 | Q196: 3 | R196: 6 | S196: 54
A197: 73700 | B197: 74000 | C197: 145 | D197: 152 | E197: 153 | F197: 3/6 | G197: 3 | H197: 6 | I197: 55 | L197: 74000 | M197: 145 | N197: 152 | O197: 153 | P197: 3/6 | Q197: 3 | R197: 6 | S197: 55
B198: 73000 | C198: 145 | D198: 152 | E198: 153 | F198: 3/6 | G198: 3 | H198: 6 | I198: 56 | L198: 73000 | M198: 145 | N198: 152 | O198: 153 | P198: 3/6 | Q198: 3 | R198: 6 | S198: 56
A199: 72400 | B199: 72000 | C199: 146 | D199: 152 | E199: 153 | F199: 3/6 | G199: 3 | H199: 6 | I199: 57 | L199: 72000 | M199: 146 | N199: 152 | O199: 153 | P199: 3/6 | Q199: 3 | R199: 6 | S199: 57
A200: 71100 | B200: 71000 | C200: 148 | D200: 152 | E200: 153 | F200: 3/6 | G200: 3 | H200: 6 | I200: 59 | L200: 71000 | M200: 148 | N200: 152 | O200: 153 | P200: 3/6 | Q200: 3 | R200: 6 | S200: 59
A201: 69900 | B201: 70000 | C201: 149 | D201: 152 | E201: 153 | F201: 3/6 | G201: 3 | H201: 6 | I201: 61 | L201: 70000 | M201: 149 | N201: 152 | O201: 153 | P201: 3/6 | Q201: 3 | R201: 6 | S201: 61
A202: 68700 | B202: 69000 | C202: 150 | D202: 152 | E202: 153 | F202: 3/6 | G202: 3 | H202: 6 | I202: 63 | L202: 69000 | M202: 150 | N202: 152 | O202: 153 | P202: 3/6 | Q202: 3 | R202: 6 | S202: 63
A203: 67500 | B203: 68000 | C203: 151 | D203: 152 | E203: 153 | F203: 3/6 | G203: 3 | H203: 6 | I203: 65 | L203: 68000 | M203: 151 | N203: 152 | O203: 153 | P203: 3/6 | Q203: 3 | R203: 6 | S203: 65
B204: 67000 | C204: 152 | D204: 152 | E204: 153 | F204: 3/6 | G204: 3 | H204: 6 | I204: 67 | L204: 67000 | M204: 152 | N204: 152 | O204: 153 | P204: 3/6 | Q204: 3 | R204: 6 | S204: 67
A205: 66100 | B205: 66000 | C205: 153 | D205: 153 | E205: 153 | F205: 3/6 | G205: 3 | H205: 6 | I205: 67 | L205: 66000 | M205: 153 | N205: 153 | O205: 153 | P205: 3/6 | Q205: 3 | R205: 6 | S205: 67
A206: 65400 | B206: 65000 | C206: 151 | D206: 151 | E206: 152 | F206: 2/3 | G206: 2 | H206: 3 | I206: 68 | L206: 65000 | M206: 151 | N206: 151 | O206: 152 | P206: 2/3 | Q206: 2 | R206: 3 | S206: 68
B207: 64000 | C207: 149 | D207: 149 | E207: 151 | F207: 2/3 | G207: 2 | H207: 3 | I207: 69 | L207: 64000 | M207: 149 | N207: 149 | O207: 151 | P207: 2/3 | Q207: 2 | R207: 3 | S207: 69
B208: 63000 | C208: 147 | D208: 147 | E208: 150 | F208: 2/3 | G208: 2 | H208: 3 | I208: 70 | L208: 63000 | M208: 147 | N208: 147 | O208: 150 | P208: 2/3 | Q208: 2 | R208: 3 | S208: 70
B209: 62000 | C209: 145 | D209: 145 | E209: 149 | F209: 2/3 | G209: 2 | H209: 3 | I209: 70 | L209: 62000 | M209: 145 | N209: 145 | O209: 149 | P209: 2/3 | Q209: 2 | R209: 3 | S209: 70
B210: 61000 | C210: 143 | D210: 143 | E210: 148 | F210: 2/3 | G210: 2 | H210: 3 | I210: 70 | L210: 61000 | M210: 143 | N210: 143 | O210: 148 | P210: 2/3 | Q210: 2 | R210: 3 | S210: 70
... 1251 more rows

Sheet 1+F_0FT (hidden)
B1: 1+F - 0ft | C1: 2250 | I1: 1+F - 0ft | J1: 2500 | P1: 1+F - 0ft | Q1: 2750 | W1: 1+F - 0ft | X1: 3000 | AD1: 1+F - 0ft | AE1: 3250
C2: 2
A3: TFLEX | B3: 2250-WT | C3: 2250-V1 | D3: 2250-VR | E3: 2250-V2 | F3: CODE | H3: TFLEX | I3: 2500-WT | J3: 2500-V1 | K3: 2500-VR | L3: 2500-V2 | M3: CODE | O3: TFLEX | P3: 2750-WT | Q3: 2750-V1 | R3: 2750-VR | S3: 2750-V2 | T3: CODE | V3: TFLEX | W3: 3000-WT | X3: 3000-V1 | Y3: 3000-VR | Z3: 3000-V2 | AA3: CODE | AC3: TFLEX | AD3: 3250-WT | AE3: 3250-V1 | AF3: 3250-VR | AG3: 3250-V2 | AH3: CODE
A4: -20 | B4: 80400 | C4: 150 | D4: 153 | E4: 155 | F4: 3/9 | H4: -20 | I4: 82900 | J4: 155 | K4: 157 | L4: 159 | M4: 3/6 | O4: -20 | P4: 83800 | Q4: 154 | R4: 159 | S4: 161 | T4: 3/6 | V4: -20 | W4: 84500 | X4: 154 | Y4: 162 | Z4: 164 | AA4: 3/6 | AC4: -20 | AD4: 85100 | AE4: 153 | AF4: 164 | AG4: 166 | AH4: 3/6
A5: -10 | B5: 79400 | C5: 148 | D5: 152 | E5: 154 | F5: 3/9 | H5: -10 | I5: 82200 | J5: 153 | K5: 155 | L5: 157 | M5: 3/6 | O5: -10 | P5: 83000 | Q5: 152 | R5: 157 | S5: 159 | T5: 3/6 | V5: -10 | W5: 83800 | X5: 151 | Y5: 160 | Z5: 162 | AA5: 3/6 | AC5: -10 | AD5: 84500 | AE5: 151 | AF5: 162 | AG5: 164 | AH5: 3/6
A6: 0 | B6: 78400 | C6: 147 | D6: 151 | E6: 153 | F6: 3/9 | H6: 0 | I6: 81300 | J6: 151 | K6: 154 | L6: 156 | M6: 3/6 | O6: 0 | P6: 82400 | Q6: 150 | R6: 155 | S6: 157 | T6: 3/6 | V6: 0 | W6: 83100 | X6: 149 | Y6: 158 | Z6: 160 | AA6: 3/6 | AC6: 0 | AD6: 83900 | AE6: 148 | AF6: 160 | AG6: 162 | AH6: 3/6
A7: 10 | B7: 77300 | C7: 145 | D7: 150 | E7: 152 | F7: 3/9 | H7: 10 | I7: 80200 | J7: 149 | K7: 153 | L7: 155 | M7: 3/6 | O7: 10 | P7: 81500 | Q7: 148 | R7: 154 | S7: 156 | T7: 3/6 | V7: 10 | W7: 82500 | X7: 147 | Y7: 156 | Z7: 158 | AA7: 3/6 | AC7: 10 | AD7: 83200 | AE7: 146 | AF7: 158 | AG7: 160 | AH7: 3/6
A8: 20 | B8: 76000 | C8: 143 | D8: 149 | E8: 151 | F8: 3/9 | H8: 20 | I8: 79200 | J8: 147 | K8: 152 | L8: 154 | M8: 3/6 | O8: 20 | P8: 80500 | Q8: 146 | R8: 153 | S8: 155 | T8: 3/6 | V8: 20 | W8: 81600 | X8: 145 | Y8: 154 | Z8: 156 | AA8: 3/6 | AC8: 20 | AD8: 82400 | AE8: 144 | AF8: 157 | AG8: 158 | AH8: 3/6
A9: 30 | B9: 74800 | C9: 142 | D9: 148 | E9: 150 | F9: 3/9 | H9: 30 | I9: 78100 | J9: 145 | K9: 151 | L9: 153 | M9: 3/6 | O9: 30 | P9: 79500 | Q9: 144 | R9: 152 | S9: 154 | T9: 3/6 | V9: 30 | W9: 80600 | X9: 143 | Y9: 153 | Z9: 155 | AA9: 3/6 | AC9: 30 | AD9: 81700 | AE9: 142 | AF9: 155 | AG9: 157 | AH9: 3/6
A10: 40 | B10: 73600 | C10: 141 | D10: 147 | E10: 149 | F10: 3/9 | H10: 40 | I10: 77100 | J10: 144 | K10: 150 | L10: 151 | M10: 3/6 | O10: 40 | P10: 78500 | Q10: 142 | R10: 151 | S10: 153 | T10: 3/6 | V10: 40 | W10: 79700 | X10: 141 | Y10: 152 | Z10: 154 | AA10: 3/6 | AC10: 40 | AD10: 80900 | AE10: 140 | AF10: 154 | AG10: 155 | AH10: 3/6
A11: 44 | B11: 73100 | C11: 140 | D11: 147 | E11: 149 | F11: 3/9 | H11: 44 | I11: 76600 | J11: 143 | K11: 149 | L11: 151 | M11: 3/6 | O11: 44 | P11: 78100 | Q11: 142 | R11: 151 | S11: 152 | T11: 3/6 | V11: 44 | W11: 79300 | X11: 140 | Y11: 152 | Z11: 154 | AA11: 3/6 | AC11: 44 | AD11: 80500 | AE11: 139 | AF11: 153 | AG11: 155 | AH11: 3/6
A12: 46 | B12: 72100 | C12: 140 | D12: 146 | E12: 148 | F12: 3/9 | H12: 46 | I12: 75700 | J12: 144 | K12: 149 | L12: 151 | M12: 3/6 | O12: 46 | P12: 77200 | Q12: 142 | R12: 150 | S12: 152 | T12: 3/6 | V12: 46 | W12: 78300 | X12: 141 | Y12: 151 | Z12: 153 | AA12: 3/6 | AC12: 46 | AD12: 79400 | AE12: 140 | AF12: 152 | AG12: 154 | AH12: 3/6
A13: 48 | B13: 71100 | C13: 140 | D13: 145 | E13: 147 | F13: 3/9 | H13: 48 | I13: 74600 | J13: 144 | K13: 148 | L13: 150 | M13: 3/6 | O13: 48 | P13: 76200 | Q13: 143 | R13: 149 | S13: 151 | T13: 3/6 | V13: 48 | W13: 77400 | X13: 142 | Y13: 150 | Z13: 152 | AA13: 3/6 | AC13: 48 | AD13: 78100 | AE13: 141 | AF13: 152 | AG13: 154 | AH13: 3/6
A14: 50 | B14: 70200 | C14: 139 | D14: 144 | E14: 146 | F14: 3/9 | H14: 50 | I14: 73400 | J14: 144 | K14: 148 | L14: 149 | M14: 3/9 | O14: 50 | P14: 75200 | Q14: 144 | R14: 149 | S14: 150 | T14: 3/6 | V14: 50 | W14: 76200 | X14: 143 | Y14: 150 | Z14: 151 | AA14: 3/6 | AC14: 50 | AD14: 76900 | AE14: 142 | AF14: 152 | AG14: 154 | AH14: 3/6
A15: 52 | B15: 69200 | C15: 139 | D15: 143 | E15: 145 | F15: 3/9 | H15: 52 | I15: 12300 | J15: 143 | K15: 147 | L15: 148 | M15: 3/9 | O15: 52 | P15: 74200 | Q15: 145 | R15: 148 | S15: 150 | T15: 3/6 | V15: 52 | W15: 75000 | X15: 144 | Y15: 150 | Z15: 151 | AA15: 3/6 | AC15: 52 | AD15: 75600 | AE15: 143 | AF15: 152 | AG15: 153 | AH15: 3/6
A16: 54 | B16: 68200 | C16: 139 | D16: 142 | E16: 144 | F16: 3/9 | H16: 54 | I16: 11200 | J16: 143 | K16: 146 | L16: 147 | M16: 3/9 | O16: 54 | P16: 73200 | Q16: 146 | R16: 148 | S16: 149 | T16: 3/6 | V16: 54 | W16: 73800 | X16: 145 | Y16: 150 | Z16: 151 | AA16: 3/6 | AC16: 54 | AD16: 14400 | AE16: 145 | AF16: 152 | AG16: 153 | AH16: 3/6
A17: 55 | B17: 67800 | C17: 138 | D17: 142 | E17: 143 | F17: 3/9 | H17: 55 | I17: 70600 | J17: 143 | K17: 145 | L17: 147 | M17: 3/9 | O17: 55 | P17: 72600 | Q17: 146 | R17: 148 | S17: 149 | T17: 3/6 | V17: 55 | W17: 73200 | X17: 146 | Y17: 150 | Z17: 151 | AA17: 3/6 | AC17: 55 | AD17: 73700 | AE17: 145 | AF17: 152 | AG17: 153 | AH17: 3/6
A18: 57 | B18: 66800 | C18: 138 | D18: 141 | E18: 142 | F18: 3/9 | H18: 57 | I18: 69500 | J18: 143 | K18: 144 | L18: 145 | M18: 3/9 | O18: 57 | P18: 71300 | Q18: 147 | R18: 148 | S18: 149 | T18: 3/6 | V18: 57 | W18: 71900 | X18: 147 | Y18: 150 | Z18: 151 | AA18: 3/6 | AC18: 57 | AD18: 72400 | AE18: 146 | AF18: 152 | AG18: 153 | AH18: 3/6
A19: 59 | B19: 65800 | C19: 138 | D19: 140 | E19: 141 | F19: 3/9 | H19: 59 | I19: 68300 | J19: 142 | K19: 143 | L19: 144 | M19: 3/9 | O19: 59 | P19: 70000 | Q19: 147 | R19: 147 | S19: 148 | T19: 2/3 | V19: 59 | W19: 70700 | X19: 148 | Y19: 150 | Z19: 151 | AA19: 3/6 | AC19: 59 | AD19: 71100 | AE19: 148 | AF19: 152 | AG19: 153 | AH19: 3/6
A20: 61 | B20: 64800 | C20: 137 | D20: 139 | E20: 140 | F20: 3/9 | H20: 61 | I20: 67200 | J20: 142 | K20: 142 | L20: 143 | M20: 3/9 | O20: 61 | P20: 68700 | Q20: 147 | R20: 147 | S20: 148 | T20: 2/3 | V20: 61 | W20: 69500 | X20: 149 | Y20: 151 | Z20: 151 | AA20: 3/6 | AC20: 61 | AD20: 69900 | AE20: 149 | AF20: 152 | AG20: 153 | AH20: 3/6
A21: 63 | B21: 63800 | C21: 137 | D21: 138 | E21: 139 | F21: 3/9 | H21: 63 | I21: 65900 | J21: 142 | K21: 142 | L21: 143 | M21: 3/3 | O21: 63 | P21: 67300 | Q21: 147 | R21: 147 | S21: 148 | T21: 3/3 | V21: 63 | W21: 68300 | X21: 151 | Y21: 151 | Z21: 151 | AA21: 3/6 | AC21: 63 | AD21: 68700 | AE21: 150 | AF21: 152 | AG21: 153 | AH21: 3/6
A22: 65 | B22: 62900 | C22: 131 | D22: 137 | E22: 138 | F22: 3/9 | H22: 65 | I22: 64600 | J22: 142 | K22: 142 | L22: 143 | M22: 3/3 | O22: 65 | P22: 65900 | Q22: 146 | R22: 146 | S22: 147 | T22: 3/3 | V22: 65 | W22: 66900 | X22: 150 | Y22: 150 | Z22: 151 | AA22: 3/3 | AC22: 65 | AD22: 67500 | AE22: 151 | AF22: 152 | AG22: 153 | AH22: 3/6
A23: 67 | B23: 61600 | C23: 136 | D23: 136 | E23: 137 | F23: 3/9 | H23: 67 | I23: 63300 | J23: 141 | K23: 141 | L23: 142 | M23: 3/3 | O23: 67 | P23: 64500 | Q23: 145 | R23: 145 | S23: 145 | T23: 3/3 | V23: 67 | W23: 65500 | X23: 149 | Y23: 149 | Z23: 150 | AA23: 3/3 | AC23: 67 | AD23: 66100 | AE23: 153 | AF23: 153 | AG23: 153 | AH23: 3/6
A24: 68 | B24: 61000 | C24: 135 | D24: 135 | E24: 136 | F24: 3/9 | H24: 68 | I24: 62600 | J24: 140 | K24: 140 | L24: 141 | M24: 3/3 | O24: 68 | P24: 63800 | Q24: 145 | R24: 145 | S24: 145 | T24: 3/3 | V24: 68 | W24: 64700 | X24: 148 | Y24: 148 | Z24: 148 | AA24: 2/3 | AC24: 68 | AD24: 65400 | AE24: 151 | AF24: 151 | AG24: 152 | AH24: 2/3

Sheet 1+F_1000FT (hidden)
A1: 1+F - 1000ft | B1: 2250 m | H1: 1+F - 1000ft | I1: 2500 m | O1: 1+F - 1000ft | P1: 2750 m | V1: 1+F - 1000ft | W1: 3000 m | AC1: 1+F - 1000ft | AD1: 3250 m
A2: TFLEX | B2: 2250-WT | C2: 2250-V1 | D2: 2250-VR | E2: 2250-V2 | F2: CODE | H2: TFLEX | I2: 2500-WT | J2: 2500-V1 | K2: 2500-VR | L2: 2500-V2 | M2: CODE | O2: TFLEX | P2: 2750-WT | Q2: 2750-V1 | R2: 2750-VR | S2: 2750-V2 | T2: CODE | V2: TFLEX | W2: 3000-WT | X2: 3000-V1 | Y2: 3000-VR | Z2: 3000-V2 | AA2: CODE | AC2: TFLEX | AD2: 3250-WT | AE2: 3250-V1 | AF2: 3250-VR | AG2: 3250-V2 | AH2: CODE
A3: -20 | B3: 78900 | C3: 148 | D3: 151 | E3: 154 | F3: 3/9 | H3: -20 | I3: 81600 | J3: 154 | K3: 155 | L3: 157 | M3: 3/6 | O3: -20 | P3: 82500 | Q3: 153 | R3: 158 | S3: 160 | T3: 3/6 | V3: -20 | W3: 83200 | X3: 152 | Y3: 160 | Z3: 162 | AA3: 3/6 | AC3: -20 | AD3: 83800 | AE3: 152 | AF3: 163 | AG3: 164 | AH3: 3/6
A4: -10 | B4: 77900 | C4: 147 | D4: 150 | E4: 152 | F4: 3/9 | H4: -10 | I4: 80800 | J4: 151 | K4: 154 | L4: 156 | M4: 3/6 | O4: -10 | P4: 81800 | Q4: 150 | R4: 156 | S4: 157 | T4: 3/6 | V4: -10 | W4: 82600 | X4: 150 | Y4: 158 | Z4: 160 | AA4: 3/6 | AC4: -10 | AD4: 83200 | AE4: 149 | AF4: 161 | AG4: 162 | AH4: 3/6
A5: 0 | B5: 76700 | C5: 145 | D5: 149 | E5: 151 | F5: 3/9 | H5: 0 | I5: 19900 | J5: 149 | K5: 153 | L5: 155 | M5: 3/6 | O5: 0 | P5: 81000 | Q5: 148 | R5: 154 | S5: 156 | T5: 3/6 | V5: 0 | W5: 81900 | X5: 147 | Y5: 156 | Z5: 158 | AA5: 3/6 | AC5: 0 | AD5: 82600 | AE5: 147 | AF5: 159 | AG5: 160 | AH5: 3/6
A6: 10 | B6: 75500 | C6: 143 | D6: 149 | E6: 151 | F6: 3/9 | H6: 10 | I6: 78900 | J6: 148 | K6: 152 | L6: 153 | M6: 3/6 | O6: 10 | P6: 80000 | Q6: 146 | R6: 153 | S6: 155 | T6: 3/6 | V6: 10 | W6: 81200 | X6: 145 | Y6: 154 | Z6: 156 | AA6: 3/6 | AC6: 10 | AD6: 81900 | AE6: 145 | AF6: 157 | AG6: 159 | AH6: 3/6
A7: 20 | B7: 74200 | C7: 142 | D7: 148 | E7: 150 | F7: 3/9 | H7: 20 | I7: 77800 | J7: 146 | K7: 150 | L7: 152 | M7: 3/6 | O7: 20 | P7: 79100 | Q7: 145 | R7: 152 | S7: 154 | T7: 3/6 | V7: 20 | W7: 80200 | X7: 143 | Y7: 153 | Z7: 155 | AA7: 3/6 | AC7: 20 | AD7: 81200 | AE7: 143 | AF7: 155 | AG7: 157 | AH7: 3/6
A8: 30 | B8: 73000 | C8: 141 | D8: 147 | E8: 149 | F8: 3/9 | H8: 30 | I8: 76600 | J8: 144 | K8: 149 | L8: 151 | M8: 3/6 | O8: 30 | P8: 78000 | Q8: 143 | R8: 151 | S8: 153 | T8: 3/6 | V8: 30 | W8: 79100 | X8: 141 | Y8: 152 | Z8: 154 | AA8: 3/6 | AC8: 30 | AD8: 80300 | AE8: 141 | AF8: 153 | AG8: 155 | AH8: 3/6
A9: 40 | B9: 71900 | C9: 139 | D9: 146 | E9: 148 | F9: 3/9 | H9: 40 | I9: 75400 | J9: 143 | K9: 149 | L9: 151 | M9: 3/6 | O9: 40 | P9: 71000 | Q9: 141 | R9: 150 | S9: 152 | T9: 3/6 | V9: 40 | W9: 78300 | X9: 140 | Y9: 151 | Z9: 153 | AA9: 3/6 | AC9: 40 | AD9: 79500 | AE9: 139 | AF9: 152 | AG9: 154 | AH9: 3/6
A10: 44 | B10: 71600 | C10: 139 | D10: 146 | E10: 148 | F10: 3/9 | H10: 44 | I10: 75200 | J10: 142 | K10: 149 | L10: 151 | M10: 3/6 | O10: 44 | P10: 76700 | Q10: 141 | R10: 150 | S10: 151 | T10: 3/6 | V10: 44 | W10: 78100 | X10: 140 | Y10: 151 | Z10: 153 | AA10: 3/6 | AC10: 44 | AD10: 79300 | AE10: 138 | AF10: 152 | AG10: 154 | AH10: 3/6
A11: 46 | B11: 70700 | C11: 139 | D11: 145 | E11: 147 | F11: 3/9 | H11: 46 | I11: 74200 | J11: 143 | K11: 148 | L11: 150 | M11: 3/6 | O11: 46 | P11: 75800 | Q11: 142 | R11: 149 | S11: 151 | T11: 3/6 | V11: 46 | W11: 77100 | X11: 140 | Y11: 150 | Z11: 152 | AA11: 3/6 | AC11: 46 | AD11: 78200 | AE11: 139 | AF11: 151 | AG11: 153 | AH11: 3/6
A12: 48 | B12: 69800 | C12: 138 | D12: 144 | E12: 146 | F12: 3/9 | H12: 48 | I12: 13100 | J12: 143 | K12: 148 | L12: 149 | M12: 3/9 | O12: 48 | P12: 74800 | Q12: 142 | R12: 149 | S12: 150 | T12: 3/6 | V12: 48 | W12: 76100 | X12: 141 | Y12: 149 | Z12: 151 | AA12: 3/6 | AC12: 48 | AD12: 77000 | AE12: 140 | AF12: 151 | AG12: 152 | AH12: 3/6
A13: 50 | B13: 68900 | C13: 138 | D13: 143 | E13: 145 | F13: 3/9 | H13: 50 | I13: 72000 | J13: 142 | K13: 147 | L13: 148 | M13: 3/9 | O13: 50 | P13: 73900 | Q13: 143 | R13: 148 | S13: 150 | T13: 3/6 | V13: 50 | W13: 75000 | X13: 142 | Y13: 149 | Z13: 150 | AA13: 3/6 | AC13: 50 | AD13: 15800 | AE13: 141 | AF13: 151 | AG13: 152 | AH13: 3/6
A14: 52 | B14: 67900 | C14: 138 | D14: 142 | E14: 144 | F14: 3/9 | H14: 52 | I14: 71000 | J14: 142 | K14: 146 | L14: 147 | M14: 3/9 | O14: 52 | P14: 73000 | Q14: 144 | R14: 148 | S14: 149 | T14: 3/6 | V14: 52 | W14: 74000 | X14: 143 | Y14: 149 | Z14: 150 | AA14: 3/6 | AC14: 52 | AD14: 14600 | AE14: 142 | AF14: 151 | AG14: 152 | AH14: 3/6
A15: 54 | B15: 67000 | C15: 137 | D15: 141 | E15: 143 | F15: 3/9 | H15: 54 | I15: 69900 | J15: 142 | K15: 145 | L15: 146 | M15: 3/9 | O15: 54 | P15: 72000 | Q15: 145 | R15: 147 | S15: 148 | T15: 3/6 | V15: 54 | W15: 72800 | X15: 144 | Y15: 149 | Z15: 150 | AA15: 3/6 | AC15: 54 | AD15: 73300 | AE15: 143 | AF15: 151 | AG15: 152 | AH15: 3/6
A16: 55 | B16: 66500 | C16: 131 | D16: 141 | E16: 142 | F16: 3/9 | H16: 55 | I16: 69400 | J16: 142 | K16: 144 | L16: 145 | M16: 3/9 | O16: 55 | P16: 71600 | Q16: 145 | R16: 147 | S16: 148 | T16: 3/6 | V16: 55 | W16: 72200 | X16: 145 | Y16: 149 | Z16: 150 | AA16: 3/6 | AC16: 55 | AD16: 72700 | AE16: 144 | AF16: 151 | AG16: 152 | AH16: 3/6
A17: 57 | B17: 65600 | C17: 137 | D17: 140 | E17: 141 | F17: 3/9 | H17: 57 | I17: 68300 | J17: 141 | K17: 143 | L17: 144 | M17: 3/9 | O17: 57 | P17: 70300 | Q17: 146 | R17: 146 | S17: 147 | T17: 3/6 | V17: 57 | W17: 70900 | X17: 146 | Y17: 149 | Z17: 150 | AA17: 3/6 | AC17: 57 | AD17: 71400 | AE17: 145 | AF17: 151 | AG17: 152 | AH17: 3/6
A18: 59 | B18: 64600 | C18: 137 | D18: 139 | E18: 140 | F18: 3/9 | H18: 59 | I18: 67200 | J18: 141 | K18: 142 | L18: 143 | M18: 3/9 | O18: 59 | P18: 68900 | Q18: 146 | R18: 146 | S18: 147 | T18: 2/3 | V18: 59 | W18: 69700 | X18: 147 | Y18: 149 | Z18: 150 | AA18: 3/6 | AC18: 59 | AD18: 70100 | AE18: 147 | AF18: 151 | AG18: 152 | AH18: 3/6
A19: 61 | B19: 63600 | C19: 136 | D19: 137 | E19: 139 | F19: 3/9 | H19: 61 | I19: 66000 | J19: 141 | K19: 141 | L19: 142 | M19: 3/9 | O19: 61 | P19: 67500 | Q19: 145 | R19: 145 | S19: 146 | T19: 2/3 | V19: 61 | W19: 68400 | X19: 148 | Y19: 149 | Z19: 150 | AA19: 3/6 | AC19: 61 | AD19: 68800 | AE19: 148 | AF19: 151 | AG19: 152 | AH19: 3/6
A20: 63 | B20: 62700 | C20: 136 | D20: 137 | E20: 138 | F20: 3/9 | H20: 63 | I20: 64800 | J20: 140 | K20: 140 | L20: 141 | M20: 3/3 | O20: 63 | P20: 66200 | Q20: 145 | R20: 145 | S20: 146 | T20: 3/3 | V20: 63 | W20: 67200 | X20: 149 | Y20: 149 | Z20: 150 | AA20: 3/6 | AC20: 63 | AD20: 67600 | AE20: 149 | AF20: 151 | AG20: 152 | AH20: 3/6
A21: 65 | B21: 61700 | C21: 135 | D21: 136 | E21: 137 | F21: 3/9 | H21: 65 | I21: 63500 | J21: 140 | K21: 140 | L21: 141 | M21: 3/3 | O21: 65 | P21: 64800 | Q21: 145 | R21: 145 | S21: 145 | T21: 3/3 | V21: 65 | W21: 65800 | X21: 149 | Y21: 149 | Z21: 149 | AA21: 3/3 | AC21: 65 | AD21: 66400 | AE21: 150 | AF21: 151 | AG21: 152 | AH21: 3/6
A22: 67 | B22: 60600 | C22: 135 | D22: 135 | E22: 136 | F22: 3/9 | H22: 67 | I22: 62200 | J22: 140 | K22: 140 | L22: 140 | M22: 3/3 | O22: 67 | P22: 63500 | Q22: 143 | R22: 143 | S22: 144 | T22: 3/3 | V22: 67 | W22: 64400 | X22: 148 | Y22: 148 | Z22: 148 | AA22: 3/3 | AC22: 67 | AD22: 65100 | AE22: 151 | AF22: 151 | AG22: 151 | AH22: 2/3
A23: 68 | B23: 60000 | C23: 134 | D23: 134 | E23: 135 | F23: 3/9 | H23: 68 | I23: 61600 | J23: 139 | K23: 139 | L23: 140 | M23: 3/3 | O23: 68 | P23: 62800 | Q23: 142 | R23: 143 | S23: 143 | T23: 3/3 | V23: 68 | W23: 63700 | X23: 147 | Y23: 147 | Z23: 147 | AA23: 2/3 | AC23: 68 | AD23: 64400 | AE23: 150 | AF23: 150 | AG23: 150 | AH23: 2/3

Sheet 1+F_2000FT (hidden)

Sheet 2_0FT (hidden)
A1: 2 - 0ft | B1: 2250 m | H1: 2 - 0ft | I1: 2500 m | O1: 2 - 0ft | P1: 2750 m | V1: 2 - 0ft | W1: 3000 m | AC1: 2 - 0ft | AD1: 3250 m
A2: TFLEX | B2: 2250-WT | C2: 2250-V1 | D2: 2250-VR | E2: 2250-V2 | F2: CODE | H2: TFLEX | I2: 2500-WT | J2: 2500-V1 | K2: 2500-VR | L2: 2500-V2 | M2: CODE | O2: TFLEX | P2: 2750-WT | Q2: 2750-V1 | R2: 2750-VR | S2: 2750-V2 | T2: CODE | V2: TFLEX | W2: 3000-WT | X2: 3000-V1 | Y2: 3000-VR | Z2: 3000-V2 | AA2: CODE | AC2: TFLEX | AD2: 3250-WT | AE2: 3250-V1 | AF2: 3250-VR | AG2: 3250-V2 | AH2: CODE
A3: -20 | B3: 74300 | C3: 136 | D3: 140 | E3: 144 | F3: 3/9 | H3: -20 | I3: 78500 | J3: 141 | K3: 143 | L3: 147 | M3: 3/9 | O3: -20 | P3: 81300 | Q3: 147 | R3: 148 | S3: 152 | T3: 2/3 | V3: -20 | W3: 83200 | X3: 152 | Y3: 154 | Z3: 159 | AA3: 3/6 | AC3: -20 | AD3: 84000 | AE3: 152 | AF3: 157 | AG3: 162 | AH3: 3/6
A4: -10 | B4: 73100 | C4: 135 | D4: 139 | E4: 143 | F4: 3/9 | H4: -10 | I4: 77500 | J4: 140 | K4: 142 | L4: 146 | M4: 3/9 | O4: -10 | P4: 80600 | Q4: 145 | R4: 146 | S4: 150 | T4: 2/3 | V4: -10 | W4: 82600 | X4: 150 | Y4: 152 | Z4: 157 | AA4: 3/6 | AC4: -10 | AD4: 83400 | AE4: 150 | AF4: 155 | AG4: 160 | AH4: 3/6
A5: 0 | B5: 71900 | C5: 133 | D5: 138 | E5: 143 | F5: 3/9 | H5: 0 | I5: 16500 | J5: 138 | K5: 141 | L5: 145 | M5: 3/9 | O5: 0 | P5: 79900 | Q5: 143 | R5: 144 | S5: 149 | T5: 3/9 | V5: 0 | W5: 82000 | X5: 148 | Y5: 150 | Z5: 155 | AA5: 3/6 | AC5: 0 | AD5: 82700 | AE5: 148 | AF5: 153 | AG5: 158 | AH5: 3/6
A6: 10 | B6: 70900 | C6: 132 | D6: 137 | E6: 141 | F6: 3/9 | H6: 10 | I6: 15300 | J6: 136 | K6: 140 | L6: 145 | M6: 3/9 | O6: 10 | P6: 79000 | Q6: 141 | R6: 143 | S6: 148 | T6: 3/9 | V6: 10 | W6: 81300 | X6: 146 | Y6: 148 | Z6: 153 | AA6: 3/6 | AC6: 10 | AD6: 82000 | AE6: 145 | AF6: 155 | AG6: 156 | AH6: 3/6
A7: 20 | B7: 69800 | C7: 130 | D7: 136 | E7: 140 | F7: 3/9 | H7: 20 | I7: 74100 | J7: 135 | K7: 140 | L7: 144 | M7: 3/9 | O7: 20 | P7: 78000 | Q7: 140 | R7: 143 | S7: 147 | T7: 3/9 | V7: 20 | W7: 80400 | X7: 144 | Y7: 147 | Z7: 151 | AA7: 3/6 | AC7: 20 | AD7: 81300 | AE7: 144 | AF7: 149 | AG7: 154 | AH7: 3/6
A8: 30 | B8: 68700 | C8: 129 | D8: 135 | E8: 139 | F8: 3/9 | H8: 30 | I8: 72900 | J8: 134 | K8: 139 | L8: 143 | M8: 3/9 | O8: 30 | P8: 77000 | Q8: 138 | R8: 142 | S8: 146 | T8: 3/9 | V8: 30 | W8: 79700 | X8: 142 | Y8: 145 | Z8: 149 | AA8: 3/6 | AC8: 30 | AD8: 80500 | AE8: 142 | AF8: 147 | AG8: 152 | AH8: 3/6
A9: 40 | B9: 67700 | C9: 128 | D9: 134 | E9: 138 | F9: 3/9 | H9: 40 | I9: 71800 | J9: 133 | K9: 138 | L9: 142 | M9: 3/9 | O9: 40 | P9: 75900 | Q9: 137 | R9: 141 | S9: 145 | T9: 3/9 | V9: 40 | W9: 78900 | X9: 140 | Y9: 144 | Z9: 148 | AA9: 3/6 | AC9: 40 | AD9: 79800 | AE9: 140 | AF9: 146 | AG9: 150 | AH9: 3/6
A10: 44 | B10: 67300 | C10: 127 | D10: 133 | E10: 138 | F10: 3/9 | H10: 44 | I10: 71400 | J10: 132 | K10: 138 | L10: 142 | M10: 3/9 | O10: 44 | P10: 75500 | Q10: 136 | R10: 141 | S10: 145 | T10: 3/9 | V10: 44 | W10: 78500 | X10: 140 | Y10: 143 | Z10: 147 | AA10: 3/6 | AC10: 44 | AD10: 79500 | AE10: 139 | AF10: 145 | AG10: 149 | AH10: 3/6
A11: 46 | B11: 66500 | C11: 127 | D11: 132 | E11: 137 | F11: 3/9 | H11: 46 | I11: 70500 | J11: 132 | K11: 137 | L11: 141 | M11: 3/9 | O11: 46 | P11: 74300 | Q11: 136 | R11: 140 | S11: 144 | T11: 3/9 | V11: 46 | W11: 77500 | X11: 141 | Y11: 143 | Z11: 147 | AA11: 3/6 | AC11: 46 | AD11: 78300 | AE11: 140 | AF11: 145 | AG11: 149 | AH11: 3/6
A12: 48 | B12: 65600 | C12: 127 | D12: 132 | E12: 136 | F12: 3/9 | H12: 48 | I12: 69600 | J12: 131 | K12: 136 | L12: 140 | M12: 3/9 | O12: 48 | P12: 73200 | Q12: 136 | R12: 140 | S12: 144 | T12: 3/9 | V12: 48 | W12: 76100 | X12: 140 | Y12: 142 | Z12: 146 | AA12: 3/9 | AC12: 48 | AD12: 77100 | AE12: 141 | AF12: 145 | AG12: 149 | AH12: 3/6
A13: 50 | B13: 64800 | C13: 126 | D13: 131 | E13: 135 | F13: 3/9 | H13: 50 | I13: 68600 | J13: 131 | K13: 135 | L13: 139 | M13: 3/9 | O13: 50 | P13: 72100 | Q13: 136 | R13: 139 | S13: 143 | T13: 3/9 | V13: 50 | W13: 74800 | X13: 140 | Y13: 142 | Z13: 146 | AA13: 3/9 | AC13: 50 | AD13: 75900 | AE13: 142 | AF13: 145 | AG13: 149 | AH13: 3/6
A14: 52 | B14: 63900 | C14: 126 | D14: 130 | E14: 134 | F14: 3/9 | H14: 52 | I14: 67700 | J14: 131 | K14: 134 | L14: 138 | M14: 3/9 | O14: 52 | P14: 71000 | Q14: 136 | R14: 138 | S14: 142 | T14: 3/9 | V14: 52 | W14: 73500 | X14: 140 | Y14: 141 | Z14: 145 | AA14: 2/3 | AC14: 52 | AD14: 74700 | AE14: 143 | AF14: 146 | AG14: 149 | AH14: 3/6
A15: 54 | B15: 63100 | C15: 126 | D15: 129 | E15: 133 | F15: 3/9 | H15: 54 | I15: 66700 | J15: 131 | K15: 134 | L15: 137 | M15: 3/9 | O15: 54 | P15: 69900 | Q15: 135 | R15: 137 | S15: 140 | T15: 3/9 | V15: 54 | W15: 72200 | X15: 140 | Y15: 141 | Z15: 144 | AA15: 2/3 | AC15: 54 | AD15: 73500 | AE15: 144 | AF15: 146 | AG15: 149 | AH15: 3/6
A16: 55 | B16: 62600 | C16: 126 | D16: 129 | E16: 133 | F16: 3/9 | H16: 55 | I16: 66200 | J16: 130 | K16: 133 | L16: 137 | M16: 3/9 | O16: 55 | P16: 69400 | Q16: 135 | R16: 137 | S16: 140 | T16: 3/9 | V16: 55 | W16: 71500 | X16: 140 | Y16: 141 | Z16: 144 | AA16: 2/3 | AC16: 55 | AD16: 72900 | AE16: 144 | AF16: 146 | AG16: 149 | AH16: 3/6
A17: 57 | B17: 61700 | C17: 125 | D17: 126 | E17: 132 | F17: 3/9 | H17: 57 | I17: 65300 | J17: 130 | K17: 132 | L17: 136 | M17: 3/9 | O17: 57 | P17: 68200 | Q17: 135 | R17: 135 | S17: 139 | T17: 3/9 | V17: 57 | W17: 70100 | X17: 140 | Y17: 140 | Z17: 144 | AA17: 2/3 | AC17: 57 | AD17: 71500 | AE17: 144 | AF17: 150 | AG17: 151 | AH17: 2/3
A18: 59 | B18: 60800 | C18: 125 | D18: 127 | E18: 131 | F18: 3/9 | H18: 59 | I18: 64200 | J18: 130 | K18: 131 | L18: 134 | M18: 3/9 | O18: 59 | P18: 67000 | Q18: 135 | R18: 135 | S18: 138 | T18: 3/9 | V18: 59 | W18: 68700 | X18: 140 | Y18: 140 | Z18: 143 | AA18: 2/3 | AC18: 59 | AD18: 70000 | AE18: 144 | AF18: 145 | AG18: 148 | AH18: 2/3
A19: 61 | B19: 60000 | C19: 125 | D19: 126 | E19: 130 | F19: 3/9 | H19: 61 | I19: 63300 | J19: 130 | K19: 130 | L19: 133 | M19: 3/9 | O19: 61 | P19: 65700 | Q19: 135 | R19: 135 | S19: 138 | T19: 3/3 | V19: 61 | W19: 67400 | X19: 140 | Y19: 140 | Z19: 142 | AA19: 2/3 | AC19: 61 | AD19: 68700 | AE19: 144 | AF19: 144 | AG19: 148 | AH19: 2/3
A20: 63 | B20: 59100 | C20: 124 | D20: 126 | E20: 129 | F20: 3/9 | H20: 63 | I20: 62400 | J20: 129 | K20: 129 | L20: 132 | M20: 3/9 | O20: 63 | P20: 64500 | Q20: 134 | R20: 134 | S20: 137 | T20: 3/3 | V20: 63 | W20: 66100 | X20: 140 | Y20: 140 | Z20: 142 | AA20: 3/3 | AC20: 63 | AD20: 67300 | AE20: 144 | AF20: 144 | AG20: 147 | AH20: 2/3
A21: 65 | B21: 58200 | C21: 124 | D21: 125 | E21: 128 | F21: 3/9 | H21: 65 | I21: 61200 | J21: 129 | K21: 129 | L21: 132 | M21: 3/9 | O21: 65 | P21: 63300 | Q21: 134 | R21: 134 | S21: 137 | T21: 3/3 | V21: 65 | W21: 64700 | X21: 139 | Y21: 139 | Z21: 142 | AA21: 3/3 | AC21: 65 | AD21: 65900 | AE21: 143 | AF21: 150 | AG21: 150 | AH21: 2/3
A22: 67 | B22: 57300 | C22: 123 | D22: 124 | E22: 127 | F22: 3/9 | H22: 67 | I22: 60000 | J22: 128 | K22: 128 | L22: 130 | M22: 3/9 | O22: 67 | P22: 62000 | Q22: 133 | R22: 133 | S22: 136 | T22: 3/3 | V22: 67 | W22: 63400 | X22: 138 | Y22: 138 | Z22: 141 | AA22: 3/3 | AC22: 67 | AD22: 64500 | AE22: 142 | AF22: 142 | AG22: 144 | AH22: 2/3
A23: 68 | B23: 56900 | C23: 123 | D23: 124 | E23: 127 | F23: 3/9 | H23: 68 | I23: 59500 | J23: 128 | K23: 128 | L23: 130 | M23: 3/3 | O23: 68 | P23: 61300 | Q23: 132 | R23: 132 | S23: 135 | T23: 3/3 | V23: 68 | W23: 62700 | X23: 137 | Y23: 137 | Z23: 140 | AA23: 3/3 | AC23: 68 | AD23: 63800 | AE23: 141 | AF23: 141 | AG23: 144 | AH23: 2/3

Sheet 2_1000FT (hidden)
A1: 2 - 1000ft | B1: 2250 m | H1: 2 - 1000ft | I1: 2500 m | O1: 2 - 1000ft | P1: 2750 m | V1: 2 - 1000ft | W1: 3000 m | AC1: 2 - 1000ft | AD1: 3250 m
A2: TFLEX | B2: 2250-WT | C2: 2250-V1 | D2: 2250-VR | E2: 2250-V2 | F2: CODE | H2: TFLEX | I2: 2500-WT | J2: 2500-V1 | K2: 2500-VR | L2: 2500-V2 | M2: CODE | O2: TFLEX | P2: 2750-WT | Q2: 2750-V1 | R2: 2750-VR | S2: 2750-V2 | T2: CODE | V2: TFLEX | W2: 3000-WT | X2: 3000-V1 | Y2: 3000-VR | Z2: 3000-V2 | AA2: CODE | AC2: TFLEX | AD2: 3250-WT | AE2: 3250-V1 | AF2: 3250-VR | AG2: 3250-V2 | AH2: CODE
A3: -20 | B3: 72600 | C3: 135 | D3: 139 | E3: 143 | F3: 3/9 | H3: -20 | I3: 77000 | J3: 140 | K3: 142 | L3: 146 | M3: 3/9 | O3: -20 | P3: 79900 | Q3: 145 | R3: 146 | S3: 150 | T3: 2/3 | V3: -20 | W3: 81900 | X3: 150 | Y3: 152 | Z3: 157 | AA3: 3/6 | AC3: -20 | AD3: 82800 | AE3: 151 | AF3: 155 | AG3: 160 | AH3: 3/6
A4: -10 | B4: 71500 | C4: 133 | D4: 138 | E4: 142 | F4: 3/9 | H4: -10 | I4: 75900 | J4: 138 | K4: 141 | L4: 145 | M4: 3/9 | O4: -10 | P4: 79200 | Q4: 143 | R4: 144 | S4: 148 | T4: 3/9 | V4: -10 | W4: 81300 | X4: 148 | Y4: 150 | Z4: 155 | AA4: 3/6 | AC4: -10 | AD4: 82100 | AE4: 148 | AF4: 153 | AG4: 158 | AH4: 3/6
A5: 0 | B5: 70400 | C5: 132 | D5: 137 | E5: 141 | F5: 3/9 | H5: 0 | I5: 14800 | J5: 137 | K5: 140 | L5: 145 | M5: 3/9 | O5: 0 | P5: 78400 | Q5: 141 | R5: 143 | S5: 147 | T5: 3/9 | V5: 0 | W5: 80600 | X5: 147 | Y5: 149 | Z5: 153 | AA5: 3/6 | AC5: 0 | AD5: 81400 | AE5: 146 | AF5: 151 | AG5: 156 | AH5: 3/6
A6: 10 | B6: 69300 | C6: 130 | D6: 135 | E6: 140 | F6: 3/9 | H6: 10 | I6: 73600 | J6: 135 | K6: 140 | L6: 144 | M6: 3/9 | O6: 10 | P6: 77500 | Q6: 140 | R6: 142 | S6: 146 | T6: 3/9 | V6: 10 | W6: 79900 | X6: 145 | Y6: 147 | Z6: 151 | AA6: 3/6 | AC6: 10 | AD6: 80800 | AE6: 144 | AF6: 155 | AG6: 156 | AH6: 3/6
A7: 20 | B7: 68200 | C7: 129 | D7: 134 | E7: 139 | F7: 3/9 | H7: 20 | I7: 72400 | J7: 134 | K7: 139 | L7: 143 | M7: 3/9 | O7: 20 | P7: 76400 | Q7: 138 | R7: 142 | S7: 146 | T7: 3/9 | V7: 20 | W7: 79200 | X7: 143 | Y7: 145 | Z7: 149 | AA7: 3/6 | AC7: 20 | AD7: 80000 | AE7: 142 | AF7: 148 | AG7: 152 | AH7: 3/6
A8: 30 | B8: 67200 | C8: 128 | D8: 133 | E8: 138 | F8: 3/9 | H8: 30 | I8: 71300 | J8: 132 | K8: 138 | L8: 142 | M8: 3/9 | O8: 30 | P8: 75300 | Q8: 137 | R8: 141 | S8: 145 | T8: 3/9 | V8: 30 | W8: 78400 | X8: 141 | Y8: 143 | Z8: 147 | AA8: 3/6 | AC8: 30 | AD8: 79200 | AE8: 140 | AF8: 146 | AG8: 150 | AH8: 3/6
A9: 40 | B9: 66200 | C9: 126 | D9: 132 | E9: 137 | F9: 3/9 | H9: 40 | I9: 70300 | J9: 131 | K9: 137 | L9: 141 | M9: 3/9 | O9: 40 | P9: 74200 | Q9: 136 | R9: 140 | S9: 144 | T9: 3/9 | V9: 40 | W9: 77500 | X9: 139 | Y9: 142 | Z9: 146 | AA9: 3/6 | AC9: 40 | AD9: 78600 | AE9: 139 | AF9: 144 | AG9: 148 | AH9: 3/6
A10: 44 | B10: 66000 | C10: 126 | D10: 132 | E10: 136 | F10: 3/9 | H10: 44 | I10: 10100 | J10: 131 | K10: 137 | L10: 141 | M10: 3/9 | O10: 44 | P10: 73900 | Q10: 135 | R10: 140 | S10: 144 | T10: 3/9 | V10: 44 | W10: 77300 | X10: 139 | Y10: 142 | Z10: 146 | AA10: 3/6 | AC10: 44 | AD10: 78400 | AE10: 138 | AF10: 144 | AG10: 148 | AH10: 3/6
A11: 46 | B11: 65200 | C11: 126 | D11: 131 | E11: 136 | F11: 3/9 | H11: 46 | I11: 69200 | J11: 131 | K11: 136 | L11: 140 | M11: 3/9 | O11: 46 | P11: 72800 | Q11: 135 | R11: 140 | S11: 143 | T11: 3/9 | V11: 46 | W11: 76200 | X11: 139 | Y11: 142 | Z11: 145 | AA11: 3/6 | AC11: 46 | AD11: 77100 | AE11: 139 | AF11: 144 | AG11: 148 | AH11: 3/6
A12: 48 | B12: 64400 | C12: 125 | D12: 130 | E12: 135 | F12: 3/9 | H12: 48 | I12: 68300 | J12: 130 | K12: 135 | L12: 139 | M12: 3/9 | O12: 48 | P12: 71800 | Q12: 135 | R12: 139 | S12: 143 | T12: 3/9 | V12: 48 | W12: 74900 | X12: 139 | Y12: 141 | Z12: 145 | AA12: 3/9 | AC12: 48 | AD12: 75900 | AE12: 140 | AF12: 144 | AG12: 148 | AH12: 3/6
A13: 50 | B13: 63500 | C13: 125 | D13: 130 | E13: 134 | F13: 3/9 | H13: 50 | I13: 67400 | J13: 130 | K13: 134 | L13: 138 | M13: 3/9 | O13: 50 | P13: 70800 | Q13: 135 | R13: 138 | S13: 141 | T13: 3/9 | V13: 50 | W13: 73600 | X13: 139 | Y13: 141 | Z13: 144 | AA13: 3/9 | AC13: 50 | AD13: 74800 | AE13: 141 | AF13: 144 | AG13: 148 | AH13: 3/6
A14: 52 | B14: 62700 | C14: 125 | D14: 129 | E14: 133 | F14: 3/9 | H14: 52 | I14: 66400 | J14: 130 | K14: 133 | L14: 137 | M14: 3/9 | O14: 52 | P14: 69100 | Q14: 134 | R14: 137 | S14: 140 | T14: 3/9 | V14: 52 | W14: 72400 | X14: 139 | Y14: 140 | Z14: 143 | AA14: 3/9 | AC14: 52 | AD14: 73600 | AE14: 142 | AF14: 144 | AG14: 148 | AH14: 3/6
A15: 54 | B15: 61900 | C15: 125 | D15: 128 | E15: 132 | F15: 3/9 | H15: 54 | I15: 65500 | J15: 129 | K15: 132 | L15: 136 | M15: 3/9 | O15: 54 | P15: 68700 | Q15: 134 | R15: 136 | S15: 139 | T15: 3/9 | V15: 54 | W15: 71000 | X15: 139 | Y15: 140 | Z15: 143 | AA15: 2/3 | AC15: 54 | AD15: 72500 | AE15: 143 | AF15: 144 | AG15: 148 | AH15: 3/6
A16: 55 | B16: 61400 | C16: 124 | D16: 128 | E16: 131 | F16: 3/9 | H16: 55 | I16: 65000 | J16: 129 | K16: 132 | L16: 135 | M16: 3/9 | O16: 55 | P16: 68200 | Q16: 134 | R16: 135 | S16: 139 | T16: 3/9 | V16: 55 | W16: 10400 | X16: 139 | Y16: 139 | Z16: 143 | AA16: 2/3 | AC16: 55 | AD16: 71800 | AE16: 143 | AF16: 145 | AG16: 148 | AH16: 3/6
A17: 57 | B17: 60600 | C17: 124 | D17: 127 | E17: 131 | F17: 3/9 | H17: 57 | I17: 64100 | J17: 129 | K17: 131 | L17: 134 | M17: 3/9 | O17: 57 | P17: 67100 | Q17: 134 | R17: 134 | S17: 138 | T17: 3/9 | V17: 57 | W17: 69000 | X17: 138 | Y17: 139 | Z17: 142 | AA17: 2/3 | AC17: 57 | AD17: 70400 | AE17: 143 | AF17: 150 | AG17: 151 | AH17: 2/3
A18: 59 | B18: 59700 | C18: 124 | D18: 126 | E18: 130 | F18: 3/9 | H18: 59 | I18: 63100 | J18: 129 | K18: 130 | L18: 133 | M18: 3/9 | O18: 59 | P18: 65900 | Q18: 133 | R18: 133 | S18: 136 | T18: 3/9 | V18: 59 | W18: 67100 | X18: 138 | Y18: 139 | Z18: 141 | AA18: 2/3 | AC18: 59 | AD18: 69000 | AE18: 143 | AF18: 144 | AG18: 147 | AH18: 2/3
A19: 61 | B19: 58800 | C19: 123 | D19: 125 | E19: 129 | F19: 3/9 | H19: 61 | I19: 62200 | J19: 128 | K19: 129 | L19: 132 | M19: 3/9 | O19: 61 | P19: 64600 | Q19: 133 | R19: 133 | S19: 136 | T19: 3/3 | V19: 61 | W19: 66300 | X19: 138 | Y19: 138 | Z19: 141 | AA19: 2/3 | AC19: 61 | AD19: 67600 | AE19: 143 | AF19: 143 | AG19: 146 | AH19: 2/3
A20: 63 | B20: 97900 | C20: 123 | D20: 125 | E20: 128 | F20: 3/9 | H20: 63 | I20: 61200 | J20: 128 | K20: 128 | L20: 131 | M20: 3/9 | O20: 63 | P20: 63400 | Q20: 133 | R20: 133 | S20: 136 | T20: 3/3 | V20: 63 | W20: 65000 | X20: 138 | Y20: 138 | Z20: 141 | AA20: 3/3 | AC20: 63 | AD20: 66300 | AE20: 142 | AF20: 142 | AG20: 145 | AH20: 2/3
A21: 65 | B21: 57100 | C21: 123 | D21: 124 | E21: 127 | F21: 3/9 | H21: 65 | I21: 60200 | J21: 127 | K21: 127 | L21: 130 | M21: 3/9 | O21: 65 | P21: 62200 | Q21: 133 | R21: 133 | S21: 136 | T21: 3/3 | V21: 65 | W21: 63700 | X21: 138 | Y21: 138 | Z21: 140 | AA21: 3/3 | AC21: 65 | AD21: 64900 | AE21: 142 | AF21: 150 | AG21: 150 | AH21: 2/3
A22: 67 | B22: 56200 | C22: 122 | D22: 123 | E22: 126 | F22: 3/9 | H22: 67 | I22: 59000 | J22: 126 | K22: 126 | L22: 129 | M22: 3/9 | O22: 67 | P22: 61000 | Q22: 132 | R22: 132 | S22: 135 | T22: 3/3 | V22: 67 | W22: 62400 | X22: 137 | Y22: 137 | Z22: 139 | AA22: 3/3 | AC22: 67 | AD22: 63500 | AE22: 140 | AF22: 140 | AG22: 143 | AH22: 2/3
A23: 68 | B23: 55800 | C23: 122 | D23: 122 | E23: 125 | F23: 3/9 | H23: 68 | I23: 58400 | J23: 126 | K23: 126 | L23: 129 | M23: 3/9 | O23: 68 | P23: 60300 | Q23: 131 | R23: 131 | S23: 133 | T23: 3/3 | V23: 68 | W23: 61700 | X23: 136 | Y23: 136 | Z23: 139 | AA23: 3/3 | AC23: 68 | AD23: 62800 | AE23: 140 | AF23: 140 | AG23: 142 | AH23: 2/3

Sheet 2_2000FT (hidden)
A1: 2 - 2000ft | B1: 2250 m | H1: 2 - 2000ft | I1: 2500 m | O1: 2 - 2000ft | P1: 2750 m | V1: 2 - 2000ft | W1: 3000 m | AC1: 2 - 2000ft | AD1: 3250 m
A2: TFLEX | B2: 2250-WT | C2: 2250-V1 | D2: 2250-VR | E2: 2250-V2 | F2: CODE | H2: TFLEX | I2: 2500-WT | J2: 2500-V1 | K2: 2500-VR | L2: 2500-V2 | M2: CODE | O2: TFLEX | P2: 2750-WT | Q2: 2750-V1 | R2: 2750-VR | S2: 2750-V2 | T2: CODE | V2: TFLEX | W2: 3000-WT | X2: 3000-V1 | Y2: 3000-VR | Z2: 3000-V2 | AA2: CODE | AC2: TFLEX | AD2: 3250-WT | AE2: 3250-V1 | AF2: 3250-VR | AG2: 3250-V2 | AH2: CODE
A3: -20 | B3: 11000 | C3: 133 | D3: 137 | E3: 142 | F3: 3/9 | H3: -20 | I3: 75300 | J3: 138 | K3: 141 | L3: 145 | M3: 3/9 | O3: -20 | P3: 78500 | Q3: 143 | R3: 144 | S3: 148 | T3: 3/9 | V3: -20 | W3: 80600 | X3: 149 | Y3: 150 | Z3: 155 | AA3: 2/3 | AC3: -20 | AD3: 81500 | AE3: 149 | AF3: 153 | AG3: 158 | AH3: 3/6
A4: -10 | B4: 69900 | C4: 132 | D4: 136 | E4: 141 | F4: 3/9 | H4: -10 | I4: 74200 | J4: 137 | K4: 140 | L4: 144 | M4: 3/9 | O4: -10 | P4: 77700 | Q4: 141 | R4: 143 | S4: 147 | T4: 3/9 | V4: -10 | W4: 79900 | X4: 147 | Y4: 148 | Z4: 153 | AA4: 2/3 | AC4: -10 | AD4: 80900 | AE4: 147 | AF4: 151 | AG4: 156 | AH4: 3/6
A5: 0 | B5: 68800 | C5: 130 | D5: 135 | E5: 140 | F5: 3/9 | H5: 0 | I5: 73000 | J5: 135 | K5: 140 | L5: 144 | M5: 3/9 | O5: 0 | P5: 76800 | Q5: 140 | R5: 142 | S5: 146 | T5: 3/9 | V5: 0 | W5: 79200 | X5: 145 | Y5: 147 | Z5: 151 | AA5: 3/6 | AC5: 0 | AD5: 80200 | AE5: 145 | AF5: 149 | AG5: 154 | AH5: 3/6
A6: 10 | B6: 67800 | C6: 129 | D6: 134 | E6: 138 | F6: 3/9 | H6: 10 | I6: 71900 | J6: 134 | K6: 139 | L6: 143 | M6: 3/9 | O6: 10 | P6: 75800 | Q6: 138 | R6: 141 | S6: 145 | T6: 3/9 | V6: 10 | W6: 78500 | X6: 143 | Y6: 145 | Z6: 149 | AA6: 3/6 | AC6: 10 | AD6: 79500 | AE6: 143 | AF6: 155 | AG6: 156 | AH6: 3/6
A7: 20 | B7: 66700 | C7: 127 | D7: 133 | E7: 137 | F7: 3/9 | H7: 20 | I7: 70800 | J7: 132 | K7: 138 | L7: 142 | M7: 3/9 | O7: 20 | P7: 74700 | Q7: 137 | R7: 141 | S7: 145 | T7: 3/9 | V7: 20 | W7: 71800 | X7: 141 | Y7: 143 | Z7: 147 | AA7: 3/6 | AC7: 20 | AD7: 78700 | AE7: 141 | AF7: 146 | AG7: 150 | AH7: 3/6
A8: 30 | B8: 65700 | C8: 126 | D8: 132 | E8: 136 | F8: 3/9 | H8: 30 | I8: 69100 | J8: 131 | K8: 136 | L8: 141 | M8: 3/9 | O8: 30 | P8: 73500 | Q8: 136 | R8: 140 | S8: 144 | T8: 3/9 | V8: 30 | W8: 76900 | X8: 140 | Y8: 142 | Z8: 146 | AA8: 3/6 | AC8: 30 | AD8: 77900 | AE8: 139 | AF8: 144 | AG8: 148 | AH8: 3/6
A9: 40 | B9: 64700 | C9: 125 | D9: 131 | E9: 135 | F9: 3/9 | H9: 40 | I9: 68100 | J9: 130 | K9: 135 | L9: 139 | M9: 3/9 | O9: 40 | P9: 72400 | Q9: 134 | R9: 139 | S9: 143 | T9: 3/9 | V9: 40 | W9: 16000 | X9: 138 | Y9: 142 | Z9: 146 | AA9: 3/6 | AC9: 40 | AD9: 77200 | AE9: 137 | AF9: 143 | AG9: 147 | AH9: 3/6
A10: 44 | B10: 63900 | C10: 125 | D10: 130 | E10: 134 | F10: 3/9 | H10: 44 | I10: 67900 | J10: 129 | K10: 135 | L10: 139 | M10: 3/9 | O10: 44 | P10: 71400 | Q10: 134 | R10: 139 | S10: 142 | T10: 3/9 | V10: 44 | W10: 74700 | X10: 138 | Y10: 141 | Z10: 145 | AA10: 3/9 | AC10: 44 | AD10: 76000 | AE10: 138 | AF10: 143 | AG10: 147 | AH10: 3/6
A11: 46 | B11: 63100 | C11: 124 | D11: 129 | E11: 133 | F11: 3/9 | H11: 46 | I11: 67000 | J11: 129 | K11: 134 | L11: 138 | M11: 3/9 | O11: 46 | P11: 70400 | Q11: 134 | R11: 138 | S11: 141 | T11: 3/9 | V11: 46 | W11: 73500 | X11: 138 | Y11: 141 | Z11: 144 | AA11: 3/9 | AC11: 46 | AD11: 74600 | AE11: 139 | AF11: 143 | AG11: 147 | AH11: 3/6
A12: 48 | B12: 62300 | C12: 124 | D12: 129 | E12: 133 | F12: 3/9 | H12: 48 | I12: 66000 | J12: 129 | K12: 133 | L12: 137 | M12: 3/9 | O12: 48 | P12: 69400 | Q12: 133 | R12: 137 | S12: 140 | T12: 3/9 | V12: 48 | W12: 72300 | X12: 138 | Y12: 140 | Z12: 143 | AA12: 3/9 | AC12: 48 | AD12: 73700 | AE12: 140 | AF12: 143 | AG12: 147 | AH12: 3/6
A13: 50 | B13: 61400 | C13: 124 | D13: 128 | E13: 132 | F13: 3/9 | H13: 50 | I13: 65200 | J13: 129 | K13: 132 | L13: 136 | M13: 3/9 | O13: 50 | P13: 68400 | Q13: 133 | R13: 136 | S13: 139 | T13: 3/9 | V13: 50 | W13: 71100 | X13: 137 | Y13: 139 | Z13: 142 | AA13: 3/9 | AC13: 50 | AD13: 72500 | AE13: 141 | AF13: 143 | AG13: 147 | AH13: 3/6
A14: 52 | B14: 60600 | C14: 123 | D14: 127 | E14: 131 | F14: 3/9 | H14: 52 | I14: 64200 | J14: 128 | K14: 131 | L14: 135 | M14: 3/9 | O14: 52 | P14: 67400 | Q14: 133 | R14: 135 | S14: 138 | T14: 3/9 | V14: 52 | W14: 69900 | X14: 137 | Y14: 138 | Z14: 141 | AA14: 3/9 | AC14: 52 | AD14: 71400 | AE14: 142 | AF14: 143 | AG14: 147 | AH14: 3/6
A15: 54 | B15: 60200 | C15: 123 | D15: 127 | E15: 130 | F15: 3/9 | H15: 54 | I15: 63800 | J15: 128 | K15: 131 | L15: 134 | M15: 3/9 | O15: 54 | P15: 66900 | Q15: 133 | R15: 134 | S15: 138 | T15: 3/9 | V15: 54 | W15: 69200 | X15: 137 | Y15: 138 | Z15: 141 | AA15: 2/3 | AC15: 54 | AD15: 70700 | AE15: 142 | AF15: 143 | AG15: 146 | AH15: 3/6
A16: 55 | B16: 59800 | C16: 123 | D16: 126 | E16: 130 | F16: 3/9 | H16: 55 | I16: 63300 | J16: 128 | K16: 130 | L16: 134 | M16: 3/9 | O16: 55 | P16: 66400 | Q16: 132 | R16: 134 | S16: 137 | T16: 3/9 | V16: 55 | W16: 68600 | X16: 137 | Y16: 138 | Z16: 141 | AA16: 2/3 | AC16: 55 | AD16: 70000 | AE16: 142 | AF16: 143 | AG16: 146 | AH16: 2/3
A17: 57 | B17: 58900 | C17: 123 | D17: 125 | E17: 129 | F17: 3/9 | H17: 57 | I17: 62400 | J17: 128 | K17: 130 | L17: 133 | M17: 3/9 | O17: 57 | P17: 65300 | Q17: 132 | R17: 133 | S17: 136 | T17: 3/9 | V17: 57 | W17: 67300 | X17: 137 | Y17: 137 | Z17: 140 | AA17: 2/3 | AC17: 57 | AD17: 68600 | AE17: 142 | AF17: 150 | AG17: 151 | AH17: 2/3
A18: 59 | B18: 58100 | C18: 122 | D18: 125 | E18: 128 | F18: 3/9 | H18: 59 | I18: 61500 | J18: 127 | K18: 129 | L18: 132 | M18: 3/9 | O18: 59 | P18: 64200 | Q18: 132 | R18: 132 | S18: 135 | T18: 3/9 | V18: 59 | W18: 65900 | X18: 137 | Y18: 137 | Z18: 140 | AA18: 2/3 | AC18: 59 | AD18: 67200 | AE18: 142 | AF18: 142 | AG18: 145 | AH18: 2/3
A19: 61 | B19: 57200 | C19: 122 | D19: 124 | E19: 127 | F19: 3/9 | H19: 61 | I19: 60500 | J19: 127 | K19: 128 | L19: 131 | M19: 3/9 | O19: 61 | P19: 62900 | Q19: 132 | R19: 132 | S19: 135 | T19: 3/3 | V19: 61 | W19: 64600 | X19: 137 | Y19: 137 | Z19: 139 | AA19: 2/3 | AC19: 61 | AD19: 65800 | AE19: 141 | AF19: 141 | AG19: 144 | AH19: 2/3
A20: 63 | B20: 56300 | C20: 121 | D20: 123 | E20: 126 | F20: 3/9 | H20: 63 | I20: 59500 | J20: 127 | K20: 127 | L20: 130 | M20: 3/9 | O20: 63 | P20: 61600 | Q20: 132 | R20: 132 | S20: 134 | T20: 3/3 | V20: 63 | W20: 63200 | X20: 136 | Y20: 136 | Z20: 139 | AA20: 3/3 | AC20: 63 | AD20: 64400 | AE20: 141 | AF20: 141 | AG20: 143 | AH20: 2/3
A21: 65 | B21: 55500 | C21: 121 | D21: 122 | E21: 125 | F21: 3/9 | H21: 65 | I21: 58500 | J21: 126 | K21: 126 | L21: 128 | M21: 3/9 | O21: 65 | P21: 60500 | Q21: 131 | R21: 131 | S21: 133 | T21: 3/3 | V21: 65 | W21: 62000 | X21: 136 | Y21: 136 | Z21: 138 | AA21: 3/3 | AC21: 65 | AD21: 63100 | AE21: 140 | AF21: 150 | AG21: 150 | AH21: 2/3
A22: 67 | B22: 54600 | C22: 121 | D22: 121 | E22: 124 | F22: 3/9 | H22: 67 | I22: 57400 | J22: 125 | K22: 125 | L22: 127 | M22: 3/9 | O22: 67 | P22: 59300 | Q22: 130 | R22: 130 | S22: 133 | T22: 3/3 | V22: 67 | W22: 60700 | X22: 135 | Y22: 135 | Z22: 137 | AA22: 3/3 | AC22: 67 | AD22: 61800 | AE22: 139 | AF22: 139 | AG22: 141 | AH22: 2/3
A23: 68 | B23: 55800 | C23: 122 | D23: 122 | E23: 125 | F23: 3/9 | H23: 68 | I23: 58400 | J23: 126 | K23: 126 | L23: 129 | M23: 3/9 | O23: 68 | P23: 60300 | Q23: 131 | R23: 131 | S23: 133 | T23: 3/3 | V23: 68 | W23: 61700 | X23: 136 | Y23: 136 | Z23: 139 | AA23: 3/3 | AC23: 68 | AD23: 62800 | AE23: 140 | AF23: 140 | AG23: 142 | AH23: 2/3

Sheet 3_0FT (hidden)
B26: OJO CAMBIAN LAS DISTANCIAS!!!!

Sheet 3_1000FT (hidden)
A1: 3-1000ft | B1: 1500 m | H1: 1+F - 0ft | I1: 1750 m | O1: 1+F - 0ft | P1: 2000 m | V1: 1+F - 0ft | W1: 2250 m | AC1: 1+F - 0ft | AD1: 2500 m
A2: TFLEX | B2: 1500-WT | C2: 1500-V1 | D2: 1500-VR | E2: 1500-V2 | F2: CODE | H2: TFLEX | I2: 1750-WT | J2: 1750-V1 | K2: 1750-VR | L2: 1750-V2 | M2: CODE | O2: TFLEX | P2: 2000-WT | Q2: 2000-V1 | R2: 2000-VR | S2: 2000-V2 | T2: CODE | V2: TFLEX | W2: 2250-WT | X2: 2250-V1 | Y2: 2250-VR | Z2: 2250-V2 | AA2: CODE | AC2: TFLEX | AD2: 2500-WT | AE2: 2500-V1 | AF2: 2500-VR | AG2: 2500-V2 | AH2: CODE
A3: -20 | B3: 69300 | C3: 127 | D3: 130 | E3: 135 | F3: 3/3 | H3: -20 | I3: 74500 | J3: 133 | K3: 134 | L3: 139 | M3: 3/3 | O3: -20 | P3: 78000 | Q3: 139 | R3: 139 | S3: 143 | T3: 2/3 | V3: -20 | W3: 80300 | X3: 145 | Y3: 147 | Z3: 150 | AA3: 2/3 | AC3: -20 | AD3: 82100 | AE3: 151 | AF3: 153 | AG3: 156 | AH3: 2/3
A4: -10 | B4: 68700 | C4: 126 | D4: 129 | E4: 134 | F4: 3/3 | H4: -10 | I4: 73400 | J4: 131 | K4: 134 | L4: 139 | M4: 3/3 | O4: -10 | P4: 11300 | Q4: 137 | R4: 137 | S4: 141 | T4: 2/3 | V4: -10 | W4: 79100 | X4: 143 | Y4: 145 | Z4: 148 | AA4: 2/3 | AC4: -10 | AD4: 81500 | AE4: 149 | AF4: 151 | AG4: 154 | AH4: 2/3
A5: 0 | B5: 67600 | C5: 124 | D5: 128 | E5: 133 | F5: 3/3 | H5: 0 | I5: 72300 | J5: 130 | K5: 133 | L5: 138 | M5: 3/3 | O5: 0 | P5: 76400 | Q5: 135 | R5: 136 | S5: 140 | T5: 3/3 | V5: 0 | W5: 79000 | X5: 141 | Y5: 143 | Z5: 146 | AA5: 2/3 | AC5: 0 | AD5: 80900 | AE5: 148 | AF5: 150 | AG5: 154 | AH5: 2/3
A6: 10 | B6: 66600 | C6: 123 | D6: 127 | E6: 132 | F6: 3/3 | H6: 10 | I6: 71200 | J6: 128 | K6: 132 | L6: 137 | M6: 3/3 | O6: 10 | P6: 75500 | Q6: 133 | R6: 135 | S6: 140 | T6: 3/3 | V6: 10 | W6: 18300 | X6: 139 | Y6: 141 | Z6: 145 | AA6: 2/3 | AC6: 10 | AD6: 80300 | AE6: 148 | AF6: 150 | AG6: 155 | AH6: 3/6
A7: 20 | B7: 65500 | C7: 122 | D7: 126 | E7: 131 | F7: 3/3 | H7: 20 | I7: 70200 | J7: 127 | K7: 131 | L7: 136 | M7: 3/3 | O7: 20 | P7: 74300 | Q7: 132 | R7: 135 | S7: 139 | T7: 3/3 | V7: 20 | W7: 77500 | X7: 137 | Y7: 139 | Z7: 143 | AA7: 2/3 | AC7: 20 | AD7: 79600 | AE7: 146 | AF7: 149 | AG7: 156 | AH7: 3/6
A8: 30 | B8: 64500 | C8: 120 | D8: 125 | E8: 130 | F8: 3/3 | H8: 30 | I8: 69200 | J8: 126 | K8: 130 | L8: 135 | M8: 3/3 | O8: 30 | P8: 73300 | Q8: 131 | R8: 134 | S8: 139 | T8: 3/3 | V8: 30 | W8: 16800 | X8: 135 | Y8: 137 | Z8: 141 | AA8: 2/3 | AC8: 30 | AD8: 78900 | AE8: 146 | AF8: 149 | AG8: 157 | AH8: 3/6
A9: 40 | B9: 63600 | C9: 119 | D9: 124 | E9: 129 | F9: 3/3 | H9: 40 | I9: 68200 | J9: 124 | K9: 129 | L9: 134 | M9: 3/3 | O9: 40 | P9: 72300 | Q9: 129 | R9: 133 | S9: 138 | T9: 3/3 | V9: 40 | W9: 76100 | X9: 134 | Y9: 136 | Z9: 140 | AA9: 3/3 | AC9: 40 | AD9: 78200 | AE9: 146 | AF9: 148 | AG9: 158 | AH9: 3/6
A10: 44 | B10: 63400 | C10: 119 | D10: 124 | E10: 129 | F10: 3/3 | H10: 44 | I10: 68000 | J10: 124 | K10: 129 | L10: 134 | M10: 3/3 | O10: 44 | P10: 12100 | Q10: 129 | R10: 133 | S10: 138 | T10: 3/3 | V10: 44 | W10: 75900 | X10: 133 | Y10: 136 | Z10: 140 | AA10: 3/3 | AC10: 44 | AD10: 78100 | AE10: 145 | AF10: 147 | AG10: 159 | AH10: 3/6
A11: 46 | B11: 62600 | C11: 118 | D11: 123 | E11: 128 | F11: 3/3 | H11: 46 | I11: 67100 | J11: 124 | K11: 128 | L11: 133 | M11: 3/3 | O11: 46 | P11: 71000 | Q11: 129 | R11: 132 | S11: 137 | T11: 3/3 | V11: 46 | W11: 74500 | X11: 133 | Y11: 135 | Z11: 139 | AA11: 3/3 | AC11: 46 | AD11: 76700 | AE11: 145 | AF11: 146 | AG11: 158 | AH11: 2/3
A12: 48 | B12: 61300 | C12: 118 | D12: 122 | E12: 127 | F12: 3/3 | H12: 48 | I12: 66200 | J12: 124 | K12: 127 | L12: 132 | M12: 3/3 | O12: 48 | P12: 10000 | Q12: 129 | R12: 131 | S12: 136 | T12: 3/3 | V12: 48 | W12: 73200 | X12: 133 | Y12: 134 | Z12: 139 | AA12: 2/3 | AC12: 48 | AD12: 75300 | AE12: 144 | AF12: 146 | AG12: 156 | AH12: 2/3
A13: 50 | B13: 60900 | C13: 118 | D13: 121 | E13: 126 | F13: 3/3 | H13: 50 | I13: 65300 | J13: 123 | K13: 126 | L13: 131 | M13: 3/3 | O13: 50 | P13: 69000 | Q13: 128 | R13: 130 | S13: 135 | T13: 3/3 | V13: 50 | W13: 71900 | X13: 133 | Y13: 134 | Z13: 138 | AA13: 2/3 | AC13: 50 | AD13: 73800 | AE13: 144 | AF13: 145 | AG13: 154 | AH13: 2/3
A14: 52 | B14: 60100 | C14: 117 | D14: 121 | E14: 125 | F14: 3/3 | H14: 52 | I14: 64400 | J14: 123 | K14: 126 | L14: 130 | M14: 3/3 | O14: 52 | P14: 68000 | Q14: 128 | R14: 130 | S14: 133 | T14: 3/3 | V14: 52 | W14: 70600 | X14: 133 | Y14: 134 | Z14: 138 | AA14: 2/3 | AC14: 52 | AD14: 72400 | AE14: 143 | AF14: 144 | AG14: 152 | AH14: 2/3
A15: 54 | B15: 59200 | C15: 117 | D15: 120 | E15: 124 | F15: 3/3 | H15: 54 | I15: 63500 | J15: 123 | K15: 125 | L15: 129 | M15: 3/3 | O15: 54 | P15: 66900 | Q15: 128 | R15: 129 | S15: 132 | T15: 3/3 | V15: 54 | W15: 69300 | X15: 133 | Y15: 133 | Z15: 137 | AA15: 2/3 | AC15: 54 | AD15: 71000 | AE15: 142 | AF15: 143 | AG15: 150 | AH15: 2/3
A16: 55 | B16: 58900 | C16: 117 | D16: 120 | E16: 124 | F16: 3/3 | H16: 55 | I16: 63100 | J16: 123 | K16: 124 | L16: 128 | M16: 3/3 | O16: 55 | P16: 66400 | Q16: 128 | R16: 128 | S16: 132 | T16: 3/3 | V16: 55 | W16: 68700 | X16: 133 | Y16: 133 | Z16: 137 | AA16: 2/3 | AC16: 55 | AD16: 70300 | AE16: 142 | AF16: 142 | AG16: 149 | AH16: 2/3
A17: 57 | B17: 58000 | C17: 117 | D17: 119 | E17: 123 | F17: 3/3 | H17: 57 | I17: 62100 | J17: 122 | K17: 123 | L17: 127 | M17: 3/3 | O17: 57 | P17: 65200 | Q17: 128 | R17: 128 | S17: 131 | T17: 3/3 | V17: 57 | W17: 67400 | X17: 133 | Y17: 133 | Z17: 136 | AA17: 2/3 | AC17: 57 | AD17: 68900 | AE17: 140 | AF17: 140 | AG17: 145 | AH17: 2/3
A18: 59 | B18: 58000 | C18: 116 | D18: 118 | E18: 123 | F18: 3/3 | H18: 59 | I18: 61100 | J18: 122 | K18: 123 | L18: 127 | M18: 3/3 | O18: 59 | P18: 63900 | Q18: 128 | R18: 128 | S18: 131 | T18: 3/3 | V18: 59 | W18: 66100 | X18: 133 | Y18: 133 | Z18: 136 | AA18: 3/3 | AC18: 59 | AD18: 67600 | AE18: 139 | AF18: 139 | AG18: 143 | AH18: 2/3
A19: 61 | B19: 56200 | C19: 116 | D19: 117 | E19: 121 | F19: 3/3 | H19: 61 | I19: 60100 | J19: 122 | K19: 122 | L19: 125 | M19: 3/3 | O19: 61 | P19: 62600 | Q19: 127 | R19: 127 | S19: 131 | T19: 3/3 | V19: 61 | W19: 64700 | X19: 133 | Y19: 133 | Z19: 136 | AA19: 3/3 | AC19: 61 | AD19: 66200 | AE19: 138 | AF19: 138 | AG19: 141 | AH19: 2/3
A20: 63 | B20: 55300 | C20: 115 | D20: 116 | E20: 120 | F20: 3/3 | H20: 63 | I20: 59000 | J20: 121 | K20: 121 | L20: 124 | M20: 3/3 | O20: 63 | P20: 61400 | Q20: 127 | R20: 127 | S20: 130 | T20: 3/3 | V20: 63 | W20: 63400 | X20: 132 | Y20: 132 | Z20: 136 | AA20: 3/3 | AC20: 63 | AD20: 64900 | AE20: 137 | AF20: 137 | AG20: 140 | AH20: 2/3
A21: 65 | B21: 54200 | C21: 115 | D21: 116 | E21: 120 | F21: 3/3 | H21: 65 | I21: 57900 | J21: 119 | K21: 119 | L21: 123 | M21: 3/3 | O21: 65 | P21: 60200 | Q21: 126 | R21: 126 | S21: 129 | T21: 3/3 | V21: 65 | W21: 62200 | X21: 132 | Y21: 132 | Z21: 135 | AA21: 3/3 | AC21: 65 | AD21: 63500 | AE21: 137 | AF21: 137 | AG21: 140 | AH21: 3/3
A22: 67 | B22: 52900 | C22: 114 | D22: 116 | E22: 120 | F22: 3/3 | H22: 67 | I22: 56800 | J22: 118 | K22: 118 | L22: 121 | M22: 3/3 | O22: 67 | P22: 59100 | Q22: 125 | R22: 125 | S22: 128 | T22: 3/3 | V22: 67 | W22: 60900 | X22: 131 | Y22: 131 | Z22: 133 | AA22: 3/3 | AC22: 67 | AD22: 62200 | AE22: 136 | AF22: 136 | AG22: 139 | AH22: 3/3
A23: 68 | B23: 52300 | C23: 114 | D23: 116 | E23: 120 | F23: 3/3 | H23: 68 | I23: 56200 | J23: 118 | K23: 118 | L23: 121 | M23: 3/3 | O23: 68 | P23: 58500 | Q23: 125 | R23: 125 | S23: 128 | T23: 3/3 | V23: 68 | W23: 60300 | X23: 130 | Y23: 130 | Z23: 133 | AA23: 3/3 | AC23: 68 | AD23: 61500 | AE23: 135 | AF23: 135 | AG23: 138 | AH23: 3/3

Sheet 3_2000FT (hidden)
A1: 3-2000ft | B1: 1500 m | H1: 1+F - 0ft | I1: 1750 m | O1: 1+F - 0ft | P1: 2000 m | V1: 1+F - 0ft | W1: 2250 m | AC1: 1+F - 0ft | AD1: 2500 m
A2: TFLEX | B2: 1500-WT | C2: 1500-V1 | D2: 1500-VR | E2: 1500-V2 | F2: CODE | H2: TFLEX | I2: 1750-WT | J2: 1750-V1 | K2: 1750-VR | L2: 1750-V2 | M2: CODE | O2: TFLEX | P2: 2000-WT | Q2: 2000-V1 | R2: 2000-VR | S2: 2000-V2 | T2: CODE | V2: TFLEX | W2: 2250-WT | X2: 2250-V1 | Y2: 2250-VR | Z2: 2250-V2 | AA2: CODE | AC2: TFLEX | AD2: 2500-WT | AE2: 2500-V1 | AF2: 2500-VR | AG2: 2500-V2 | AH2: CODE
A3: -20 | B3: 68100 | C3: 126 | D3: 129 | E3: 134 | F3: 3/3 | H3: -20 | I3: 72700 | J3: 132 | K3: 134 | L3: 138 | M3: 3/3 | O3: -20 | P3: 76500 | Q3: 137 | R3: 137 | S3: 141 | T3: 3/3 | V3: -20 | W3: 79000 | X3: 143 | Y3: 144 | Z3: 148 | AA3: 2/3 | AC3: -20 | AD3: 80800 | AE3: 149 | AF3: 151 | AG3: 154 | AH3: 2/3
